Workbook

Sheet UTL1
H1: Wednesday Fun Fours 2022/2023 season
B2: Only copy/paste;don't cut/paste games!
A3: 6 over after #games | C3: 12
A4: book average #games | C4: 9
A5: handicap after #games | C5: 12
A6: wk No.: | V6: =MAX(C7:E36) -> 30 | W6: =MAX(V7:X36) -> 0
A7: 1 | B7: 2022-09-07 | D7: =_xlfn.IFS(C7="X",A7,$A$1="","") -> 
A8: 2 | B8: 2022-09-14 | D8: =_xlfn.IFS(C8="X",A8,$A$1="","") -> 
A9: 3 | B9: 2022-09-21 | D9: =_xlfn.IFS(C9="X",A9,$A$1="","") -> 
A10: 4 | B10: 2022-09-28 | D10: =_xlfn.IFS(C10="X",A10,$A$1="","") -> 
A11: 5 | B11: 2022-10-05 | D11: =_xlfn.IFS(C11="X",A11,$A$1="","") -> 
A12: 6 | B12: 2022-10-12 | D12: =_xlfn.IFS(C12="X",A12,$A$1="","") -> 
A13: 7 | B13: 2022-10-19 | D13: =_xlfn.IFS(C13="X",A13,$A$1="","") -> 
A14: 8 | B14: 2022-10-26 | D14: =_xlfn.IFS(C14="X",A14,$A$1="","") -> 
A15: 9 | B15: 2022-11-02 | D15: =_xlfn.IFS(C15="X",A15,$A$1="","") -> 
A16: 10 | B16: 2022-11-09 | D16: =_xlfn.IFS(C16="X",A16,$A$1="","") -> 
A17: 11 | B17: 2022-11-16 | D17: =_xlfn.IFS(C17="X",A17,$A$1="","") -> 
A18: 12 | B18: 2022-11-30 | D18: =_xlfn.IFS(C18="X",A18,$A$1="","") -> 
A19: 13 | B19: 2022-12-07 | D19: =_xlfn.IFS(C19="X",A19,$A$1="","") -> 
A20: 14 | B20: 2022-12-14 | D20: =_xlfn.IFS(C20="X",A20,$A$1="","") -> 
A21: 15 | B21: 2022-12-21 | D21: =_xlfn.IFS(C21="X",A21,$A$1="","") -> 
A22: 16 | B22: 2023-01-04 | D22: =_xlfn.IFS(C22="X",A22,$A$1="","") -> 
A23: 17 | B23: 2023-01-11 | D23: =_xlfn.IFS(C23="X",A23,$A$1="","") -> 
A24: 18 | B24: 2023-01-18 | D24: =_xlfn.IFS(C24="X",A24,$A$1="","") -> 
A25: 19 | B25: 2023-01-25 | D25: =_xlfn.IFS(C25="X",A25,$A$1="","") -> 
A26: 20 | B26: 2023-02-01 | D26: =_xlfn.IFS(C26="X",A26,$A$1="","") -> 
A27: 21 | B27: 2023-02-08 | D27: =_xlfn.IFS(C27="X",A27,$A$1="","") -> 
A28: 22 | B28: 2023-02-15 | D28: =_xlfn.IFS(C28="X",A28,$A$1="","") -> 
A29: 23 | B29: 2023-02-22 | D29: =_xlfn.IFS(C29="X",A29,$A$1="","") -> 
A30: 24 | B30: 2023-03-01 | D30: =_xlfn.IFS(C30="X",A30,$A$1="","") -> 
A31: 25 | B31: 2023-03-08 | D31: =_xlfn.IFS(C31="X",A31,$A$1="","") -> 
A32: 26 | B32: 2023-03-15 | D32: =_xlfn.IFS(C32="X",A32,$A$1="","") -> 
A33: 27 | B33: 2023-03-22 | D33: =_xlfn.IFS(C33="X",A33,$A$1="","") -> 
A34: 28 | B34: 2023-03-29 | D34: =_xlfn.IFS(C34="X",A34,$A$1="","") -> 
A35: 29 | B35: 2023-04-05 | D35: =_xlfn.IFS(C35="X",A35,$A$1="","") -> 
A36: 30 | B36: 2023-04-12 | C36: x | D36: =_xlfn.IFS(C36="X",A36,$A$1="","") -> 30

Sheet UTL2-PA
B1: Perfect | C1: PA | E1: 6 over | F1: 6 over
A2: Name: | B2: Attendance | C2: status | E2: Average | F2: start Wk
A4: Devi Sharma | B4: =DSharma!$J$3 -> NO | C4: =DSharma!$K$3 ->  | E4: =IF(COUNT(DSharma!$S$2)=1,"YES","") -> YES | F4: =DSharma!$S$2 -> 19
A5: Michael Slinsen | B5: =MSlinen!$J$3 -> NO | C5: =MSlinen!$K$3 ->  | E5: =IF(COUNT(MSlinen!$S$2)=1,"YES","") -> YES | F5: =MSlinen!$S$2 -> 25
A6: Gregor Gonzales | B6: =GregorG!$J$3 -> NO | C6: =GregorG!$K$3 ->  | E6: =IF(COUNT(GregorG!$S$2)=1,"YES","") -> YES | F6: =GregorG!$S$2 -> 5
A7: Greg Gonzales | B7: =GregG!$J$3 -> NO | C7: =GregG!$K$3 ->  | E7: =IF(COUNT(GregG!$S$2)=1,"YES","") ->  | F7: =GregG!$S$2 -> 
A8: Sterling Gray | B8: =SGray!$J$3 -> NO | C8: =SGray!$K$3 ->  | E8: =IF(COUNT(SGray!$S$2)=1,"YES","") ->  | F8: =AFarnsworth!$S$2 -> 
A9: Anthony Farnsworth | B9: =AFarnsworth!$J$3 -> YES | C9: =AFarnsworth!$K$3 -> Good | E9: =IF(COUNT(AFarnsworth!$S$2)=1,"YES","") ->  | F9: =AFarnsworth!$S$2 -> 
A10: James Willin | B10: =JWillin!$J$3 -> NO | C10: =JWillin!$K$3 ->  | E10: =IF(COUNT(JWillin!$S$2)=1,"YES","") ->  | F10: =JWillin!$S$2 -> 
A11: Spincer Willin | B11: =SWillin!$J$3 -> NO | C11: =SWillin!$K$3 ->  | E11: =IF(COUNT(SWillin!$S$2)=1,"YES","") ->  | F11: =SWillin!$S$2 -> 
A12: Alyssa Greiner | B12: =AGreiner!$J$3 -> NO | C12: =AGreiner!$K$3 ->  | E12: =IF(COUNT(AGreiner!$S$2)=1,"YES","") ->  | F12: =AGreiner!$S$2 -> 
A13: Tammy Lang | B13: =TLang!$J$3 -> YES | C13: =TLang!$K$3 -> Good | E13: =IF(COUNT(TLang!$S$2)=1,"YES","") ->  | F13: =TLang!$S$2 -> 
A14: Andy Thomson | B14: =AThomson!$J$3 -> NO | C14: =AThomson!$K$3 ->  | E14: =IF(COUNT(AThomson!$S$2)=1,"YES","") -> YES | F14: =IF(COUNT(AThomson!$S$2)=1,AThomson!$S$2,"") -> 28
A15: Andy Hellhake | B15: =AHellhake!$J$3 -> NO | C15: =AHellhake!$K$3 ->  | E15: =IF(COUNT(AHellhake!$S$2)=1,"YES","") ->  | F15: =AHellhake!$S$2 -> 
A16: Mike Doyel | B16: =MDoyel!$J$3 -> NO | C16: =MDoyel!$K$3 ->  | E16: =IF(COUNT(MDoyel!$S$2)=1,"YES","") -> YES | F16: =MDoyel!$S$2 -> 13
A17: Sean Robinson | B17: =SRobinson!$J$3 -> NO | C17: =SRobinson!$K$3 ->  | E17: =IF(COUNT(SRobinson!$S$2)=1,"YES","") ->  | F17: =SRobinson!$S$2 -> 
A18: David Wicker | B18: =DWicker!$J$3 -> NO | C18: =DWicker!$K$3 ->  | E18: =IF(COUNT(DWicker!$S$2)=1,"YES","") ->  | F18: =DWicker!$S$2 -> 
A19: Rodney Rojas | B19: =RRojas!$J$3 -> NO | C19: =RRojas!$K$3 ->  | E19: =IF(COUNT(RRojas!$S$2)=1,"YES","") ->  | F19: =RRojas!$S$2 -> 
A20: Kenny Mosser | B20: =KMosser!$J$3 -> NO | C20: =KMosser!$K$3 ->  | E20: =IF(COUNT(KMosser!$S$2)=1,"YES","") -> YES | F20: =KMosser!$S$2 -> 28
A21: Rebecca Walters | B21: =RWalters!$J$3 -> NO | C21: =RWalters!$K$3 ->  | E21: =IF(COUNT(RWalters!$S$2)=1,"YES","") ->  | F21: =RWalters!$S$2 -> 
A22: Cindi White | B22: =CWhite!$J$3 -> YES | C22: =CWhite!$K$3 -> Good | E22: =IF(COUNT(CWhite!$S$2)=1,"YES","") -> YES | F22: =CWhite!$S$2 -> 13
A23: Denise Gebb | B23: =DGebb!$J$3 -> NO | C23: =DGebb!$K$3 ->  | E23: =IF(COUNT(DGebb!$S$2)=1,"YES","") ->  | F23: =DGebb!$S$2 -> 
A24: MaryEllen Wernett | B24: =MWernett!$J$3 -> NO | C24: =MWernett!$K$3 ->  | E24: =IF(COUNT(MWernett!$S$2)=1,"YES","") -> YES | F24: =MWernett!$S$2 -> 13
A25: Ray Kummer | B25: =RKummer!$J$3 -> NO | C25: =RKummer!$K$3 ->  | E25: =IF(COUNT(RKummer!$S$2)=1,"YES","") -> YES | F25: =RKummer!$S$2 -> 7
A26: Sara Nerius | B26: =SNerius!$J$3 -> NO | C26: =SNerius!$K$3 ->  | E26: =IF(COUNT(SNerius!$S$2)=1,"YES","") ->  | F26: =SNerius!$S$2 -> 
A27: Dustin Campana | B27: =DCampana!$J$3 -> NO | C27: =DCampana!$K$3 ->  | E27: =IF(COUNT(DCampana!$S$2)=1,"YES","") ->  | F27: =DCampana!$S$2 -> 
A28: Tim Sikes | B28: =TSikes!$J$3 -> NO | C28: =TSikes!$K$3 ->  | E28: =IF(COUNT(TSikes!$S$2)=1,"YES","") ->  | F28: =TSikes!$S$2 -> 
A29: Dan Torres | B29: =DTorres!$J$3 -> NO | C29: =DTorres!$K$3 ->  | E29: =IF(COUNT(DTorres!$S$2)=1,"YES","") ->  | F29: =DTorres!$S$2 -> 
A30: Jose Bisler | B30: =JBisler!$J$3 -> YES | C30: =JBisler!$K$3 -> Good | E30: =IF(COUNT(JBisler!$S$2)=1,"YES","") -> YES | F30: =JBisler!$S$2 -> 22
A31: Jenny Carretero | B31: =JCarretero!$J$3 -> NO | C31: =JCarretero!$K$3 ->  | E31: =IF(COUNT(JCarretero!$S$2)=1,"YES","") ->  | F31: =JCarretero!$S$2 -> 
A32: Ronnie Carretero | B32: =RCarretero!$J$3 -> NO | C32: =RCarretero!$K$3 ->  | E32: =IF(COUNT(RCarretero!$S$2)=1,"YES","") -> YES | F32: =RCarretero!$S$2 -> 6
A33: Dominic Carretero | B33: =DCarretero!$J$3 -> NO | C33: =DCarretero!$K$3 ->  | E33: =IF(COUNT(DCarretero!$S$2)=1,"YES","") ->  | F33: =DCarretero!$S$2 -> 
A34: Marilyn Thomson | B34: =MThomson!$J$3 -> NO | C34: =MThomson!$K$3 ->  | E34: =IF(COUNT(MThomson!$S$2)=1,"YES","") ->  | F34: =MThomson!$S$2 -> 
A35: John Orcutt | B35: =JOrcutt!$J$3 -> NO | C35: =JOrcutt!$K$3 ->  | E35: =IF(COUNT(JOrcutt!$S$2)=1,"YES","") ->  | F35: =JOrcutt!$S$2 -> 
A36: Morgan Thomas | B36: =MThomas!$J$3 -> NO | C36: =MThomas!$K$3 ->  | E36: =IF(COUNT(MThomas!$S$2)=1,"YES","") -> YES | F36: =MThomas!$S$2 -> 13
A37: Mike Schirman | B37: =MSchirman!$J$3 -> YES | C37: =MSchirman!$K$3 -> Good | E37: =IF(COUNT(MSchirman!$S$2)=1,"YES","") -> YES | F37: =MSchirman!$S$2 -> 12
A38: Bernard O'Cop | B38: =BOcop!$J$3 -> NO | C38: =BOcop!$K$3 ->  | E38: =IF(COUNT(BOcop!$S$2)=1,"YES","") ->  | F38: =BOcop!$S$2 -> 
A39: Kenneth Hanover | B39: =KHanover!$J$3 -> YES | C39: =KHanover!$K$3 -> Good | E39: =IF(COUNT(KHanover!$S$2)=1,"YES","") -> YES | F39: =KHanover!$S$2 -> 14
A40: Mat Hanover | B40: =MHanover!$J$3 -> NO | C40: =MHanover!$K$3 ->  | E40: =IF(COUNT(MHanover!$S$2)=1,"YES","") ->  | F40: =MHanover!$S$2 -> 
A41: Dominic Mata | B41: =DMata!$J$3 -> NO | C41: =DMata!$K$3 ->  | E41: =IF(COUNT(DMata!$S$2)=1,"YES","") ->  | F41: =DMata!$S$2 -> 
A42: Blake Russell | B42: =BRussell!$J$3 -> NO | C42: =BRussell!$K$3 ->  | E42: =IF(COUNT(BRussell!$S$2)=1,"YES","") ->  | F42: =BRussell!$S$2 -> 
A43: Tom Woodard | B43: =TWoodard!$J$3 -> NO | C43: =TWoodard!$K$3 ->  | E43: =IF(COUNT(TWoodard!$S$2)=1,"YES","") -> YES | F43: =TWoodard!$S$2 -> 6
A44: Patty Green | B44: =PGreen!$J$3 -> NO | C44: =PGreen!$K$3 ->  | E44: =IF(COUNT(PGreen!$S$2)=1,"YES","") ->  | F44: =PGreen!$S$2 -> 
A45: Ron Plasse | B45: =RPlasse!$J$3 -> NO | C45: =RPlasse!$K$3 ->  | E45: =IF(COUNT(RPlasse!$S$2)=1,"YES","") ->  | F45: =RPlasse!$S$2 -> 
A46: Dick Harkey | B46: =DHarkey!$J$3 -> NO | C46: =DHarkey!$K$3 ->  | E46: =IF(COUNT(DHarkey!$S$2)=1,"YES","") ->  | F46: =DHarkey!$S$2 -> 
A47: Carole Huygen | B47: =CHuygen!$J$3 -> NO | C47: =CHuygen!$K$3 ->  | E47: =IF(COUNT(CHuygen!$S$2)=1,"YES","") ->  | F47: =CHuygen!$S$2 -> 
A48: Jan Askew | B48: =JAskew!$J$3 -> NO | C48: =JAskew!$K$3 ->  | E48: =IF(COUNT(JAskew!$S$2)=1,"YES","") -> YES | F48: =JAskew!$S$2 -> 17
A49: Cynthia McElrath | B49: =CMcElrath!$J$3 -> NO | C49: =CMcElrath!$K$3 ->  | E49: =IF(COUNT(CMcElrath!$S$2)=1,"YES","") ->  | F49: =CMcElrath!$S$2 -> 
A50: Matt Clark | B50: =MClark!$J$3 -> YES | C50: =MClark!$K$3 -> Good | E50: =IF(COUNT(MClark!$S$2)=1,"YES","") ->  | F50: =MClark!$S$2 -> 
A51: Tim Lewallen | B51: =TLewallen!$J$3 -> NO | C51: =TLewallen!$K$3 ->  | E51: =IF(COUNT(TLewallen!$S$2)=1,"YES","") ->  | F51: =TLewallen!$S$2 -> 
A52: Tammy Kummer | B52: =TKummer!$J$3 -> NO | C52: =TKummer!$K$3 ->  | E52: =IF(COUNT(TKummer!$S$2)=1,"YES","") ->  | F52: =TKummer!$S$2 -> 
A53: Brian Wibben | B53: =BWibben!$J$3 -> NO | C53: =BWibben!$K$3 ->  | E53: =IF(COUNT(BWibben!$S$2)=1,"YES","") ->  | F53: =BWibben!$S$2 -> 
A54: Tyler Hunt | B54: =THunt!$J$3 -> NO | C54: =THunt!$K$3 ->  | E54: =IF(COUNT(THunt!$S$2)=1,"YES","") ->  | F54: =THunt!$S$2 -> 
A55: Barry Cossman | B55: =BCossman!$J$3 -> NO | C55: =BCossman!$K$3 ->  | E55: =IF(COUNT(BCossman!$S$2)=1,"YES","") ->  | F55: =BCossman!$S$2 -> 
A56: Will Exelby | B56: =WExelby!$J$3 -> NO | C56: =WExelby!$K$3 ->  | E56: =IF(COUNT(WExelby!$S$2)=1,"YES","") ->  | F56: =WExelby!$S$2 -> 
A57: Dave Green | B57: =DGreen!$J$3 -> NO | C57: =DGreen!$K$3 ->  | E57: =IF(COUNT(DGreen!$S$2)=1,"YES","") ->  | F57: =DGreen!$S$2 -> 
A58: Russ Perkins | B58: =RPerkins!$J$3 -> NO | C58: =RPerkins!$K$3 ->  | E58: =IF(COUNT(RPerkins!$S$2)=1,"YES","") ->  | F58: =RPerkins!$S$2 -> 
A59: Jasmine Brady | B59: =JBrady!$J$3 -> NO | C59: =JBrady!$K$3 ->  | E59: =IF(COUNT(JBrady!$S$2)=1,"YES","") ->  | F59: =JBrady!$S$2 -> 
B64: =COUNTIF(B4:B62,"YES") -> 7 | E64: =COUNTIF(E4:E62,"YES") -> 16

Sheet Blank
A1: =IF('UTL1'!A2="V",'UTL1'!B2,"") ->  | H1: ='UTL1'!H1 -> Wednesday Fun Fours 2022/2023 season
A2: wk# | B2: =MAX(Z7:Z36) -> 0 | O2: 6 Over week: | S2: =IF(MIN(AA7:AA36)<1,"",MIN(AA7:AA36)) -> 
A3: Name: | G3: Perfect Attendance: | J3: =_xlfn.IFS(MAX('UTL1'!D7:D36)>B2,"NO",SUM(Q7:Q36)=B2,"YES",SUM(Q7:Q36)<>B2,"NO") -> NO | K3: =_xlfn.IFS(MAX('UTL1'!D7:D36)>B2,"",AND(SUM(Q7:Q36)<30,SUM(Q7:Q36)=B2),"So Far",SUM(Q7:Q36)=30,"Good",SUM(Q7:Q36)<>B2,"") -> 
A4: Bk Avg: | W4: Hi.series> | X4: =MAX(I7:I36) -> 0
C5: bk or | D5: old | I5: wky | J5: wky | K5: Hcp | L5: hcp | O5: new | P5: start | R5: high | S5: high | T5: high hcp | U5: high hcp | W5: hi.game> | X5: =MAX(E7:G36) -> 0
A6: wk no. | C6: old avg | D6: hdcp | E6: -1- | F6: -2- | G6: -3- | I6: total | J6: avg | K6: total | L6: t2 hc | M6: Pins | N6: Gms | O6: avg | P6: week | Q6: startB | R6: series | S6: game | T6: series | U6: game | W6: h.hcp.g> | X6: =MAX(W7:Y36) -> 0 | Z6: wk#
A7: 1 | B7: ='UTL1'!B7 -> 2022-09-07 | C7: =_xlfn.IFS(Q7<>1,"",AND($B$4>=1,COUNT($E$7:G7)<=bkng),$B$4,P7=1,TRUNC(AVERAGE(E7:G7),0),COUNT($Q$7:Q7)=2,TRUNC(AVERAGE($E6:G$7),0),COUNT($Q$7:Q7)>=3,TRUNC(AVERAGE($E6:G$7),0)) ->  | D7: =_xlfn.IFS(Q7<>1,"",Q7=1,TRUNC((230-C7)*0.9)) ->  | I7: =IF(Q7=1,SUM(E7:G7),"") ->  | J7: =IF(Q7=1,TRUNC(AVERAGE(E7:G7),0),"") ->  | K7: =_xlfn.IFS(Q7<>1,"",Q7=1,I7+(3*D7)) ->  | L7: =_xlfn.IFS(Q7<>1,"",COUNT($E$7:G7)<=hcpng,"",COUNT($E$7:G7)>=hcpng,K7) ->  | M7: =_xlfn.IFS(Q7=1,SUM($E$7:G7),Q7<>1,"") ->  | N7: =_xlfn.IFS(Q7=1,COUNT($E$7:G7),Q7<>1,"") ->  | O7: =IF(Q7=1,ROUND(AVERAGE($E$7:G7),2),"") ->  | P7: =_xlfn.IFS(Q7<>1,"",SUM($Q$7:Q7)=1,1,SUM($Q$7:Q7)<>1,"") ->  | Q7: =IF(MAX(E7:G7)<1,"",1) ->  | R7: =IF(I7=$X$4,I7,"") ->  | S7: =_xlfn.IFS(E7=$X$5,E7,F7=$X$5,F7,G7=$X$5,G7,$A$7=1,"") -> 0 | T7: =IF(L7=MAX($L$7:$L$36),L7,"") ->  | U7: =_xlfn.IFS(W7=$X$6,W7,X7=$X$6,X7,Y7=$X$6,Y7,$A$7=1,"") ->  | W7: =_xlfn.IFS(AND(Q7=1,COUNT($E$7:G7)>hcpng),E7+D7,$A$7=1," ") ->  | X7: =_xlfn.IFS(AND(Q7=1,COUNT($E$7:G7)>hcpng),F7+D7,$A$7=1," ") ->  | Y7: =_xlfn.IFS(AND(Q7=1,COUNT($E$7:G7)>hcpng),G7+D7,$A$7=1," ") ->  | Z7: =IF(Q7=1,A7,0) -> 0 | AA7: =_xlfn.IFS(COUNTIFS(H7,"#",H6,"#"),A6,COUNTIFS(H7,2,H6,"#"),A6,$A$7=1,"") -> 
A8: 2 | B8: ='UTL1'!B8 -> 2022-09-14 | C8: =_xlfn.IFS(Q8<>1,"",AND($B$4>=1,COUNT($E$7:G8)<=bkng),$B$4,P8=1,TRUNC(AVERAGE(E8:G8),0),COUNT($Q$7:Q8)=2,TRUNC(AVERAGE($E7:G$7),0),COUNT($Q$7:Q8)>=3,TRUNC(AVERAGE($E7:G$7),0)) ->  | D8: =_xlfn.IFS(Q8<>1,"",Q8=1,TRUNC((230-C8)*0.9)) ->  | H8: =_xlfn.IFS(COUNT(E8:G8)<1,"",AND(E8>C8,F8>C8,G8>C8,COUNT($E$7:G8)>sixng),"#",AND(E8>C7,F8>C7,G8>C7,COUNT($E$7:G8)>sixng,COUNTIF(H7,"#")=1),"2",$A$7=1,"") ->  | I8: =IF(Q8=1,SUM(E8:G8),"") ->  | J8: =IF(Q8=1,TRUNC(AVERAGE(E8:G8),0),"") ->  | K8: =_xlfn.IFS(Q8<>1,"",Q8=1,I8+(3*D8)) ->  | L8: =_xlfn.IFS(Q8<>1,"",COUNT($E$7:G8)<=hcpng,"",COUNT($E$7:G8)>=hcpng,K8) ->  | M8: =_xlfn.IFS(Q8=1,SUM($E$7:G8),Q8<>1,"") ->  | N8: =_xlfn.IFS(Q8=1,COUNT($E$7:G8),Q8<>1,"") ->  | O8: =IF(Q8=1,ROUND(AVERAGE($E$7:G8),2),"") ->  | P8: =_xlfn.IFS(Q8<>1,"",SUM($Q$7:Q8)=1,1,SUM($Q$7:Q8)<>1,"") ->  | Q8: =IF(MAX(E8:G8)<1,"",1) ->  | R8: =IF(I8=$X$4,I8,"") ->  | S8: =_xlfn.IFS(E8=$X$5,E8,F8=$X$5,F8,G8=$X$5,G8,$A$7=1,"") -> 0 | T8: =IF(L8=MAX($L$7:$L$36),L8,"") ->  | U8: =_xlfn.IFS(W8=$X$6,W8,X8=$X$6,X8,Y8=$X$6,Y8,$A$7=1,"") ->  | W8: =_xlfn.IFS(AND(Q8=1,COUNT($E$7:G8)>hcpng),E8+D8,$A$7=1," ") ->  | X8: =_xlfn.IFS(AND(Q8=1,COUNT($E$7:G8)>hcpng),F8+D8,$A$7=1," ") ->  | Y8: =_xlfn.IFS(AND(Q8=1,COUNT($E$7:G8)>hcpng),G8+D8,$A$7=1," ") ->  | Z8: =IF(Q8=1,A8,0) -> 0 | AA8: =_xlfn.IFS(COUNTIFS(H8,"#",H7,"#"),A7,COUNTIFS(H8,2,H7,"#"),A7,$A$7=1,"") -> 
A9: 3 | B9: ='UTL1'!B9 -> 2022-09-21 | C9: =_xlfn.IFS(Q9<>1,"",AND($B$4>=1,COUNT($E$7:G9)<=bkng),$B$4,P9=1,TRUNC(AVERAGE(E9:G9),0),COUNT($Q$7:Q9)=2,TRUNC(AVERAGE($E$7:G8),0),COUNT($Q$7:Q9)>=3,TRUNC(AVERAGE($E$7:G8),0)) ->  | D9: =_xlfn.IFS(Q9<>1,"",Q9=1,TRUNC((230-C9)*0.9)) ->  | H9: =_xlfn.IFS(COUNT(E9:G9)<1,"",AND(E9>C9,F9>C9,G9>C9,COUNT($E$7:G9)>sixng),"#",AND(E9>C8,F9>C8,G9>C8,COUNT($E$7:G9)>sixng,COUNTIF(H8,"#")=1),"2",$A$7=1,"") ->  | K9: =_xlfn.IFS(Q9<>1,"",Q9=1,I9+(3*D9)) ->  | L9: =_xlfn.IFS(Q9<>1,"",COUNT($E$7:G9)<=hcpng,"",COUNT($E$7:G9)>=hcpng,K9) ->  | M9: =_xlfn.IFS(Q9=1,SUM($E$7:G9),Q9<>1,"") ->  | N9: =_xlfn.IFS(Q9=1,COUNT($E$7:G9),Q9<>1,"") ->  | O9: =IF(Q9=1,ROUND(AVERAGE($E$7:G9),2),"") ->  | P9: =_xlfn.IFS(Q9<>1,"",SUM($Q$7:Q9)=1,1,SUM($Q$7:Q9)<>1,"") ->  | S9: =_xlfn.IFS(E9=$X$5,E9,F9=$X$5,F9,G9=$X$5,G9,$A$7=1,"") -> 0 | U9: =_xlfn.IFS(W9=$X$6,W9,X9=$X$6,X9,Y9=$X$6,Y9,$A$7=1,"") ->  | W9: =_xlfn.IFS(AND(Q9=1,COUNT($E$7:G9)>hcpng),E9+D9,$A$7=1," ") ->  | X9: =_xlfn.IFS(AND(Q9=1,COUNT($E$7:G9)>hcpng),F9+D9,$A$7=1," ") ->  | Y9: =_xlfn.IFS(AND(Q9=1,COUNT($E$7:G9)>hcpng),G9+D9,$A$7=1," ") ->  | Z9: 0 | AA9: =_xlfn.IFS(COUNTIFS(H9,"#",H8,"#"),A8,COUNTIFS(H9,2,H8,"#"),A8,$A$7=1,"") -> 
A10: 4 | B10: ='UTL1'!B10 -> 2022-09-28 | C10: =_xlfn.IFS(Q10<>1,"",AND($B$4>=1,COUNT($E$7:G10)<=bkng),$B$4,P10=1,TRUNC(AVERAGE(E10:G10),0),COUNT($Q$7:Q10)=2,TRUNC(AVERAGE($E$7:G9),0),COUNT($Q$7:Q10)>=3,TRUNC(AVERAGE($E$7:G9),0)) ->  | D10: =_xlfn.IFS(Q10<>1,"",Q10=1,TRUNC((230-C10)*0.9)) ->  | H10: =_xlfn.IFS(COUNT(E10:G10)<1,"",AND(E10>C10,F10>C10,G10>C10,COUNT($E$7:G10)>sixng),"#",AND(E10>C9,F10>C9,G10>C9,COUNT($E$7:G10)>sixng,COUNTIF(H9,"#")=1),"2",$A$7=1,"") ->  | K10: =_xlfn.IFS(Q10<>1,"",Q10=1,I10+(3*D10)) ->  | L10: =_xlfn.IFS(Q10<>1,"",COUNT($E$7:G10)<=hcpng,"",COUNT($E$7:G10)>=hcpng,K10) ->  | M10: =_xlfn.IFS(Q10=1,SUM($E$7:G10),Q10<>1,"") ->  | N10: =_xlfn.IFS(Q10=1,COUNT($E$7:G10),Q10<>1,"") ->  | O10: =IF(Q10=1,ROUND(AVERAGE($E$7:G10),2),"") ->  | P10: =_xlfn.IFS(Q10<>1,"",SUM($Q$7:Q10)=1,1,SUM($Q$7:Q10)<>1,"") ->  | S10: =_xlfn.IFS(E10=$X$5,E10,F10=$X$5,F10,G10=$X$5,G10,$A$7=1,"") -> 0 | U10: =_xlfn.IFS(W10=$X$6,W10,X10=$X$6,X10,Y10=$X$6,Y10,$A$7=1,"") ->  | W10: =_xlfn.IFS(AND(Q10=1,COUNT($E$7:G10)>hcpng),E10+D10,$A$7=1," ") ->  | X10: =_xlfn.IFS(AND(Q10=1,COUNT($E$7:G10)>hcpng),F10+D10,$A$7=1," ") ->  | Y10: =_xlfn.IFS(AND(Q10=1,COUNT($E$7:G10)>hcpng),G10+D10,$A$7=1," ") ->  | Z10: 0 | AA10: =_xlfn.IFS(COUNTIFS(H10,"#",H9,"#"),A9,COUNTIFS(H10,2,H9,"#"),A9,$A$7=1,"") -> 
A11: 5 | B11: ='UTL1'!B11 -> 2022-10-05 | C11: =_xlfn.IFS(Q11<>1,"",AND($B$4>=1,COUNT($E$7:G11)<=bkng),$B$4,P11=1,TRUNC(AVERAGE(E11:G11),0),COUNT($Q$7:Q11)=2,TRUNC(AVERAGE($E$7:G10),0),COUNT($Q$7:Q11)>=3,TRUNC(AVERAGE($E$7:G10),0)) ->  | D11: =_xlfn.IFS(Q11<>1,"",Q11=1,TRUNC((230-C11)*0.9)) ->  | H11: =_xlfn.IFS(COUNT(E11:G11)<1,"",AND(E11>C11,F11>C11,G11>C11,COUNT($E$7:G11)>sixng),"#",AND(E11>C10,F11>C10,G11>C10,COUNT($E$7:G11)>sixng,COUNTIF(H10,"#")=1),"2",$A$7=1,"") ->  | K11: =_xlfn.IFS(Q11<>1,"",Q11=1,I11+(3*D11)) ->  | L11: =_xlfn.IFS(Q11<>1,"",COUNT($E$7:G11)<=hcpng,"",COUNT($E$7:G11)>=hcpng,K11) ->  | M11: =_xlfn.IFS(Q11=1,SUM($E$7:G11),Q11<>1,"") ->  | N11: =_xlfn.IFS(Q11=1,COUNT($E$7:G11),Q11<>1,"") ->  | O11: =IF(Q11=1,ROUND(AVERAGE($E$7:G11),2),"") ->  | P11: =_xlfn.IFS(Q11<>1,"",SUM($Q$7:Q11)=1,1,SUM($Q$7:Q11)<>1,"") ->  | S11: =_xlfn.IFS(E11=$X$5,E11,F11=$X$5,F11,G11=$X$5,G11,$A$7=1,"") -> 0 | U11: =_xlfn.IFS(W11=$X$6,W11,X11=$X$6,X11,Y11=$X$6,Y11,$A$7=1,"") ->  | W11: =_xlfn.IFS(AND(Q11=1,COUNT($E$7:G11)>hcpng),E11+D11,$A$7=1," ") ->  | X11: =_xlfn.IFS(AND(Q11=1,COUNT($E$7:G11)>hcpng),F11+D11,$A$7=1," ") ->  | Y11: =_xlfn.IFS(AND(Q11=1,COUNT($E$7:G11)>hcpng),G11+D11,$A$7=1," ") ->  | Z11: 0 | AA11: =_xlfn.IFS(COUNTIFS(H11,"#",H10,"#"),A10,COUNTIFS(H11,2,H10,"#"),A10,$A$7=1,"") -> 
A12: 6 | B12: ='UTL1'!B12 -> 2022-10-12 | C12: =_xlfn.IFS(Q12<>1,"",AND($B$4>=1,COUNT($E$7:G12)<=bkng),$B$4,P12=1,TRUNC(AVERAGE(E12:G12),0),COUNT($Q$7:Q12)=2,TRUNC(AVERAGE($E$7:G11),0),COUNT($Q$7:Q12)>=3,TRUNC(AVERAGE($E$7:G11),0)) ->  | D12: =_xlfn.IFS(Q12<>1,"",Q12=1,TRUNC((230-C12)*0.9)) ->  | H12: =_xlfn.IFS(COUNT(E12:G12)<1,"",AND(E12>C12,F12>C12,G12>C12,COUNT($E$7:G12)>sixng),"#",AND(E12>C11,F12>C11,G12>C11,COUNT($E$7:G12)>sixng,COUNTIF(H11,"#")=1),"2",$A$7=1,"") ->  | K12: =_xlfn.IFS(Q12<>1,"",Q12=1,I12+(3*D12)) ->  | L12: =_xlfn.IFS(Q12<>1,"",COUNT($E$7:G12)<=hcpng,"",COUNT($E$7:G12)>=hcpng,K12) ->  | M12: =_xlfn.IFS(Q12=1,SUM($E$7:G12),Q12<>1,"") ->  | N12: =_xlfn.IFS(Q12=1,COUNT($E$7:G12),Q12<>1,"") ->  | O12: =IF(Q12=1,ROUND(AVERAGE($E$7:G12),2),"") ->  | P12: =_xlfn.IFS(Q12<>1,"",SUM($Q$7:Q12)=1,1,SUM($Q$7:Q12)<>1,"") ->  | S12: =_xlfn.IFS(E12=$X$5,E12,F12=$X$5,F12,G12=$X$5,G12,$A$7=1,"") -> 0 | U12: =_xlfn.IFS(W12=$X$6,W12,X12=$X$6,X12,Y12=$X$6,Y12,$A$7=1,"") ->  | W12: =_xlfn.IFS(AND(Q12=1,COUNT($E$7:G12)>hcpng),E12+D12,$A$7=1," ") ->  | X12: =_xlfn.IFS(AND(Q12=1,COUNT($E$7:G12)>hcpng),F12+D12,$A$7=1," ") ->  | Y12: =_xlfn.IFS(AND(Q12=1,COUNT($E$7:G12)>hcpng),G12+D12,$A$7=1," ") ->  | Z12: 0 | AA12: =_xlfn.IFS(COUNTIFS(H12,"#",H11,"#"),A11,COUNTIFS(H12,2,H11,"#"),A11,$A$7=1,"") -> 
A13: 7 | B13: ='UTL1'!B13 -> 2022-10-19 | C13: =_xlfn.IFS(Q13<>1,"",AND($B$4>=1,COUNT($E$7:G13)<=bkng),$B$4,P13=1,TRUNC(AVERAGE(E13:G13),0),COUNT($Q$7:Q13)=2,TRUNC(AVERAGE($E$7:G12),0),COUNT($Q$7:Q13)>=3,TRUNC(AVERAGE($E$7:G12),0)) ->  | D13: =_xlfn.IFS(Q13<>1,"",Q13=1,TRUNC((230-C13)*0.9)) ->  | H13: =_xlfn.IFS(COUNT(E13:G13)<1,"",AND(E13>C13,F13>C13,G13>C13,COUNT($E$7:G13)>sixng),"#",AND(E13>C12,F13>C12,G13>C12,COUNT($E$7:G13)>sixng,COUNTIF(H12,"#")=1),"2",$A$7=1,"") ->  | K13: =_xlfn.IFS(Q13<>1,"",Q13=1,I13+(3*D13)) ->  | L13: =_xlfn.IFS(Q13<>1,"",COUNT($E$7:G13)<=hcpng,"",COUNT($E$7:G13)>=hcpng,K13) ->  | M13: =_xlfn.IFS(Q13=1,SUM($E$7:G13),Q13<>1,"") ->  | N13: =_xlfn.IFS(Q13=1,COUNT($E$7:G13),Q13<>1,"") ->  | O13: =IF(Q13=1,ROUND(AVERAGE($E$7:G13),2),"") ->  | P13: =_xlfn.IFS(Q13<>1,"",SUM($Q$7:Q13)=1,1,SUM($Q$7:Q13)<>1,"") ->  | S13: =_xlfn.IFS(E13=$X$5,E13,F13=$X$5,F13,G13=$X$5,G13,$A$7=1,"") -> 0 | U13: =_xlfn.IFS(W13=$X$6,W13,X13=$X$6,X13,Y13=$X$6,Y13,$A$7=1,"") ->  | W13: =_xlfn.IFS(AND(Q13=1,COUNT($E$7:G13)>hcpng),E13+D13,$A$7=1," ") ->  | X13: =_xlfn.IFS(AND(Q13=1,COUNT($E$7:G13)>hcpng),F13+D13,$A$7=1," ") ->  | Y13: =_xlfn.IFS(AND(Q13=1,COUNT($E$7:G13)>hcpng),G13+D13,$A$7=1," ") ->  | Z13: 0 | AA13: =_xlfn.IFS(COUNTIFS(H13,"#",H12,"#"),A12,COUNTIFS(H13,2,H12,"#"),A12,$A$7=1,"") -> 
A14: 8 | B14: ='UTL1'!B14 -> 2022-10-26 | C14: =_xlfn.IFS(Q14<>1,"",AND($B$4>=1,COUNT($E$7:G14)<=bkng),$B$4,P14=1,TRUNC(AVERAGE(E14:G14),0),COUNT($Q$7:Q14)=2,TRUNC(AVERAGE($E$7:G13),0),COUNT($Q$7:Q14)>=3,TRUNC(AVERAGE($E$7:G13),0)) ->  | D14: =_xlfn.IFS(Q14<>1,"",Q14=1,TRUNC((230-C14)*0.9)) ->  | H14: =_xlfn.IFS(COUNT(E14:G14)<1,"",AND(E14>C14,F14>C14,G14>C14,COUNT($E$7:G14)>sixng),"#",AND(E14>C13,F14>C13,G14>C13,COUNT($E$7:G14)>sixng,COUNTIF(H13,"#")=1),"2",$A$7=1,"") ->  | K14: =_xlfn.IFS(Q14<>1,"",Q14=1,I14+(3*D14)) ->  | L14: =_xlfn.IFS(Q14<>1,"",COUNT($E$7:G14)<=hcpng,"",COUNT($E$7:G14)>=hcpng,K14) ->  | M14: =_xlfn.IFS(Q14=1,SUM($E$7:G14),Q14<>1,"") ->  | N14: =_xlfn.IFS(Q14=1,COUNT($E$7:G14),Q14<>1,"") ->  | O14: =IF(Q14=1,ROUND(AVERAGE($E$7:G14),2),"") ->  | P14: =_xlfn.IFS(Q14<>1,"",SUM($Q$7:Q14)=1,1,SUM($Q$7:Q14)<>1,"") ->  | S14: =_xlfn.IFS(E14=$X$5,E14,F14=$X$5,F14,G14=$X$5,G14,$A$7=1,"") -> 0 | U14: =_xlfn.IFS(W14=$X$6,W14,X14=$X$6,X14,Y14=$X$6,Y14,$A$7=1,"") ->  | W14: =_xlfn.IFS(AND(Q14=1,COUNT($E$7:G14)>hcpng),E14+D14,$A$7=1," ") ->  | X14: =_xlfn.IFS(AND(Q14=1,COUNT($E$7:G14)>hcpng),F14+D14,$A$7=1," ") ->  | Y14: =_xlfn.IFS(AND(Q14=1,COUNT($E$7:G14)>hcpng),G14+D14,$A$7=1," ") ->  | Z14: 0 | AA14: =_xlfn.IFS(COUNTIFS(H14,"#",H13,"#"),A13,COUNTIFS(H14,2,H13,"#"),A13,$A$7=1,"") -> 
A15: 9 | B15: ='UTL1'!B15 -> 2022-11-02 | C15: =_xlfn.IFS(Q15<>1,"",AND($B$4>=1,COUNT($E$7:G15)<=bkng),$B$4,P15=1,TRUNC(AVERAGE(E15:G15),0),COUNT($Q$7:Q15)=2,TRUNC(AVERAGE($E$7:G14),0),COUNT($Q$7:Q15)>=3,TRUNC(AVERAGE($E$7:G14),0)) ->  | D15: =_xlfn.IFS(Q15<>1,"",Q15=1,TRUNC((230-C15)*0.9)) ->  | H15: =_xlfn.IFS(COUNT(E15:G15)<1,"",AND(E15>C15,F15>C15,G15>C15,COUNT($E$7:G15)>sixng),"#",AND(E15>C14,F15>C14,G15>C14,COUNT($E$7:G15)>sixng,COUNTIF(H14,"#")=1),"2",$A$7=1,"") ->  | K15: =_xlfn.IFS(Q15<>1,"",Q15=1,I15+(3*D15)) ->  | L15: =_xlfn.IFS(Q15<>1,"",COUNT($E$7:G15)<=hcpng,"",COUNT($E$7:G15)>=hcpng,K15) ->  | M15: =_xlfn.IFS(Q15=1,SUM($E$7:G15),Q15<>1,"") ->  | N15: =_xlfn.IFS(Q15=1,COUNT($E$7:G15),Q15<>1,"") ->  | O15: =IF(Q15=1,ROUND(AVERAGE($E$7:G15),2),"") ->  | P15: =_xlfn.IFS(Q15<>1,"",SUM($Q$7:Q15)=1,1,SUM($Q$7:Q15)<>1,"") ->  | Q15: =IF(MAX(E15:G15)<1,"",1) ->  | S15: =_xlfn.IFS(E15=$X$5,E15,F15=$X$5,F15,G15=$X$5,G15,$A$7=1,"") -> 0 | U15: =_xlfn.IFS(W15=$X$6,W15,X15=$X$6,X15,Y15=$X$6,Y15,$A$7=1,"") ->  | W15: =_xlfn.IFS(AND(Q15=1,COUNT($E$7:G15)>hcpng),E15+D15,$A$7=1," ") ->  | X15: =_xlfn.IFS(AND(Q15=1,COUNT($E$7:G15)>hcpng),F15+D15,$A$7=1," ") ->  | Y15: =_xlfn.IFS(AND(Q15=1,COUNT($E$7:G15)>hcpng),G15+D15,$A$7=1," ") ->  | Z15: 0 | AA15: =_xlfn.IFS(COUNTIFS(H15,"#",H14,"#"),A14,COUNTIFS(H15,2,H14,"#"),A14,$A$7=1,"") -> 
A16: 10 | B16: ='UTL1'!B16 -> 2022-11-09 | C16: =_xlfn.IFS(Q16<>1,"",AND($B$4>=1,COUNT($E$7:G16)<=bkng),$B$4,P16=1,TRUNC(AVERAGE(E16:G16),0),COUNT($Q$7:Q16)=2,TRUNC(AVERAGE($E$7:G15),0),COUNT($Q$7:Q16)>=3,TRUNC(AVERAGE($E$7:G15),0)) ->  | D16: =_xlfn.IFS(Q16<>1,"",Q16=1,TRUNC((230-C16)*0.9)) ->  | H16: =_xlfn.IFS(COUNT(E16:G16)<1,"",AND(E16>C16,F16>C16,G16>C16,COUNT($E$7:G16)>sixng),"#",AND(E16>C15,F16>C15,G16>C15,COUNT($E$7:G16)>sixng,COUNTIF(H15,"#")=1),"2",$A$7=1,"") ->  | K16: =_xlfn.IFS(Q16<>1,"",Q16=1,I16+(3*D16)) ->  | L16: =_xlfn.IFS(Q16<>1,"",COUNT($E$7:G16)<=hcpng,"",COUNT($E$7:G16)>=hcpng,K16) ->  | M16: =_xlfn.IFS(Q16=1,SUM($E$7:G16),Q16<>1,"") ->  | N16: =_xlfn.IFS(Q16=1,COUNT($E$7:G16),Q16<>1,"") ->  | O16: =IF(Q16=1,ROUND(AVERAGE($E$7:G16),2),"") ->  | P16: =_xlfn.IFS(Q16<>1,"",SUM($Q$7:Q16)=1,1,SUM($Q$7:Q16)<>1,"") ->  | S16: =_xlfn.IFS(E16=$X$5,E16,F16=$X$5,F16,G16=$X$5,G16,$A$7=1,"") -> 0 | U16: =_xlfn.IFS(W16=$X$6,W16,X16=$X$6,X16,Y16=$X$6,Y16,$A$7=1,"") ->  | W16: =_xlfn.IFS(AND(Q16=1,COUNT($E$7:G16)>hcpng),E16+D16,$A$7=1," ") ->  | X16: =_xlfn.IFS(AND(Q16=1,COUNT($E$7:G16)>hcpng),F16+D16,$A$7=1," ") ->  | Y16: =_xlfn.IFS(AND(Q16=1,COUNT($E$7:G16)>hcpng),G16+D16,$A$7=1," ") ->  | Z16: 0 | AA16: =_xlfn.IFS(COUNTIFS(H16,"#",H15,"#"),A15,COUNTIFS(H16,2,H15,"#"),A15,$A$7=1,"") -> 
A17: 11 | B17: ='UTL1'!B17 -> 2022-11-16 | C17: =_xlfn.IFS(Q17<>1,"",AND($B$4>=1,COUNT($E$7:G17)<=bkng),$B$4,P17=1,TRUNC(AVERAGE(E17:G17),0),COUNT($Q$7:Q17)=2,TRUNC(AVERAGE($E$7:G16),0),COUNT($Q$7:Q17)>=3,TRUNC(AVERAGE($E$7:G16),0)) ->  | D17: =_xlfn.IFS(Q17<>1,"",Q17=1,TRUNC((230-C17)*0.9)) ->  | H17: =_xlfn.IFS(COUNT(E17:G17)<1,"",AND(E17>C17,F17>C17,G17>C17,COUNT($E$7:G17)>sixng),"#",AND(E17>C16,F17>C16,G17>C16,COUNT($E$7:G17)>sixng,COUNTIF(H16,"#")=1),"2",$A$7=1,"") ->  | K17: =_xlfn.IFS(Q17<>1,"",Q17=1,I17+(3*D17)) ->  | L17: =_xlfn.IFS(Q17<>1,"",COUNT($E$7:G17)<=hcpng,"",COUNT($E$7:G17)>=hcpng,K17) ->  | M17: =_xlfn.IFS(Q17=1,SUM($E$7:G17),Q17<>1,"") ->  | N17: =_xlfn.IFS(Q17=1,COUNT($E$7:G17),Q17<>1,"") ->  | O17: =IF(Q17=1,ROUND(AVERAGE($E$7:G17),2),"") ->  | P17: =_xlfn.IFS(Q17<>1,"",SUM($Q$7:Q17)=1,1,SUM($Q$7:Q17)<>1,"") ->  | S17: =_xlfn.IFS(E17=$X$5,E17,F17=$X$5,F17,G17=$X$5,G17,$A$7=1,"") -> 0 | U17: =_xlfn.IFS(W17=$X$6,W17,X17=$X$6,X17,Y17=$X$6,Y17,$A$7=1,"") ->  | W17: =_xlfn.IFS(AND(Q17=1,COUNT($E$7:G17)>hcpng),E17+D17,$A$7=1," ") ->  | X17: =_xlfn.IFS(AND(Q17=1,COUNT($E$7:G17)>hcpng),F17+D17,$A$7=1," ") ->  | Y17: =_xlfn.IFS(AND(Q17=1,COUNT($E$7:G17)>hcpng),G17+D17,$A$7=1," ") ->  | Z17: 0 | AA17: =_xlfn.IFS(COUNTIFS(H17,"#",H16,"#"),A16,COUNTIFS(H17,2,H16,"#"),A16,$A$7=1,"") -> 
A18: 12 | B18: ='UTL1'!B18 -> 2022-11-30 | C18: =_xlfn.IFS(Q18<>1,"",AND($B$4>=1,COUNT($E$7:G18)<=bkng),$B$4,P18=1,TRUNC(AVERAGE(E18:G18),0),COUNT($Q$7:Q18)=2,TRUNC(AVERAGE($E$7:G17),0),COUNT($Q$7:Q18)>=3,TRUNC(AVERAGE($E$7:G17),0)) ->  | D18: =_xlfn.IFS(Q18<>1,"",Q18=1,TRUNC((230-C18)*0.9)) ->  | H18: =_xlfn.IFS(COUNT(E18:G18)<1,"",AND(E18>C18,F18>C18,G18>C18,COUNT($E$7:G18)>sixng),"#",AND(E18>C17,F18>C17,G18>C17,COUNT($E$7:G18)>sixng,COUNTIF(H17,"#")=1),"2",$A$7=1,"") ->  | K18: =_xlfn.IFS(Q18<>1,"",Q18=1,I18+(3*D18)) ->  | L18: =_xlfn.IFS(Q18<>1,"",COUNT($E$7:G18)<=hcpng,"",COUNT($E$7:G18)>=hcpng,K18) ->  | M18: =_xlfn.IFS(Q18=1,SUM($E$7:G18),Q18<>1,"") ->  | N18: =_xlfn.IFS(Q18=1,COUNT($E$7:G18),Q18<>1,"") ->  | O18: =IF(Q18=1,ROUND(AVERAGE($E$7:G18),2),"") ->  | P18: =_xlfn.IFS(Q18<>1,"",SUM($Q$7:Q18)=1,1,SUM($Q$7:Q18)<>1,"") ->  | S18: =_xlfn.IFS(E18=$X$5,E18,F18=$X$5,F18,G18=$X$5,G18,$A$7=1,"") -> 0 | U18: =_xlfn.IFS(W18=$X$6,W18,X18=$X$6,X18,Y18=$X$6,Y18,$A$7=1,"") ->  | W18: =_xlfn.IFS(AND(Q18=1,COUNT($E$7:G18)>hcpng),E18+D18,$A$7=1," ") ->  | X18: =_xlfn.IFS(AND(Q18=1,COUNT($E$7:G18)>hcpng),F18+D18,$A$7=1," ") ->  | Y18: =_xlfn.IFS(AND(Q18=1,COUNT($E$7:G18)>hcpng),G18+D18,$A$7=1," ") ->  | Z18: 0 | AA18: =_xlfn.IFS(COUNTIFS(H18,"#",H17,"#"),A17,COUNTIFS(H18,2,H17,"#"),A17,$A$7=1,"") -> 
A19: 13 | B19: ='UTL1'!B19 -> 2022-12-07 | C19: =_xlfn.IFS(Q19<>1,"",AND($B$4>=1,COUNT($E$7:G19)<=bkng),$B$4,P19=1,TRUNC(AVERAGE(E19:G19),0),COUNT($Q$7:Q19)=2,TRUNC(AVERAGE($E$7:G18),0),COUNT($Q$7:Q19)>=3,TRUNC(AVERAGE($E$7:G18),0)) ->  | D19: =_xlfn.IFS(Q19<>1,"",Q19=1,TRUNC((230-C19)*0.9)) ->  | H19: =_xlfn.IFS(COUNT(E19:G19)<1,"",AND(E19>C19,F19>C19,G19>C19,COUNT($E$7:G19)>sixng),"#",AND(E19>C18,F19>C18,G19>C18,COUNT($E$7:G19)>sixng,COUNTIF(H18,"#")=1),"2",$A$7=1,"") ->  | K19: =_xlfn.IFS(Q19<>1,"",Q19=1,I19+(3*D19)) ->  | L19: =_xlfn.IFS(Q19<>1,"",COUNT($E$7:G19)<=hcpng,"",COUNT($E$7:G19)>=hcpng,K19) ->  | M19: =_xlfn.IFS(Q19=1,SUM($E$7:G19),Q19<>1,"") ->  | N19: =_xlfn.IFS(Q19=1,COUNT($E$7:G19),Q19<>1,"") ->  | O19: =IF(Q19=1,ROUND(AVERAGE($E$7:G19),2),"") ->  | P19: =_xlfn.IFS(Q19<>1,"",SUM($Q$7:Q19)=1,1,SUM($Q$7:Q19)<>1,"") ->  | S19: =_xlfn.IFS(E19=$X$5,E19,F19=$X$5,F19,G19=$X$5,G19,$A$7=1,"") -> 0 | U19: =_xlfn.IFS(W19=$X$6,W19,X19=$X$6,X19,Y19=$X$6,Y19,$A$7=1,"") ->  | W19: =_xlfn.IFS(AND(Q19=1,COUNT($E$7:G19)>hcpng),E19+D19,$A$7=1," ") ->  | X19: =_xlfn.IFS(AND(Q19=1,COUNT($E$7:G19)>hcpng),F19+D19,$A$7=1," ") ->  | Y19: =_xlfn.IFS(AND(Q19=1,COUNT($E$7:G19)>hcpng),G19+D19,$A$7=1," ") ->  | Z19: 0 | AA19: =_xlfn.IFS(COUNTIFS(H19,"#",H18,"#"),A18,COUNTIFS(H19,2,H18,"#"),A18,$A$7=1,"") -> 
A20: 14 | B20: ='UTL1'!B20 -> 2022-12-14 | C20: =_xlfn.IFS(Q20<>1,"",AND($B$4>=1,COUNT($E$7:G20)<=bkng),$B$4,P20=1,TRUNC(AVERAGE(E20:G20),0),COUNT($Q$7:Q20)=2,TRUNC(AVERAGE($E$7:G19),0),COUNT($Q$7:Q20)>=3,TRUNC(AVERAGE($E$7:G19),0)) ->  | D20: =_xlfn.IFS(Q20<>1,"",Q20=1,TRUNC((230-C20)*0.9)) ->  | H20: =_xlfn.IFS(COUNT(E20:G20)<1,"",AND(E20>C20,F20>C20,G20>C20,COUNT($E$7:G20)>sixng),"#",AND(E20>C19,F20>C19,G20>C19,COUNT($E$7:G20)>sixng,COUNTIF(H19,"#")=1),"2",$A$7=1,"") ->  | K20: =_xlfn.IFS(Q20<>1,"",Q20=1,I20+(3*D20)) ->  | L20: =_xlfn.IFS(Q20<>1,"",COUNT($E$7:G20)<=hcpng,"",COUNT($E$7:G20)>=hcpng,K20) ->  | M20: =_xlfn.IFS(Q20=1,SUM($E$7:G20),Q20<>1,"") ->  | N20: =_xlfn.IFS(Q20=1,COUNT($E$7:G20),Q20<>1,"") ->  | O20: =IF(Q20=1,ROUND(AVERAGE($E$7:G20),2),"") ->  | P20: =_xlfn.IFS(Q20<>1,"",SUM($Q$7:Q20)=1,1,SUM($Q$7:Q20)<>1,"") ->  | S20: =_xlfn.IFS(E20=$X$5,E20,F20=$X$5,F20,G20=$X$5,G20,$A$7=1,"") -> 0 | U20: =_xlfn.IFS(W20=$X$6,W20,X20=$X$6,X20,Y20=$X$6,Y20,$A$7=1,"") ->  | W20: =_xlfn.IFS(AND(Q20=1,COUNT($E$7:G20)>hcpng),E20+D20,$A$7=1," ") ->  | X20: =_xlfn.IFS(AND(Q20=1,COUNT($E$7:G20)>hcpng),F20+D20,$A$7=1," ") ->  | Y20: =_xlfn.IFS(AND(Q20=1,COUNT($E$7:G20)>hcpng),G20+D20,$A$7=1," ") ->  | Z20: 0 | AA20: =_xlfn.IFS(COUNTIFS(H20,"#",H19,"#"),A19,COUNTIFS(H20,2,H19,"#"),A19,$A$7=1,"") -> 
A21: 15 | B21: ='UTL1'!B21 -> 2022-12-21 | C21: =_xlfn.IFS(Q21<>1,"",AND($B$4>=1,COUNT($E$7:G21)<=bkng),$B$4,P21=1,TRUNC(AVERAGE(E21:G21),0),COUNT($Q$7:Q21)=2,TRUNC(AVERAGE($E$7:G20),0),COUNT($Q$7:Q21)>=3,TRUNC(AVERAGE($E$7:G20),0)) ->  | D21: =_xlfn.IFS(Q21<>1,"",Q21=1,TRUNC((230-C21)*0.9)) ->  | H21: =_xlfn.IFS(COUNT(E21:G21)<1,"",AND(E21>C21,F21>C21,G21>C21,COUNT($E$7:G21)>sixng),"#",AND(E21>C20,F21>C20,G21>C20,COUNT($E$7:G21)>sixng,COUNTIF(H20,"#")=1),"2",$A$7=1,"") ->  | K21: =_xlfn.IFS(Q21<>1,"",Q21=1,I21+(3*D21)) ->  | L21: =_xlfn.IFS(Q21<>1,"",COUNT($E$7:G21)<=hcpng,"",COUNT($E$7:G21)>=hcpng,K21) ->  | M21: =_xlfn.IFS(Q21=1,SUM($E$7:G21),Q21<>1,"") ->  | N21: =_xlfn.IFS(Q21=1,COUNT($E$7:G21),Q21<>1,"") ->  | O21: =IF(Q21=1,ROUND(AVERAGE($E$7:G21),2),"") ->  | P21: =_xlfn.IFS(Q21<>1,"",SUM($Q$7:Q21)=1,1,SUM($Q$7:Q21)<>1,"") ->  | S21: =_xlfn.IFS(E21=$X$5,E21,F21=$X$5,F21,G21=$X$5,G21,$A$7=1,"") -> 0 | U21: =_xlfn.IFS(W21=$X$6,W21,X21=$X$6,X21,Y21=$X$6,Y21,$A$7=1,"") ->  | W21: =_xlfn.IFS(AND(Q21=1,COUNT($E$7:G21)>hcpng),E21+D21,$A$7=1," ") ->  | X21: =_xlfn.IFS(AND(Q21=1,COUNT($E$7:G21)>hcpng),F21+D21,$A$7=1," ") ->  | Y21: =_xlfn.IFS(AND(Q21=1,COUNT($E$7:G21)>hcpng),G21+D21,$A$7=1," ") ->  | Z21: 0 | AA21: =_xlfn.IFS(COUNTIFS(H21,"#",H20,"#"),A20,COUNTIFS(H21,2,H20,"#"),A20,$A$7=1,"") -> 
A22: 16 | B22: ='UTL1'!B22 -> 2023-01-04 | C22: =_xlfn.IFS(Q22<>1,"",AND($B$4>=1,COUNT($E$7:G22)<=bkng),$B$4,P22=1,TRUNC(AVERAGE(E22:G22),0),COUNT($Q$7:Q22)=2,TRUNC(AVERAGE($E$7:G21),0),COUNT($Q$7:Q22)>=3,TRUNC(AVERAGE($E$7:G21),0)) ->  | D22: =_xlfn.IFS(Q22<>1,"",Q22=1,TRUNC((230-C22)*0.9)) ->  | H22: =_xlfn.IFS(COUNT(E22:G22)<1,"",AND(E22>C22,F22>C22,G22>C22,COUNT($E$7:G22)>sixng),"#",AND(E22>C21,F22>C21,G22>C21,COUNT($E$7:G22)>sixng,COUNTIF(H21,"#")=1),"2",$A$7=1,"") ->  | K22: =_xlfn.IFS(Q22<>1,"",Q22=1,I22+(3*D22)) ->  | L22: =_xlfn.IFS(Q22<>1,"",COUNT($E$7:G22)<=hcpng,"",COUNT($E$7:G22)>=hcpng,K22) ->  | M22: =_xlfn.IFS(Q22=1,SUM($E$7:G22),Q22<>1,"") ->  | N22: =_xlfn.IFS(Q22=1,COUNT($E$7:G22),Q22<>1,"") ->  | O22: =IF(Q22=1,ROUND(AVERAGE($E$7:G22),2),"") ->  | P22: =_xlfn.IFS(Q22<>1,"",SUM($Q$7:Q22)=1,1,SUM($Q$7:Q22)<>1,"") ->  | S22: =_xlfn.IFS(E22=$X$5,E22,F22=$X$5,F22,G22=$X$5,G22,$A$7=1,"") -> 0 | U22: =_xlfn.IFS(W22=$X$6,W22,X22=$X$6,X22,Y22=$X$6,Y22,$A$7=1,"") ->  | W22: =_xlfn.IFS(AND(Q22=1,COUNT($E$7:G22)>hcpng),E22+D22,$A$7=1," ") ->  | X22: =_xlfn.IFS(AND(Q22=1,COUNT($E$7:G22)>hcpng),F22+D22,$A$7=1," ") ->  | Y22: =_xlfn.IFS(AND(Q22=1,COUNT($E$7:G22)>hcpng),G22+D22,$A$7=1," ") ->  | Z22: 0 | AA22: =_xlfn.IFS(COUNTIFS(H22,"#",H21,"#"),A21,COUNTIFS(H22,2,H21,"#"),A21,$A$7=1,"") -> 
A23: 17 | B23: ='UTL1'!B23 -> 2023-01-11 | C23: =_xlfn.IFS(Q23<>1,"",AND($B$4>=1,COUNT($E$7:G23)<=bkng),$B$4,P23=1,TRUNC(AVERAGE(E23:G23),0),COUNT($Q$7:Q23)=2,TRUNC(AVERAGE($E$7:G22),0),COUNT($Q$7:Q23)>=3,TRUNC(AVERAGE($E$7:G22),0)) ->  | D23: =_xlfn.IFS(Q23<>1,"",Q23=1,TRUNC((230-C23)*0.9)) ->  | H23: =_xlfn.IFS(COUNT(E23:G23)<1,"",AND(E23>C23,F23>C23,G23>C23,COUNT($E$7:G23)>sixng),"#",AND(E23>C22,F23>C22,G23>C22,COUNT($E$7:G23)>sixng,COUNTIF(H22,"#")=1),"2",$A$7=1,"") ->  | K23: =_xlfn.IFS(Q23<>1,"",Q23=1,I23+(3*D23)) ->  | L23: =_xlfn.IFS(Q23<>1,"",COUNT($E$7:G23)<=hcpng,"",COUNT($E$7:G23)>=hcpng,K23) ->  | M23: =_xlfn.IFS(Q23=1,SUM($E$7:G23),Q23<>1,"") ->  | N23: =_xlfn.IFS(Q23=1,COUNT($E$7:G23),Q23<>1,"") ->  | O23: =IF(Q23=1,ROUND(AVERAGE($E$7:G23),2),"") ->  | P23: =_xlfn.IFS(Q23<>1,"",SUM($Q$7:Q23)=1,1,SUM($Q$7:Q23)<>1,"") ->  | S23: =_xlfn.IFS(E23=$X$5,E23,F23=$X$5,F23,G23=$X$5,G23,$A$7=1,"") -> 0 | U23: =_xlfn.IFS(W23=$X$6,W23,X23=$X$6,X23,Y23=$X$6,Y23,$A$7=1,"") ->  | W23: =_xlfn.IFS(AND(Q23=1,COUNT($E$7:G23)>hcpng),E23+D23,$A$7=1," ") ->  | X23: =_xlfn.IFS(AND(Q23=1,COUNT($E$7:G23)>hcpng),F23+D23,$A$7=1," ") ->  | Y23: =_xlfn.IFS(AND(Q23=1,COUNT($E$7:G23)>hcpng),G23+D23,$A$7=1," ") ->  | Z23: 0 | AA23: =_xlfn.IFS(COUNTIFS(H23,"#",H22,"#"),A22,COUNTIFS(H23,2,H22,"#"),A22,$A$7=1,"") -> 
A24: 18 | B24: ='UTL1'!B24 -> 2023-01-18 | C24: =_xlfn.IFS(Q24<>1,"",AND($B$4>=1,COUNT($E$7:G24)<=bkng),$B$4,P24=1,TRUNC(AVERAGE(E24:G24),0),COUNT($Q$7:Q24)=2,TRUNC(AVERAGE($E$7:G23),0),COUNT($Q$7:Q24)>=3,TRUNC(AVERAGE($E$7:G23),0)) ->  | D24: =_xlfn.IFS(Q24<>1,"",Q24=1,TRUNC((230-C24)*0.9)) ->  | H24: =_xlfn.IFS(COUNT(E24:G24)<1,"",AND(E24>C24,F24>C24,G24>C24,COUNT($E$7:G24)>sixng),"#",AND(E24>C23,F24>C23,G24>C23,COUNT($E$7:G24)>sixng,COUNTIF(H23,"#")=1),"2",$A$7=1,"") ->  | K24: =_xlfn.IFS(Q24<>1,"",Q24=1,I24+(3*D24)) ->  | L24: =_xlfn.IFS(Q24<>1,"",COUNT($E$7:G24)<=hcpng,"",COUNT($E$7:G24)>=hcpng,K24) ->  | M24: =_xlfn.IFS(Q24=1,SUM($E$7:G24),Q24<>1,"") ->  | N24: =_xlfn.IFS(Q24=1,COUNT($E$7:G24),Q24<>1,"") ->  | O24: =IF(Q24=1,ROUND(AVERAGE($E$7:G24),2),"") ->  | P24: =_xlfn.IFS(Q24<>1,"",SUM($Q$7:Q24)=1,1,SUM($Q$7:Q24)<>1,"") ->  | S24: =_xlfn.IFS(E24=$X$5,E24,F24=$X$5,F24,G24=$X$5,G24,$A$7=1,"") -> 0 | U24: =_xlfn.IFS(W24=$X$6,W24,X24=$X$6,X24,Y24=$X$6,Y24,$A$7=1,"") ->  | W24: =_xlfn.IFS(AND(Q24=1,COUNT($E$7:G24)>hcpng),E24+D24,$A$7=1," ") ->  | X24: =_xlfn.IFS(AND(Q24=1,COUNT($E$7:G24)>hcpng),F24+D24,$A$7=1," ") ->  | Y24: =_xlfn.IFS(AND(Q24=1,COUNT($E$7:G24)>hcpng),G24+D24,$A$7=1," ") ->  | Z24: 0 | AA24: =_xlfn.IFS(COUNTIFS(H24,"#",H23,"#"),A23,COUNTIFS(H24,2,H23,"#"),A23,$A$7=1,"") -> 
A25: 19 | B25: ='UTL1'!B25 -> 2023-01-25 | C25: =_xlfn.IFS(Q25<>1,"",AND($B$4>=1,COUNT($E$7:G25)<=bkng),$B$4,P25=1,TRUNC(AVERAGE(E25:G25),0),COUNT($Q$7:Q25)=2,TRUNC(AVERAGE($E$7:G24),0),COUNT($Q$7:Q25)>=3,TRUNC(AVERAGE($E$7:G24),0)) ->  | D25: =_xlfn.IFS(Q25<>1,"",Q25=1,TRUNC((230-C25)*0.9)) ->  | H25: =_xlfn.IFS(COUNT(E25:G25)<1,"",AND(E25>C25,F25>C25,G25>C25,COUNT($E$7:G25)>sixng),"#",AND(E25>C24,F25>C24,G25>C24,COUNT($E$7:G25)>sixng,COUNTIF(H24,"#")=1),"2",$A$7=1,"") ->  | K25: =_xlfn.IFS(Q25<>1,"",Q25=1,I25+(3*D25)) ->  | L25: =_xlfn.IFS(Q25<>1,"",COUNT($E$7:G25)<=hcpng,"",COUNT($E$7:G25)>=hcpng,K25) ->  | M25: =_xlfn.IFS(Q25=1,SUM($E$7:G25),Q25<>1,"") ->  | N25: =_xlfn.IFS(Q25=1,COUNT($E$7:G25),Q25<>1,"") ->  | O25: =IF(Q25=1,ROUND(AVERAGE($E$7:G25),2),"") ->  | P25: =_xlfn.IFS(Q25<>1,"",SUM($Q$7:Q25)=1,1,SUM($Q$7:Q25)<>1,"") ->  | S25: =_xlfn.IFS(E25=$X$5,E25,F25=$X$5,F25,G25=$X$5,G25,$A$7=1,"") -> 0 | U25: =_xlfn.IFS(W25=$X$6,W25,X25=$X$6,X25,Y25=$X$6,Y25,$A$7=1,"") ->  | W25: =_xlfn.IFS(AND(Q25=1,COUNT($E$7:G25)>hcpng),E25+D25,$A$7=1," ") ->  | X25: =_xlfn.IFS(AND(Q25=1,COUNT($E$7:G25)>hcpng),F25+D25,$A$7=1," ") ->  | Y25: =_xlfn.IFS(AND(Q25=1,COUNT($E$7:G25)>hcpng),G25+D25,$A$7=1," ") ->  | Z25: 0 | AA25: =_xlfn.IFS(COUNTIFS(H25,"#",H24,"#"),A24,COUNTIFS(H25,2,H24,"#"),A24,$A$7=1,"") -> 
A26: 20 | B26: ='UTL1'!B26 -> 2023-02-01 | C26: =_xlfn.IFS(Q26<>1,"",AND($B$4>=1,COUNT($E$7:G26)<=bkng),$B$4,P26=1,TRUNC(AVERAGE(E26:G26),0),COUNT($Q$7:Q26)=2,TRUNC(AVERAGE($E$7:G25),0),COUNT($Q$7:Q26)>=3,TRUNC(AVERAGE($E$7:G25),0)) ->  | D26: =_xlfn.IFS(Q26<>1,"",Q26=1,TRUNC((230-C26)*0.9)) ->  | H26: =_xlfn.IFS(COUNT(E26:G26)<1,"",AND(E26>C26,F26>C26,G26>C26,COUNT($E$7:G26)>sixng),"#",AND(E26>C25,F26>C25,G26>C25,COUNT($E$7:G26)>sixng,COUNTIF(H25,"#")=1),"2",$A$7=1,"") ->  | K26: =_xlfn.IFS(Q26<>1,"",Q26=1,I26+(3*D26)) ->  | L26: =_xlfn.IFS(Q26<>1,"",COUNT($E$7:G26)<=hcpng,"",COUNT($E$7:G26)>=hcpng,K26) ->  | M26: =_xlfn.IFS(Q26=1,SUM($E$7:G26),Q26<>1,"") ->  | N26: =_xlfn.IFS(Q26=1,COUNT($E$7:G26),Q26<>1,"") ->  | O26: =IF(Q26=1,ROUND(AVERAGE($E$7:G26),2),"") ->  | P26: =_xlfn.IFS(Q26<>1,"",SUM($Q$7:Q26)=1,1,SUM($Q$7:Q26)<>1,"") ->  | S26: =_xlfn.IFS(E26=$X$5,E26,F26=$X$5,F26,G26=$X$5,G26,$A$7=1,"") -> 0 | U26: =_xlfn.IFS(W26=$X$6,W26,X26=$X$6,X26,Y26=$X$6,Y26,$A$7=1,"") ->  | W26: =_xlfn.IFS(AND(Q26=1,COUNT($E$7:G26)>hcpng),E26+D26,$A$7=1," ") ->  | X26: =_xlfn.IFS(AND(Q26=1,COUNT($E$7:G26)>hcpng),F26+D26,$A$7=1," ") ->  | Y26: =_xlfn.IFS(AND(Q26=1,COUNT($E$7:G26)>hcpng),G26+D26,$A$7=1," ") ->  | Z26: 0 | AA26: =_xlfn.IFS(COUNTIFS(H26,"#",H25,"#"),A25,COUNTIFS(H26,2,H25,"#"),A25,$A$7=1,"") -> 
A27: 21 | B27: ='UTL1'!B27 -> 2023-02-08 | C27: =_xlfn.IFS(Q27<>1,"",AND($B$4>=1,COUNT($E$7:G27)<=bkng),$B$4,P27=1,TRUNC(AVERAGE(E27:G27),0),COUNT($Q$7:Q27)=2,TRUNC(AVERAGE($E$7:G26),0),COUNT($Q$7:Q27)>=3,TRUNC(AVERAGE($E$7:G26),0)) ->  | D27: =_xlfn.IFS(Q27<>1,"",Q27=1,TRUNC((230-C27)*0.9)) ->  | H27: =_xlfn.IFS(COUNT(E27:G27)<1,"",AND(E27>C27,F27>C27,G27>C27,COUNT($E$7:G27)>sixng),"#",AND(E27>C26,F27>C26,G27>C26,COUNT($E$7:G27)>sixng,COUNTIF(H26,"#")=1),"2",$A$7=1,"") ->  | K27: =_xlfn.IFS(Q27<>1,"",Q27=1,I27+(3*D27)) ->  | L27: =_xlfn.IFS(Q27<>1,"",COUNT($E$7:G27)<=hcpng,"",COUNT($E$7:G27)>=hcpng,K27) ->  | M27: =_xlfn.IFS(Q27=1,SUM($E$7:G27),Q27<>1,"") ->  | N27: =_xlfn.IFS(Q27=1,COUNT($E$7:G27),Q27<>1,"") ->  | O27: =IF(Q27=1,ROUND(AVERAGE($E$7:G27),2),"") ->  | P27: =_xlfn.IFS(Q27<>1,"",SUM($Q$7:Q27)=1,1,SUM($Q$7:Q27)<>1,"") ->  | S27: =_xlfn.IFS(E27=$X$5,E27,F27=$X$5,F27,G27=$X$5,G27,$A$7=1,"") -> 0 | U27: =_xlfn.IFS(W27=$X$6,W27,X27=$X$6,X27,Y27=$X$6,Y27,$A$7=1,"") ->  | W27: =_xlfn.IFS(AND(Q27=1,COUNT($E$7:G27)>hcpng),E27+D27,$A$7=1," ") ->  | X27: =_xlfn.IFS(AND(Q27=1,COUNT($E$7:G27)>hcpng),F27+D27,$A$7=1," ") ->  | Y27: =_xlfn.IFS(AND(Q27=1,COUNT($E$7:G27)>hcpng),G27+D27,$A$7=1," ") ->  | Z27: 0 | AA27: =_xlfn.IFS(COUNTIFS(H27,"#",H26,"#"),A26,COUNTIFS(H27,2,H26,"#"),A26,$A$7=1,"") -> 
A28: 22 | B28: ='UTL1'!B28 -> 2023-02-15 | C28: =_xlfn.IFS(Q28<>1,"",AND($B$4>=1,COUNT($E$7:G28)<=bkng),$B$4,P28=1,TRUNC(AVERAGE(E28:G28),0),COUNT($Q$7:Q28)=2,TRUNC(AVERAGE($E$7:G27),0),COUNT($Q$7:Q28)>=3,TRUNC(AVERAGE($E$7:G27),0)) ->  | D28: =_xlfn.IFS(Q28<>1,"",Q28=1,TRUNC((230-C28)*0.9)) ->  | H28: =_xlfn.IFS(COUNT(E28:G28)<1,"",AND(E28>C28,F28>C28,G28>C28,COUNT($E$7:G28)>sixng),"#",AND(E28>C27,F28>C27,G28>C27,COUNT($E$7:G28)>sixng,COUNTIF(H27,"#")=1),"2",$A$7=1,"") ->  | K28: =_xlfn.IFS(Q28<>1,"",Q28=1,I28+(3*D28)) ->  | L28: =_xlfn.IFS(Q28<>1,"",COUNT($E$7:G28)<=hcpng,"",COUNT($E$7:G28)>=hcpng,K28) ->  | M28: =_xlfn.IFS(Q28=1,SUM($E$7:G28),Q28<>1,"") ->  | N28: =_xlfn.IFS(Q28=1,COUNT($E$7:G28),Q28<>1,"") ->  | O28: =IF(Q28=1,ROUND(AVERAGE($E$7:G28),2),"") ->  | P28: =_xlfn.IFS(Q28<>1,"",SUM($Q$7:Q28)=1,1,SUM($Q$7:Q28)<>1,"") ->  | S28: =_xlfn.IFS(E28=$X$5,E28,F28=$X$5,F28,G28=$X$5,G28,$A$7=1,"") -> 0 | U28: =_xlfn.IFS(W28=$X$6,W28,X28=$X$6,X28,Y28=$X$6,Y28,$A$7=1,"") ->  | W28: =_xlfn.IFS(AND(Q28=1,COUNT($E$7:G28)>hcpng),E28+D28,$A$7=1," ") ->  | X28: =_xlfn.IFS(AND(Q28=1,COUNT($E$7:G28)>hcpng),F28+D28,$A$7=1," ") ->  | Y28: =_xlfn.IFS(AND(Q28=1,COUNT($E$7:G28)>hcpng),G28+D28,$A$7=1," ") ->  | Z28: 0 | AA28: =_xlfn.IFS(COUNTIFS(H28,"#",H27,"#"),A27,COUNTIFS(H28,2,H27,"#"),A27,$A$7=1,"") -> 
A29: 23 | B29: ='UTL1'!B29 -> 2023-02-22 | C29: =_xlfn.IFS(Q29<>1,"",AND($B$4>=1,COUNT($E$7:G29)<=bkng),$B$4,P29=1,TRUNC(AVERAGE(E29:G29),0),COUNT($Q$7:Q29)=2,TRUNC(AVERAGE($E$7:G28),0),COUNT($Q$7:Q29)>=3,TRUNC(AVERAGE($E$7:G28),0)) ->  | D29: =_xlfn.IFS(Q29<>1,"",Q29=1,TRUNC((230-C29)*0.9)) ->  | H29: =_xlfn.IFS(COUNT(E29:G29)<1,"",AND(E29>C29,F29>C29,G29>C29,COUNT($E$7:G29)>sixng),"#",AND(E29>C28,F29>C28,G29>C28,COUNT($E$7:G29)>sixng,COUNTIF(H28,"#")=1),"2",$A$7=1,"") ->  | K29: =_xlfn.IFS(Q29<>1,"",Q29=1,I29+(3*D29)) ->  | L29: =_xlfn.IFS(Q29<>1,"",COUNT($E$7:G29)<=hcpng,"",COUNT($E$7:G29)>=hcpng,K29) ->  | M29: =_xlfn.IFS(Q29=1,SUM($E$7:G29),Q29<>1,"") ->  | N29: =_xlfn.IFS(Q29=1,COUNT($E$7:G29),Q29<>1,"") ->  | O29: =IF(Q29=1,ROUND(AVERAGE($E$7:G29),2),"") ->  | P29: =_xlfn.IFS(Q29<>1,"",SUM($Q$7:Q29)=1,1,SUM($Q$7:Q29)<>1,"") ->  | S29: =_xlfn.IFS(E29=$X$5,E29,F29=$X$5,F29,G29=$X$5,G29,$A$7=1,"") -> 0 | U29: =_xlfn.IFS(W29=$X$6,W29,X29=$X$6,X29,Y29=$X$6,Y29,$A$7=1,"") ->  | W29: =_xlfn.IFS(AND(Q29=1,COUNT($E$7:G29)>hcpng),E29+D29,$A$7=1," ") ->  | X29: =_xlfn.IFS(AND(Q29=1,COUNT($E$7:G29)>hcpng),F29+D29,$A$7=1," ") ->  | Y29: =_xlfn.IFS(AND(Q29=1,COUNT($E$7:G29)>hcpng),G29+D29,$A$7=1," ") ->  | Z29: 0 | AA29: =_xlfn.IFS(COUNTIFS(H29,"#",H28,"#"),A28,COUNTIFS(H29,2,H28,"#"),A28,$A$7=1,"") -> 
A30: 24 | B30: ='UTL1'!B30 -> 2023-03-01 | C30: =_xlfn.IFS(Q30<>1,"",AND($B$4>=1,COUNT($E$7:G30)<=bkng),$B$4,P30=1,TRUNC(AVERAGE(E30:G30),0),COUNT($Q$7:Q30)=2,TRUNC(AVERAGE($E$7:G29),0),COUNT($Q$7:Q30)>=3,TRUNC(AVERAGE($E$7:G29),0)) ->  | D30: =_xlfn.IFS(Q30<>1,"",Q30=1,TRUNC((230-C30)*0.9)) ->  | H30: =_xlfn.IFS(COUNT(E30:G30)<1,"",AND(E30>C30,F30>C30,G30>C30,COUNT($E$7:G30)>sixng),"#",AND(E30>C29,F30>C29,G30>C29,COUNT($E$7:G30)>sixng,COUNTIF(H29,"#")=1),"2",$A$7=1,"") ->  | K30: =_xlfn.IFS(Q30<>1,"",Q30=1,I30+(3*D30)) ->  | L30: =_xlfn.IFS(Q30<>1,"",COUNT($E$7:G30)<=hcpng,"",COUNT($E$7:G30)>=hcpng,K30) ->  | M30: =_xlfn.IFS(Q30=1,SUM($E$7:G30),Q30<>1,"") ->  | N30: =_xlfn.IFS(Q30=1,COUNT($E$7:G30),Q30<>1,"") ->  | O30: =IF(Q30=1,ROUND(AVERAGE($E$7:G30),2),"") ->  | P30: =_xlfn.IFS(Q30<>1,"",SUM($Q$7:Q30)=1,1,SUM($Q$7:Q30)<>1,"") ->  | S30: =_xlfn.IFS(E30=$X$5,E30,F30=$X$5,F30,G30=$X$5,G30,$A$7=1,"") -> 0 | U30: =_xlfn.IFS(W30=$X$6,W30,X30=$X$6,X30,Y30=$X$6,Y30,$A$7=1,"") ->  | W30: =_xlfn.IFS(AND(Q30=1,COUNT($E$7:G30)>hcpng),E30+D30,$A$7=1," ") ->  | X30: =_xlfn.IFS(AND(Q30=1,COUNT($E$7:G30)>hcpng),F30+D30,$A$7=1," ") ->  | Y30: =_xlfn.IFS(AND(Q30=1,COUNT($E$7:G30)>hcpng),G30+D30,$A$7=1," ") ->  | Z30: 0 | AA30: =_xlfn.IFS(COUNTIFS(H30,"#",H29,"#"),A29,COUNTIFS(H30,2,H29,"#"),A29,$A$7=1,"") -> 
A31: 25 | B31: ='UTL1'!B31 -> 2023-03-08 | C31: =_xlfn.IFS(Q31<>1,"",AND($B$4>=1,COUNT($E$7:G31)<=bkng),$B$4,P31=1,TRUNC(AVERAGE(E31:G31),0),COUNT($Q$7:Q31)=2,TRUNC(AVERAGE($E$7:G30),0),COUNT($Q$7:Q31)>=3,TRUNC(AVERAGE($E$7:G30),0)) ->  | D31: =_xlfn.IFS(Q31<>1,"",Q31=1,TRUNC((230-C31)*0.9)) ->  | H31: =_xlfn.IFS(COUNT(E31:G31)<1,"",AND(E31>C31,F31>C31,G31>C31,COUNT($E$7:G31)>sixng),"#",AND(E31>C30,F31>C30,G31>C30,COUNT($E$7:G31)>sixng,COUNTIF(H30,"#")=1),"2",$A$7=1,"") ->  | K31: =_xlfn.IFS(Q31<>1,"",Q31=1,I31+(3*D31)) ->  | L31: =_xlfn.IFS(Q31<>1,"",COUNT($E$7:G31)<=hcpng,"",COUNT($E$7:G31)>=hcpng,K31) ->  | M31: =_xlfn.IFS(Q31=1,SUM($E$7:G31),Q31<>1,"") ->  | N31: =_xlfn.IFS(Q31=1,COUNT($E$7:G31),Q31<>1,"") ->  | O31: =IF(Q31=1,ROUND(AVERAGE($E$7:G31),2),"") ->  | P31: =_xlfn.IFS(Q31<>1,"",SUM($Q$7:Q31)=1,1,SUM($Q$7:Q31)<>1,"") ->  | S31: =_xlfn.IFS(E31=$X$5,E31,F31=$X$5,F31,G31=$X$5,G31,$A$7=1,"") -> 0 | U31: =_xlfn.IFS(W31=$X$6,W31,X31=$X$6,X31,Y31=$X$6,Y31,$A$7=1,"") ->  | W31: =_xlfn.IFS(AND(Q31=1,COUNT($E$7:G31)>hcpng),E31+D31,$A$7=1," ") ->  | X31: =_xlfn.IFS(AND(Q31=1,COUNT($E$7:G31)>hcpng),F31+D31,$A$7=1," ") ->  | Y31: =_xlfn.IFS(AND(Q31=1,COUNT($E$7:G31)>hcpng),G31+D31,$A$7=1," ") ->  | Z31: 0 | AA31: =_xlfn.IFS(COUNTIFS(H31,"#",H30,"#"),A30,COUNTIFS(H31,2,H30,"#"),A30,$A$7=1,"") -> 
A32: 26 | B32: ='UTL1'!B32 -> 2023-03-15 | C32: =_xlfn.IFS(Q32<>1,"",AND($B$4>=1,COUNT($E$7:G32)<=bkng),$B$4,P32=1,TRUNC(AVERAGE(E32:G32),0),COUNT($Q$7:Q32)=2,TRUNC(AVERAGE($E$7:G31),0),COUNT($Q$7:Q32)>=3,TRUNC(AVERAGE($E$7:G31),0)) ->  | D32: =_xlfn.IFS(Q32<>1,"",Q32=1,TRUNC((230-C32)*0.9)) ->  | H32: =_xlfn.IFS(COUNT(E32:G32)<1,"",AND(E32>C32,F32>C32,G32>C32,COUNT($E$7:G32)>sixng),"#",AND(E32>C31,F32>C31,G32>C31,COUNT($E$7:G32)>sixng,COUNTIF(H31,"#")=1),"2",$A$7=1,"") ->  | K32: =_xlfn.IFS(Q32<>1,"",Q32=1,I32+(3*D32)) ->  | L32: =_xlfn.IFS(Q32<>1,"",COUNT($E$7:G32)<=hcpng,"",COUNT($E$7:G32)>=hcpng,K32) ->  | M32: =_xlfn.IFS(Q32=1,SUM($E$7:G32),Q32<>1,"") ->  | N32: =_xlfn.IFS(Q32=1,COUNT($E$7:G32),Q32<>1,"") ->  | O32: =IF(Q32=1,ROUND(AVERAGE($E$7:G32),2),"") ->  | P32: =_xlfn.IFS(Q32<>1,"",SUM($Q$7:Q32)=1,1,SUM($Q$7:Q32)<>1,"") ->  | S32: =_xlfn.IFS(E32=$X$5,E32,F32=$X$5,F32,G32=$X$5,G32,$A$7=1,"") -> 0 | U32: =_xlfn.IFS(W32=$X$6,W32,X32=$X$6,X32,Y32=$X$6,Y32,$A$7=1,"") ->  | W32: =_xlfn.IFS(AND(Q32=1,COUNT($E$7:G32)>hcpng),E32+D32,$A$7=1," ") ->  | X32: =_xlfn.IFS(AND(Q32=1,COUNT($E$7:G32)>hcpng),F32+D32,$A$7=1," ") ->  | Y32: =_xlfn.IFS(AND(Q32=1,COUNT($E$7:G32)>hcpng),G32+D32,$A$7=1," ") ->  | Z32: 0 | AA32: =_xlfn.IFS(COUNTIFS(H32,"#",H31,"#"),A31,COUNTIFS(H32,2,H31,"#"),A31,$A$7=1,"") -> 
A33: 27 | B33: ='UTL1'!B33 -> 2023-03-22 | C33: =_xlfn.IFS(Q33<>1,"",AND($B$4>=1,COUNT($E$7:G33)<=bkng),$B$4,P33=1,TRUNC(AVERAGE(E33:G33),0),COUNT($Q$7:Q33)=2,TRUNC(AVERAGE($E$7:G32),0),COUNT($Q$7:Q33)>=3,TRUNC(AVERAGE($E$7:G32),0)) ->  | D33: =_xlfn.IFS(Q33<>1,"",Q33=1,TRUNC((230-C33)*0.9)) ->  | H33: =_xlfn.IFS(COUNT(E33:G33)<1,"",AND(E33>C33,F33>C33,G33>C33,COUNT($E$7:G33)>sixng),"#",AND(E33>C32,F33>C32,G33>C32,COUNT($E$7:G33)>sixng,COUNTIF(H32,"#")=1),"2",$A$7=1,"") ->  | K33: =_xlfn.IFS(Q33<>1,"",Q33=1,I33+(3*D33)) ->  | L33: =_xlfn.IFS(Q33<>1,"",COUNT($E$7:G33)<=hcpng,"",COUNT($E$7:G33)>=hcpng,K33) ->  | M33: =_xlfn.IFS(Q33=1,SUM($E$7:G33),Q33<>1,"") ->  | N33: =_xlfn.IFS(Q33=1,COUNT($E$7:G33),Q33<>1,"") ->  | O33: =IF(Q33=1,ROUND(AVERAGE($E$7:G33),2),"") ->  | P33: =_xlfn.IFS(Q33<>1,"",SUM($Q$7:Q33)=1,1,SUM($Q$7:Q33)<>1,"") ->  | S33: =_xlfn.IFS(E33=$X$5,E33,F33=$X$5,F33,G33=$X$5,G33,$A$7=1,"") -> 0 | U33: =_xlfn.IFS(W33=$X$6,W33,X33=$X$6,X33,Y33=$X$6,Y33,$A$7=1,"") ->  | W33: =_xlfn.IFS(AND(Q33=1,COUNT($E$7:G33)>hcpng),E33+D33,$A$7=1," ") ->  | X33: =_xlfn.IFS(AND(Q33=1,COUNT($E$7:G33)>hcpng),F33+D33,$A$7=1," ") ->  | Y33: =_xlfn.IFS(AND(Q33=1,COUNT($E$7:G33)>hcpng),G33+D33,$A$7=1," ") ->  | Z33: 0 | AA33: =_xlfn.IFS(COUNTIFS(H33,"#",H32,"#"),A32,COUNTIFS(H33,2,H32,"#"),A32,$A$7=1,"") -> 
A34: 28 | B34: ='UTL1'!B34 -> 2023-03-29 | C34: =_xlfn.IFS(Q34<>1,"",AND($B$4>=1,COUNT($E$7:G34)<=bkng),$B$4,P34=1,TRUNC(AVERAGE(E34:G34),0),COUNT($Q$7:Q34)=2,TRUNC(AVERAGE($E$7:G33),0),COUNT($Q$7:Q34)>=3,TRUNC(AVERAGE($E$7:G33),0)) ->  | D34: =_xlfn.IFS(Q34<>1,"",Q34=1,TRUNC((230-C34)*0.9)) ->  | H34: =_xlfn.IFS(COUNT(E34:G34)<1,"",AND(E34>C34,F34>C34,G34>C34,COUNT($E$7:G34)>sixng),"#",AND(E34>C33,F34>C33,G34>C33,COUNT($E$7:G34)>sixng,COUNTIF(H33,"#")=1),"2",$A$7=1,"") ->  | K34: =_xlfn.IFS(Q34<>1,"",Q34=1,I34+(3*D34)) ->  | L34: =_xlfn.IFS(Q34<>1,"",COUNT($E$7:G34)<=hcpng,"",COUNT($E$7:G34)>=hcpng,K34) ->  | M34: =_xlfn.IFS(Q34=1,SUM($E$7:G34),Q34<>1,"") ->  | N34: =_xlfn.IFS(Q34=1,COUNT($E$7:G34),Q34<>1,"") ->  | O34: =IF(Q34=1,ROUND(AVERAGE($E$7:G34),2),"") ->  | P34: =_xlfn.IFS(Q34<>1,"",SUM($Q$7:Q34)=1,1,SUM($Q$7:Q34)<>1,"") ->  | S34: =_xlfn.IFS(E34=$X$5,E34,F34=$X$5,F34,G34=$X$5,G34,$A$7=1,"") -> 0 | U34: =_xlfn.IFS(W34=$X$6,W34,X34=$X$6,X34,Y34=$X$6,Y34,$A$7=1,"") ->  | W34: =_xlfn.IFS(AND(Q34=1,COUNT($E$7:G34)>hcpng),E34+D34,$A$7=1," ") ->  | X34: =_xlfn.IFS(AND(Q34=1,COUNT($E$7:G34)>hcpng),F34+D34,$A$7=1," ") ->  | Y34: =_xlfn.IFS(AND(Q34=1,COUNT($E$7:G34)>hcpng),G34+D34,$A$7=1," ") ->  | Z34: 0 | AA34: =_xlfn.IFS(COUNTIFS(H34,"#",H33,"#"),A33,COUNTIFS(H34,2,H33,"#"),A33,$A$7=1,"") -> 
A35: 29 | B35: ='UTL1'!B35 -> 2023-04-05 | C35: =_xlfn.IFS(Q35<>1,"",AND($B$4>=1,COUNT($E$7:G35)<=bkng),$B$4,P35=1,TRUNC(AVERAGE(E35:G35),0),COUNT($Q$7:Q35)=2,TRUNC(AVERAGE($E$7:G34),0),COUNT($Q$7:Q35)>=3,TRUNC(AVERAGE($E$7:G34),0)) ->  | D35: =_xlfn.IFS(Q35<>1,"",Q35=1,TRUNC((230-C35)*0.9)) ->  | H35: =_xlfn.IFS(COUNT(E35:G35)<1,"",AND(E35>C35,F35>C35,G35>C35,COUNT($E$7:G35)>sixng),"#",AND(E35>C34,F35>C34,G35>C34,COUNT($E$7:G35)>sixng,COUNTIF(H34,"#")=1),"2",$A$7=1,"") ->  | K35: =_xlfn.IFS(Q35<>1,"",Q35=1,I35+(3*D35)) ->  | L35: =_xlfn.IFS(Q35<>1,"",COUNT($E$7:G35)<=hcpng,"",COUNT($E$7:G35)>=hcpng,K35) ->  | M35: =_xlfn.IFS(Q35=1,SUM($E$7:G35),Q35<>1,"") ->  | N35: =_xlfn.IFS(Q35=1,COUNT($E$7:G35),Q35<>1,"") ->  | O35: =IF(Q35=1,ROUND(AVERAGE($E$7:G35),2),"") ->  | P35: =_xlfn.IFS(Q35<>1,"",SUM($Q$7:Q35)=1,1,SUM($Q$7:Q35)<>1,"") ->  | S35: =_xlfn.IFS(E35=$X$5,E35,F35=$X$5,F35,G35=$X$5,G35,$A$7=1,"") -> 0 | U35: =_xlfn.IFS(W35=$X$6,W35,X35=$X$6,X35,Y35=$X$6,Y35,$A$7=1,"") ->  | W35: =_xlfn.IFS(AND(Q35=1,COUNT($E$7:G35)>hcpng),E35+D35,$A$7=1," ") ->  | X35: =_xlfn.IFS(AND(Q35=1,COUNT($E$7:G35)>hcpng),F35+D35,$A$7=1," ") ->  | Y35: =_xlfn.IFS(AND(Q35=1,COUNT($E$7:G35)>hcpng),G35+D35,$A$7=1," ") ->  | Z35: 0 | AA35: =_xlfn.IFS(COUNTIFS(H35,"#",H34,"#"),A34,COUNTIFS(H35,2,H34,"#"),A34,$A$7=1,"") -> 
A36: 30 | B36: ='UTL1'!B36 -> 2023-04-12 | C36: =_xlfn.IFS(Q36<>1,"",AND($B$4>=1,COUNT($E$7:G36)<=bkng),$B$4,P36=1,TRUNC(AVERAGE(E36:G36),0),COUNT($Q$7:Q36)=2,TRUNC(AVERAGE($E$7:G35),0),COUNT($Q$7:Q36)>=3,TRUNC(AVERAGE($E$7:G35),0)) ->  | D36: =_xlfn.IFS(Q36<>1,"",Q36=1,TRUNC((230-C36)*0.9)) ->  | H36: =_xlfn.IFS(COUNT(E36:G36)<1,"",AND(E36>C36,F36>C36,G36>C36,COUNT($E$7:G36)>sixng),"#",AND(E36>C35,F36>C35,G36>C35,COUNT($E$7:G36)>sixng,COUNTIF(H35,"#")=1),"2",$A$7=1,"") ->  | K36: =_xlfn.IFS(Q36<>1,"",Q36=1,I36+(3*D36)) ->  | L36: =_xlfn.IFS(Q36<>1,"",COUNT($E$7:G36)<=hcpng,"",COUNT($E$7:G36)>=hcpng,K36) ->  | M36: =_xlfn.IFS(Q36=1,SUM($E$7:G36),Q36<>1,"") ->  | N36: =_xlfn.IFS(Q36=1,COUNT($E$7:G36),Q36<>1,"") ->  | O36: =IF(Q36=1,ROUND(AVERAGE($E$7:G36),2),"") ->  | P36: =_xlfn.IFS(Q36<>1,"",SUM($Q$7:Q36)=1,1,SUM($Q$7:Q36)<>1,"") ->  | S36: =_xlfn.IFS(E36=$X$5,E36,F36=$X$5,F36,G36=$X$5,G36,$A$7=1,"") -> 0 | U36: =_xlfn.IFS(W36=$X$6,W36,X36=$X$6,X36,Y36=$X$6,Y36,$A$7=1,"") ->  | W36: =_xlfn.IFS(AND(Q36=1,COUNT($E$7:G36)>hcpng),E36+D36,$A$7=1," ") ->  | X36: =_xlfn.IFS(AND(Q36=1,COUNT($E$7:G36)>hcpng),F36+D36,$A$7=1," ") ->  | Y36: =_xlfn.IFS(AND(Q36=1,COUNT($E$7:G36)>hcpng),G36+D36,$A$7=1," ") ->  | Z36: 0 | AA36: =_xlfn.IFS(COUNTIFS(H36,"#",H35,"#"),A35,COUNTIFS(H36,2,H35,"#"),A35,$A$7=1,"") -> 
E37: =IF(COUNT(E7:E36)>=1,ROUND(SUM(E7:E36)/COUNT(E7:E36),2),"") ->  | F37: =IF(COUNT(F7:F36)>=1,ROUND(SUM(F7:F36)/COUNT(F7:F36),2),"") ->  | G37: =IF(COUNT(G7:G36)>=1,ROUND(SUM(G7:G36)/COUNT(G7:G36),2),"") -> 

Sheet DSharma
A1: =IF('UTL1'!A2="V",'UTL1'!B2,"") ->  | H1: ='UTL1'!H1 -> Wednesday Fun Fours 2022/2023 season
A2: wk# | B2: =MAX(Z7:Z36) -> 30 | O2: 6 Over week: | S2: =IF(MIN(AA7:AA36)<1,"",MIN(AA7:AA36)) -> 19
A3: Name: | B3: Devi Sharma | G3: Perfect Attendance: | J3: =_xlfn.IFS(SUM(Q7:Q36)=B2,"YES",SUM(Q7:Q36)<>B2,"NO") -> NO | K3: =_xlfn.IFS(AND(SUM(Q7:Q36)<30,SUM(Q7:Q36)=B2),"So Far",SUM(Q7:Q36)=30,"Good",SUM(Q7:Q36)<>B2,"") -> 
A4: Bk Avg: | B4: 103 | W4: Hi.series> | X4: =MAX(I7:I36) -> 362
C5: bk or | D5: old | I5: wky | J5: wky | K5: Hcp | L5: hcp | O5: new | P5: start | R5: high | S5: high | T5: high hcp | U5: high hcp | W5: hi.game> | X5: =MAX(E7:G36) -> 143
A6: wk no. | C6: old avg | D6: hdcp | E6: -1- | F6: -2- | G6: -3- | I6: total | J6: avg | K6: total | L6: t2 hc | M6: Pins | N6: Gms | O6: avg | P6: week | Q6: startB | R6: series | S6: game | T6: series | U6: game | W6: h.hcp.g> | X6: =MAX(W7:Y36) -> 257 | Z6: wk#
A7: 1 | B7: ='UTL1'!B7 -> 2022-09-07 | C7: =_xlfn.IFS(Q7<>1,"",AND($B$4>=1,COUNT($E$7:G7)<=bkng),$B$4,P7=1,TRUNC(AVERAGE(E7:G7),0),COUNT($Q$7:Q7)=2,TRUNC(AVERAGE($E6:G$7),0),COUNT($Q$7:Q7)>=3,TRUNC(AVERAGE($E6:G$7),0)) ->  | D7: =_xlfn.IFS(Q7<>1,"",Q7=1,TRUNC((230-C7)*0.9)) ->  | I7: =IF(Q7=1,SUM(E7:G7),"") ->  | J7: =IF(Q7=1,TRUNC(I7/COUNT(E7:G7),0),"") ->  | K7: =_xlfn.IFS(Q7<>1,"",Q7=1,I7+(3*D7)) ->  | L7: =_xlfn.IFS(Q7<>1,"",COUNT($E$7:G7)<=hcpng,"",COUNT($E$7:G7)>=hcpng,K7) ->  | M7: =_xlfn.IFS(Q7=1,SUM($E$7:G7),Q7<>1,"") ->  | N7: =_xlfn.IFS(Q7=1,COUNT($E$7:G7),Q7<>1,"") ->  | O7: =IF(Q7=1,ROUND(AVERAGE($E$7:G7),2),"") ->  | P7: =_xlfn.IFS(Q7<>1,"",SUM($Q$7:Q7)=1,1,SUM($Q$7:Q7)<>1,"") ->  | Q7: =IF(MAX(E7:G7)<1,"",1) ->  | R7: =IF(I7=$X$4,I7,"") ->  | S7: =_xlfn.IFS(E7=$X$5,E7,F7=$X$5,F7,G7=$X$5,G7,$A$7=1,"") ->  | T7: =IF(L7=MAX($L$7:$L$36),L7,"") ->  | U7: =_xlfn.IFS(W7=$X$6,W7,X7=$X$6,X7,Y7=$X$6,Y7,$A$7=1,"") ->  | W7: =_xlfn.IFS(AND(Q7=1,COUNT($E$7:G7)>hcpng),E7+D7,$A$7=1," ") ->  | X7: =_xlfn.IFS(AND(Q7=1,COUNT($E$7:G7)>hcpng),F7+D7,$A$7=1," ") ->  | Y7: =_xlfn.IFS(AND(Q7=1,COUNT($E$7:G7)>hcpng),G7+D7,$A$7=1," ") ->  | Z7: =IF(Q7=1,A7,0) -> 0 | AA7: =_xlfn.IFS(COUNTIFS(H7,"#",H6,"#"),A6,COUNTIFS(H7,2,H6,"#"),A6,$A$7=1,"") -> 
A8: 2 | B8: ='UTL1'!B8 -> 2022-09-14 | C8: =_xlfn.IFS(Q8<>1,"",AND($B$4>=1,COUNT($E$7:G8)<=bkng),$B$4,P8=1,TRUNC(AVERAGE(E8:G8),0),COUNT($Q$7:Q8)=2,TRUNC(AVERAGE($E7:G$7),0),COUNT($Q$7:Q8)>=3,TRUNC(AVERAGE($E7:G$7),0)) -> 103 | D8: =_xlfn.IFS(Q8<>1,"",Q8=1,TRUNC((230-C8)*0.9)) -> 114 | E8: 90 | F8: 124 | G8: 93 | H8: =_xlfn.IFS(COUNT(E8:G8)<1,"",AND(E8>C8,F8>C8,G8>C8,COUNT($E$7:G8)>sixng),"#",AND(E8>C7,F8>C7,G8>C7,COUNT($E$7:G8)>sixng,COUNTIF(H7,"#")=1),"2",$A$7=1,"") ->  | I8: =IF(Q8=1,SUM(E8:G8),"") -> 307 | J8: =IF(Q8=1,TRUNC(I8/COUNT(E8:G8),0),"") -> 102 | K8: =_xlfn.IFS(Q8<>1,"",Q8=1,I8+(3*D8)) -> 649 | L8: =_xlfn.IFS(Q8<>1,"",COUNT($E$7:G8)<=hcpng,"",COUNT($E$7:G8)>=hcpng,K8) ->  | M8: =_xlfn.IFS(Q8=1,SUM($E$7:G8),Q8<>1,"") -> 307 | N8: =_xlfn.IFS(Q8=1,COUNT($E$7:G8),Q8<>1,"") -> 3 | O8: =IF(Q8=1,ROUND(AVERAGE($E$7:G8),2),"") -> 102.33 | P8: =_xlfn.IFS(Q8<>1,"",SUM($Q$7:Q8)=1,1,SUM($Q$7:Q8)<>1,"") -> 1 | Q8: =IF(MAX(E8:G8)<1,"",1) -> 1 | R8: =IF(I8=$X$4,I8,"") ->  | S8: =_xlfn.IFS(E8=$X$5,E8,F8=$X$5,F8,G8=$X$5,G8,$A$7=1,"") ->  | T8: =IF(L8=MAX($L$7:$L$36),L8,"") ->  | U8: =_xlfn.IFS(W8=$X$6,W8,X8=$X$6,X8,Y8=$X$6,Y8,$A$7=1,"") ->  | W8: =_xlfn.IFS(AND(Q8=1,COUNT($E$7:G8)>hcpng),E8+D8,$A$7=1," ") ->  | X8: =_xlfn.IFS(AND(Q8=1,COUNT($E$7:G8)>hcpng),F8+D8,$A$7=1," ") ->  | Y8: =_xlfn.IFS(AND(Q8=1,COUNT($E$7:G8)>hcpng),G8+D8,$A$7=1," ") ->  | Z8: =IF(Q8=1,A8,0) -> 2 | AA8: =_xlfn.IFS(COUNTIFS(H8,"#",H7,"#"),A7,COUNTIFS(H8,2,H7,"#"),A7,$A$7=1,"") -> 
A9: 3 | B9: ='UTL1'!B9 -> 2022-09-21 | C9: =_xlfn.IFS(Q9<>1,"",AND($B$4>=1,COUNT($E$7:G9)<=bkng),$B$4,P9=1,TRUNC(AVERAGE(E9:G9),0),COUNT($Q$7:Q9)=2,TRUNC(AVERAGE($E$7:G8),0),COUNT($Q$7:Q9)>=3,TRUNC(AVERAGE($E$7:G8),0)) -> 103 | D9: =_xlfn.IFS(Q9<>1,"",Q9=1,TRUNC((230-C9)*0.9)) -> 114 | E9: 109 | F9: 110 | G9: 117 | H9: =_xlfn.IFS(COUNT(E9:G9)<1,"",AND(E9>C9,F9>C9,G9>C9,COUNT($E$7:G9)>sixng),"#",AND(E9>C8,F9>C8,G9>C8,COUNT($E$7:G9)>sixng,COUNTIF(H8,"#")=1),"2",$A$7=1,"") ->  | I9: 336 | J9: 112 | K9: =_xlfn.IFS(Q9<>1,"",Q9=1,I9+(3*D9)) -> 678 | L9: =_xlfn.IFS(Q9<>1,"",COUNT($E$7:G9)<=hcpng,"",COUNT($E$7:G9)>=hcpng,K9) ->  | M9: =_xlfn.IFS(Q9=1,SUM($E$7:G9),Q9<>1,"") -> 643 | N9: =_xlfn.IFS(Q9=1,COUNT($E$7:G9),Q9<>1,"") -> 6 | O9: =IF(Q9=1,ROUND(AVERAGE($E$7:G9),2),"") -> 107.17 | P9: =_xlfn.IFS(Q9<>1,"",SUM($Q$7:Q9)=1,1,SUM($Q$7:Q9)<>1,"") ->  | Q9: 1 | S9: =_xlfn.IFS(E9=$X$5,E9,F9=$X$5,F9,G9=$X$5,G9,$A$7=1,"") ->  | U9: =_xlfn.IFS(W9=$X$6,W9,X9=$X$6,X9,Y9=$X$6,Y9,$A$7=1,"") ->  | W9: =_xlfn.IFS(AND(Q9=1,COUNT($E$7:G9)>hcpng),E9+D9,$A$7=1," ") ->  | X9: =_xlfn.IFS(AND(Q9=1,COUNT($E$7:G9)>hcpng),F9+D9,$A$7=1," ") ->  | Y9: =_xlfn.IFS(AND(Q9=1,COUNT($E$7:G9)>hcpng),G9+D9,$A$7=1," ") ->  | Z9: 3 | AA9: =_xlfn.IFS(COUNTIFS(H9,"#",H8,"#"),A8,COUNTIFS(H9,2,H8,"#"),A8,$A$7=1,"") -> 
A10: 4 | B10: ='UTL1'!B10 -> 2022-09-28 | C10: =_xlfn.IFS(Q10<>1,"",AND($B$4>=1,COUNT($E$7:G10)<=bkng),$B$4,P10=1,TRUNC(AVERAGE(E10:G10),0),COUNT($Q$7:Q10)=2,TRUNC(AVERAGE($E$7:G9),0),COUNT($Q$7:Q10)>=3,TRUNC(AVERAGE($E$7:G9),0)) ->  | D10: =_xlfn.IFS(Q10<>1,"",Q10=1,TRUNC((230-C10)*0.9)) ->  | H10: =_xlfn.IFS(COUNT(E10:G10)<1,"",AND(E10>C10,F10>C10,G10>C10,COUNT($E$7:G10)>sixng),"#",AND(E10>C9,F10>C9,G10>C9,COUNT($E$7:G10)>sixng,COUNTIF(H9,"#")=1),"2",$A$7=1,"") ->  | K10: =_xlfn.IFS(Q10<>1,"",Q10=1,I10+(3*D10)) ->  | L10: =_xlfn.IFS(Q10<>1,"",COUNT($E$7:G10)<=hcpng,"",COUNT($E$7:G10)>=hcpng,K10) ->  | M10: =_xlfn.IFS(Q10=1,SUM($E$7:G10),Q10<>1,"") ->  | N10: =_xlfn.IFS(Q10=1,COUNT($E$7:G10),Q10<>1,"") ->  | O10: =IF(Q10=1,ROUND(AVERAGE($E$7:G10),2),"") ->  | P10: =_xlfn.IFS(Q10<>1,"",SUM($Q$7:Q10)=1,1,SUM($Q$7:Q10)<>1,"") ->  | S10: =_xlfn.IFS(E10=$X$5,E10,F10=$X$5,F10,G10=$X$5,G10,$A$7=1,"") ->  | U10: =_xlfn.IFS(W10=$X$6,W10,X10=$X$6,X10,Y10=$X$6,Y10,$A$7=1,"") ->  | W10: =_xlfn.IFS(AND(Q10=1,COUNT($E$7:G10)>hcpng),E10+D10,$A$7=1," ") ->  | X10: =_xlfn.IFS(AND(Q10=1,COUNT($E$7:G10)>hcpng),F10+D10,$A$7=1," ") ->  | Y10: =_xlfn.IFS(AND(Q10=1,COUNT($E$7:G10)>hcpng),G10+D10,$A$7=1," ") ->  | Z10: 0 | AA10: =_xlfn.IFS(COUNTIFS(H10,"#",H9,"#"),A9,COUNTIFS(H10,2,H9,"#"),A9,$A$7=1,"") -> 
A11: 5 | B11: ='UTL1'!B11 -> 2022-10-05 | C11: =_xlfn.IFS(Q11<>1,"",AND($B$4>=1,COUNT($E$7:G11)<=bkng),$B$4,P11=1,TRUNC(AVERAGE(E11:G11),0),COUNT($Q$7:Q11)=2,TRUNC(AVERAGE($E$7:G10),0),COUNT($Q$7:Q11)>=3,TRUNC(AVERAGE($E$7:G10),0)) ->  | D11: =_xlfn.IFS(Q11<>1,"",Q11=1,TRUNC((230-C11)*0.9)) ->  | H11: =_xlfn.IFS(COUNT(E11:G11)<1,"",AND(E11>C11,F11>C11,G11>C11,COUNT($E$7:G11)>sixng),"#",AND(E11>C10,F11>C10,G11>C10,COUNT($E$7:G11)>sixng,COUNTIF(H10,"#")=1),"2",$A$7=1,"") ->  | K11: =_xlfn.IFS(Q11<>1,"",Q11=1,I11+(3*D11)) ->  | L11: =_xlfn.IFS(Q11<>1,"",COUNT($E$7:G11)<=hcpng,"",COUNT($E$7:G11)>=hcpng,K11) ->  | M11: =_xlfn.IFS(Q11=1,SUM($E$7:G11),Q11<>1,"") ->  | N11: =_xlfn.IFS(Q11=1,COUNT($E$7:G11),Q11<>1,"") ->  | O11: =IF(Q11=1,ROUND(AVERAGE($E$7:G11),2),"") ->  | P11: =_xlfn.IFS(Q11<>1,"",SUM($Q$7:Q11)=1,1,SUM($Q$7:Q11)<>1,"") ->  | S11: =_xlfn.IFS(E11=$X$5,E11,F11=$X$5,F11,G11=$X$5,G11,$A$7=1,"") ->  | U11: =_xlfn.IFS(W11=$X$6,W11,X11=$X$6,X11,Y11=$X$6,Y11,$A$7=1,"") ->  | W11: =_xlfn.IFS(AND(Q11=1,COUNT($E$7:G11)>hcpng),E11+D11,$A$7=1," ") ->  | X11: =_xlfn.IFS(AND(Q11=1,COUNT($E$7:G11)>hcpng),F11+D11,$A$7=1," ") ->  | Y11: =_xlfn.IFS(AND(Q11=1,COUNT($E$7:G11)>hcpng),G11+D11,$A$7=1," ") ->  | Z11: 0 | AA11: =_xlfn.IFS(COUNTIFS(H11,"#",H10,"#"),A10,COUNTIFS(H11,2,H10,"#"),A10,$A$7=1,"") -> 
A12: 6 | B12: ='UTL1'!B12 -> 2022-10-12 | C12: =_xlfn.IFS(Q12<>1,"",AND($B$4>=1,COUNT($E$7:G12)<=bkng),$B$4,P12=1,TRUNC(AVERAGE(E12:G12),0),COUNT($Q$7:Q12)=2,TRUNC(AVERAGE($E$7:G11),0),COUNT($Q$7:Q12)>=3,TRUNC(AVERAGE($E$7:G11),0)) -> 103 | D12: =_xlfn.IFS(Q12<>1,"",Q12=1,TRUNC((230-C12)*0.9)) -> 114 | E12: 100 | F12: 119 | G12: 118 | H12: =_xlfn.IFS(COUNT(E12:G12)<1,"",AND(E12>C12,F12>C12,G12>C12,COUNT($E$7:G12)>sixng),"#",AND(E12>C11,F12>C11,G12>C11,COUNT($E$7:G12)>sixng,COUNTIF(H11,"#")=1),"2",$A$7=1,"") ->  | I12: 337 | J12: 112 | K12: =_xlfn.IFS(Q12<>1,"",Q12=1,I12+(3*D12)) -> 679 | L12: =_xlfn.IFS(Q12<>1,"",COUNT($E$7:G12)<=hcpng,"",COUNT($E$7:G12)>=hcpng,K12) ->  | M12: =_xlfn.IFS(Q12=1,SUM($E$7:G12),Q12<>1,"") -> 980 | N12: =_xlfn.IFS(Q12=1,COUNT($E$7:G12),Q12<>1,"") -> 9 | O12: =IF(Q12=1,ROUND(AVERAGE($E$7:G12),2),"") -> 108.89 | P12: =_xlfn.IFS(Q12<>1,"",SUM($Q$7:Q12)=1,1,SUM($Q$7:Q12)<>1,"") ->  | Q12: 1 | S12: =_xlfn.IFS(E12=$X$5,E12,F12=$X$5,F12,G12=$X$5,G12,$A$7=1,"") ->  | U12: =_xlfn.IFS(W12=$X$6,W12,X12=$X$6,X12,Y12=$X$6,Y12,$A$7=1,"") ->  | W12: =_xlfn.IFS(AND(Q12=1,COUNT($E$7:G12)>hcpng),E12+D12,$A$7=1," ") ->  | X12: =_xlfn.IFS(AND(Q12=1,COUNT($E$7:G12)>hcpng),F12+D12,$A$7=1," ") ->  | Y12: =_xlfn.IFS(AND(Q12=1,COUNT($E$7:G12)>hcpng),G12+D12,$A$7=1," ") ->  | Z12: 6 | AA12: =_xlfn.IFS(COUNTIFS(H12,"#",H11,"#"),A11,COUNTIFS(H12,2,H11,"#"),A11,$A$7=1,"") -> 
A13: 7 | B13: ='UTL1'!B13 -> 2022-10-19 | C13: =_xlfn.IFS(Q13<>1,"",AND($B$4>=1,COUNT($E$7:G13)<=bkng),$B$4,P13=1,TRUNC(AVERAGE(E13:G13),0),COUNT($Q$7:Q13)=2,TRUNC(AVERAGE($E$7:G12),0),COUNT($Q$7:Q13)>=3,TRUNC(AVERAGE($E$7:G12),0)) -> 108 | D13: =_xlfn.IFS(Q13<>1,"",Q13=1,TRUNC((230-C13)*0.9)) -> 109 | E13: 83 | F13: 88 | G13: 92 | H13: =_xlfn.IFS(COUNT(E13:G13)<1,"",AND(E13>C13,F13>C13,G13>C13,COUNT($E$7:G13)>sixng),"#",AND(E13>C12,F13>C12,G13>C12,COUNT($E$7:G13)>sixng,COUNTIF(H12,"#")=1),"2",$A$7=1,"") ->  | I13: 263 | J13: 87 | K13: =_xlfn.IFS(Q13<>1,"",Q13=1,I13+(3*D13)) -> 590 | L13: =_xlfn.IFS(Q13<>1,"",COUNT($E$7:G13)<=hcpng,"",COUNT($E$7:G13)>=hcpng,K13) ->  | M13: =_xlfn.IFS(Q13=1,SUM($E$7:G13),Q13<>1,"") -> 1243 | N13: =_xlfn.IFS(Q13=1,COUNT($E$7:G13),Q13<>1,"") -> 12 | O13: =IF(Q13=1,ROUND(AVERAGE($E$7:G13),2),"") -> 103.58 | P13: =_xlfn.IFS(Q13<>1,"",SUM($Q$7:Q13)=1,1,SUM($Q$7:Q13)<>1,"") ->  | Q13: 1 | S13: =_xlfn.IFS(E13=$X$5,E13,F13=$X$5,F13,G13=$X$5,G13,$A$7=1,"") ->  | U13: =_xlfn.IFS(W13=$X$6,W13,X13=$X$6,X13,Y13=$X$6,Y13,$A$7=1,"") ->  | W13: =_xlfn.IFS(AND(Q13=1,COUNT($E$7:G13)>hcpng),E13+D13,$A$7=1," ") ->  | X13: =_xlfn.IFS(AND(Q13=1,COUNT($E$7:G13)>hcpng),F13+D13,$A$7=1," ") ->  | Y13: =_xlfn.IFS(AND(Q13=1,COUNT($E$7:G13)>hcpng),G13+D13,$A$7=1," ") ->  | Z13: 7 | AA13: =_xlfn.IFS(COUNTIFS(H13,"#",H12,"#"),A12,COUNTIFS(H13,2,H12,"#"),A12,$A$7=1,"") -> 
A14: 8 | B14: ='UTL1'!B14 -> 2022-10-26 | C14: =_xlfn.IFS(Q14<>1,"",AND($B$4>=1,COUNT($E$7:G14)<=bkng),$B$4,P14=1,TRUNC(AVERAGE(E14:G14),0),COUNT($Q$7:Q14)=2,TRUNC(AVERAGE($E$7:G13),0),COUNT($Q$7:Q14)>=3,TRUNC(AVERAGE($E$7:G13),0)) -> 103 | D14: =_xlfn.IFS(Q14<>1,"",Q14=1,TRUNC((230-C14)*0.9)) -> 114 | E14: 143 | F14: 83 | G14: 100 | H14: =_xlfn.IFS(COUNT(E14:G14)<1,"",AND(E14>C14,F14>C14,G14>C14,COUNT($E$7:G14)>sixng),"#",AND(E14>C13,F14>C13,G14>C13,COUNT($E$7:G14)>sixng,COUNTIF(H13,"#")=1),"2",$A$7=1,"") ->  | I14: 326 | J14: 108 | K14: =_xlfn.IFS(Q14<>1,"",Q14=1,I14+(3*D14)) -> 668 | L14: =_xlfn.IFS(Q14<>1,"",COUNT($E$7:G14)<=hcpng,"",COUNT($E$7:G14)>=hcpng,K14) -> 668 | M14: =_xlfn.IFS(Q14=1,SUM($E$7:G14),Q14<>1,"") -> 1569 | N14: =_xlfn.IFS(Q14=1,COUNT($E$7:G14),Q14<>1,"") -> 15 | O14: =IF(Q14=1,ROUND(AVERAGE($E$7:G14),2),"") -> 104.6 | P14: =_xlfn.IFS(Q14<>1,"",SUM($Q$7:Q14)=1,1,SUM($Q$7:Q14)<>1,"") ->  | Q14: 1 | S14: =_xlfn.IFS(E14=$X$5,E14,F14=$X$5,F14,G14=$X$5,G14,$A$7=1,"") -> 143 | U14: =_xlfn.IFS(W14=$X$6,W14,X14=$X$6,X14,Y14=$X$6,Y14,$A$7=1,"") -> 257 | W14: =_xlfn.IFS(AND(Q14=1,COUNT($E$7:G14)>hcpng),E14+D14,$A$7=1," ") -> 257 | X14: =_xlfn.IFS(AND(Q14=1,COUNT($E$7:G14)>hcpng),F14+D14,$A$7=1," ") -> 197 | Y14: =_xlfn.IFS(AND(Q14=1,COUNT($E$7:G14)>hcpng),G14+D14,$A$7=1," ") -> 214 | Z14: 8 | AA14: =_xlfn.IFS(COUNTIFS(H14,"#",H13,"#"),A13,COUNTIFS(H14,2,H13,"#"),A13,$A$7=1,"") -> 
A15: 9 | B15: ='UTL1'!B15 -> 2022-11-02 | C15: =_xlfn.IFS(Q15<>1,"",AND($B$4>=1,COUNT($E$7:G15)<=bkng),$B$4,P15=1,TRUNC(AVERAGE(E15:G15),0),COUNT($Q$7:Q15)=2,TRUNC(AVERAGE($E$7:G14),0),COUNT($Q$7:Q15)>=3,TRUNC(AVERAGE($E$7:G14),0)) -> 104 | D15: =_xlfn.IFS(Q15<>1,"",Q15=1,TRUNC((230-C15)*0.9)) -> 113 | E15: 119 | F15: 95 | G15: 98 | H15: =_xlfn.IFS(COUNT(E15:G15)<1,"",AND(E15>C15,F15>C15,G15>C15,COUNT($E$7:G15)>sixng),"#",AND(E15>C14,F15>C14,G15>C14,COUNT($E$7:G15)>sixng,COUNTIF(H14,"#")=1),"2",$A$7=1,"") ->  | I15: 312 | J15: 104 | K15: =_xlfn.IFS(Q15<>1,"",Q15=1,I15+(3*D15)) -> 651 | L15: =_xlfn.IFS(Q15<>1,"",COUNT($E$7:G15)<=hcpng,"",COUNT($E$7:G15)>=hcpng,K15) -> 651 | M15: =_xlfn.IFS(Q15=1,SUM($E$7:G15),Q15<>1,"") -> 1881 | N15: =_xlfn.IFS(Q15=1,COUNT($E$7:G15),Q15<>1,"") -> 18 | O15: =IF(Q15=1,ROUND(AVERAGE($E$7:G15),2),"") -> 104.5 | P15: =_xlfn.IFS(Q15<>1,"",SUM($Q$7:Q15)=1,1,SUM($Q$7:Q15)<>1,"") ->  | Q15: 1 | S15: =_xlfn.IFS(E15=$X$5,E15,F15=$X$5,F15,G15=$X$5,G15,$A$7=1,"") ->  | U15: =_xlfn.IFS(W15=$X$6,W15,X15=$X$6,X15,Y15=$X$6,Y15,$A$7=1,"") ->  | W15: =_xlfn.IFS(AND(Q15=1,COUNT($E$7:G15)>hcpng),E15+D15,$A$7=1," ") -> 232 | X15: =_xlfn.IFS(AND(Q15=1,COUNT($E$7:G15)>hcpng),F15+D15,$A$7=1," ") -> 208 | Y15: =_xlfn.IFS(AND(Q15=1,COUNT($E$7:G15)>hcpng),G15+D15,$A$7=1," ") -> 211 | Z15: 9 | AA15: =_xlfn.IFS(COUNTIFS(H15,"#",H14,"#"),A14,COUNTIFS(H15,2,H14,"#"),A14,$A$7=1,"") -> 
A16: 10 | B16: ='UTL1'!B16 -> 2022-11-09 | C16: =_xlfn.IFS(Q16<>1,"",AND($B$4>=1,COUNT($E$7:G16)<=bkng),$B$4,P16=1,TRUNC(AVERAGE(E16:G16),0),COUNT($Q$7:Q16)=2,TRUNC(AVERAGE($E$7:G15),0),COUNT($Q$7:Q16)>=3,TRUNC(AVERAGE($E$7:G15),0)) -> 104 | D16: =_xlfn.IFS(Q16<>1,"",Q16=1,TRUNC((230-C16)*0.9)) -> 113 | E16: 80 | F16: 97 | G16: 74 | H16: =_xlfn.IFS(COUNT(E16:G16)<1,"",AND(E16>C16,F16>C16,G16>C16,COUNT($E$7:G16)>sixng),"#",AND(E16>C15,F16>C15,G16>C15,COUNT($E$7:G16)>sixng,COUNTIF(H15,"#")=1),"2",$A$7=1,"") ->  | I16: 251 | J16: 83 | K16: =_xlfn.IFS(Q16<>1,"",Q16=1,I16+(3*D16)) -> 590 | L16: =_xlfn.IFS(Q16<>1,"",COUNT($E$7:G16)<=hcpng,"",COUNT($E$7:G16)>=hcpng,K16) -> 590 | M16: =_xlfn.IFS(Q16=1,SUM($E$7:G16),Q16<>1,"") -> 2132 | N16: =_xlfn.IFS(Q16=1,COUNT($E$7:G16),Q16<>1,"") -> 21 | O16: =IF(Q16=1,ROUND(AVERAGE($E$7:G16),2),"") -> 101.52 | P16: =_xlfn.IFS(Q16<>1,"",SUM($Q$7:Q16)=1,1,SUM($Q$7:Q16)<>1,"") ->  | Q16: 1 | S16: =_xlfn.IFS(E16=$X$5,E16,F16=$X$5,F16,G16=$X$5,G16,$A$7=1,"") ->  | U16: =_xlfn.IFS(W16=$X$6,W16,X16=$X$6,X16,Y16=$X$6,Y16,$A$7=1,"") ->  | W16: =_xlfn.IFS(AND(Q16=1,COUNT($E$7:G16)>hcpng),E16+D16,$A$7=1," ") -> 193 | X16: =_xlfn.IFS(AND(Q16=1,COUNT($E$7:G16)>hcpng),F16+D16,$A$7=1," ") -> 210 | Y16: =_xlfn.IFS(AND(Q16=1,COUNT($E$7:G16)>hcpng),G16+D16,$A$7=1," ") -> 187 | Z16: 10 | AA16: =_xlfn.IFS(COUNTIFS(H16,"#",H15,"#"),A15,COUNTIFS(H16,2,H15,"#"),A15,$A$7=1,"") -> 
A17: 11 | B17: ='UTL1'!B17 -> 2022-11-16 | C17: =_xlfn.IFS(Q17<>1,"",AND($B$4>=1,COUNT($E$7:G17)<=bkng),$B$4,P17=1,TRUNC(AVERAGE(E17:G17),0),COUNT($Q$7:Q17)=2,TRUNC(AVERAGE($E$7:G16),0),COUNT($Q$7:Q17)>=3,TRUNC(AVERAGE($E$7:G16),0)) -> 101 | D17: =_xlfn.IFS(Q17<>1,"",Q17=1,TRUNC((230-C17)*0.9)) -> 116 | E17: 94 | F17: 101 | G17: 88 | H17: =_xlfn.IFS(COUNT(E17:G17)<1,"",AND(E17>C17,F17>C17,G17>C17,COUNT($E$7:G17)>sixng),"#",AND(E17>C16,F17>C16,G17>C16,COUNT($E$7:G17)>sixng,COUNTIF(H16,"#")=1),"2",$A$7=1,"") ->  | I17: 283 | J17: 94 | K17: =_xlfn.IFS(Q17<>1,"",Q17=1,I17+(3*D17)) -> 631 | L17: =_xlfn.IFS(Q17<>1,"",COUNT($E$7:G17)<=hcpng,"",COUNT($E$7:G17)>=hcpng,K17) -> 631 | M17: =_xlfn.IFS(Q17=1,SUM($E$7:G17),Q17<>1,"") -> 2415 | N17: =_xlfn.IFS(Q17=1,COUNT($E$7:G17),Q17<>1,"") -> 24 | O17: =IF(Q17=1,ROUND(AVERAGE($E$7:G17),2),"") -> 100.63 | P17: =_xlfn.IFS(Q17<>1,"",SUM($Q$7:Q17)=1,1,SUM($Q$7:Q17)<>1,"") ->  | Q17: 1 | S17: =_xlfn.IFS(E17=$X$5,E17,F17=$X$5,F17,G17=$X$5,G17,$A$7=1,"") ->  | U17: =_xlfn.IFS(W17=$X$6,W17,X17=$X$6,X17,Y17=$X$6,Y17,$A$7=1,"") ->  | W17: =_xlfn.IFS(AND(Q17=1,COUNT($E$7:G17)>hcpng),E17+D17,$A$7=1," ") -> 210 | X17: =_xlfn.IFS(AND(Q17=1,COUNT($E$7:G17)>hcpng),F17+D17,$A$7=1," ") -> 217 | Y17: =_xlfn.IFS(AND(Q17=1,COUNT($E$7:G17)>hcpng),G17+D17,$A$7=1," ") -> 204 | Z17: 11 | AA17: =_xlfn.IFS(COUNTIFS(H17,"#",H16,"#"),A16,COUNTIFS(H17,2,H16,"#"),A16,$A$7=1,"") -> 
A18: 12 | B18: ='UTL1'!B18 -> 2022-11-30 | C18: =_xlfn.IFS(Q18<>1,"",AND($B$4>=1,COUNT($E$7:G18)<=bkng),$B$4,P18=1,TRUNC(AVERAGE(E18:G18),0),COUNT($Q$7:Q18)=2,TRUNC(AVERAGE($E$7:G17),0),COUNT($Q$7:Q18)>=3,TRUNC(AVERAGE($E$7:G17),0)) -> 100 | D18: =_xlfn.IFS(Q18<>1,"",Q18=1,TRUNC((230-C18)*0.9)) -> 117 | E18: 131 | F18: 108 | G18: 88 | H18: =_xlfn.IFS(COUNT(E18:G18)<1,"",AND(E18>C18,F18>C18,G18>C18,COUNT($E$7:G18)>sixng),"#",AND(E18>C17,F18>C17,G18>C17,COUNT($E$7:G18)>sixng,COUNTIF(H17,"#")=1),"2",$A$7=1,"") ->  | I18: 327 | J18: 109 | K18: =_xlfn.IFS(Q18<>1,"",Q18=1,I18+(3*D18)) -> 678 | L18: =_xlfn.IFS(Q18<>1,"",COUNT($E$7:G18)<=hcpng,"",COUNT($E$7:G18)>=hcpng,K18) -> 678 | M18: =_xlfn.IFS(Q18=1,SUM($E$7:G18),Q18<>1,"") -> 2742 | N18: =_xlfn.IFS(Q18=1,COUNT($E$7:G18),Q18<>1,"") -> 27 | O18: =IF(Q18=1,ROUND(AVERAGE($E$7:G18),2),"") -> 101.56 | P18: =_xlfn.IFS(Q18<>1,"",SUM($Q$7:Q18)=1,1,SUM($Q$7:Q18)<>1,"") ->  | Q18: 1 | S18: =_xlfn.IFS(E18=$X$5,E18,F18=$X$5,F18,G18=$X$5,G18,$A$7=1,"") ->  | U18: =_xlfn.IFS(W18=$X$6,W18,X18=$X$6,X18,Y18=$X$6,Y18,$A$7=1,"") ->  | W18: =_xlfn.IFS(AND(Q18=1,COUNT($E$7:G18)>hcpng),E18+D18,$A$7=1," ") -> 248 | X18: =_xlfn.IFS(AND(Q18=1,COUNT($E$7:G18)>hcpng),F18+D18,$A$7=1," ") -> 225 | Y18: =_xlfn.IFS(AND(Q18=1,COUNT($E$7:G18)>hcpng),G18+D18,$A$7=1," ") -> 205 | Z18: 12 | AA18: =_xlfn.IFS(COUNTIFS(H18,"#",H17,"#"),A17,COUNTIFS(H18,2,H17,"#"),A17,$A$7=1,"") -> 
A19: 13 | B19: ='UTL1'!B19 -> 2022-12-07 | C19: =_xlfn.IFS(Q19<>1,"",AND($B$4>=1,COUNT($E$7:G19)<=bkng),$B$4,P19=1,TRUNC(AVERAGE(E19:G19),0),COUNT($Q$7:Q19)=2,TRUNC(AVERAGE($E$7:G18),0),COUNT($Q$7:Q19)>=3,TRUNC(AVERAGE($E$7:G18),0)) -> 101 | D19: =_xlfn.IFS(Q19<>1,"",Q19=1,TRUNC((230-C19)*0.9)) -> 116 | E19: 86 | F19: 104 | G19: 93 | H19: =_xlfn.IFS(COUNT(E19:G19)<1,"",AND(E19>C19,F19>C19,G19>C19,COUNT($E$7:G19)>sixng),"#",AND(E19>C18,F19>C18,G19>C18,COUNT($E$7:G19)>sixng,COUNTIF(H18,"#")=1),"2",$A$7=1,"") ->  | I19: 283 | J19: 94 | K19: =_xlfn.IFS(Q19<>1,"",Q19=1,I19+(3*D19)) -> 631 | L19: =_xlfn.IFS(Q19<>1,"",COUNT($E$7:G19)<=hcpng,"",COUNT($E$7:G19)>=hcpng,K19) -> 631 | M19: =_xlfn.IFS(Q19=1,SUM($E$7:G19),Q19<>1,"") -> 3025 | N19: =_xlfn.IFS(Q19=1,COUNT($E$7:G19),Q19<>1,"") -> 30 | O19: =IF(Q19=1,ROUND(AVERAGE($E$7:G19),2),"") -> 100.83 | P19: =_xlfn.IFS(Q19<>1,"",SUM($Q$7:Q19)=1,1,SUM($Q$7:Q19)<>1,"") ->  | Q19: 1 | S19: =_xlfn.IFS(E19=$X$5,E19,F19=$X$5,F19,G19=$X$5,G19,$A$7=1,"") ->  | U19: =_xlfn.IFS(W19=$X$6,W19,X19=$X$6,X19,Y19=$X$6,Y19,$A$7=1,"") ->  | W19: =_xlfn.IFS(AND(Q19=1,COUNT($E$7:G19)>hcpng),E19+D19,$A$7=1," ") -> 202 | X19: =_xlfn.IFS(AND(Q19=1,COUNT($E$7:G19)>hcpng),F19+D19,$A$7=1," ") -> 220 | Y19: =_xlfn.IFS(AND(Q19=1,COUNT($E$7:G19)>hcpng),G19+D19,$A$7=1," ") -> 209 | Z19: 13 | AA19: =_xlfn.IFS(COUNTIFS(H19,"#",H18,"#"),A18,COUNTIFS(H19,2,H18,"#"),A18,$A$7=1,"") -> 
A20: 14 | B20: ='UTL1'!B20 -> 2022-12-14 | C20: =_xlfn.IFS(Q20<>1,"",AND($B$4>=1,COUNT($E$7:G20)<=bkng),$B$4,P20=1,TRUNC(AVERAGE(E20:G20),0),COUNT($Q$7:Q20)=2,TRUNC(AVERAGE($E$7:G19),0),COUNT($Q$7:Q20)>=3,TRUNC(AVERAGE($E$7:G19),0)) ->  | D20: =_xlfn.IFS(Q20<>1,"",Q20=1,TRUNC((230-C20)*0.9)) ->  | H20: =_xlfn.IFS(COUNT(E20:G20)<1,"",AND(E20>C20,F20>C20,G20>C20,COUNT($E$7:G20)>sixng),"#",AND(E20>C19,F20>C19,G20>C19,COUNT($E$7:G20)>sixng,COUNTIF(H19,"#")=1),"2",$A$7=1,"") ->  | K20: =_xlfn.IFS(Q20<>1,"",Q20=1,I20+(3*D20)) ->  | L20: =_xlfn.IFS(Q20<>1,"",COUNT($E$7:G20)<=hcpng,"",COUNT($E$7:G20)>=hcpng,K20) ->  | M20: =_xlfn.IFS(Q20=1,SUM($E$7:G20),Q20<>1,"") ->  | N20: =_xlfn.IFS(Q20=1,COUNT($E$7:G20),Q20<>1,"") ->  | O20: =IF(Q20=1,ROUND(AVERAGE($E$7:G20),2),"") ->  | P20: =_xlfn.IFS(Q20<>1,"",SUM($Q$7:Q20)=1,1,SUM($Q$7:Q20)<>1,"") ->  | S20: =_xlfn.IFS(E20=$X$5,E20,F20=$X$5,F20,G20=$X$5,G20,$A$7=1,"") ->  | U20: =_xlfn.IFS(W20=$X$6,W20,X20=$X$6,X20,Y20=$X$6,Y20,$A$7=1,"") ->  | W20: =_xlfn.IFS(AND(Q20=1,COUNT($E$7:G20)>hcpng),E20+D20,$A$7=1," ") ->  | X20: =_xlfn.IFS(AND(Q20=1,COUNT($E$7:G20)>hcpng),F20+D20,$A$7=1," ") ->  | Y20: =_xlfn.IFS(AND(Q20=1,COUNT($E$7:G20)>hcpng),G20+D20,$A$7=1," ") ->  | Z20: 0 | AA20: =_xlfn.IFS(COUNTIFS(H20,"#",H19,"#"),A19,COUNTIFS(H20,2,H19,"#"),A19,$A$7=1,"") -> 
A21: 15 | B21: ='UTL1'!B21 -> 2022-12-21 | C21: =_xlfn.IFS(Q21<>1,"",AND($B$4>=1,COUNT($E$7:G21)<=bkng),$B$4,P21=1,TRUNC(AVERAGE(E21:G21),0),COUNT($Q$7:Q21)=2,TRUNC(AVERAGE($E$7:G20),0),COUNT($Q$7:Q21)>=3,TRUNC(AVERAGE($E$7:G20),0)) -> 100 | D21: =_xlfn.IFS(Q21<>1,"",Q21=1,TRUNC((230-C21)*0.9)) -> 117 | E21: 81 | F21: 98 | G21: 91 | H21: =_xlfn.IFS(COUNT(E21:G21)<1,"",AND(E21>C21,F21>C21,G21>C21,COUNT($E$7:G21)>sixng),"#",AND(E21>C20,F21>C20,G21>C20,COUNT($E$7:G21)>sixng,COUNTIF(H20,"#")=1),"2",$A$7=1,"") ->  | I21: 270 | J21: 90 | K21: =_xlfn.IFS(Q21<>1,"",Q21=1,I21+(3*D21)) -> 621 | L21: =_xlfn.IFS(Q21<>1,"",COUNT($E$7:G21)<=hcpng,"",COUNT($E$7:G21)>=hcpng,K21) -> 621 | M21: =_xlfn.IFS(Q21=1,SUM($E$7:G21),Q21<>1,"") -> 3295 | N21: =_xlfn.IFS(Q21=1,COUNT($E$7:G21),Q21<>1,"") -> 33 | O21: =IF(Q21=1,ROUND(AVERAGE($E$7:G21),2),"") -> 99.85 | P21: =_xlfn.IFS(Q21<>1,"",SUM($Q$7:Q21)=1,1,SUM($Q$7:Q21)<>1,"") ->  | Q21: 1 | S21: =_xlfn.IFS(E21=$X$5,E21,F21=$X$5,F21,G21=$X$5,G21,$A$7=1,"") ->  | U21: =_xlfn.IFS(W21=$X$6,W21,X21=$X$6,X21,Y21=$X$6,Y21,$A$7=1,"") ->  | W21: =_xlfn.IFS(AND(Q21=1,COUNT($E$7:G21)>hcpng),E21+D21,$A$7=1," ") -> 198 | X21: =_xlfn.IFS(AND(Q21=1,COUNT($E$7:G21)>hcpng),F21+D21,$A$7=1," ") -> 215 | Y21: =_xlfn.IFS(AND(Q21=1,COUNT($E$7:G21)>hcpng),G21+D21,$A$7=1," ") -> 208 | Z21: 15 | AA21: =_xlfn.IFS(COUNTIFS(H21,"#",H20,"#"),A20,COUNTIFS(H21,2,H20,"#"),A20,$A$7=1,"") -> 
A22: 16 | B22: ='UTL1'!B22 -> 2023-01-04 | C22: =_xlfn.IFS(Q22<>1,"",AND($B$4>=1,COUNT($E$7:G22)<=bkng),$B$4,P22=1,TRUNC(AVERAGE(E22:G22),0),COUNT($Q$7:Q22)=2,TRUNC(AVERAGE($E$7:G21),0),COUNT($Q$7:Q22)>=3,TRUNC(AVERAGE($E$7:G21),0)) -> 99 | D22: =_xlfn.IFS(Q22<>1,"",Q22=1,TRUNC((230-C22)*0.9)) -> 117 | E22: 106 | F22: 118 | G22: 80 | H22: =_xlfn.IFS(COUNT(E22:G22)<1,"",AND(E22>C22,F22>C22,G22>C22,COUNT($E$7:G22)>sixng),"#",AND(E22>C21,F22>C21,G22>C21,COUNT($E$7:G22)>sixng,COUNTIF(H21,"#")=1),"2",$A$7=1,"") ->  | I22: 304 | J22: 101 | K22: =_xlfn.IFS(Q22<>1,"",Q22=1,I22+(3*D22)) -> 655 | L22: =_xlfn.IFS(Q22<>1,"",COUNT($E$7:G22)<=hcpng,"",COUNT($E$7:G22)>=hcpng,K22) -> 655 | M22: =_xlfn.IFS(Q22=1,SUM($E$7:G22),Q22<>1,"") -> 3599 | N22: =_xlfn.IFS(Q22=1,COUNT($E$7:G22),Q22<>1,"") -> 36 | O22: =IF(Q22=1,ROUND(AVERAGE($E$7:G22),2),"") -> 99.97 | P22: =_xlfn.IFS(Q22<>1,"",SUM($Q$7:Q22)=1,1,SUM($Q$7:Q22)<>1,"") ->  | Q22: 1 | S22: =_xlfn.IFS(E22=$X$5,E22,F22=$X$5,F22,G22=$X$5,G22,$A$7=1,"") ->  | U22: =_xlfn.IFS(W22=$X$6,W22,X22=$X$6,X22,Y22=$X$6,Y22,$A$7=1,"") ->  | W22: =_xlfn.IFS(AND(Q22=1,COUNT($E$7:G22)>hcpng),E22+D22,$A$7=1," ") -> 223 | X22: =_xlfn.IFS(AND(Q22=1,COUNT($E$7:G22)>hcpng),F22+D22,$A$7=1," ") -> 235 | Y22: =_xlfn.IFS(AND(Q22=1,COUNT($E$7:G22)>hcpng),G22+D22,$A$7=1," ") -> 197 | Z22: 16 | AA22: =_xlfn.IFS(COUNTIFS(H22,"#",H21,"#"),A21,COUNTIFS(H22,2,H21,"#"),A21,$A$7=1,"") -> 
A23: 17 | B23: ='UTL1'!B23 -> 2023-01-11 | C23: =_xlfn.IFS(Q23<>1,"",AND($B$4>=1,COUNT($E$7:G23)<=bkng),$B$4,P23=1,TRUNC(AVERAGE(E23:G23),0),COUNT($Q$7:Q23)=2,TRUNC(AVERAGE($E$7:G22),0),COUNT($Q$7:Q23)>=3,TRUNC(AVERAGE($E$7:G22),0)) -> 99 | D23: =_xlfn.IFS(Q23<>1,"",Q23=1,TRUNC((230-C23)*0.9)) -> 117 | E23: 101 | F23: 81 | G23: 83 | H23: =_xlfn.IFS(COUNT(E23:G23)<1,"",AND(E23>C23,F23>C23,G23>C23,COUNT($E$7:G23)>sixng),"#",AND(E23>C22,F23>C22,G23>C22,COUNT($E$7:G23)>sixng,COUNTIF(H22,"#")=1),"2",$A$7=1,"") ->  | I23: 265 | J23: 88 | K23: =_xlfn.IFS(Q23<>1,"",Q23=1,I23+(3*D23)) -> 616 | L23: =_xlfn.IFS(Q23<>1,"",COUNT($E$7:G23)<=hcpng,"",COUNT($E$7:G23)>=hcpng,K23) -> 616 | M23: =_xlfn.IFS(Q23=1,SUM($E$7:G23),Q23<>1,"") -> 3864 | N23: =_xlfn.IFS(Q23=1,COUNT($E$7:G23),Q23<>1,"") -> 39 | O23: =IF(Q23=1,ROUND(AVERAGE($E$7:G23),2),"") -> 99.08 | P23: =_xlfn.IFS(Q23<>1,"",SUM($Q$7:Q23)=1,1,SUM($Q$7:Q23)<>1,"") ->  | Q23: 1 | S23: =_xlfn.IFS(E23=$X$5,E23,F23=$X$5,F23,G23=$X$5,G23,$A$7=1,"") ->  | U23: =_xlfn.IFS(W23=$X$6,W23,X23=$X$6,X23,Y23=$X$6,Y23,$A$7=1,"") ->  | W23: =_xlfn.IFS(AND(Q23=1,COUNT($E$7:G23)>hcpng),E23+D23,$A$7=1," ") -> 218 | X23: =_xlfn.IFS(AND(Q23=1,COUNT($E$7:G23)>hcpng),F23+D23,$A$7=1," ") -> 198 | Y23: =_xlfn.IFS(AND(Q23=1,COUNT($E$7:G23)>hcpng),G23+D23,$A$7=1," ") -> 200 | Z23: 17 | AA23: =_xlfn.IFS(COUNTIFS(H23,"#",H22,"#"),A22,COUNTIFS(H23,2,H22,"#"),A22,$A$7=1,"") -> 
A24: 18 | B24: ='UTL1'!B24 -> 2023-01-18 | C24: =_xlfn.IFS(Q24<>1,"",AND($B$4>=1,COUNT($E$7:G24)<=bkng),$B$4,P24=1,TRUNC(AVERAGE(E24:G24),0),COUNT($Q$7:Q24)=2,TRUNC(AVERAGE($E$7:G23),0),COUNT($Q$7:Q24)>=3,TRUNC(AVERAGE($E$7:G23),0)) -> 99 | D24: =_xlfn.IFS(Q24<>1,"",Q24=1,TRUNC((230-C24)*0.9)) -> 117 | E24: 95 | F24: 100 | G24: 111 | H24: =_xlfn.IFS(COUNT(E24:G24)<1,"",AND(E24>C24,F24>C24,G24>C24,COUNT($E$7:G24)>sixng),"#",AND(E24>C23,F24>C23,G24>C23,COUNT($E$7:G24)>sixng,COUNTIF(H23,"#")=1),"2",$A$7=1,"") ->  | I24: 306 | J24: 102 | K24: =_xlfn.IFS(Q24<>1,"",Q24=1,I24+(3*D24)) -> 657 | L24: =_xlfn.IFS(Q24<>1,"",COUNT($E$7:G24)<=hcpng,"",COUNT($E$7:G24)>=hcpng,K24) -> 657 | M24: =_xlfn.IFS(Q24=1,SUM($E$7:G24),Q24<>1,"") -> 4170 | N24: =_xlfn.IFS(Q24=1,COUNT($E$7:G24),Q24<>1,"") -> 42 | O24: =IF(Q24=1,ROUND(AVERAGE($E$7:G24),2),"") -> 99.29 | P24: =_xlfn.IFS(Q24<>1,"",SUM($Q$7:Q24)=1,1,SUM($Q$7:Q24)<>1,"") ->  | Q24: 1 | S24: =_xlfn.IFS(E24=$X$5,E24,F24=$X$5,F24,G24=$X$5,G24,$A$7=1,"") ->  | U24: =_xlfn.IFS(W24=$X$6,W24,X24=$X$6,X24,Y24=$X$6,Y24,$A$7=1,"") ->  | W24: =_xlfn.IFS(AND(Q24=1,COUNT($E$7:G24)>hcpng),E24+D24,$A$7=1," ") -> 212 | X24: =_xlfn.IFS(AND(Q24=1,COUNT($E$7:G24)>hcpng),F24+D24,$A$7=1," ") -> 217 | Y24: =_xlfn.IFS(AND(Q24=1,COUNT($E$7:G24)>hcpng),G24+D24,$A$7=1," ") -> 228 | Z24: 18 | AA24: =_xlfn.IFS(COUNTIFS(H24,"#",H23,"#"),A23,COUNTIFS(H24,2,H23,"#"),A23,$A$7=1,"") -> 
A25: 19 | B25: ='UTL1'!B25 -> 2023-01-25 | C25: =_xlfn.IFS(Q25<>1,"",AND($B$4>=1,COUNT($E$7:G25)<=bkng),$B$4,P25=1,TRUNC(AVERAGE(E25:G25),0),COUNT($Q$7:Q25)=2,TRUNC(AVERAGE($E$7:G24),0),COUNT($Q$7:Q25)>=3,TRUNC(AVERAGE($E$7:G24),0)) -> 99 | D25: =_xlfn.IFS(Q25<>1,"",Q25=1,TRUNC((230-C25)*0.9)) -> 117 | E25: 105 | F25: 114 | G25: 103 | H25: =_xlfn.IFS(COUNT(E25:G25)<1,"",AND(E25>C25,F25>C25,G25>C25,COUNT($E$7:G25)>sixng),"#",AND(E25>C24,F25>C24,G25>C24,COUNT($E$7:G25)>sixng,COUNTIF(H24,"#")=1),"2",$A$7=1,"") -> # | I25: 322 | J25: 107 | K25: =_xlfn.IFS(Q25<>1,"",Q25=1,I25+(3*D25)) -> 673 | L25: =_xlfn.IFS(Q25<>1,"",COUNT($E$7:G25)<=hcpng,"",COUNT($E$7:G25)>=hcpng,K25) -> 673 | M25: =_xlfn.IFS(Q25=1,SUM($E$7:G25),Q25<>1,"") -> 4492 | N25: =_xlfn.IFS(Q25=1,COUNT($E$7:G25),Q25<>1,"") -> 45 | O25: =IF(Q25=1,ROUND(AVERAGE($E$7:G25),2),"") -> 99.82 | P25: =_xlfn.IFS(Q25<>1,"",SUM($Q$7:Q25)=1,1,SUM($Q$7:Q25)<>1,"") ->  | Q25: 1 | S25: =_xlfn.IFS(E25=$X$5,E25,F25=$X$5,F25,G25=$X$5,G25,$A$7=1,"") ->  | U25: =_xlfn.IFS(W25=$X$6,W25,X25=$X$6,X25,Y25=$X$6,Y25,$A$7=1,"") ->  | W25: =_xlfn.IFS(AND(Q25=1,COUNT($E$7:G25)>hcpng),E25+D25,$A$7=1," ") -> 222 | X25: =_xlfn.IFS(AND(Q25=1,COUNT($E$7:G25)>hcpng),F25+D25,$A$7=1," ") -> 231 | Y25: =_xlfn.IFS(AND(Q25=1,COUNT($E$7:G25)>hcpng),G25+D25,$A$7=1," ") -> 220 | Z25: 19 | AA25: =_xlfn.IFS(COUNTIFS(H25,"#",H24,"#"),A24,COUNTIFS(H25,2,H24,"#"),A24,$A$7=1,"") -> 
A26: 20 | B26: ='UTL1'!B26 -> 2023-02-01 | C26: =_xlfn.IFS(Q26<>1,"",AND($B$4>=1,COUNT($E$7:G26)<=bkng),$B$4,P26=1,TRUNC(AVERAGE(E26:G26),0),COUNT($Q$7:Q26)=2,TRUNC(AVERAGE($E$7:G25),0),COUNT($Q$7:Q26)>=3,TRUNC(AVERAGE($E$7:G25),0)) -> 99 | D26: =_xlfn.IFS(Q26<>1,"",Q26=1,TRUNC((230-C26)*0.9)) -> 117 | E26: 137 | F26: 105 | G26: 120 | H26: =_xlfn.IFS(COUNT(E26:G26)<1,"",AND(E26>C26,F26>C26,G26>C26,COUNT($E$7:G26)>sixng),"#",AND(E26>C25,F26>C25,G26>C25,COUNT($E$7:G26)>sixng,COUNTIF(H25,"#")=1),"2",$A$7=1,"") -> # | I26: 362 | J26: 120 | K26: =_xlfn.IFS(Q26<>1,"",Q26=1,I26+(3*D26)) -> 713 | L26: =_xlfn.IFS(Q26<>1,"",COUNT($E$7:G26)<=hcpng,"",COUNT($E$7:G26)>=hcpng,K26) -> 713 | M26: =_xlfn.IFS(Q26=1,SUM($E$7:G26),Q26<>1,"") -> 4854 | N26: =_xlfn.IFS(Q26=1,COUNT($E$7:G26),Q26<>1,"") -> 48 | O26: =IF(Q26=1,ROUND(AVERAGE($E$7:G26),2),"") -> 101.13 | P26: =_xlfn.IFS(Q26<>1,"",SUM($Q$7:Q26)=1,1,SUM($Q$7:Q26)<>1,"") ->  | Q26: 1 | R26: 362 | S26: =_xlfn.IFS(E26=$X$5,E26,F26=$X$5,F26,G26=$X$5,G26,$A$7=1,"") ->  | T26: 713 | U26: =_xlfn.IFS(W26=$X$6,W26,X26=$X$6,X26,Y26=$X$6,Y26,$A$7=1,"") ->  | W26: =_xlfn.IFS(AND(Q26=1,COUNT($E$7:G26)>hcpng),E26+D26,$A$7=1," ") -> 254 | X26: =_xlfn.IFS(AND(Q26=1,COUNT($E$7:G26)>hcpng),F26+D26,$A$7=1," ") -> 222 | Y26: =_xlfn.IFS(AND(Q26=1,COUNT($E$7:G26)>hcpng),G26+D26,$A$7=1," ") -> 237 | Z26: 20 | AA26: =_xlfn.IFS(COUNTIFS(H26,"#",H25,"#"),A25,COUNTIFS(H26,2,H25,"#"),A25,$A$7=1,"") -> 19
A27: 21 | B27: ='UTL1'!B27 -> 2023-02-08 | C27: =_xlfn.IFS(Q27<>1,"",AND($B$4>=1,COUNT($E$7:G27)<=bkng),$B$4,P27=1,TRUNC(AVERAGE(E27:G27),0),COUNT($Q$7:Q27)=2,TRUNC(AVERAGE($E$7:G26),0),COUNT($Q$7:Q27)>=3,TRUNC(AVERAGE($E$7:G26),0)) -> 101 | D27: =_xlfn.IFS(Q27<>1,"",Q27=1,TRUNC((230-C27)*0.9)) -> 116 | E27: 72 | F27: 109 | G27: 90 | H27: =_xlfn.IFS(COUNT(E27:G27)<1,"",AND(E27>C27,F27>C27,G27>C27,COUNT($E$7:G27)>sixng),"#",AND(E27>C26,F27>C26,G27>C26,COUNT($E$7:G27)>sixng,COUNTIF(H26,"#")=1),"2",$A$7=1,"") ->  | I27: 271 | J27: 90 | K27: =_xlfn.IFS(Q27<>1,"",Q27=1,I27+(3*D27)) -> 619 | L27: =_xlfn.IFS(Q27<>1,"",COUNT($E$7:G27)<=hcpng,"",COUNT($E$7:G27)>=hcpng,K27) -> 619 | M27: =_xlfn.IFS(Q27=1,SUM($E$7:G27),Q27<>1,"") -> 5125 | N27: =_xlfn.IFS(Q27=1,COUNT($E$7:G27),Q27<>1,"") -> 51 | O27: =IF(Q27=1,ROUND(AVERAGE($E$7:G27),2),"") -> 100.49 | P27: =_xlfn.IFS(Q27<>1,"",SUM($Q$7:Q27)=1,1,SUM($Q$7:Q27)<>1,"") ->  | Q27: 1 | S27: =_xlfn.IFS(E27=$X$5,E27,F27=$X$5,F27,G27=$X$5,G27,$A$7=1,"") ->  | U27: =_xlfn.IFS(W27=$X$6,W27,X27=$X$6,X27,Y27=$X$6,Y27,$A$7=1,"") ->  | W27: =_xlfn.IFS(AND(Q27=1,COUNT($E$7:G27)>hcpng),E27+D27,$A$7=1," ") -> 188 | X27: =_xlfn.IFS(AND(Q27=1,COUNT($E$7:G27)>hcpng),F27+D27,$A$7=1," ") -> 225 | Y27: =_xlfn.IFS(AND(Q27=1,COUNT($E$7:G27)>hcpng),G27+D27,$A$7=1," ") -> 206 | Z27: 21 | AA27: =_xlfn.IFS(COUNTIFS(H27,"#",H26,"#"),A26,COUNTIFS(H27,2,H26,"#"),A26,$A$7=1,"") -> 
A28: 22 | B28: ='UTL1'!B28 -> 2023-02-15 | C28: =_xlfn.IFS(Q28<>1,"",AND($B$4>=1,COUNT($E$7:G28)<=bkng),$B$4,P28=1,TRUNC(AVERAGE(E28:G28),0),COUNT($Q$7:Q28)=2,TRUNC(AVERAGE($E$7:G27),0),COUNT($Q$7:Q28)>=3,TRUNC(AVERAGE($E$7:G27),0)) -> 100 | D28: =_xlfn.IFS(Q28<>1,"",Q28=1,TRUNC((230-C28)*0.9)) -> 117 | E28: 98 | F28: 106 | G28: 86 | H28: =_xlfn.IFS(COUNT(E28:G28)<1,"",AND(E28>C28,F28>C28,G28>C28,COUNT($E$7:G28)>sixng),"#",AND(E28>C27,F28>C27,G28>C27,COUNT($E$7:G28)>sixng,COUNTIF(H27,"#")=1),"2",$A$7=1,"") ->  | I28: 290 | J28: 96 | K28: =_xlfn.IFS(Q28<>1,"",Q28=1,I28+(3*D28)) -> 641 | L28: =_xlfn.IFS(Q28<>1,"",COUNT($E$7:G28)<=hcpng,"",COUNT($E$7:G28)>=hcpng,K28) -> 641 | M28: =_xlfn.IFS(Q28=1,SUM($E$7:G28),Q28<>1,"") -> 5415 | N28: =_xlfn.IFS(Q28=1,COUNT($E$7:G28),Q28<>1,"") -> 54 | O28: =IF(Q28=1,ROUND(AVERAGE($E$7:G28),2),"") -> 100.28 | P28: =_xlfn.IFS(Q28<>1,"",SUM($Q$7:Q28)=1,1,SUM($Q$7:Q28)<>1,"") ->  | Q28: 1 | S28: =_xlfn.IFS(E28=$X$5,E28,F28=$X$5,F28,G28=$X$5,G28,$A$7=1,"") ->  | U28: =_xlfn.IFS(W28=$X$6,W28,X28=$X$6,X28,Y28=$X$6,Y28,$A$7=1,"") ->  | W28: =_xlfn.IFS(AND(Q28=1,COUNT($E$7:G28)>hcpng),E28+D28,$A$7=1," ") -> 215 | X28: =_xlfn.IFS(AND(Q28=1,COUNT($E$7:G28)>hcpng),F28+D28,$A$7=1," ") -> 223 | Y28: =_xlfn.IFS(AND(Q28=1,COUNT($E$7:G28)>hcpng),G28+D28,$A$7=1," ") -> 203 | Z28: 22 | AA28: =_xlfn.IFS(COUNTIFS(H28,"#",H27,"#"),A27,COUNTIFS(H28,2,H27,"#"),A27,$A$7=1,"") -> 
A29: 23 | B29: ='UTL1'!B29 -> 2023-02-22 | C29: =_xlfn.IFS(Q29<>1,"",AND($B$4>=1,COUNT($E$7:G29)<=bkng),$B$4,P29=1,TRUNC(AVERAGE(E29:G29),0),COUNT($Q$7:Q29)=2,TRUNC(AVERAGE($E$7:G28),0),COUNT($Q$7:Q29)>=3,TRUNC(AVERAGE($E$7:G28),0)) -> 100 | D29: =_xlfn.IFS(Q29<>1,"",Q29=1,TRUNC((230-C29)*0.9)) -> 117 | E29: 108 | F29: 124 | G29: 95 | H29: =_xlfn.IFS(COUNT(E29:G29)<1,"",AND(E29>C29,F29>C29,G29>C29,COUNT($E$7:G29)>sixng),"#",AND(E29>C28,F29>C28,G29>C28,COUNT($E$7:G29)>sixng,COUNTIF(H28,"#")=1),"2",$A$7=1,"") ->  | I29: 327 | J29: 109 | K29: =_xlfn.IFS(Q29<>1,"",Q29=1,I29+(3*D29)) -> 678 | L29: =_xlfn.IFS(Q29<>1,"",COUNT($E$7:G29)<=hcpng,"",COUNT($E$7:G29)>=hcpng,K29) -> 678 | M29: =_xlfn.IFS(Q29=1,SUM($E$7:G29),Q29<>1,"") -> 5742 | N29: =_xlfn.IFS(Q29=1,COUNT($E$7:G29),Q29<>1,"") -> 57 | O29: =IF(Q29=1,ROUND(AVERAGE($E$7:G29),2),"") -> 100.74 | P29: =_xlfn.IFS(Q29<>1,"",SUM($Q$7:Q29)=1,1,SUM($Q$7:Q29)<>1,"") ->  | Q29: 1 | S29: =_xlfn.IFS(E29=$X$5,E29,F29=$X$5,F29,G29=$X$5,G29,$A$7=1,"") ->  | U29: =_xlfn.IFS(W29=$X$6,W29,X29=$X$6,X29,Y29=$X$6,Y29,$A$7=1,"") ->  | W29: =_xlfn.IFS(AND(Q29=1,COUNT($E$7:G29)>hcpng),E29+D29,$A$7=1," ") -> 225 | X29: =_xlfn.IFS(AND(Q29=1,COUNT($E$7:G29)>hcpng),F29+D29,$A$7=1," ") -> 241 | Y29: =_xlfn.IFS(AND(Q29=1,COUNT($E$7:G29)>hcpng),G29+D29,$A$7=1," ") -> 212 | Z29: 23 | AA29: =_xlfn.IFS(COUNTIFS(H29,"#",H28,"#"),A28,COUNTIFS(H29,2,H28,"#"),A28,$A$7=1,"") -> 
A30: 24 | B30: ='UTL1'!B30 -> 2023-03-01 | C30: =_xlfn.IFS(Q30<>1,"",AND($B$4>=1,COUNT($E$7:G30)<=bkng),$B$4,P30=1,TRUNC(AVERAGE(E30:G30),0),COUNT($Q$7:Q30)=2,TRUNC(AVERAGE($E$7:G29),0),COUNT($Q$7:Q30)>=3,TRUNC(AVERAGE($E$7:G29),0)) -> 100 | D30: =_xlfn.IFS(Q30<>1,"",Q30=1,TRUNC((230-C30)*0.9)) -> 117 | E30: 116 | F30: 121 | G30: 109 | H30: =_xlfn.IFS(COUNT(E30:G30)<1,"",AND(E30>C30,F30>C30,G30>C30,COUNT($E$7:G30)>sixng),"#",AND(E30>C29,F30>C29,G30>C29,COUNT($E$7:G30)>sixng,COUNTIF(H29,"#")=1),"2",$A$7=1,"") -> # | I30: 346 | J30: 115 | K30: =_xlfn.IFS(Q30<>1,"",Q30=1,I30+(3*D30)) -> 697 | L30: =_xlfn.IFS(Q30<>1,"",COUNT($E$7:G30)<=hcpng,"",COUNT($E$7:G30)>=hcpng,K30) -> 697 | M30: =_xlfn.IFS(Q30=1,SUM($E$7:G30),Q30<>1,"") -> 6088 | N30: =_xlfn.IFS(Q30=1,COUNT($E$7:G30),Q30<>1,"") -> 60 | O30: =IF(Q30=1,ROUND(AVERAGE($E$7:G30),2),"") -> 101.47 | P30: =_xlfn.IFS(Q30<>1,"",SUM($Q$7:Q30)=1,1,SUM($Q$7:Q30)<>1,"") ->  | Q30: 1 | S30: =_xlfn.IFS(E30=$X$5,E30,F30=$X$5,F30,G30=$X$5,G30,$A$7=1,"") ->  | U30: =_xlfn.IFS(W30=$X$6,W30,X30=$X$6,X30,Y30=$X$6,Y30,$A$7=1,"") ->  | W30: =_xlfn.IFS(AND(Q30=1,COUNT($E$7:G30)>hcpng),E30+D30,$A$7=1," ") -> 233 | X30: =_xlfn.IFS(AND(Q30=1,COUNT($E$7:G30)>hcpng),F30+D30,$A$7=1," ") -> 238 | Y30: =_xlfn.IFS(AND(Q30=1,COUNT($E$7:G30)>hcpng),G30+D30,$A$7=1," ") -> 226 | Z30: 24 | AA30: =_xlfn.IFS(COUNTIFS(H30,"#",H29,"#"),A29,COUNTIFS(H30,2,H29,"#"),A29,$A$7=1,"") -> 
A31: 25 | B31: ='UTL1'!B31 -> 2023-03-08 | C31: =_xlfn.IFS(Q31<>1,"",AND($B$4>=1,COUNT($E$7:G31)<=bkng),$B$4,P31=1,TRUNC(AVERAGE(E31:G31),0),COUNT($Q$7:Q31)=2,TRUNC(AVERAGE($E$7:G30),0),COUNT($Q$7:Q31)>=3,TRUNC(AVERAGE($E$7:G30),0)) -> 101 | D31: =_xlfn.IFS(Q31<>1,"",Q31=1,TRUNC((230-C31)*0.9)) -> 116 | E31: 95 | F31: 111 | G31: 89 | H31: =_xlfn.IFS(COUNT(E31:G31)<1,"",AND(E31>C31,F31>C31,G31>C31,COUNT($E$7:G31)>sixng),"#",AND(E31>C30,F31>C30,G31>C30,COUNT($E$7:G31)>sixng,COUNTIF(H30,"#")=1),"2",$A$7=1,"") ->  | I31: 295 | J31: 98 | K31: =_xlfn.IFS(Q31<>1,"",Q31=1,I31+(3*D31)) -> 643 | L31: =_xlfn.IFS(Q31<>1,"",COUNT($E$7:G31)<=hcpng,"",COUNT($E$7:G31)>=hcpng,K31) -> 643 | M31: =_xlfn.IFS(Q31=1,SUM($E$7:G31),Q31<>1,"") -> 6383 | N31: =_xlfn.IFS(Q31=1,COUNT($E$7:G31),Q31<>1,"") -> 63 | O31: =IF(Q31=1,ROUND(AVERAGE($E$7:G31),2),"") -> 101.32 | P31: =_xlfn.IFS(Q31<>1,"",SUM($Q$7:Q31)=1,1,SUM($Q$7:Q31)<>1,"") ->  | Q31: 1 | S31: =_xlfn.IFS(E31=$X$5,E31,F31=$X$5,F31,G31=$X$5,G31,$A$7=1,"") ->  | U31: =_xlfn.IFS(W31=$X$6,W31,X31=$X$6,X31,Y31=$X$6,Y31,$A$7=1,"") ->  | W31: =_xlfn.IFS(AND(Q31=1,COUNT($E$7:G31)>hcpng),E31+D31,$A$7=1," ") -> 211 | X31: =_xlfn.IFS(AND(Q31=1,COUNT($E$7:G31)>hcpng),F31+D31,$A$7=1," ") -> 227 | Y31: =_xlfn.IFS(AND(Q31=1,COUNT($E$7:G31)>hcpng),G31+D31,$A$7=1," ") -> 205 | Z31: 25 | AA31: =_xlfn.IFS(COUNTIFS(H31,"#",H30,"#"),A30,COUNTIFS(H31,2,H30,"#"),A30,$A$7=1,"") -> 
A32: 26 | B32: ='UTL1'!B32 -> 2023-03-15 | C32: =_xlfn.IFS(Q32<>1,"",AND($B$4>=1,COUNT($E$7:G32)<=bkng),$B$4,P32=1,TRUNC(AVERAGE(E32:G32),0),COUNT($Q$7:Q32)=2,TRUNC(AVERAGE($E$7:G31),0),COUNT($Q$7:Q32)>=3,TRUNC(AVERAGE($E$7:G31),0)) -> 101 | D32: =_xlfn.IFS(Q32<>1,"",Q32=1,TRUNC((230-C32)*0.9)) -> 116 | E32: 106 | F32: 110 | G32: 133 | H32: =_xlfn.IFS(COUNT(E32:G32)<1,"",AND(E32>C32,F32>C32,G32>C32,COUNT($E$7:G32)>sixng),"#",AND(E32>C31,F32>C31,G32>C31,COUNT($E$7:G32)>sixng,COUNTIF(H31,"#")=1),"2",$A$7=1,"") -> # | I32: 349 | J32: 116 | K32: =_xlfn.IFS(Q32<>1,"",Q32=1,I32+(3*D32)) -> 697 | L32: =_xlfn.IFS(Q32<>1,"",COUNT($E$7:G32)<=hcpng,"",COUNT($E$7:G32)>=hcpng,K32) -> 697 | M32: =_xlfn.IFS(Q32=1,SUM($E$7:G32),Q32<>1,"") -> 6732 | N32: =_xlfn.IFS(Q32=1,COUNT($E$7:G32),Q32<>1,"") -> 66 | O32: =IF(Q32=1,ROUND(AVERAGE($E$7:G32),2),"") -> 102 | P32: =_xlfn.IFS(Q32<>1,"",SUM($Q$7:Q32)=1,1,SUM($Q$7:Q32)<>1,"") ->  | Q32: 1 | S32: =_xlfn.IFS(E32=$X$5,E32,F32=$X$5,F32,G32=$X$5,G32,$A$7=1,"") ->  | U32: =_xlfn.IFS(W32=$X$6,W32,X32=$X$6,X32,Y32=$X$6,Y32,$A$7=1,"") ->  | W32: =_xlfn.IFS(AND(Q32=1,COUNT($E$7:G32)>hcpng),E32+D32,$A$7=1," ") -> 222 | X32: =_xlfn.IFS(AND(Q32=1,COUNT($E$7:G32)>hcpng),F32+D32,$A$7=1," ") -> 226 | Y32: =_xlfn.IFS(AND(Q32=1,COUNT($E$7:G32)>hcpng),G32+D32,$A$7=1," ") -> 249 | Z32: 26 | AA32: =_xlfn.IFS(COUNTIFS(H32,"#",H31,"#"),A31,COUNTIFS(H32,2,H31,"#"),A31,$A$7=1,"") -> 
A33: 27 | B33: ='UTL1'!B33 -> 2023-03-22 | C33: =_xlfn.IFS(Q33<>1,"",AND($B$4>=1,COUNT($E$7:G33)<=bkng),$B$4,P33=1,TRUNC(AVERAGE(E33:G33),0),COUNT($Q$7:Q33)=2,TRUNC(AVERAGE($E$7:G32),0),COUNT($Q$7:Q33)>=3,TRUNC(AVERAGE($E$7:G32),0)) -> 102 | D33: =_xlfn.IFS(Q33<>1,"",Q33=1,TRUNC((230-C33)*0.9)) -> 115 | E33: 106 | F33: 112 | G33: 117 | H33: =_xlfn.IFS(COUNT(E33:G33)<1,"",AND(E33>C33,F33>C33,G33>C33,COUNT($E$7:G33)>sixng),"#",AND(E33>C32,F33>C32,G33>C32,COUNT($E$7:G33)>sixng,COUNTIF(H32,"#")=1),"2",$A$7=1,"") -> # | I33: 335 | J33: 111 | K33: =_xlfn.IFS(Q33<>1,"",Q33=1,I33+(3*D33)) -> 680 | L33: =_xlfn.IFS(Q33<>1,"",COUNT($E$7:G33)<=hcpng,"",COUNT($E$7:G33)>=hcpng,K33) -> 680 | M33: =_xlfn.IFS(Q33=1,SUM($E$7:G33),Q33<>1,"") -> 7067 | N33: =_xlfn.IFS(Q33=1,COUNT($E$7:G33),Q33<>1,"") -> 69 | O33: =IF(Q33=1,ROUND(AVERAGE($E$7:G33),2),"") -> 102.42 | P33: =_xlfn.IFS(Q33<>1,"",SUM($Q$7:Q33)=1,1,SUM($Q$7:Q33)<>1,"") ->  | Q33: 1 | S33: =_xlfn.IFS(E33=$X$5,E33,F33=$X$5,F33,G33=$X$5,G33,$A$7=1,"") ->  | U33: =_xlfn.IFS(W33=$X$6,W33,X33=$X$6,X33,Y33=$X$6,Y33,$A$7=1,"") ->  | W33: =_xlfn.IFS(AND(Q33=1,COUNT($E$7:G33)>hcpng),E33+D33,$A$7=1," ") -> 221 | X33: =_xlfn.IFS(AND(Q33=1,COUNT($E$7:G33)>hcpng),F33+D33,$A$7=1," ") -> 227 | Y33: =_xlfn.IFS(AND(Q33=1,COUNT($E$7:G33)>hcpng),G33+D33,$A$7=1," ") -> 232 | Z33: 27 | AA33: =_xlfn.IFS(COUNTIFS(H33,"#",H32,"#"),A32,COUNTIFS(H33,2,H32,"#"),A32,$A$7=1,"") -> 26
A34: 28 | B34: ='UTL1'!B34 -> 2023-03-29 | C34: =_xlfn.IFS(Q34<>1,"",AND($B$4>=1,COUNT($E$7:G34)<=bkng),$B$4,P34=1,TRUNC(AVERAGE(E34:G34),0),COUNT($Q$7:Q34)=2,TRUNC(AVERAGE($E$7:G33),0),COUNT($Q$7:Q34)>=3,TRUNC(AVERAGE($E$7:G33),0)) ->  | D34: =_xlfn.IFS(Q34<>1,"",Q34=1,TRUNC((230-C34)*0.9)) ->  | H34: =_xlfn.IFS(COUNT(E34:G34)<1,"",AND(E34>C34,F34>C34,G34>C34,COUNT($E$7:G34)>sixng),"#",AND(E34>C33,F34>C33,G34>C33,COUNT($E$7:G34)>sixng,COUNTIF(H33,"#")=1),"2",$A$7=1,"") ->  | K34: =_xlfn.IFS(Q34<>1,"",Q34=1,I34+(3*D34)) ->  | L34: =_xlfn.IFS(Q34<>1,"",COUNT($E$7:G34)<=hcpng,"",COUNT($E$7:G34)>=hcpng,K34) ->  | M34: =_xlfn.IFS(Q34=1,SUM($E$7:G34),Q34<>1,"") ->  | N34: =_xlfn.IFS(Q34=1,COUNT($E$7:G34),Q34<>1,"") ->  | O34: =IF(Q34=1,ROUND(AVERAGE($E$7:G34),2),"") ->  | P34: =_xlfn.IFS(Q34<>1,"",SUM($Q$7:Q34)=1,1,SUM($Q$7:Q34)<>1,"") ->  | S34: =_xlfn.IFS(E34=$X$5,E34,F34=$X$5,F34,G34=$X$5,G34,$A$7=1,"") ->  | U34: =_xlfn.IFS(W34=$X$6,W34,X34=$X$6,X34,Y34=$X$6,Y34,$A$7=1,"") ->  | W34: =_xlfn.IFS(AND(Q34=1,COUNT($E$7:G34)>hcpng),E34+D34,$A$7=1," ") ->  | X34: =_xlfn.IFS(AND(Q34=1,COUNT($E$7:G34)>hcpng),F34+D34,$A$7=1," ") ->  | Y34: =_xlfn.IFS(AND(Q34=1,COUNT($E$7:G34)>hcpng),G34+D34,$A$7=1," ") ->  | Z34: 0 | AA34: =_xlfn.IFS(COUNTIFS(H34,"#",H33,"#"),A33,COUNTIFS(H34,2,H33,"#"),A33,$A$7=1,"") -> 
A35: 29 | B35: ='UTL1'!B35 -> 2023-04-05 | C35: =_xlfn.IFS(Q35<>1,"",AND($B$4>=1,COUNT($E$7:G35)<=bkng),$B$4,P35=1,TRUNC(AVERAGE(E35:G35),0),COUNT($Q$7:Q35)=2,TRUNC(AVERAGE($E$7:G34),0),COUNT($Q$7:Q35)>=3,TRUNC(AVERAGE($E$7:G34),0)) -> 102 | D35: =_xlfn.IFS(Q35<>1,"",Q35=1,TRUNC((230-C35)*0.9)) -> 115 | E35: 80 | F35: 106 | G35: 85 | H35: =_xlfn.IFS(COUNT(E35:G35)<1,"",AND(E35>C35,F35>C35,G35>C35,COUNT($E$7:G35)>sixng),"#",AND(E35>C34,F35>C34,G35>C34,COUNT($E$7:G35)>sixng,COUNTIF(H34,"#")=1),"2",$A$7=1,"") ->  | I35: 271 | J35: 90 | K35: =_xlfn.IFS(Q35<>1,"",Q35=1,I35+(3*D35)) -> 616 | L35: =_xlfn.IFS(Q35<>1,"",COUNT($E$7:G35)<=hcpng,"",COUNT($E$7:G35)>=hcpng,K35) -> 616 | M35: =_xlfn.IFS(Q35=1,SUM($E$7:G35),Q35<>1,"") -> 7338 | N35: =_xlfn.IFS(Q35=1,COUNT($E$7:G35),Q35<>1,"") -> 72 | O35: =IF(Q35=1,ROUND(AVERAGE($E$7:G35),2),"") -> 101.92 | P35: =_xlfn.IFS(Q35<>1,"",SUM($Q$7:Q35)=1,1,SUM($Q$7:Q35)<>1,"") ->  | Q35: 1 | S35: =_xlfn.IFS(E35=$X$5,E35,F35=$X$5,F35,G35=$X$5,G35,$A$7=1,"") ->  | U35: =_xlfn.IFS(W35=$X$6,W35,X35=$X$6,X35,Y35=$X$6,Y35,$A$7=1,"") ->  | W35: =_xlfn.IFS(AND(Q35=1,COUNT($E$7:G35)>hcpng),E35+D35,$A$7=1," ") -> 195 | X35: =_xlfn.IFS(AND(Q35=1,COUNT($E$7:G35)>hcpng),F35+D35,$A$7=1," ") -> 221 | Y35: =_xlfn.IFS(AND(Q35=1,COUNT($E$7:G35)>hcpng),G35+D35,$A$7=1," ") -> 200 | Z35: 29 | AA35: =_xlfn.IFS(COUNTIFS(H35,"#",H34,"#"),A34,COUNTIFS(H35,2,H34,"#"),A34,$A$7=1,"") -> 
A36: 30 | B36: ='UTL1'!B36 -> 2023-04-12 | C36: =_xlfn.IFS(Q36<>1,"",AND($B$4>=1,COUNT($E$7:G36)<=bkng),$B$4,P36=1,TRUNC(AVERAGE(E36:G36),0),COUNT($Q$7:Q36)=2,TRUNC(AVERAGE($E$7:G35),0),COUNT($Q$7:Q36)>=3,TRUNC(AVERAGE($E$7:G35),0)) -> 101 | D36: =_xlfn.IFS(Q36<>1,"",Q36=1,TRUNC((230-C36)*0.9)) -> 116 | E36: 81 | F36: 87 | G36: 99 | H36: =_xlfn.IFS(COUNT(E36:G36)<1,"",AND(E36>C36,F36>C36,G36>C36,COUNT($E$7:G36)>sixng),"#",AND(E36>C35,F36>C35,G36>C35,COUNT($E$7:G36)>sixng,COUNTIF(H35,"#")=1),"2",$A$7=1,"") ->  | I36: 267 | J36: 89 | K36: =_xlfn.IFS(Q36<>1,"",Q36=1,I36+(3*D36)) -> 615 | L36: =_xlfn.IFS(Q36<>1,"",COUNT($E$7:G36)<=hcpng,"",COUNT($E$7:G36)>=hcpng,K36) -> 615 | M36: =_xlfn.IFS(Q36=1,SUM($E$7:G36),Q36<>1,"") -> 7605 | N36: =_xlfn.IFS(Q36=1,COUNT($E$7:G36),Q36<>1,"") -> 75 | O36: =IF(Q36=1,ROUND(AVERAGE($E$7:G36),2),"") -> 101.4 | P36: =_xlfn.IFS(Q36<>1,"",SUM($Q$7:Q36)=1,1,SUM($Q$7:Q36)<>1,"") ->  | Q36: 1 | S36: =_xlfn.IFS(E36=$X$5,E36,F36=$X$5,F36,G36=$X$5,G36,$A$7=1,"") ->  | U36: =_xlfn.IFS(W36=$X$6,W36,X36=$X$6,X36,Y36=$X$6,Y36,$A$7=1,"") ->  | W36: =_xlfn.IFS(AND(Q36=1,COUNT($E$7:G36)>hcpng),E36+D36,$A$7=1," ") -> 197 | X36: =_xlfn.IFS(AND(Q36=1,COUNT($E$7:G36)>hcpng),F36+D36,$A$7=1," ") -> 203 | Y36: =_xlfn.IFS(AND(Q36=1,COUNT($E$7:G36)>hcpng),G36+D36,$A$7=1," ") -> 215 | Z36: 30 | AA36: =_xlfn.IFS(COUNTIFS(H36,"#",H35,"#"),A35,COUNTIFS(H36,2,H35,"#"),A35,$A$7=1,"") -> 
E37: =IF(COUNT(E7:E36)>=1,ROUND(SUM(E7:E36)/COUNT(E7:E36),2),"") -> 100.88 | F37: =IF(COUNT(F7:F36)>=1,ROUND(SUM(F7:F36)/COUNT(F7:F36),2),"") -> 105.24 | G37: =IF(COUNT(G7:G36)>=1,ROUND(SUM(G7:G36)/COUNT(G7:G36),2),"") -> 98.08

Sheet MSlinen
A1: =IF('UTL1'!A2="V",'UTL1'!B2,"") ->  | H1: ='UTL1'!H1 -> Wednesday Fun Fours 2022/2023 season
A2: wk# | B2: =MAX(Z7:Z36) -> 30 | O2: 6 Over week: | S2: =IF(MIN(AA7:AA36)<1,"",MIN(AA7:AA36)) -> 25
A3: Name: | B3: Michael Slinsen | G3: Perfect Attendance: | J3: =_xlfn.IFS(MAX('UTL1'!D7:D36)>B2,"NO",SUM(Q7:Q36)=B2,"YES",SUM(Q7:Q36)<>B2,"NO") -> NO | K3: =_xlfn.IFS(MAX('UTL1'!D7:D36)>B2,"",AND(SUM(Q7:Q36)<30,SUM(Q7:Q36)=B2),"So Far",SUM(Q7:Q36)=30,"Good",SUM(Q7:Q36)<>B2,"") -> 
A4: Bk Avg: | W4: Hi.series> | X4: =MAX(I7:I36) -> 520
C5: bk or | D5: old | I5: wky | J5: wky | K5: Hcp | L5: hcp | O5: new | P5: start | R5: high | S5: high | T5: high hcp | U5: high hcp | W5: hi.game> | X5: =MAX(E7:G36) -> 210
A6: wk no. | C6: old avg | D6: hdcp | E6: -1- | F6: -2- | G6: -3- | I6: total | J6: avg | K6: total | L6: t2 hc | M6: Pins | N6: Gms | O6: avg | P6: week | Q6: startB | R6: series | S6: game | T6: series | U6: game | W6: h.hcp.g> | X6: =MAX(W7:Y36) -> 289 | Z6: wk#
A7: 1 | B7: ='UTL1'!B7 -> 2022-09-07 | C7: =_xlfn.IFS(Q7<>1,"",AND($B$4>=1,COUNT($E$7:G7)<=bkng),$B$4,P7=1,TRUNC(AVERAGE(E7:G7),0),COUNT($Q$7:Q7)=2,TRUNC(AVERAGE($E6:G$7),0),COUNT($Q$7:Q7)>=3,TRUNC(AVERAGE($E6:G$7),0)) -> 155 | D7: =_xlfn.IFS(Q7<>1,"",Q7=1,TRUNC((230-C7)*0.9)) -> 67 | E7: 138 | F7: 188 | G7: 141 | I7: =IF(Q7=1,SUM(E7:G7),"") -> 467 | J7: =IF(Q7=1,TRUNC(AVERAGE(E7:G7),0),"") -> 155 | K7: =_xlfn.IFS(Q7<>1,"",Q7=1,I7+(3*D7)) -> 668 | L7: =_xlfn.IFS(Q7<>1,"",COUNT($E$7:G7)<=hcpng,"",COUNT($E$7:G7)>=hcpng,K7) ->  | M7: =_xlfn.IFS(Q7=1,SUM($E$7:G7),Q7<>1,"") -> 467 | N7: =_xlfn.IFS(Q7=1,COUNT($E$7:G7),Q7<>1,"") -> 3 | O7: =IF(Q7=1,ROUND(AVERAGE($E$7:G7),2),"") -> 155.67 | P7: =_xlfn.IFS(Q7<>1,"",SUM($Q$7:Q7)=1,1,SUM($Q$7:Q7)<>1,"") -> 1 | Q7: =IF(MAX(E7:G7)<1,"",1) -> 1 | R7: =IF(I7=$X$4,I7,"") ->  | S7: =_xlfn.IFS(E7=$X$5,E7,F7=$X$5,F7,G7=$X$5,G7,$A$7=1,"") ->  | T7: =IF(L7=MAX($L$7:$L$36),L7,"") ->  | U7: =_xlfn.IFS(W7=$X$6,W7,X7=$X$6,X7,Y7=$X$6,Y7,$A$7=1,"") ->  | W7: =_xlfn.IFS(AND(Q7=1,COUNT($E$7:G7)>hcpng),E7+D7,$A$7=1," ") ->  | X7: =_xlfn.IFS(AND(Q7=1,COUNT($E$7:G7)>hcpng),F7+D7,$A$7=1," ") ->  | Y7: =_xlfn.IFS(AND(Q7=1,COUNT($E$7:G7)>hcpng),G7+D7,$A$7=1," ") ->  | Z7: =IF(Q7=1,A7,0) -> 1 | AA7: =_xlfn.IFS(COUNTIFS(H7,"#",H6,"#"),A6,COUNTIFS(H7,2,H6,"#"),A6,$A$7=1,"") -> 
A8: 2 | B8: ='UTL1'!B8 -> 2022-09-14 | C8: =_xlfn.IFS(Q8<>1,"",AND($B$4>=1,COUNT($E$7:G8)<=bkng),$B$4,P8=1,TRUNC(AVERAGE(E8:G8),0),COUNT($Q$7:Q8)=2,TRUNC(AVERAGE($E7:G$7),0),COUNT($Q$7:Q8)>=3,TRUNC(AVERAGE($E7:G$7),0)) -> 155 | D8: =_xlfn.IFS(Q8<>1,"",Q8=1,TRUNC((230-C8)*0.9)) -> 67 | E8: 182 | F8: 182 | G8: 156 | H8: =_xlfn.IFS(COUNT(E8:G8)<1,"",AND(E8>C8,F8>C8,G8>C8,COUNT($E$7:G8)>sixng),"#",AND(E8>C7,F8>C7,G8>C7,COUNT($E$7:G8)>sixng,COUNTIF(H7,"#")=1),"2",$A$7=1,"") ->  | I8: =IF(Q8=1,SUM(E8:G8),"") -> 520 | J8: =IF(Q8=1,TRUNC(AVERAGE(E8:G8),0),"") -> 173 | K8: =_xlfn.IFS(Q8<>1,"",Q8=1,I8+(3*D8)) -> 721 | L8: =_xlfn.IFS(Q8<>1,"",COUNT($E$7:G8)<=hcpng,"",COUNT($E$7:G8)>=hcpng,K8) ->  | M8: =_xlfn.IFS(Q8=1,SUM($E$7:G8),Q8<>1,"") -> 987 | N8: =_xlfn.IFS(Q8=1,COUNT($E$7:G8),Q8<>1,"") -> 6 | O8: =IF(Q8=1,ROUND(AVERAGE($E$7:G8),2),"") -> 164.5 | P8: =_xlfn.IFS(Q8<>1,"",SUM($Q$7:Q8)=1,1,SUM($Q$7:Q8)<>1,"") ->  | Q8: =IF(MAX(E8:G8)<1,"",1) -> 1 | R8: =IF(I8=$X$4,I8,"") -> 520 | S8: =_xlfn.IFS(E8=$X$5,E8,F8=$X$5,F8,G8=$X$5,G8,$A$7=1,"") ->  | T8: =IF(L8=MAX($L$7:$L$36),L8,"") ->  | U8: =_xlfn.IFS(W8=$X$6,W8,X8=$X$6,X8,Y8=$X$6,Y8,$A$7=1,"") ->  | W8: =_xlfn.IFS(AND(Q8=1,COUNT($E$7:G8)>hcpng),E8+D8,$A$7=1," ") ->  | X8: =_xlfn.IFS(AND(Q8=1,COUNT($E$7:G8)>hcpng),F8+D8,$A$7=1," ") ->  | Y8: =_xlfn.IFS(AND(Q8=1,COUNT($E$7:G8)>hcpng),G8+D8,$A$7=1," ") ->  | Z8: =IF(Q8=1,A8,0) -> 2 | AA8: =_xlfn.IFS(COUNTIFS(H8,"#",H7,"#"),A7,COUNTIFS(H8,2,H7,"#"),A7,$A$7=1,"") -> 
A9: 3 | B9: ='UTL1'!B9 -> 2022-09-21 | C9: =_xlfn.IFS(Q9<>1,"",AND($B$4>=1,COUNT($E$7:G9)<=bkng),$B$4,P9=1,TRUNC(AVERAGE(E9:G9),0),COUNT($Q$7:Q9)=2,TRUNC(AVERAGE($E$7:G8),0),COUNT($Q$7:Q9)>=3,TRUNC(AVERAGE($E$7:G8),0)) -> 164 | D9: =_xlfn.IFS(Q9<>1,"",Q9=1,TRUNC((230-C9)*0.9)) -> 59 | E9: 117 | F9: 116 | G9: 142 | H9: =_xlfn.IFS(COUNT(E9:G9)<1,"",AND(E9>C9,F9>C9,G9>C9,COUNT($E$7:G9)>sixng),"#",AND(E9>C8,F9>C8,G9>C8,COUNT($E$7:G9)>sixng,COUNTIF(H8,"#")=1),"2",$A$7=1,"") ->  | I9: 375 | J9: 125 | K9: =_xlfn.IFS(Q9<>1,"",Q9=1,I9+(3*D9)) -> 552 | L9: =_xlfn.IFS(Q9<>1,"",COUNT($E$7:G9)<=hcpng,"",COUNT($E$7:G9)>=hcpng,K9) ->  | M9: =_xlfn.IFS(Q9=1,SUM($E$7:G9),Q9<>1,"") -> 1362 | N9: =_xlfn.IFS(Q9=1,COUNT($E$7:G9),Q9<>1,"") -> 9 | O9: =IF(Q9=1,ROUND(AVERAGE($E$7:G9),2),"") -> 151.33 | P9: =_xlfn.IFS(Q9<>1,"",SUM($Q$7:Q9)=1,1,SUM($Q$7:Q9)<>1,"") ->  | Q9: 1 | S9: =_xlfn.IFS(E9=$X$5,E9,F9=$X$5,F9,G9=$X$5,G9,$A$7=1,"") ->  | U9: =_xlfn.IFS(W9=$X$6,W9,X9=$X$6,X9,Y9=$X$6,Y9,$A$7=1,"") ->  | W9: =_xlfn.IFS(AND(Q9=1,COUNT($E$7:G9)>hcpng),E9+D9,$A$7=1," ") ->  | X9: =_xlfn.IFS(AND(Q9=1,COUNT($E$7:G9)>hcpng),F9+D9,$A$7=1," ") ->  | Y9: =_xlfn.IFS(AND(Q9=1,COUNT($E$7:G9)>hcpng),G9+D9,$A$7=1," ") ->  | Z9: 3 | AA9: =_xlfn.IFS(COUNTIFS(H9,"#",H8,"#"),A8,COUNTIFS(H9,2,H8,"#"),A8,$A$7=1,"") -> 
A10: 4 | B10: ='UTL1'!B10 -> 2022-09-28 | C10: =_xlfn.IFS(Q10<>1,"",AND($B$4>=1,COUNT($E$7:G10)<=bkng),$B$4,P10=1,TRUNC(AVERAGE(E10:G10),0),COUNT($Q$7:Q10)=2,TRUNC(AVERAGE($E$7:G9),0),COUNT($Q$7:Q10)>=3,TRUNC(AVERAGE($E$7:G9),0)) -> 151 | D10: =_xlfn.IFS(Q10<>1,"",Q10=1,TRUNC((230-C10)*0.9)) -> 71 | E10: 118 | F10: 161 | G10: 169 | H10: =_xlfn.IFS(COUNT(E10:G10)<1,"",AND(E10>C10,F10>C10,G10>C10,COUNT($E$7:G10)>sixng),"#",AND(E10>C9,F10>C9,G10>C9,COUNT($E$7:G10)>sixng,COUNTIF(H9,"#")=1),"2",$A$7=1,"") ->  | I10: 448 | J10: 149 | K10: =_xlfn.IFS(Q10<>1,"",Q10=1,I10+(3*D10)) -> 661 | L10: =_xlfn.IFS(Q10<>1,"",COUNT($E$7:G10)<=hcpng,"",COUNT($E$7:G10)>=hcpng,K10) ->  | M10: =_xlfn.IFS(Q10=1,SUM($E$7:G10),Q10<>1,"") -> 1810 | N10: =_xlfn.IFS(Q10=1,COUNT($E$7:G10),Q10<>1,"") -> 12 | O10: =IF(Q10=1,ROUND(AVERAGE($E$7:G10),2),"") -> 150.83 | P10: =_xlfn.IFS(Q10<>1,"",SUM($Q$7:Q10)=1,1,SUM($Q$7:Q10)<>1,"") ->  | Q10: 1 | S10: =_xlfn.IFS(E10=$X$5,E10,F10=$X$5,F10,G10=$X$5,G10,$A$7=1,"") ->  | U10: =_xlfn.IFS(W10=$X$6,W10,X10=$X$6,X10,Y10=$X$6,Y10,$A$7=1,"") ->  | W10: =_xlfn.IFS(AND(Q10=1,COUNT($E$7:G10)>hcpng),E10+D10,$A$7=1," ") ->  | X10: =_xlfn.IFS(AND(Q10=1,COUNT($E$7:G10)>hcpng),F10+D10,$A$7=1," ") ->  | Y10: =_xlfn.IFS(AND(Q10=1,COUNT($E$7:G10)>hcpng),G10+D10,$A$7=1," ") ->  | Z10: 4 | AA10: =_xlfn.IFS(COUNTIFS(H10,"#",H9,"#"),A9,COUNTIFS(H10,2,H9,"#"),A9,$A$7=1,"") -> 
A11: 5 | B11: ='UTL1'!B11 -> 2022-10-05 | C11: =_xlfn.IFS(Q11<>1,"",AND($B$4>=1,COUNT($E$7:G11)<=bkng),$B$4,P11=1,TRUNC(AVERAGE(E11:G11),0),COUNT($Q$7:Q11)=2,TRUNC(AVERAGE($E$7:G10),0),COUNT($Q$7:Q11)>=3,TRUNC(AVERAGE($E$7:G10),0)) -> 150 | D11: =_xlfn.IFS(Q11<>1,"",Q11=1,TRUNC((230-C11)*0.9)) -> 72 | E11: 135 | F11: 134 | G11: 155 | H11: =_xlfn.IFS(COUNT(E11:G11)<1,"",AND(E11>C11,F11>C11,G11>C11,COUNT($E$7:G11)>sixng),"#",AND(E11>C10,F11>C10,G11>C10,COUNT($E$7:G11)>sixng,COUNTIF(H10,"#")=1),"2",$A$7=1,"") ->  | I11: 424 | J11: 141 | K11: =_xlfn.IFS(Q11<>1,"",Q11=1,I11+(3*D11)) -> 640 | L11: =_xlfn.IFS(Q11<>1,"",COUNT($E$7:G11)<=hcpng,"",COUNT($E$7:G11)>=hcpng,K11) -> 640 | M11: =_xlfn.IFS(Q11=1,SUM($E$7:G11),Q11<>1,"") -> 2234 | N11: =_xlfn.IFS(Q11=1,COUNT($E$7:G11),Q11<>1,"") -> 15 | O11: =IF(Q11=1,ROUND(AVERAGE($E$7:G11),2),"") -> 148.93 | P11: =_xlfn.IFS(Q11<>1,"",SUM($Q$7:Q11)=1,1,SUM($Q$7:Q11)<>1,"") ->  | Q11: 1 | S11: =_xlfn.IFS(E11=$X$5,E11,F11=$X$5,F11,G11=$X$5,G11,$A$7=1,"") ->  | U11: =_xlfn.IFS(W11=$X$6,W11,X11=$X$6,X11,Y11=$X$6,Y11,$A$7=1,"") ->  | W11: =_xlfn.IFS(AND(Q11=1,COUNT($E$7:G11)>hcpng),E11+D11,$A$7=1," ") -> 207 | X11: =_xlfn.IFS(AND(Q11=1,COUNT($E$7:G11)>hcpng),F11+D11,$A$7=1," ") -> 206 | Y11: =_xlfn.IFS(AND(Q11=1,COUNT($E$7:G11)>hcpng),G11+D11,$A$7=1," ") -> 227 | Z11: 5 | AA11: =_xlfn.IFS(COUNTIFS(H11,"#",H10,"#"),A10,COUNTIFS(H11,2,H10,"#"),A10,$A$7=1,"") -> 
A12: 6 | B12: ='UTL1'!B12 -> 2022-10-12 | C12: =_xlfn.IFS(Q12<>1,"",AND($B$4>=1,COUNT($E$7:G12)<=bkng),$B$4,P12=1,TRUNC(AVERAGE(E12:G12),0),COUNT($Q$7:Q12)=2,TRUNC(AVERAGE($E$7:G11),0),COUNT($Q$7:Q12)>=3,TRUNC(AVERAGE($E$7:G11),0)) -> 148 | D12: =_xlfn.IFS(Q12<>1,"",Q12=1,TRUNC((230-C12)*0.9)) -> 73 | E12: 127 | F12: 198 | G12: 141 | H12: =_xlfn.IFS(COUNT(E12:G12)<1,"",AND(E12>C12,F12>C12,G12>C12,COUNT($E$7:G12)>sixng),"#",AND(E12>C11,F12>C11,G12>C11,COUNT($E$7:G12)>sixng,COUNTIF(H11,"#")=1),"2",$A$7=1,"") ->  | I12: 466 | J12: 155 | K12: =_xlfn.IFS(Q12<>1,"",Q12=1,I12+(3*D12)) -> 685 | L12: =_xlfn.IFS(Q12<>1,"",COUNT($E$7:G12)<=hcpng,"",COUNT($E$7:G12)>=hcpng,K12) -> 685 | M12: =_xlfn.IFS(Q12=1,SUM($E$7:G12),Q12<>1,"") -> 2700 | N12: =_xlfn.IFS(Q12=1,COUNT($E$7:G12),Q12<>1,"") -> 18 | O12: =IF(Q12=1,ROUND(AVERAGE($E$7:G12),2),"") -> 150 | P12: =_xlfn.IFS(Q12<>1,"",SUM($Q$7:Q12)=1,1,SUM($Q$7:Q12)<>1,"") ->  | Q12: 1 | S12: =_xlfn.IFS(E12=$X$5,E12,F12=$X$5,F12,G12=$X$5,G12,$A$7=1,"") ->  | U12: =_xlfn.IFS(W12=$X$6,W12,X12=$X$6,X12,Y12=$X$6,Y12,$A$7=1,"") ->  | W12: =_xlfn.IFS(AND(Q12=1,COUNT($E$7:G12)>hcpng),E12+D12,$A$7=1," ") -> 200 | X12: =_xlfn.IFS(AND(Q12=1,COUNT($E$7:G12)>hcpng),F12+D12,$A$7=1," ") -> 271 | Y12: =_xlfn.IFS(AND(Q12=1,COUNT($E$7:G12)>hcpng),G12+D12,$A$7=1," ") -> 214 | Z12: 6 | AA12: =_xlfn.IFS(COUNTIFS(H12,"#",H11,"#"),A11,COUNTIFS(H12,2,H11,"#"),A11,$A$7=1,"") -> 
A13: 7 | B13: ='UTL1'!B13 -> 2022-10-19 | C13: =_xlfn.IFS(Q13<>1,"",AND($B$4>=1,COUNT($E$7:G13)<=bkng),$B$4,P13=1,TRUNC(AVERAGE(E13:G13),0),COUNT($Q$7:Q13)=2,TRUNC(AVERAGE($E$7:G12),0),COUNT($Q$7:Q13)>=3,TRUNC(AVERAGE($E$7:G12),0)) -> 150 | D13: =_xlfn.IFS(Q13<>1,"",Q13=1,TRUNC((230-C13)*0.9)) -> 72 | E13: 138 | F13: 138 | G13: 112 | H13: =_xlfn.IFS(COUNT(E13:G13)<1,"",AND(E13>C13,F13>C13,G13>C13,COUNT($E$7:G13)>sixng),"#",AND(E13>C12,F13>C12,G13>C12,COUNT($E$7:G13)>sixng,COUNTIF(H12,"#")=1),"2",$A$7=1,"") ->  | I13: 388 | J13: 129 | K13: =_xlfn.IFS(Q13<>1,"",Q13=1,I13+(3*D13)) -> 604 | L13: =_xlfn.IFS(Q13<>1,"",COUNT($E$7:G13)<=hcpng,"",COUNT($E$7:G13)>=hcpng,K13) -> 604 | M13: =_xlfn.IFS(Q13=1,SUM($E$7:G13),Q13<>1,"") -> 3088 | N13: =_xlfn.IFS(Q13=1,COUNT($E$7:G13),Q13<>1,"") -> 21 | O13: =IF(Q13=1,ROUND(AVERAGE($E$7:G13),2),"") -> 147.05 | P13: =_xlfn.IFS(Q13<>1,"",SUM($Q$7:Q13)=1,1,SUM($Q$7:Q13)<>1,"") ->  | Q13: 1 | S13: =_xlfn.IFS(E13=$X$5,E13,F13=$X$5,F13,G13=$X$5,G13,$A$7=1,"") ->  | U13: =_xlfn.IFS(W13=$X$6,W13,X13=$X$6,X13,Y13=$X$6,Y13,$A$7=1,"") ->  | W13: =_xlfn.IFS(AND(Q13=1,COUNT($E$7:G13)>hcpng),E13+D13,$A$7=1," ") -> 210 | X13: =_xlfn.IFS(AND(Q13=1,COUNT($E$7:G13)>hcpng),F13+D13,$A$7=1," ") -> 210 | Y13: =_xlfn.IFS(AND(Q13=1,COUNT($E$7:G13)>hcpng),G13+D13,$A$7=1," ") -> 184 | Z13: 7 | AA13: =_xlfn.IFS(COUNTIFS(H13,"#",H12,"#"),A12,COUNTIFS(H13,2,H12,"#"),A12,$A$7=1,"") -> 
A14: 8 | B14: ='UTL1'!B14 -> 2022-10-26 | C14: =_xlfn.IFS(Q14<>1,"",AND($B$4>=1,COUNT($E$7:G14)<=bkng),$B$4,P14=1,TRUNC(AVERAGE(E14:G14),0),COUNT($Q$7:Q14)=2,TRUNC(AVERAGE($E$7:G13),0),COUNT($Q$7:Q14)>=3,TRUNC(AVERAGE($E$7:G13),0)) ->  | D14: =_xlfn.IFS(Q14<>1,"",Q14=1,TRUNC((230-C14)*0.9)) ->  | H14: =_xlfn.IFS(COUNT(E14:G14)<1,"",AND(E14>C14,F14>C14,G14>C14,COUNT($E$7:G14)>sixng),"#",AND(E14>C13,F14>C13,G14>C13,COUNT($E$7:G14)>sixng,COUNTIF(H13,"#")=1),"2",$A$7=1,"") ->  | K14: =_xlfn.IFS(Q14<>1,"",Q14=1,I14+(3*D14)) ->  | L14: =_xlfn.IFS(Q14<>1,"",COUNT($E$7:G14)<=hcpng,"",COUNT($E$7:G14)>=hcpng,K14) ->  | M14: =_xlfn.IFS(Q14=1,SUM($E$7:G14),Q14<>1,"") ->  | N14: =_xlfn.IFS(Q14=1,COUNT($E$7:G14),Q14<>1,"") ->  | O14: =IF(Q14=1,ROUND(AVERAGE($E$7:G14),2),"") ->  | P14: =_xlfn.IFS(Q14<>1,"",SUM($Q$7:Q14)=1,1,SUM($Q$7:Q14)<>1,"") ->  | S14: =_xlfn.IFS(E14=$X$5,E14,F14=$X$5,F14,G14=$X$5,G14,$A$7=1,"") ->  | U14: =_xlfn.IFS(W14=$X$6,W14,X14=$X$6,X14,Y14=$X$6,Y14,$A$7=1,"") ->  | W14: =_xlfn.IFS(AND(Q14=1,COUNT($E$7:G14)>hcpng),E14+D14,$A$7=1," ") ->  | X14: =_xlfn.IFS(AND(Q14=1,COUNT($E$7:G14)>hcpng),F14+D14,$A$7=1," ") ->  | Y14: =_xlfn.IFS(AND(Q14=1,COUNT($E$7:G14)>hcpng),G14+D14,$A$7=1," ") ->  | Z14: 0 | AA14: =_xlfn.IFS(COUNTIFS(H14,"#",H13,"#"),A13,COUNTIFS(H14,2,H13,"#"),A13,$A$7=1,"") -> 
A15: 9 | B15: ='UTL1'!B15 -> 2022-11-02 | C15: =_xlfn.IFS(Q15<>1,"",AND($B$4>=1,COUNT($E$7:G15)<=bkng),$B$4,P15=1,TRUNC(AVERAGE(E15:G15),0),COUNT($Q$7:Q15)=2,TRUNC(AVERAGE($E$7:G14),0),COUNT($Q$7:Q15)>=3,TRUNC(AVERAGE($E$7:G14),0)) -> 147 | D15: =_xlfn.IFS(Q15<>1,"",Q15=1,TRUNC((230-C15)*0.9)) -> 74 | E15: 129 | F15: 142 | G15: 121 | H15: =_xlfn.IFS(COUNT(E15:G15)<1,"",AND(E15>C15,F15>C15,G15>C15,COUNT($E$7:G15)>sixng),"#",AND(E15>C14,F15>C14,G15>C14,COUNT($E$7:G15)>sixng,COUNTIF(H14,"#")=1),"2",$A$7=1,"") ->  | I15: 392 | J15: 130 | K15: =_xlfn.IFS(Q15<>1,"",Q15=1,I15+(3*D15)) -> 614 | L15: =_xlfn.IFS(Q15<>1,"",COUNT($E$7:G15)<=hcpng,"",COUNT($E$7:G15)>=hcpng,K15) -> 614 | M15: =_xlfn.IFS(Q15=1,SUM($E$7:G15),Q15<>1,"") -> 3480 | N15: =_xlfn.IFS(Q15=1,COUNT($E$7:G15),Q15<>1,"") -> 24 | O15: =IF(Q15=1,ROUND(AVERAGE($E$7:G15),2),"") -> 145 | P15: =_xlfn.IFS(Q15<>1,"",SUM($Q$7:Q15)=1,1,SUM($Q$7:Q15)<>1,"") ->  | Q15: 1 | S15: =_xlfn.IFS(E15=$X$5,E15,F15=$X$5,F15,G15=$X$5,G15,$A$7=1,"") ->  | U15: =_xlfn.IFS(W15=$X$6,W15,X15=$X$6,X15,Y15=$X$6,Y15,$A$7=1,"") ->  | W15: =_xlfn.IFS(AND(Q15=1,COUNT($E$7:G15)>hcpng),E15+D15,$A$7=1," ") -> 203 | X15: =_xlfn.IFS(AND(Q15=1,COUNT($E$7:G15)>hcpng),F15+D15,$A$7=1," ") -> 216 | Y15: =_xlfn.IFS(AND(Q15=1,COUNT($E$7:G15)>hcpng),G15+D15,$A$7=1," ") -> 195 | Z15: 9 | AA15: =_xlfn.IFS(COUNTIFS(H15,"#",H14,"#"),A14,COUNTIFS(H15,2,H14,"#"),A14,$A$7=1,"") -> 
A16: 10 | B16: ='UTL1'!B16 -> 2022-11-09 | C16: =_xlfn.IFS(Q16<>1,"",AND($B$4>=1,COUNT($E$7:G16)<=bkng),$B$4,P16=1,TRUNC(AVERAGE(E16:G16),0),COUNT($Q$7:Q16)=2,TRUNC(AVERAGE($E$7:G15),0),COUNT($Q$7:Q16)>=3,TRUNC(AVERAGE($E$7:G15),0)) -> 145 | D16: =_xlfn.IFS(Q16<>1,"",Q16=1,TRUNC((230-C16)*0.9)) -> 76 | E16: 157 | F16: 130 | G16: 121 | H16: =_xlfn.IFS(COUNT(E16:G16)<1,"",AND(E16>C16,F16>C16,G16>C16,COUNT($E$7:G16)>sixng),"#",AND(E16>C15,F16>C15,G16>C15,COUNT($E$7:G16)>sixng,COUNTIF(H15,"#")=1),"2",$A$7=1,"") ->  | I16: 408 | J16: 136 | K16: =_xlfn.IFS(Q16<>1,"",Q16=1,I16+(3*D16)) -> 636 | L16: =_xlfn.IFS(Q16<>1,"",COUNT($E$7:G16)<=hcpng,"",COUNT($E$7:G16)>=hcpng,K16) -> 636 | M16: =_xlfn.IFS(Q16=1,SUM($E$7:G16),Q16<>1,"") -> 3888 | N16: =_xlfn.IFS(Q16=1,COUNT($E$7:G16),Q16<>1,"") -> 27 | O16: =IF(Q16=1,ROUND(AVERAGE($E$7:G16),2),"") -> 144 | P16: =_xlfn.IFS(Q16<>1,"",SUM($Q$7:Q16)=1,1,SUM($Q$7:Q16)<>1,"") ->  | Q16: 1 | S16: =_xlfn.IFS(E16=$X$5,E16,F16=$X$5,F16,G16=$X$5,G16,$A$7=1,"") ->  | U16: =_xlfn.IFS(W16=$X$6,W16,X16=$X$6,X16,Y16=$X$6,Y16,$A$7=1,"") ->  | W16: =_xlfn.IFS(AND(Q16=1,COUNT($E$7:G16)>hcpng),E16+D16,$A$7=1," ") -> 233 | X16: =_xlfn.IFS(AND(Q16=1,COUNT($E$7:G16)>hcpng),F16+D16,$A$7=1," ") -> 206 | Y16: =_xlfn.IFS(AND(Q16=1,COUNT($E$7:G16)>hcpng),G16+D16,$A$7=1," ") -> 197 | Z16: 10 | AA16: =_xlfn.IFS(COUNTIFS(H16,"#",H15,"#"),A15,COUNTIFS(H16,2,H15,"#"),A15,$A$7=1,"") -> 
A17: 11 | B17: ='UTL1'!B17 -> 2022-11-16 | C17: =_xlfn.IFS(Q17<>1,"",AND($B$4>=1,COUNT($E$7:G17)<=bkng),$B$4,P17=1,TRUNC(AVERAGE(E17:G17),0),COUNT($Q$7:Q17)=2,TRUNC(AVERAGE($E$7:G16),0),COUNT($Q$7:Q17)>=3,TRUNC(AVERAGE($E$7:G16),0)) -> 144 | D17: =_xlfn.IFS(Q17<>1,"",Q17=1,TRUNC((230-C17)*0.9)) -> 77 | E17: 128 | F17: 148 | G17: 150 | H17: =_xlfn.IFS(COUNT(E17:G17)<1,"",AND(E17>C17,F17>C17,G17>C17,COUNT($E$7:G17)>sixng),"#",AND(E17>C16,F17>C16,G17>C16,COUNT($E$7:G17)>sixng,COUNTIF(H16,"#")=1),"2",$A$7=1,"") ->  | I17: 426 | J17: 142 | K17: =_xlfn.IFS(Q17<>1,"",Q17=1,I17+(3*D17)) -> 657 | L17: =_xlfn.IFS(Q17<>1,"",COUNT($E$7:G17)<=hcpng,"",COUNT($E$7:G17)>=hcpng,K17) -> 657 | M17: =_xlfn.IFS(Q17=1,SUM($E$7:G17),Q17<>1,"") -> 4314 | N17: =_xlfn.IFS(Q17=1,COUNT($E$7:G17),Q17<>1,"") -> 30 | O17: =IF(Q17=1,ROUND(AVERAGE($E$7:G17),2),"") -> 143.8 | P17: =_xlfn.IFS(Q17<>1,"",SUM($Q$7:Q17)=1,1,SUM($Q$7:Q17)<>1,"") ->  | Q17: 1 | S17: =_xlfn.IFS(E17=$X$5,E17,F17=$X$5,F17,G17=$X$5,G17,$A$7=1,"") ->  | U17: =_xlfn.IFS(W17=$X$6,W17,X17=$X$6,X17,Y17=$X$6,Y17,$A$7=1,"") ->  | W17: =_xlfn.IFS(AND(Q17=1,COUNT($E$7:G17)>hcpng),E17+D17,$A$7=1," ") -> 205 | X17: =_xlfn.IFS(AND(Q17=1,COUNT($E$7:G17)>hcpng),F17+D17,$A$7=1," ") -> 225 | Y17: =_xlfn.IFS(AND(Q17=1,COUNT($E$7:G17)>hcpng),G17+D17,$A$7=1," ") -> 227 | Z17: 11 | AA17: =_xlfn.IFS(COUNTIFS(H17,"#",H16,"#"),A16,COUNTIFS(H17,2,H16,"#"),A16,$A$7=1,"") -> 
A18: 12 | B18: ='UTL1'!B18 -> 2022-11-30 | C18: =_xlfn.IFS(Q18<>1,"",AND($B$4>=1,COUNT($E$7:G18)<=bkng),$B$4,P18=1,TRUNC(AVERAGE(E18:G18),0),COUNT($Q$7:Q18)=2,TRUNC(AVERAGE($E$7:G17),0),COUNT($Q$7:Q18)>=3,TRUNC(AVERAGE($E$7:G17),0)) -> 143 | D18: =_xlfn.IFS(Q18<>1,"",Q18=1,TRUNC((230-C18)*0.9)) -> 78 | E18: 132 | F18: 122 | G18: 168 | H18: =_xlfn.IFS(COUNT(E18:G18)<1,"",AND(E18>C18,F18>C18,G18>C18,COUNT($E$7:G18)>sixng),"#",AND(E18>C17,F18>C17,G18>C17,COUNT($E$7:G18)>sixng,COUNTIF(H17,"#")=1),"2",$A$7=1,"") ->  | I18: 422 | J18: 140 | K18: =_xlfn.IFS(Q18<>1,"",Q18=1,I18+(3*D18)) -> 656 | L18: =_xlfn.IFS(Q18<>1,"",COUNT($E$7:G18)<=hcpng,"",COUNT($E$7:G18)>=hcpng,K18) -> 656 | M18: =_xlfn.IFS(Q18=1,SUM($E$7:G18),Q18<>1,"") -> 4736 | N18: =_xlfn.IFS(Q18=1,COUNT($E$7:G18),Q18<>1,"") -> 33 | O18: =IF(Q18=1,ROUND(AVERAGE($E$7:G18),2),"") -> 143.52 | P18: =_xlfn.IFS(Q18<>1,"",SUM($Q$7:Q18)=1,1,SUM($Q$7:Q18)<>1,"") ->  | Q18: 1 | S18: =_xlfn.IFS(E18=$X$5,E18,F18=$X$5,F18,G18=$X$5,G18,$A$7=1,"") ->  | U18: =_xlfn.IFS(W18=$X$6,W18,X18=$X$6,X18,Y18=$X$6,Y18,$A$7=1,"") ->  | W18: =_xlfn.IFS(AND(Q18=1,COUNT($E$7:G18)>hcpng),E18+D18,$A$7=1," ") -> 210 | X18: =_xlfn.IFS(AND(Q18=1,COUNT($E$7:G18)>hcpng),F18+D18,$A$7=1," ") -> 200 | Y18: =_xlfn.IFS(AND(Q18=1,COUNT($E$7:G18)>hcpng),G18+D18,$A$7=1," ") -> 246 | Z18: 12 | AA18: =_xlfn.IFS(COUNTIFS(H18,"#",H17,"#"),A17,COUNTIFS(H18,2,H17,"#"),A17,$A$7=1,"") -> 
A19: 13 | B19: ='UTL1'!B19 -> 2022-12-07 | C19: =_xlfn.IFS(Q19<>1,"",AND($B$4>=1,COUNT($E$7:G19)<=bkng),$B$4,P19=1,TRUNC(AVERAGE(E19:G19),0),COUNT($Q$7:Q19)=2,TRUNC(AVERAGE($E$7:G18),0),COUNT($Q$7:Q19)>=3,TRUNC(AVERAGE($E$7:G18),0)) -> 143 | D19: =_xlfn.IFS(Q19<>1,"",Q19=1,TRUNC((230-C19)*0.9)) -> 78 | E19: 146 | F19: 142 | G19: 136 | H19: =_xlfn.IFS(COUNT(E19:G19)<1,"",AND(E19>C19,F19>C19,G19>C19,COUNT($E$7:G19)>sixng),"#",AND(E19>C18,F19>C18,G19>C18,COUNT($E$7:G19)>sixng,COUNTIF(H18,"#")=1),"2",$A$7=1,"") ->  | I19: 424 | J19: 141 | K19: =_xlfn.IFS(Q19<>1,"",Q19=1,I19+(3*D19)) -> 658 | L19: =_xlfn.IFS(Q19<>1,"",COUNT($E$7:G19)<=hcpng,"",COUNT($E$7:G19)>=hcpng,K19) -> 658 | M19: =_xlfn.IFS(Q19=1,SUM($E$7:G19),Q19<>1,"") -> 5160 | N19: =_xlfn.IFS(Q19=1,COUNT($E$7:G19),Q19<>1,"") -> 36 | O19: =IF(Q19=1,ROUND(AVERAGE($E$7:G19),2),"") -> 143.33 | P19: =_xlfn.IFS(Q19<>1,"",SUM($Q$7:Q19)=1,1,SUM($Q$7:Q19)<>1,"") ->  | Q19: 1 | S19: =_xlfn.IFS(E19=$X$5,E19,F19=$X$5,F19,G19=$X$5,G19,$A$7=1,"") ->  | U19: =_xlfn.IFS(W19=$X$6,W19,X19=$X$6,X19,Y19=$X$6,Y19,$A$7=1,"") ->  | W19: =_xlfn.IFS(AND(Q19=1,COUNT($E$7:G19)>hcpng),E19+D19,$A$7=1," ") -> 224 | X19: =_xlfn.IFS(AND(Q19=1,COUNT($E$7:G19)>hcpng),F19+D19,$A$7=1," ") -> 220 | Y19: =_xlfn.IFS(AND(Q19=1,COUNT($E$7:G19)>hcpng),G19+D19,$A$7=1," ") -> 214 | Z19: 13 | AA19: =_xlfn.IFS(COUNTIFS(H19,"#",H18,"#"),A18,COUNTIFS(H19,2,H18,"#"),A18,$A$7=1,"") -> 
A20: 14 | B20: ='UTL1'!B20 -> 2022-12-14 | C20: =_xlfn.IFS(Q20<>1,"",AND($B$4>=1,COUNT($E$7:G20)<=bkng),$B$4,P20=1,TRUNC(AVERAGE(E20:G20),0),COUNT($Q$7:Q20)=2,TRUNC(AVERAGE($E$7:G19),0),COUNT($Q$7:Q20)>=3,TRUNC(AVERAGE($E$7:G19),0)) -> 143 | D20: =_xlfn.IFS(Q20<>1,"",Q20=1,TRUNC((230-C20)*0.9)) -> 78 | E20: 164 | F20: 116 | G20: 143 | H20: =_xlfn.IFS(COUNT(E20:G20)<1,"",AND(E20>C20,F20>C20,G20>C20,COUNT($E$7:G20)>sixng),"#",AND(E20>C19,F20>C19,G20>C19,COUNT($E$7:G20)>sixng,COUNTIF(H19,"#")=1),"2",$A$7=1,"") ->  | I20: 423 | J20: 141 | K20: =_xlfn.IFS(Q20<>1,"",Q20=1,I20+(3*D20)) -> 657 | L20: =_xlfn.IFS(Q20<>1,"",COUNT($E$7:G20)<=hcpng,"",COUNT($E$7:G20)>=hcpng,K20) -> 657 | M20: =_xlfn.IFS(Q20=1,SUM($E$7:G20),Q20<>1,"") -> 5583 | N20: =_xlfn.IFS(Q20=1,COUNT($E$7:G20),Q20<>1,"") -> 39 | O20: =IF(Q20=1,ROUND(AVERAGE($E$7:G20),2),"") -> 143.15 | P20: =_xlfn.IFS(Q20<>1,"",SUM($Q$7:Q20)=1,1,SUM($Q$7:Q20)<>1,"") ->  | Q20: 1 | S20: =_xlfn.IFS(E20=$X$5,E20,F20=$X$5,F20,G20=$X$5,G20,$A$7=1,"") ->  | U20: =_xlfn.IFS(W20=$X$6,W20,X20=$X$6,X20,Y20=$X$6,Y20,$A$7=1,"") ->  | W20: =_xlfn.IFS(AND(Q20=1,COUNT($E$7:G20)>hcpng),E20+D20,$A$7=1," ") -> 242 | X20: =_xlfn.IFS(AND(Q20=1,COUNT($E$7:G20)>hcpng),F20+D20,$A$7=1," ") -> 194 | Y20: =_xlfn.IFS(AND(Q20=1,COUNT($E$7:G20)>hcpng),G20+D20,$A$7=1," ") -> 221 | Z20: 14 | AA20: =_xlfn.IFS(COUNTIFS(H20,"#",H19,"#"),A19,COUNTIFS(H20,2,H19,"#"),A19,$A$7=1,"") -> 
A21: 15 | B21: ='UTL1'!B21 -> 2022-12-21 | C21: =_xlfn.IFS(Q21<>1,"",AND($B$4>=1,COUNT($E$7:G21)<=bkng),$B$4,P21=1,TRUNC(AVERAGE(E21:G21),0),COUNT($Q$7:Q21)=2,TRUNC(AVERAGE($E$7:G20),0),COUNT($Q$7:Q21)>=3,TRUNC(AVERAGE($E$7:G20),0)) -> 143 | D21: =_xlfn.IFS(Q21<>1,"",Q21=1,TRUNC((230-C21)*0.9)) -> 78 | E21: 166 | F21: 169 | G21: 110 | H21: =_xlfn.IFS(COUNT(E21:G21)<1,"",AND(E21>C21,F21>C21,G21>C21,COUNT($E$7:G21)>sixng),"#",AND(E21>C20,F21>C20,G21>C20,COUNT($E$7:G21)>sixng,COUNTIF(H20,"#")=1),"2",$A$7=1,"") ->  | I21: 445 | J21: 148 | K21: =_xlfn.IFS(Q21<>1,"",Q21=1,I21+(3*D21)) -> 679 | L21: =_xlfn.IFS(Q21<>1,"",COUNT($E$7:G21)<=hcpng,"",COUNT($E$7:G21)>=hcpng,K21) -> 679 | M21: =_xlfn.IFS(Q21=1,SUM($E$7:G21),Q21<>1,"") -> 6028 | N21: =_xlfn.IFS(Q21=1,COUNT($E$7:G21),Q21<>1,"") -> 42 | O21: =IF(Q21=1,ROUND(AVERAGE($E$7:G21),2),"") -> 143.52 | P21: =_xlfn.IFS(Q21<>1,"",SUM($Q$7:Q21)=1,1,SUM($Q$7:Q21)<>1,"") ->  | Q21: 1 | S21: =_xlfn.IFS(E21=$X$5,E21,F21=$X$5,F21,G21=$X$5,G21,$A$7=1,"") ->  | U21: =_xlfn.IFS(W21=$X$6,W21,X21=$X$6,X21,Y21=$X$6,Y21,$A$7=1,"") ->  | W21: =_xlfn.IFS(AND(Q21=1,COUNT($E$7:G21)>hcpng),E21+D21,$A$7=1," ") -> 244 | X21: =_xlfn.IFS(AND(Q21=1,COUNT($E$7:G21)>hcpng),F21+D21,$A$7=1," ") -> 247 | Y21: =_xlfn.IFS(AND(Q21=1,COUNT($E$7:G21)>hcpng),G21+D21,$A$7=1," ") -> 188 | Z21: 15 | AA21: =_xlfn.IFS(COUNTIFS(H21,"#",H20,"#"),A20,COUNTIFS(H21,2,H20,"#"),A20,$A$7=1,"") -> 
A22: 16 | B22: ='UTL1'!B22 -> 2023-01-04 | C22: =_xlfn.IFS(Q22<>1,"",AND($B$4>=1,COUNT($E$7:G22)<=bkng),$B$4,P22=1,TRUNC(AVERAGE(E22:G22),0),COUNT($Q$7:Q22)=2,TRUNC(AVERAGE($E$7:G21),0),COUNT($Q$7:Q22)>=3,TRUNC(AVERAGE($E$7:G21),0)) -> 143 | D22: =_xlfn.IFS(Q22<>1,"",Q22=1,TRUNC((230-C22)*0.9)) -> 78 | E22: 134 | F22: 121 | G22: 123 | H22: =_xlfn.IFS(COUNT(E22:G22)<1,"",AND(E22>C22,F22>C22,G22>C22,COUNT($E$7:G22)>sixng),"#",AND(E22>C21,F22>C21,G22>C21,COUNT($E$7:G22)>sixng,COUNTIF(H21,"#")=1),"2",$A$7=1,"") ->  | I22: 378 | J22: 126 | K22: =_xlfn.IFS(Q22<>1,"",Q22=1,I22+(3*D22)) -> 612 | L22: =_xlfn.IFS(Q22<>1,"",COUNT($E$7:G22)<=hcpng,"",COUNT($E$7:G22)>=hcpng,K22) -> 612 | M22: =_xlfn.IFS(Q22=1,SUM($E$7:G22),Q22<>1,"") -> 6406 | N22: =_xlfn.IFS(Q22=1,COUNT($E$7:G22),Q22<>1,"") -> 45 | O22: =IF(Q22=1,ROUND(AVERAGE($E$7:G22),2),"") -> 142.36 | P22: =_xlfn.IFS(Q22<>1,"",SUM($Q$7:Q22)=1,1,SUM($Q$7:Q22)<>1,"") ->  | Q22: 1 | S22: =_xlfn.IFS(E22=$X$5,E22,F22=$X$5,F22,G22=$X$5,G22,$A$7=1,"") ->  | U22: =_xlfn.IFS(W22=$X$6,W22,X22=$X$6,X22,Y22=$X$6,Y22,$A$7=1,"") ->  | W22: =_xlfn.IFS(AND(Q22=1,COUNT($E$7:G22)>hcpng),E22+D22,$A$7=1," ") -> 212 | X22: =_xlfn.IFS(AND(Q22=1,COUNT($E$7:G22)>hcpng),F22+D22,$A$7=1," ") -> 199 | Y22: =_xlfn.IFS(AND(Q22=1,COUNT($E$7:G22)>hcpng),G22+D22,$A$7=1," ") -> 201 | Z22: 16 | AA22: =_xlfn.IFS(COUNTIFS(H22,"#",H21,"#"),A21,COUNTIFS(H22,2,H21,"#"),A21,$A$7=1,"") -> 
A23: 17 | B23: ='UTL1'!B23 -> 2023-01-11 | C23: =_xlfn.IFS(Q23<>1,"",AND($B$4>=1,COUNT($E$7:G23)<=bkng),$B$4,P23=1,TRUNC(AVERAGE(E23:G23),0),COUNT($Q$7:Q23)=2,TRUNC(AVERAGE($E$7:G22),0),COUNT($Q$7:Q23)>=3,TRUNC(AVERAGE($E$7:G22),0)) -> 142 | D23: =_xlfn.IFS(Q23<>1,"",Q23=1,TRUNC((230-C23)*0.9)) -> 79 | E23: 138 | F23: 135 | G23: 153 | H23: =_xlfn.IFS(COUNT(E23:G23)<1,"",AND(E23>C23,F23>C23,G23>C23,COUNT($E$7:G23)>sixng),"#",AND(E23>C22,F23>C22,G23>C22,COUNT($E$7:G23)>sixng,COUNTIF(H22,"#")=1),"2",$A$7=1,"") ->  | I23: 426 | J23: 142 | K23: =_xlfn.IFS(Q23<>1,"",Q23=1,I23+(3*D23)) -> 663 | L23: =_xlfn.IFS(Q23<>1,"",COUNT($E$7:G23)<=hcpng,"",COUNT($E$7:G23)>=hcpng,K23) -> 663 | M23: =_xlfn.IFS(Q23=1,SUM($E$7:G23),Q23<>1,"") -> 6832 | N23: =_xlfn.IFS(Q23=1,COUNT($E$7:G23),Q23<>1,"") -> 48 | O23: =IF(Q23=1,ROUND(AVERAGE($E$7:G23),2),"") -> 142.33 | P23: =_xlfn.IFS(Q23<>1,"",SUM($Q$7:Q23)=1,1,SUM($Q$7:Q23)<>1,"") ->  | Q23: 1 | S23: =_xlfn.IFS(E23=$X$5,E23,F23=$X$5,F23,G23=$X$5,G23,$A$7=1,"") ->  | U23: =_xlfn.IFS(W23=$X$6,W23,X23=$X$6,X23,Y23=$X$6,Y23,$A$7=1,"") ->  | W23: =_xlfn.IFS(AND(Q23=1,COUNT($E$7:G23)>hcpng),E23+D23,$A$7=1," ") -> 217 | X23: =_xlfn.IFS(AND(Q23=1,COUNT($E$7:G23)>hcpng),F23+D23,$A$7=1," ") -> 214 | Y23: =_xlfn.IFS(AND(Q23=1,COUNT($E$7:G23)>hcpng),G23+D23,$A$7=1," ") -> 232 | Z23: 17 | AA23: =_xlfn.IFS(COUNTIFS(H23,"#",H22,"#"),A22,COUNTIFS(H23,2,H22,"#"),A22,$A$7=1,"") -> 
A24: 18 | B24: ='UTL1'!B24 -> 2023-01-18 | C24: =_xlfn.IFS(Q24<>1,"",AND($B$4>=1,COUNT($E$7:G24)<=bkng),$B$4,P24=1,TRUNC(AVERAGE(E24:G24),0),COUNT($Q$7:Q24)=2,TRUNC(AVERAGE($E$7:G23),0),COUNT($Q$7:Q24)>=3,TRUNC(AVERAGE($E$7:G23),0)) -> 142 | D24: =_xlfn.IFS(Q24<>1,"",Q24=1,TRUNC((230-C24)*0.9)) -> 79 | E24: 171 | F24: 135 | G24: 154 | H24: =_xlfn.IFS(COUNT(E24:G24)<1,"",AND(E24>C24,F24>C24,G24>C24,COUNT($E$7:G24)>sixng),"#",AND(E24>C23,F24>C23,G24>C23,COUNT($E$7:G24)>sixng,COUNTIF(H23,"#")=1),"2",$A$7=1,"") ->  | I24: 460 | J24: 153 | K24: =_xlfn.IFS(Q24<>1,"",Q24=1,I24+(3*D24)) -> 697 | L24: =_xlfn.IFS(Q24<>1,"",COUNT($E$7:G24)<=hcpng,"",COUNT($E$7:G24)>=hcpng,K24) -> 697 | M24: =_xlfn.IFS(Q24=1,SUM($E$7:G24),Q24<>1,"") -> 7292 | N24: =_xlfn.IFS(Q24=1,COUNT($E$7:G24),Q24<>1,"") -> 51 | O24: =IF(Q24=1,ROUND(AVERAGE($E$7:G24),2),"") -> 142.98 | P24: =_xlfn.IFS(Q24<>1,"",SUM($Q$7:Q24)=1,1,SUM($Q$7:Q24)<>1,"") ->  | Q24: 1 | S24: =_xlfn.IFS(E24=$X$5,E24,F24=$X$5,F24,G24=$X$5,G24,$A$7=1,"") ->  | U24: =_xlfn.IFS(W24=$X$6,W24,X24=$X$6,X24,Y24=$X$6,Y24,$A$7=1,"") ->  | W24: =_xlfn.IFS(AND(Q24=1,COUNT($E$7:G24)>hcpng),E24+D24,$A$7=1," ") -> 250 | X24: =_xlfn.IFS(AND(Q24=1,COUNT($E$7:G24)>hcpng),F24+D24,$A$7=1," ") -> 214 | Y24: =_xlfn.IFS(AND(Q24=1,COUNT($E$7:G24)>hcpng),G24+D24,$A$7=1," ") -> 233 | Z24: 18 | AA24: =_xlfn.IFS(COUNTIFS(H24,"#",H23,"#"),A23,COUNTIFS(H24,2,H23,"#"),A23,$A$7=1,"") -> 
A25: 19 | B25: ='UTL1'!B25 -> 2023-01-25 | C25: =_xlfn.IFS(Q25<>1,"",AND($B$4>=1,COUNT($E$7:G25)<=bkng),$B$4,P25=1,TRUNC(AVERAGE(E25:G25),0),COUNT($Q$7:Q25)=2,TRUNC(AVERAGE($E$7:G24),0),COUNT($Q$7:Q25)>=3,TRUNC(AVERAGE($E$7:G24),0)) -> 142 | D25: =_xlfn.IFS(Q25<>1,"",Q25=1,TRUNC((230-C25)*0.9)) -> 79 | E25: 210 | F25: 168 | G25: 138 | H25: =_xlfn.IFS(COUNT(E25:G25)<1,"",AND(E25>C25,F25>C25,G25>C25,COUNT($E$7:G25)>sixng),"#",AND(E25>C24,F25>C24,G25>C24,COUNT($E$7:G25)>sixng,COUNTIF(H24,"#")=1),"2",$A$7=1,"") ->  | I25: 516 | J25: 172 | K25: =_xlfn.IFS(Q25<>1,"",Q25=1,I25+(3*D25)) -> 753 | L25: =_xlfn.IFS(Q25<>1,"",COUNT($E$7:G25)<=hcpng,"",COUNT($E$7:G25)>=hcpng,K25) -> 753 | M25: =_xlfn.IFS(Q25=1,SUM($E$7:G25),Q25<>1,"") -> 7808 | N25: =_xlfn.IFS(Q25=1,COUNT($E$7:G25),Q25<>1,"") -> 54 | O25: =IF(Q25=1,ROUND(AVERAGE($E$7:G25),2),"") -> 144.59 | P25: =_xlfn.IFS(Q25<>1,"",SUM($Q$7:Q25)=1,1,SUM($Q$7:Q25)<>1,"") ->  | Q25: 1 | S25: =_xlfn.IFS(E25=$X$5,E25,F25=$X$5,F25,G25=$X$5,G25,$A$7=1,"") -> 210 | T25: 753 | U25: =_xlfn.IFS(W25=$X$6,W25,X25=$X$6,X25,Y25=$X$6,Y25,$A$7=1,"") -> 289 | W25: =_xlfn.IFS(AND(Q25=1,COUNT($E$7:G25)>hcpng),E25+D25,$A$7=1," ") -> 289 | X25: =_xlfn.IFS(AND(Q25=1,COUNT($E$7:G25)>hcpng),F25+D25,$A$7=1," ") -> 247 | Y25: =_xlfn.IFS(AND(Q25=1,COUNT($E$7:G25)>hcpng),G25+D25,$A$7=1," ") -> 217 | Z25: 19 | AA25: =_xlfn.IFS(COUNTIFS(H25,"#",H24,"#"),A24,COUNTIFS(H25,2,H24,"#"),A24,$A$7=1,"") -> 
A26: 20 | B26: ='UTL1'!B26 -> 2023-02-01 | C26: =_xlfn.IFS(Q26<>1,"",AND($B$4>=1,COUNT($E$7:G26)<=bkng),$B$4,P26=1,TRUNC(AVERAGE(E26:G26),0),COUNT($Q$7:Q26)=2,TRUNC(AVERAGE($E$7:G25),0),COUNT($Q$7:Q26)>=3,TRUNC(AVERAGE($E$7:G25),0)) -> 144 | D26: =_xlfn.IFS(Q26<>1,"",Q26=1,TRUNC((230-C26)*0.9)) -> 77 | E26: 170 | F26: 138 | G26: 151 | H26: =_xlfn.IFS(COUNT(E26:G26)<1,"",AND(E26>C26,F26>C26,G26>C26,COUNT($E$7:G26)>sixng),"#",AND(E26>C25,F26>C25,G26>C25,COUNT($E$7:G26)>sixng,COUNTIF(H25,"#")=1),"2",$A$7=1,"") ->  | I26: 459 | J26: 153 | K26: =_xlfn.IFS(Q26<>1,"",Q26=1,I26+(3*D26)) -> 690 | L26: =_xlfn.IFS(Q26<>1,"",COUNT($E$7:G26)<=hcpng,"",COUNT($E$7:G26)>=hcpng,K26) -> 690 | M26: =_xlfn.IFS(Q26=1,SUM($E$7:G26),Q26<>1,"") -> 8267 | N26: =_xlfn.IFS(Q26=1,COUNT($E$7:G26),Q26<>1,"") -> 57 | O26: =IF(Q26=1,ROUND(AVERAGE($E$7:G26),2),"") -> 145.04 | P26: =_xlfn.IFS(Q26<>1,"",SUM($Q$7:Q26)=1,1,SUM($Q$7:Q26)<>1,"") ->  | Q26: 1 | S26: =_xlfn.IFS(E26=$X$5,E26,F26=$X$5,F26,G26=$X$5,G26,$A$7=1,"") ->  | U26: =_xlfn.IFS(W26=$X$6,W26,X26=$X$6,X26,Y26=$X$6,Y26,$A$7=1,"") ->  | W26: =_xlfn.IFS(AND(Q26=1,COUNT($E$7:G26)>hcpng),E26+D26,$A$7=1," ") -> 247 | X26: =_xlfn.IFS(AND(Q26=1,COUNT($E$7:G26)>hcpng),F26+D26,$A$7=1," ") -> 215 | Y26: =_xlfn.IFS(AND(Q26=1,COUNT($E$7:G26)>hcpng),G26+D26,$A$7=1," ") -> 228 | Z26: 20 | AA26: =_xlfn.IFS(COUNTIFS(H26,"#",H25,"#"),A25,COUNTIFS(H26,2,H25,"#"),A25,$A$7=1,"") -> 
A27: 21 | B27: ='UTL1'!B27 -> 2023-02-08 | C27: =_xlfn.IFS(Q27<>1,"",AND($B$4>=1,COUNT($E$7:G27)<=bkng),$B$4,P27=1,TRUNC(AVERAGE(E27:G27),0),COUNT($Q$7:Q27)=2,TRUNC(AVERAGE($E$7:G26),0),COUNT($Q$7:Q27)>=3,TRUNC(AVERAGE($E$7:G26),0)) -> 145 | D27: =_xlfn.IFS(Q27<>1,"",Q27=1,TRUNC((230-C27)*0.9)) -> 76 | E27: 144 | F27: 144 | G27: 131 | H27: =_xlfn.IFS(COUNT(E27:G27)<1,"",AND(E27>C27,F27>C27,G27>C27,COUNT($E$7:G27)>sixng),"#",AND(E27>C26,F27>C26,G27>C26,COUNT($E$7:G27)>sixng,COUNTIF(H26,"#")=1),"2",$A$7=1,"") ->  | I27: 419 | J27: 139 | K27: =_xlfn.IFS(Q27<>1,"",Q27=1,I27+(3*D27)) -> 647 | L27: =_xlfn.IFS(Q27<>1,"",COUNT($E$7:G27)<=hcpng,"",COUNT($E$7:G27)>=hcpng,K27) -> 647 | M27: =_xlfn.IFS(Q27=1,SUM($E$7:G27),Q27<>1,"") -> 8686 | N27: =_xlfn.IFS(Q27=1,COUNT($E$7:G27),Q27<>1,"") -> 60 | O27: =IF(Q27=1,ROUND(AVERAGE($E$7:G27),2),"") -> 144.77 | P27: =_xlfn.IFS(Q27<>1,"",SUM($Q$7:Q27)=1,1,SUM($Q$7:Q27)<>1,"") ->  | Q27: 1 | S27: =_xlfn.IFS(E27=$X$5,E27,F27=$X$5,F27,G27=$X$5,G27,$A$7=1,"") ->  | U27: =_xlfn.IFS(W27=$X$6,W27,X27=$X$6,X27,Y27=$X$6,Y27,$A$7=1,"") ->  | W27: =_xlfn.IFS(AND(Q27=1,COUNT($E$7:G27)>hcpng),E27+D27,$A$7=1," ") -> 220 | X27: =_xlfn.IFS(AND(Q27=1,COUNT($E$7:G27)>hcpng),F27+D27,$A$7=1," ") -> 220 | Y27: =_xlfn.IFS(AND(Q27=1,COUNT($E$7:G27)>hcpng),G27+D27,$A$7=1," ") -> 207 | Z27: 21 | AA27: =_xlfn.IFS(COUNTIFS(H27,"#",H26,"#"),A26,COUNTIFS(H27,2,H26,"#"),A26,$A$7=1,"") -> 
A28: 22 | B28: ='UTL1'!B28 -> 2023-02-15 | C28: =_xlfn.IFS(Q28<>1,"",AND($B$4>=1,COUNT($E$7:G28)<=bkng),$B$4,P28=1,TRUNC(AVERAGE(E28:G28),0),COUNT($Q$7:Q28)=2,TRUNC(AVERAGE($E$7:G27),0),COUNT($Q$7:Q28)>=3,TRUNC(AVERAGE($E$7:G27),0)) -> 144 | D28: =_xlfn.IFS(Q28<>1,"",Q28=1,TRUNC((230-C28)*0.9)) -> 77 | E28: 135 | F28: 178 | G28: 171 | H28: =_xlfn.IFS(COUNT(E28:G28)<1,"",AND(E28>C28,F28>C28,G28>C28,COUNT($E$7:G28)>sixng),"#",AND(E28>C27,F28>C27,G28>C27,COUNT($E$7:G28)>sixng,COUNTIF(H27,"#")=1),"2",$A$7=1,"") ->  | I28: 484 | J28: 161 | K28: =_xlfn.IFS(Q28<>1,"",Q28=1,I28+(3*D28)) -> 715 | L28: =_xlfn.IFS(Q28<>1,"",COUNT($E$7:G28)<=hcpng,"",COUNT($E$7:G28)>=hcpng,K28) -> 715 | M28: =_xlfn.IFS(Q28=1,SUM($E$7:G28),Q28<>1,"") -> 9170 | N28: =_xlfn.IFS(Q28=1,COUNT($E$7:G28),Q28<>1,"") -> 63 | O28: =IF(Q28=1,ROUND(AVERAGE($E$7:G28),2),"") -> 145.56 | P28: =_xlfn.IFS(Q28<>1,"",SUM($Q$7:Q28)=1,1,SUM($Q$7:Q28)<>1,"") ->  | Q28: 1 | S28: =_xlfn.IFS(E28=$X$5,E28,F28=$X$5,F28,G28=$X$5,G28,$A$7=1,"") ->  | U28: =_xlfn.IFS(W28=$X$6,W28,X28=$X$6,X28,Y28=$X$6,Y28,$A$7=1,"") ->  | W28: =_xlfn.IFS(AND(Q28=1,COUNT($E$7:G28)>hcpng),E28+D28,$A$7=1," ") -> 212 | X28: =_xlfn.IFS(AND(Q28=1,COUNT($E$7:G28)>hcpng),F28+D28,$A$7=1," ") -> 255 | Y28: =_xlfn.IFS(AND(Q28=1,COUNT($E$7:G28)>hcpng),G28+D28,$A$7=1," ") -> 248 | Z28: 22 | AA28: =_xlfn.IFS(COUNTIFS(H28,"#",H27,"#"),A27,COUNTIFS(H28,2,H27,"#"),A27,$A$7=1,"") -> 
A29: 23 | B29: ='UTL1'!B29 -> 2023-02-22 | C29: =_xlfn.IFS(Q29<>1,"",AND($B$4>=1,COUNT($E$7:G29)<=bkng),$B$4,P29=1,TRUNC(AVERAGE(E29:G29),0),COUNT($Q$7:Q29)=2,TRUNC(AVERAGE($E$7:G28),0),COUNT($Q$7:Q29)>=3,TRUNC(AVERAGE($E$7:G28),0)) -> 145 | D29: =_xlfn.IFS(Q29<>1,"",Q29=1,TRUNC((230-C29)*0.9)) -> 76 | E29: 159 | F29: 156 | G29: 139 | H29: =_xlfn.IFS(COUNT(E29:G29)<1,"",AND(E29>C29,F29>C29,G29>C29,COUNT($E$7:G29)>sixng),"#",AND(E29>C28,F29>C28,G29>C28,COUNT($E$7:G29)>sixng,COUNTIF(H28,"#")=1),"2",$A$7=1,"") ->  | I29: 454 | J29: 151 | K29: =_xlfn.IFS(Q29<>1,"",Q29=1,I29+(3*D29)) -> 682 | L29: =_xlfn.IFS(Q29<>1,"",COUNT($E$7:G29)<=hcpng,"",COUNT($E$7:G29)>=hcpng,K29) -> 682 | M29: =_xlfn.IFS(Q29=1,SUM($E$7:G29),Q29<>1,"") -> 9624 | N29: =_xlfn.IFS(Q29=1,COUNT($E$7:G29),Q29<>1,"") -> 66 | O29: =IF(Q29=1,ROUND(AVERAGE($E$7:G29),2),"") -> 145.82 | P29: =_xlfn.IFS(Q29<>1,"",SUM($Q$7:Q29)=1,1,SUM($Q$7:Q29)<>1,"") ->  | Q29: 1 | S29: =_xlfn.IFS(E29=$X$5,E29,F29=$X$5,F29,G29=$X$5,G29,$A$7=1,"") ->  | U29: =_xlfn.IFS(W29=$X$6,W29,X29=$X$6,X29,Y29=$X$6,Y29,$A$7=1,"") ->  | W29: =_xlfn.IFS(AND(Q29=1,COUNT($E$7:G29)>hcpng),E29+D29,$A$7=1," ") -> 235 | X29: =_xlfn.IFS(AND(Q29=1,COUNT($E$7:G29)>hcpng),F29+D29,$A$7=1," ") -> 232 | Y29: =_xlfn.IFS(AND(Q29=1,COUNT($E$7:G29)>hcpng),G29+D29,$A$7=1," ") -> 215 | Z29: 23 | AA29: =_xlfn.IFS(COUNTIFS(H29,"#",H28,"#"),A28,COUNTIFS(H29,2,H28,"#"),A28,$A$7=1,"") -> 
A30: 24 | B30: ='UTL1'!B30 -> 2023-03-01 | C30: =_xlfn.IFS(Q30<>1,"",AND($B$4>=1,COUNT($E$7:G30)<=bkng),$B$4,P30=1,TRUNC(AVERAGE(E30:G30),0),COUNT($Q$7:Q30)=2,TRUNC(AVERAGE($E$7:G29),0),COUNT($Q$7:Q30)>=3,TRUNC(AVERAGE($E$7:G29),0)) -> 145 | D30: =_xlfn.IFS(Q30<>1,"",Q30=1,TRUNC((230-C30)*0.9)) -> 76 | E30: 119 | F30: 147 | G30: 127 | H30: =_xlfn.IFS(COUNT(E30:G30)<1,"",AND(E30>C30,F30>C30,G30>C30,COUNT($E$7:G30)>sixng),"#",AND(E30>C29,F30>C29,G30>C29,COUNT($E$7:G30)>sixng,COUNTIF(H29,"#")=1),"2",$A$7=1,"") ->  | I30: 393 | J30: 131 | K30: =_xlfn.IFS(Q30<>1,"",Q30=1,I30+(3*D30)) -> 621 | L30: =_xlfn.IFS(Q30<>1,"",COUNT($E$7:G30)<=hcpng,"",COUNT($E$7:G30)>=hcpng,K30) -> 621 | M30: =_xlfn.IFS(Q30=1,SUM($E$7:G30),Q30<>1,"") -> 10017 | N30: =_xlfn.IFS(Q30=1,COUNT($E$7:G30),Q30<>1,"") -> 69 | O30: =IF(Q30=1,ROUND(AVERAGE($E$7:G30),2),"") -> 145.17 | P30: =_xlfn.IFS(Q30<>1,"",SUM($Q$7:Q30)=1,1,SUM($Q$7:Q30)<>1,"") ->  | Q30: 1 | S30: =_xlfn.IFS(E30=$X$5,E30,F30=$X$5,F30,G30=$X$5,G30,$A$7=1,"") ->  | U30: =_xlfn.IFS(W30=$X$6,W30,X30=$X$6,X30,Y30=$X$6,Y30,$A$7=1,"") ->  | W30: =_xlfn.IFS(AND(Q30=1,COUNT($E$7:G30)>hcpng),E30+D30,$A$7=1," ") -> 195 | X30: =_xlfn.IFS(AND(Q30=1,COUNT($E$7:G30)>hcpng),F30+D30,$A$7=1," ") -> 223 | Y30: =_xlfn.IFS(AND(Q30=1,COUNT($E$7:G30)>hcpng),G30+D30,$A$7=1," ") -> 203 | Z30: 24 | AA30: =_xlfn.IFS(COUNTIFS(H30,"#",H29,"#"),A29,COUNTIFS(H30,2,H29,"#"),A29,$A$7=1,"") -> 
A31: 25 | B31: ='UTL1'!B31 -> 2023-03-08 | C31: =_xlfn.IFS(Q31<>1,"",AND($B$4>=1,COUNT($E$7:G31)<=bkng),$B$4,P31=1,TRUNC(AVERAGE(E31:G31),0),COUNT($Q$7:Q31)=2,TRUNC(AVERAGE($E$7:G30),0),COUNT($Q$7:Q31)>=3,TRUNC(AVERAGE($E$7:G30),0)) -> 145 | D31: =_xlfn.IFS(Q31<>1,"",Q31=1,TRUNC((230-C31)*0.9)) -> 76 | E31: 162 | F31: 150 | G31: 185 | H31: =_xlfn.IFS(COUNT(E31:G31)<1,"",AND(E31>C31,F31>C31,G31>C31,COUNT($E$7:G31)>sixng),"#",AND(E31>C30,F31>C30,G31>C30,COUNT($E$7:G31)>sixng,COUNTIF(H30,"#")=1),"2",$A$7=1,"") -> # | I31: 497 | J31: 165 | K31: =_xlfn.IFS(Q31<>1,"",Q31=1,I31+(3*D31)) -> 725 | L31: =_xlfn.IFS(Q31<>1,"",COUNT($E$7:G31)<=hcpng,"",COUNT($E$7:G31)>=hcpng,K31) -> 725 | M31: =_xlfn.IFS(Q31=1,SUM($E$7:G31),Q31<>1,"") -> 10514 | N31: =_xlfn.IFS(Q31=1,COUNT($E$7:G31),Q31<>1,"") -> 72 | O31: =IF(Q31=1,ROUND(AVERAGE($E$7:G31),2),"") -> 146.03 | P31: =_xlfn.IFS(Q31<>1,"",SUM($Q$7:Q31)=1,1,SUM($Q$7:Q31)<>1,"") ->  | Q31: 1 | S31: =_xlfn.IFS(E31=$X$5,E31,F31=$X$5,F31,G31=$X$5,G31,$A$7=1,"") ->  | U31: =_xlfn.IFS(W31=$X$6,W31,X31=$X$6,X31,Y31=$X$6,Y31,$A$7=1,"") ->  | W31: =_xlfn.IFS(AND(Q31=1,COUNT($E$7:G31)>hcpng),E31+D31,$A$7=1," ") -> 238 | X31: =_xlfn.IFS(AND(Q31=1,COUNT($E$7:G31)>hcpng),F31+D31,$A$7=1," ") -> 226 | Y31: =_xlfn.IFS(AND(Q31=1,COUNT($E$7:G31)>hcpng),G31+D31,$A$7=1," ") -> 261 | Z31: 25 | AA31: =_xlfn.IFS(COUNTIFS(H31,"#",H30,"#"),A30,COUNTIFS(H31,2,H30,"#"),A30,$A$7=1,"") -> 
A32: 26 | B32: ='UTL1'!B32 -> 2023-03-15 | C32: =_xlfn.IFS(Q32<>1,"",AND($B$4>=1,COUNT($E$7:G32)<=bkng),$B$4,P32=1,TRUNC(AVERAGE(E32:G32),0),COUNT($Q$7:Q32)=2,TRUNC(AVERAGE($E$7:G31),0),COUNT($Q$7:Q32)>=3,TRUNC(AVERAGE($E$7:G31),0)) -> 146 | D32: =_xlfn.IFS(Q32<>1,"",Q32=1,TRUNC((230-C32)*0.9)) -> 75 | E32: 154 | F32: 189 | G32: 159 | H32: =_xlfn.IFS(COUNT(E32:G32)<1,"",AND(E32>C32,F32>C32,G32>C32,COUNT($E$7:G32)>sixng),"#",AND(E32>C31,F32>C31,G32>C31,COUNT($E$7:G32)>sixng,COUNTIF(H31,"#")=1),"2",$A$7=1,"") -> # | I32: 502 | J32: 167 | K32: =_xlfn.IFS(Q32<>1,"",Q32=1,I32+(3*D32)) -> 727 | L32: =_xlfn.IFS(Q32<>1,"",COUNT($E$7:G32)<=hcpng,"",COUNT($E$7:G32)>=hcpng,K32) -> 727 | M32: =_xlfn.IFS(Q32=1,SUM($E$7:G32),Q32<>1,"") -> 11016 | N32: =_xlfn.IFS(Q32=1,COUNT($E$7:G32),Q32<>1,"") -> 75 | O32: =IF(Q32=1,ROUND(AVERAGE($E$7:G32),2),"") -> 146.88 | P32: =_xlfn.IFS(Q32<>1,"",SUM($Q$7:Q32)=1,1,SUM($Q$7:Q32)<>1,"") ->  | Q32: 1 | S32: =_xlfn.IFS(E32=$X$5,E32,F32=$X$5,F32,G32=$X$5,G32,$A$7=1,"") ->  | U32: =_xlfn.IFS(W32=$X$6,W32,X32=$X$6,X32,Y32=$X$6,Y32,$A$7=1,"") ->  | W32: =_xlfn.IFS(AND(Q32=1,COUNT($E$7:G32)>hcpng),E32+D32,$A$7=1," ") -> 229 | X32: =_xlfn.IFS(AND(Q32=1,COUNT($E$7:G32)>hcpng),F32+D32,$A$7=1," ") -> 264 | Y32: =_xlfn.IFS(AND(Q32=1,COUNT($E$7:G32)>hcpng),G32+D32,$A$7=1," ") -> 234 | Z32: 26 | AA32: =_xlfn.IFS(COUNTIFS(H32,"#",H31,"#"),A31,COUNTIFS(H32,2,H31,"#"),A31,$A$7=1,"") -> 25
A33: 27 | B33: ='UTL1'!B33 -> 2023-03-22 | C33: =_xlfn.IFS(Q33<>1,"",AND($B$4>=1,COUNT($E$7:G33)<=bkng),$B$4,P33=1,TRUNC(AVERAGE(E33:G33),0),COUNT($Q$7:Q33)=2,TRUNC(AVERAGE($E$7:G32),0),COUNT($Q$7:Q33)>=3,TRUNC(AVERAGE($E$7:G32),0)) -> 146 | D33: =_xlfn.IFS(Q33<>1,"",Q33=1,TRUNC((230-C33)*0.9)) -> 75 | E33: 182 | F33: 191 | G33: 117 | H33: =_xlfn.IFS(COUNT(E33:G33)<1,"",AND(E33>C33,F33>C33,G33>C33,COUNT($E$7:G33)>sixng),"#",AND(E33>C32,F33>C32,G33>C32,COUNT($E$7:G33)>sixng,COUNTIF(H32,"#")=1),"2",$A$7=1,"") ->  | I33: 490 | J33: 163 | K33: =_xlfn.IFS(Q33<>1,"",Q33=1,I33+(3*D33)) -> 715 | L33: =_xlfn.IFS(Q33<>1,"",COUNT($E$7:G33)<=hcpng,"",COUNT($E$7:G33)>=hcpng,K33) -> 715 | M33: =_xlfn.IFS(Q33=1,SUM($E$7:G33),Q33<>1,"") -> 11506 | N33: =_xlfn.IFS(Q33=1,COUNT($E$7:G33),Q33<>1,"") -> 78 | O33: =IF(Q33=1,ROUND(AVERAGE($E$7:G33),2),"") -> 147.51 | P33: =_xlfn.IFS(Q33<>1,"",SUM($Q$7:Q33)=1,1,SUM($Q$7:Q33)<>1,"") ->  | Q33: 1 | S33: =_xlfn.IFS(E33=$X$5,E33,F33=$X$5,F33,G33=$X$5,G33,$A$7=1,"") ->  | U33: =_xlfn.IFS(W33=$X$6,W33,X33=$X$6,X33,Y33=$X$6,Y33,$A$7=1,"") ->  | W33: =_xlfn.IFS(AND(Q33=1,COUNT($E$7:G33)>hcpng),E33+D33,$A$7=1," ") -> 257 | X33: =_xlfn.IFS(AND(Q33=1,COUNT($E$7:G33)>hcpng),F33+D33,$A$7=1," ") -> 266 | Y33: =_xlfn.IFS(AND(Q33=1,COUNT($E$7:G33)>hcpng),G33+D33,$A$7=1," ") -> 192 | Z33: 27 | AA33: =_xlfn.IFS(COUNTIFS(H33,"#",H32,"#"),A32,COUNTIFS(H33,2,H32,"#"),A32,$A$7=1,"") -> 
A34: 28 | B34: ='UTL1'!B34 -> 2023-03-29 | C34: =_xlfn.IFS(Q34<>1,"",AND($B$4>=1,COUNT($E$7:G34)<=bkng),$B$4,P34=1,TRUNC(AVERAGE(E34:G34),0),COUNT($Q$7:Q34)=2,TRUNC(AVERAGE($E$7:G33),0),COUNT($Q$7:Q34)>=3,TRUNC(AVERAGE($E$7:G33),0)) -> 147 | D34: =_xlfn.IFS(Q34<>1,"",Q34=1,TRUNC((230-C34)*0.9)) -> 74 | E34: 173 | F34: 149 | G34: 133 | H34: =_xlfn.IFS(COUNT(E34:G34)<1,"",AND(E34>C34,F34>C34,G34>C34,COUNT($E$7:G34)>sixng),"#",AND(E34>C33,F34>C33,G34>C33,COUNT($E$7:G34)>sixng,COUNTIF(H33,"#")=1),"2",$A$7=1,"") ->  | I34: 455 | J34: 151 | K34: =_xlfn.IFS(Q34<>1,"",Q34=1,I34+(3*D34)) -> 677 | L34: =_xlfn.IFS(Q34<>1,"",COUNT($E$7:G34)<=hcpng,"",COUNT($E$7:G34)>=hcpng,K34) -> 677 | M34: =_xlfn.IFS(Q34=1,SUM($E$7:G34),Q34<>1,"") -> 11961 | N34: =_xlfn.IFS(Q34=1,COUNT($E$7:G34),Q34<>1,"") -> 81 | O34: =IF(Q34=1,ROUND(AVERAGE($E$7:G34),2),"") -> 147.67 | P34: =_xlfn.IFS(Q34<>1,"",SUM($Q$7:Q34)=1,1,SUM($Q$7:Q34)<>1,"") ->  | Q34: 1 | S34: =_xlfn.IFS(E34=$X$5,E34,F34=$X$5,F34,G34=$X$5,G34,$A$7=1,"") ->  | U34: =_xlfn.IFS(W34=$X$6,W34,X34=$X$6,X34,Y34=$X$6,Y34,$A$7=1,"") ->  | W34: =_xlfn.IFS(AND(Q34=1,COUNT($E$7:G34)>hcpng),E34+D34,$A$7=1," ") -> 247 | X34: =_xlfn.IFS(AND(Q34=1,COUNT($E$7:G34)>hcpng),F34+D34,$A$7=1," ") -> 223 | Y34: =_xlfn.IFS(AND(Q34=1,COUNT($E$7:G34)>hcpng),G34+D34,$A$7=1," ") -> 207 | Z34: 28 | AA34: =_xlfn.IFS(COUNTIFS(H34,"#",H33,"#"),A33,COUNTIFS(H34,2,H33,"#"),A33,$A$7=1,"") -> 
A35: 29 | B35: ='UTL1'!B35 -> 2023-04-05 | C35: =_xlfn.IFS(Q35<>1,"",AND($B$4>=1,COUNT($E$7:G35)<=bkng),$B$4,P35=1,TRUNC(AVERAGE(E35:G35),0),COUNT($Q$7:Q35)=2,TRUNC(AVERAGE($E$7:G34),0),COUNT($Q$7:Q35)>=3,TRUNC(AVERAGE($E$7:G34),0)) -> 147 | D35: =_xlfn.IFS(Q35<>1,"",Q35=1,TRUNC((230-C35)*0.9)) -> 74 | E35: 186 | F35: 137 | G35: 108 | H35: =_xlfn.IFS(COUNT(E35:G35)<1,"",AND(E35>C35,F35>C35,G35>C35,COUNT($E$7:G35)>sixng),"#",AND(E35>C34,F35>C34,G35>C34,COUNT($E$7:G35)>sixng,COUNTIF(H34,"#")=1),"2",$A$7=1,"") ->  | I35: 431 | J35: 143 | K35: =_xlfn.IFS(Q35<>1,"",Q35=1,I35+(3*D35)) -> 653 | L35: =_xlfn.IFS(Q35<>1,"",COUNT($E$7:G35)<=hcpng,"",COUNT($E$7:G35)>=hcpng,K35) -> 653 | M35: =_xlfn.IFS(Q35=1,SUM($E$7:G35),Q35<>1,"") -> 12392 | N35: =_xlfn.IFS(Q35=1,COUNT($E$7:G35),Q35<>1,"") -> 84 | O35: =IF(Q35=1,ROUND(AVERAGE($E$7:G35),2),"") -> 147.52 | P35: =_xlfn.IFS(Q35<>1,"",SUM($Q$7:Q35)=1,1,SUM($Q$7:Q35)<>1,"") ->  | Q35: 1 | S35: =_xlfn.IFS(E35=$X$5,E35,F35=$X$5,F35,G35=$X$5,G35,$A$7=1,"") ->  | U35: =_xlfn.IFS(W35=$X$6,W35,X35=$X$6,X35,Y35=$X$6,Y35,$A$7=1,"") ->  | W35: =_xlfn.IFS(AND(Q35=1,COUNT($E$7:G35)>hcpng),E35+D35,$A$7=1," ") -> 260 | X35: =_xlfn.IFS(AND(Q35=1,COUNT($E$7:G35)>hcpng),F35+D35,$A$7=1," ") -> 211 | Y35: =_xlfn.IFS(AND(Q35=1,COUNT($E$7:G35)>hcpng),G35+D35,$A$7=1," ") -> 182 | Z35: 29 | AA35: =_xlfn.IFS(COUNTIFS(H35,"#",H34,"#"),A34,COUNTIFS(H35,2,H34,"#"),A34,$A$7=1,"") -> 
A36: 30 | B36: ='UTL1'!B36 -> 2023-04-12 | C36: =_xlfn.IFS(Q36<>1,"",AND($B$4>=1,COUNT($E$7:G36)<=bkng),$B$4,P36=1,TRUNC(AVERAGE(E36:G36),0),COUNT($Q$7:Q36)=2,TRUNC(AVERAGE($E$7:G35),0),COUNT($Q$7:Q36)>=3,TRUNC(AVERAGE($E$7:G35),0)) -> 147 | D36: =_xlfn.IFS(Q36<>1,"",Q36=1,TRUNC((230-C36)*0.9)) -> 74 | E36: 149 | F36: 117 | G36: 146 | H36: =_xlfn.IFS(COUNT(E36:G36)<1,"",AND(E36>C36,F36>C36,G36>C36,COUNT($E$7:G36)>sixng),"#",AND(E36>C35,F36>C35,G36>C35,COUNT($E$7:G36)>sixng,COUNTIF(H35,"#")=1),"2",$A$7=1,"") ->  | I36: 412 | J36: 137 | K36: =_xlfn.IFS(Q36<>1,"",Q36=1,I36+(3*D36)) -> 634 | L36: =_xlfn.IFS(Q36<>1,"",COUNT($E$7:G36)<=hcpng,"",COUNT($E$7:G36)>=hcpng,K36) -> 634 | M36: =_xlfn.IFS(Q36=1,SUM($E$7:G36),Q36<>1,"") -> 12804 | N36: =_xlfn.IFS(Q36=1,COUNT($E$7:G36),Q36<>1,"") -> 87 | O36: =IF(Q36=1,ROUND(AVERAGE($E$7:G36),2),"") -> 147.17 | P36: =_xlfn.IFS(Q36<>1,"",SUM($Q$7:Q36)=1,1,SUM($Q$7:Q36)<>1,"") ->  | Q36: 1 | S36: =_xlfn.IFS(E36=$X$5,E36,F36=$X$5,F36,G36=$X$5,G36,$A$7=1,"") ->  | U36: =_xlfn.IFS(W36=$X$6,W36,X36=$X$6,X36,Y36=$X$6,Y36,$A$7=1,"") ->  | W36: =_xlfn.IFS(AND(Q36=1,COUNT($E$7:G36)>hcpng),E36+D36,$A$7=1," ") -> 223 | X36: =_xlfn.IFS(AND(Q36=1,COUNT($E$7:G36)>hcpng),F36+D36,$A$7=1," ") -> 191 | Y36: =_xlfn.IFS(AND(Q36=1,COUNT($E$7:G36)>hcpng),G36+D36,$A$7=1," ") -> 220 | Z36: 30 | AA36: =_xlfn.IFS(COUNTIFS(H36,"#",H35,"#"),A35,COUNTIFS(H36,2,H35,"#"),A35,$A$7=1,"") -> 
E37: =IF(COUNT(E7:E36)>=1,ROUND(SUM(E7:E36)/COUNT(E7:E36),2),"") -> 150.45 | F37: =IF(COUNT(F7:F36)>=1,ROUND(SUM(F7:F36)/COUNT(F7:F36),2),"") -> 149.69 | G37: =IF(COUNT(G7:G36)>=1,ROUND(SUM(G7:G36)/COUNT(G7:G36),2),"") -> 141.38

Sheet GregorG
A1: =IF('UTL1'!A2="V",'UTL1'!B2,"") ->  | H1: ='UTL1'!H1 -> Wednesday Fun Fours 2022/2023 season
A2: wk# | B2: =MAX(Z7:Z36) -> 30 | O2: 6 Over week: | S2: =IF(MIN(AA7:AA36)<1,"",MIN(AA7:AA36)) -> 5
A3: Name: | B3: Gregor Gonzales | G3: Perfect Attendance: | J3: =_xlfn.IFS(MAX('UTL1'!D7:D36)>B2,"NO",SUM(Q7:Q36)=B2,"YES",SUM(Q7:Q36)<>B2,"NO") -> NO | K3: =_xlfn.IFS(MAX('UTL1'!D7:D36)>B2,"",AND(SUM(Q7:Q36)<30,SUM(Q7:Q36)=B2),"So Far",SUM(Q7:Q36)=30,"Good",SUM(Q7:Q36)<>B2,"") -> 
A4: Bk Avg: | W4: Hi.series> | X4: =MAX(I7:I36) -> 497
C5: bk or | D5: old | I5: wky | J5: wky | K5: Hcp | L5: hcp | O5: new | P5: start | R5: high | S5: high | T5: high hcp | U5: high hcp | W5: hi.game> | X5: =MAX(E7:G36) -> 209
A6: wk no. | C6: old avg | D6: hdcp | E6: -1- | F6: -2- | G6: -3- | I6: total | J6: avg | K6: total | L6: t2 hc | M6: Pins | N6: Gms | O6: avg | P6: week | Q6: startB | R6: series | S6: game | T6: series | U6: game | W6: h.hcp.g> | X6: =MAX(W7:Y36) -> 289 | Z6: wk#
A7: 1 | B7: ='UTL1'!B7 -> 2022-09-07 | C7: =_xlfn.IFS(Q7<>1,"",AND($B$4>=1,COUNT($E$7:G7)<=bkng),$B$4,P7=1,TRUNC(AVERAGE(E7:G7),0),COUNT($Q$7:Q7)=2,TRUNC(AVERAGE($E6:G$7),0),COUNT($Q$7:Q7)>=3,TRUNC(AVERAGE($E6:G$7),0)) -> 121 | D7: =_xlfn.IFS(Q7<>1,"",Q7=1,TRUNC((230-C7)*0.9)) -> 98 | E7: 134 | F7: 124 | G7: 106 | I7: =IF(Q7=1,SUM(E7:G7),"") -> 364 | J7: =IF(Q7=1,TRUNC(AVERAGE(E7:G7),0),"") -> 121 | K7: =_xlfn.IFS(Q7<>1,"",Q7=1,I7+(3*D7)) -> 658 | L7: =_xlfn.IFS(Q7<>1,"",COUNT($E$7:G7)<=hcpng,"",COUNT($E$7:G7)>=hcpng,K7) ->  | M7: =_xlfn.IFS(Q7=1,SUM($E$7:G7),Q7<>1,"") -> 364 | N7: =_xlfn.IFS(Q7=1,COUNT($E$7:G7),Q7<>1,"") -> 3 | O7: =IF(Q7=1,ROUND(AVERAGE($E$7:G7),2),"") -> 121.33 | P7: =_xlfn.IFS(Q7<>1,"",SUM($Q$7:Q7)=1,1,SUM($Q$7:Q7)<>1,"") -> 1 | Q7: =IF(MAX(E7:G7)<1,"",1) -> 1 | R7: =IF(I7=$X$4,I7,"") ->  | S7: =_xlfn.IFS(E7=$X$5,E7,F7=$X$5,F7,G7=$X$5,G7,$A$7=1,"") ->  | T7: =IF(L7=MAX($L$7:$L$36),L7,"") ->  | U7: =_xlfn.IFS(W7=$X$6,W7,X7=$X$6,X7,Y7=$X$6,Y7,$A$7=1,"") ->  | W7: =_xlfn.IFS(AND(Q7=1,COUNT($E$7:G7)>hcpng),E7+D7,$A$7=1," ") ->  | X7: =_xlfn.IFS(AND(Q7=1,COUNT($E$7:G7)>hcpng),F7+D7,$A$7=1," ") ->  | Y7: =_xlfn.IFS(AND(Q7=1,COUNT($E$7:G7)>hcpng),G7+D7,$A$7=1," ") ->  | Z7: =IF(Q7=1,A7,0) -> 1 | AA7: =_xlfn.IFS(COUNTIFS(H7,"#",H6,"#"),A6,COUNTIFS(H7,2,H6,"#"),A6,$A$7=1,"") -> 
A8: 2 | B8: ='UTL1'!B8 -> 2022-09-14 | C8: =_xlfn.IFS(Q8<>1,"",AND($B$4>=1,COUNT($E$7:G8)<=bkng),$B$4,P8=1,TRUNC(AVERAGE(E8:G8),0),COUNT($Q$7:Q8)=2,TRUNC(AVERAGE($E7:G$7),0),COUNT($Q$7:Q8)>=3,TRUNC(AVERAGE($E7:G$7),0)) -> 121 | D8: =_xlfn.IFS(Q8<>1,"",Q8=1,TRUNC((230-C8)*0.9)) -> 98 | E8: 115 | F8: 131 | G8: 189 | H8: =_xlfn.IFS(COUNT(E8:G8)<1,"",AND(E8>C8,F8>C8,G8>C8,COUNT($E$7:G8)>sixng),"#",AND(E8>C7,F8>C7,G8>C7,COUNT($E$7:G8)>sixng,COUNTIF(H7,"#")=1),"2",$A$7=1,"") ->  | I8: =IF(Q8=1,SUM(E8:G8),"") -> 435 | J8: =IF(Q8=1,TRUNC(AVERAGE(E8:G8),0),"") -> 145 | K8: =_xlfn.IFS(Q8<>1,"",Q8=1,I8+(3*D8)) -> 729 | L8: =_xlfn.IFS(Q8<>1,"",COUNT($E$7:G8)<=hcpng,"",COUNT($E$7:G8)>=hcpng,K8) ->  | M8: =_xlfn.IFS(Q8=1,SUM($E$7:G8),Q8<>1,"") -> 799 | N8: =_xlfn.IFS(Q8=1,COUNT($E$7:G8),Q8<>1,"") -> 6 | O8: =IF(Q8=1,ROUND(AVERAGE($E$7:G8),2),"") -> 133.17 | P8: =_xlfn.IFS(Q8<>1,"",SUM($Q$7:Q8)=1,1,SUM($Q$7:Q8)<>1,"") ->  | Q8: =IF(MAX(E8:G8)<1,"",1) -> 1 | R8: =IF(I8=$X$4,I8,"") ->  | S8: =_xlfn.IFS(E8=$X$5,E8,F8=$X$5,F8,G8=$X$5,G8,$A$7=1,"") ->  | T8: =IF(L8=MAX($L$7:$L$36),L8,"") ->  | U8: =_xlfn.IFS(W8=$X$6,W8,X8=$X$6,X8,Y8=$X$6,Y8,$A$7=1,"") ->  | W8: =_xlfn.IFS(AND(Q8=1,COUNT($E$7:G8)>hcpng),E8+D8,$A$7=1," ") ->  | X8: =_xlfn.IFS(AND(Q8=1,COUNT($E$7:G8)>hcpng),F8+D8,$A$7=1," ") ->  | Y8: =_xlfn.IFS(AND(Q8=1,COUNT($E$7:G8)>hcpng),G8+D8,$A$7=1," ") ->  | Z8: =IF(Q8=1,A8,0) -> 2 | AA8: =_xlfn.IFS(COUNTIFS(H8,"#",H7,"#"),A7,COUNTIFS(H8,2,H7,"#"),A7,$A$7=1,"") -> 
A9: 3 | B9: ='UTL1'!B9 -> 2022-09-21 | C9: =_xlfn.IFS(Q9<>1,"",AND($B$4>=1,COUNT($E$7:G9)<=bkng),$B$4,P9=1,TRUNC(AVERAGE(E9:G9),0),COUNT($Q$7:Q9)=2,TRUNC(AVERAGE($E$7:G8),0),COUNT($Q$7:Q9)>=3,TRUNC(AVERAGE($E$7:G8),0)) -> 133 | D9: =_xlfn.IFS(Q9<>1,"",Q9=1,TRUNC((230-C9)*0.9)) -> 87 | E9: 140 | F9: 103 | G9: 102 | H9: =_xlfn.IFS(COUNT(E9:G9)<1,"",AND(E9>C9,F9>C9,G9>C9,COUNT($E$7:G9)>sixng),"#",AND(E9>C8,F9>C8,G9>C8,COUNT($E$7:G9)>sixng,COUNTIF(H8,"#")=1),"2",$A$7=1,"") ->  | I9: 345 | J9: 115 | K9: =_xlfn.IFS(Q9<>1,"",Q9=1,I9+(3*D9)) -> 606 | L9: =_xlfn.IFS(Q9<>1,"",COUNT($E$7:G9)<=hcpng,"",COUNT($E$7:G9)>=hcpng,K9) ->  | M9: =_xlfn.IFS(Q9=1,SUM($E$7:G9),Q9<>1,"") -> 1144 | N9: =_xlfn.IFS(Q9=1,COUNT($E$7:G9),Q9<>1,"") -> 9 | O9: =IF(Q9=1,ROUND(AVERAGE($E$7:G9),2),"") -> 127.11 | P9: =_xlfn.IFS(Q9<>1,"",SUM($Q$7:Q9)=1,1,SUM($Q$7:Q9)<>1,"") ->  | Q9: 1 | S9: =_xlfn.IFS(E9=$X$5,E9,F9=$X$5,F9,G9=$X$5,G9,$A$7=1,"") ->  | U9: =_xlfn.IFS(W9=$X$6,W9,X9=$X$6,X9,Y9=$X$6,Y9,$A$7=1,"") ->  | W9: =_xlfn.IFS(AND(Q9=1,COUNT($E$7:G9)>hcpng),E9+D9,$A$7=1," ") ->  | X9: =_xlfn.IFS(AND(Q9=1,COUNT($E$7:G9)>hcpng),F9+D9,$A$7=1," ") ->  | Y9: =_xlfn.IFS(AND(Q9=1,COUNT($E$7:G9)>hcpng),G9+D9,$A$7=1," ") ->  | Z9: 3 | AA9: =_xlfn.IFS(COUNTIFS(H9,"#",H8,"#"),A8,COUNTIFS(H9,2,H8,"#"),A8,$A$7=1,"") -> 
A10: 4 | B10: ='UTL1'!B10 -> 2022-09-28 | C10: =_xlfn.IFS(Q10<>1,"",AND($B$4>=1,COUNT($E$7:G10)<=bkng),$B$4,P10=1,TRUNC(AVERAGE(E10:G10),0),COUNT($Q$7:Q10)=2,TRUNC(AVERAGE($E$7:G9),0),COUNT($Q$7:Q10)>=3,TRUNC(AVERAGE($E$7:G9),0)) -> 127 | D10: =_xlfn.IFS(Q10<>1,"",Q10=1,TRUNC((230-C10)*0.9)) -> 92 | E10: 133 | F10: 142 | G10: 136 | H10: =_xlfn.IFS(COUNT(E10:G10)<1,"",AND(E10>C10,F10>C10,G10>C10,COUNT($E$7:G10)>sixng),"#",AND(E10>C9,F10>C9,G10>C9,COUNT($E$7:G10)>sixng,COUNTIF(H9,"#")=1),"2",$A$7=1,"") ->  | I10: 411 | J10: 137 | K10: =_xlfn.IFS(Q10<>1,"",Q10=1,I10+(3*D10)) -> 687 | L10: =_xlfn.IFS(Q10<>1,"",COUNT($E$7:G10)<=hcpng,"",COUNT($E$7:G10)>=hcpng,K10) ->  | M10: =_xlfn.IFS(Q10=1,SUM($E$7:G10),Q10<>1,"") -> 1555 | N10: =_xlfn.IFS(Q10=1,COUNT($E$7:G10),Q10<>1,"") -> 12 | O10: =IF(Q10=1,ROUND(AVERAGE($E$7:G10),2),"") -> 129.58 | P10: =_xlfn.IFS(Q10<>1,"",SUM($Q$7:Q10)=1,1,SUM($Q$7:Q10)<>1,"") ->  | Q10: 1 | S10: =_xlfn.IFS(E10=$X$5,E10,F10=$X$5,F10,G10=$X$5,G10,$A$7=1,"") ->  | U10: =_xlfn.IFS(W10=$X$6,W10,X10=$X$6,X10,Y10=$X$6,Y10,$A$7=1,"") ->  | W10: =_xlfn.IFS(AND(Q10=1,COUNT($E$7:G10)>hcpng),E10+D10,$A$7=1," ") ->  | X10: =_xlfn.IFS(AND(Q10=1,COUNT($E$7:G10)>hcpng),F10+D10,$A$7=1," ") ->  | Y10: =_xlfn.IFS(AND(Q10=1,COUNT($E$7:G10)>hcpng),G10+D10,$A$7=1," ") ->  | Z10: 4 | AA10: =_xlfn.IFS(COUNTIFS(H10,"#",H9,"#"),A9,COUNTIFS(H10,2,H9,"#"),A9,$A$7=1,"") -> 
A11: 5 | B11: ='UTL1'!B11 -> 2022-10-05 | C11: =_xlfn.IFS(Q11<>1,"",AND($B$4>=1,COUNT($E$7:G11)<=bkng),$B$4,P11=1,TRUNC(AVERAGE(E11:G11),0),COUNT($Q$7:Q11)=2,TRUNC(AVERAGE($E$7:G10),0),COUNT($Q$7:Q11)>=3,TRUNC(AVERAGE($E$7:G10),0)) -> 129 | D11: =_xlfn.IFS(Q11<>1,"",Q11=1,TRUNC((230-C11)*0.9)) -> 90 | E11: 144 | F11: 149 | G11: 165 | H11: =_xlfn.IFS(COUNT(E11:G11)<1,"",AND(E11>C11,F11>C11,G11>C11,COUNT($E$7:G11)>sixng),"#",AND(E11>C10,F11>C10,G11>C10,COUNT($E$7:G11)>sixng,COUNTIF(H10,"#")=1),"2",$A$7=1,"") -> # | I11: 458 | J11: 152 | K11: =_xlfn.IFS(Q11<>1,"",Q11=1,I11+(3*D11)) -> 728 | L11: =_xlfn.IFS(Q11<>1,"",COUNT($E$7:G11)<=hcpng,"",COUNT($E$7:G11)>=hcpng,K11) -> 728 | M11: =_xlfn.IFS(Q11=1,SUM($E$7:G11),Q11<>1,"") -> 2013 | N11: =_xlfn.IFS(Q11=1,COUNT($E$7:G11),Q11<>1,"") -> 15 | O11: =IF(Q11=1,ROUND(AVERAGE($E$7:G11),2),"") -> 134.2 | P11: =_xlfn.IFS(Q11<>1,"",SUM($Q$7:Q11)=1,1,SUM($Q$7:Q11)<>1,"") ->  | Q11: 1 | S11: =_xlfn.IFS(E11=$X$5,E11,F11=$X$5,F11,G11=$X$5,G11,$A$7=1,"") ->  | U11: =_xlfn.IFS(W11=$X$6,W11,X11=$X$6,X11,Y11=$X$6,Y11,$A$7=1,"") ->  | W11: =_xlfn.IFS(AND(Q11=1,COUNT($E$7:G11)>hcpng),E11+D11,$A$7=1," ") -> 234 | X11: =_xlfn.IFS(AND(Q11=1,COUNT($E$7:G11)>hcpng),F11+D11,$A$7=1," ") -> 239 | Y11: =_xlfn.IFS(AND(Q11=1,COUNT($E$7:G11)>hcpng),G11+D11,$A$7=1," ") -> 255 | Z11: 5 | AA11: =_xlfn.IFS(COUNTIFS(H11,"#",H10,"#"),A10,COUNTIFS(H11,2,H10,"#"),A10,$A$7=1,"") -> 
A12: 6 | B12: ='UTL1'!B12 -> 2022-10-12 | C12: =_xlfn.IFS(Q12<>1,"",AND($B$4>=1,COUNT($E$7:G12)<=bkng),$B$4,P12=1,TRUNC(AVERAGE(E12:G12),0),COUNT($Q$7:Q12)=2,TRUNC(AVERAGE($E$7:G11),0),COUNT($Q$7:Q12)>=3,TRUNC(AVERAGE($E$7:G11),0)) -> 134 | D12: =_xlfn.IFS(Q12<>1,"",Q12=1,TRUNC((230-C12)*0.9)) -> 86 | E12: 137 | F12: 133 | G12: 137 | H12: =_xlfn.IFS(COUNT(E12:G12)<1,"",AND(E12>C12,F12>C12,G12>C12,COUNT($E$7:G12)>sixng),"#",AND(E12>C11,F12>C11,G12>C11,COUNT($E$7:G12)>sixng,COUNTIF(H11,"#")=1),"2",$A$7=1,"") -> 2 | I12: 407 | J12: 135 | K12: =_xlfn.IFS(Q12<>1,"",Q12=1,I12+(3*D12)) -> 665 | L12: =_xlfn.IFS(Q12<>1,"",COUNT($E$7:G12)<=hcpng,"",COUNT($E$7:G12)>=hcpng,K12) -> 665 | M12: =_xlfn.IFS(Q12=1,SUM($E$7:G12),Q12<>1,"") -> 2420 | N12: =_xlfn.IFS(Q12=1,COUNT($E$7:G12),Q12<>1,"") -> 18 | O12: =IF(Q12=1,ROUND(AVERAGE($E$7:G12),2),"") -> 134.44 | P12: =_xlfn.IFS(Q12<>1,"",SUM($Q$7:Q12)=1,1,SUM($Q$7:Q12)<>1,"") ->  | Q12: 1 | S12: =_xlfn.IFS(E12=$X$5,E12,F12=$X$5,F12,G12=$X$5,G12,$A$7=1,"") ->  | U12: =_xlfn.IFS(W12=$X$6,W12,X12=$X$6,X12,Y12=$X$6,Y12,$A$7=1,"") ->  | W12: =_xlfn.IFS(AND(Q12=1,COUNT($E$7:G12)>hcpng),E12+D12,$A$7=1," ") -> 223 | X12: =_xlfn.IFS(AND(Q12=1,COUNT($E$7:G12)>hcpng),F12+D12,$A$7=1," ") -> 219 | Y12: =_xlfn.IFS(AND(Q12=1,COUNT($E$7:G12)>hcpng),G12+D12,$A$7=1," ") -> 223 | Z12: 6 | AA12: =_xlfn.IFS(COUNTIFS(H12,"#",H11,"#"),A11,COUNTIFS(H12,2,H11,"#"),A11,$A$7=1,"") -> 5
A13: 7 | B13: ='UTL1'!B13 -> 2022-10-19 | C13: =_xlfn.IFS(Q13<>1,"",AND($B$4>=1,COUNT($E$7:G13)<=bkng),$B$4,P13=1,TRUNC(AVERAGE(E13:G13),0),COUNT($Q$7:Q13)=2,TRUNC(AVERAGE($E$7:G12),0),COUNT($Q$7:Q13)>=3,TRUNC(AVERAGE($E$7:G12),0)) -> 134 | D13: =_xlfn.IFS(Q13<>1,"",Q13=1,TRUNC((230-C13)*0.9)) -> 86 | E13: 95 | F13: 146 | G13: 176 | H13: =_xlfn.IFS(COUNT(E13:G13)<1,"",AND(E13>C13,F13>C13,G13>C13,COUNT($E$7:G13)>sixng),"#",AND(E13>C12,F13>C12,G13>C12,COUNT($E$7:G13)>sixng,COUNTIF(H12,"#")=1),"2",$A$7=1,"") ->  | I13: 417 | J13: 139 | K13: =_xlfn.IFS(Q13<>1,"",Q13=1,I13+(3*D13)) -> 675 | L13: =_xlfn.IFS(Q13<>1,"",COUNT($E$7:G13)<=hcpng,"",COUNT($E$7:G13)>=hcpng,K13) -> 675 | M13: =_xlfn.IFS(Q13=1,SUM($E$7:G13),Q13<>1,"") -> 2837 | N13: =_xlfn.IFS(Q13=1,COUNT($E$7:G13),Q13<>1,"") -> 21 | O13: =IF(Q13=1,ROUND(AVERAGE($E$7:G13),2),"") -> 135.1 | P13: =_xlfn.IFS(Q13<>1,"",SUM($Q$7:Q13)=1,1,SUM($Q$7:Q13)<>1,"") ->  | Q13: 1 | S13: =_xlfn.IFS(E13=$X$5,E13,F13=$X$5,F13,G13=$X$5,G13,$A$7=1,"") ->  | U13: =_xlfn.IFS(W13=$X$6,W13,X13=$X$6,X13,Y13=$X$6,Y13,$A$7=1,"") ->  | W13: =_xlfn.IFS(AND(Q13=1,COUNT($E$7:G13)>hcpng),E13+D13,$A$7=1," ") -> 181 | X13: =_xlfn.IFS(AND(Q13=1,COUNT($E$7:G13)>hcpng),F13+D13,$A$7=1," ") -> 232 | Y13: =_xlfn.IFS(AND(Q13=1,COUNT($E$7:G13)>hcpng),G13+D13,$A$7=1," ") -> 262 | Z13: 7 | AA13: =_xlfn.IFS(COUNTIFS(H13,"#",H12,"#"),A12,COUNTIFS(H13,2,H12,"#"),A12,$A$7=1,"") -> 
A14: 8 | B14: ='UTL1'!B14 -> 2022-10-26 | C14: =_xlfn.IFS(Q14<>1,"",AND($B$4>=1,COUNT($E$7:G14)<=bkng),$B$4,P14=1,TRUNC(AVERAGE(E14:G14),0),COUNT($Q$7:Q14)=2,TRUNC(AVERAGE($E$7:G13),0),COUNT($Q$7:Q14)>=3,TRUNC(AVERAGE($E$7:G13),0)) -> 135 | D14: =_xlfn.IFS(Q14<>1,"",Q14=1,TRUNC((230-C14)*0.9)) -> 85 | E14: 162 | F14: 101 | G14: 145 | H14: =_xlfn.IFS(COUNT(E14:G14)<1,"",AND(E14>C14,F14>C14,G14>C14,COUNT($E$7:G14)>sixng),"#",AND(E14>C13,F14>C13,G14>C13,COUNT($E$7:G14)>sixng,COUNTIF(H13,"#")=1),"2",$A$7=1,"") ->  | I14: 408 | J14: 136 | K14: =_xlfn.IFS(Q14<>1,"",Q14=1,I14+(3*D14)) -> 663 | L14: =_xlfn.IFS(Q14<>1,"",COUNT($E$7:G14)<=hcpng,"",COUNT($E$7:G14)>=hcpng,K14) -> 663 | M14: =_xlfn.IFS(Q14=1,SUM($E$7:G14),Q14<>1,"") -> 3245 | N14: =_xlfn.IFS(Q14=1,COUNT($E$7:G14),Q14<>1,"") -> 24 | O14: =IF(Q14=1,ROUND(AVERAGE($E$7:G14),2),"") -> 135.21 | P14: =_xlfn.IFS(Q14<>1,"",SUM($Q$7:Q14)=1,1,SUM($Q$7:Q14)<>1,"") ->  | Q14: 1 | S14: =_xlfn.IFS(E14=$X$5,E14,F14=$X$5,F14,G14=$X$5,G14,$A$7=1,"") ->  | U14: =_xlfn.IFS(W14=$X$6,W14,X14=$X$6,X14,Y14=$X$6,Y14,$A$7=1,"") ->  | W14: =_xlfn.IFS(AND(Q14=1,COUNT($E$7:G14)>hcpng),E14+D14,$A$7=1," ") -> 247 | X14: =_xlfn.IFS(AND(Q14=1,COUNT($E$7:G14)>hcpng),F14+D14,$A$7=1," ") -> 186 | Y14: =_xlfn.IFS(AND(Q14=1,COUNT($E$7:G14)>hcpng),G14+D14,$A$7=1," ") -> 230 | Z14: 8 | AA14: =_xlfn.IFS(COUNTIFS(H14,"#",H13,"#"),A13,COUNTIFS(H14,2,H13,"#"),A13,$A$7=1,"") -> 
A15: 9 | B15: ='UTL1'!B15 -> 2022-11-02 | C15: =_xlfn.IFS(Q15<>1,"",AND($B$4>=1,COUNT($E$7:G15)<=bkng),$B$4,P15=1,TRUNC(AVERAGE(E15:G15),0),COUNT($Q$7:Q15)=2,TRUNC(AVERAGE($E$7:G14),0),COUNT($Q$7:Q15)>=3,TRUNC(AVERAGE($E$7:G14),0)) ->  | D15: =_xlfn.IFS(Q15<>1,"",Q15=1,TRUNC((230-C15)*0.9)) ->  | H15: =_xlfn.IFS(COUNT(E15:G15)<1,"",AND(E15>C15,F15>C15,G15>C15,COUNT($E$7:G15)>sixng),"#",AND(E15>C14,F15>C14,G15>C14,COUNT($E$7:G15)>sixng,COUNTIF(H14,"#")=1),"2",$A$7=1,"") ->  | K15: =_xlfn.IFS(Q15<>1,"",Q15=1,I15+(3*D15)) ->  | L15: =_xlfn.IFS(Q15<>1,"",COUNT($E$7:G15)<=hcpng,"",COUNT($E$7:G15)>=hcpng,K15) ->  | M15: =_xlfn.IFS(Q15=1,SUM($E$7:G15),Q15<>1,"") ->  | N15: =_xlfn.IFS(Q15=1,COUNT($E$7:G15),Q15<>1,"") ->  | O15: =IF(Q15=1,ROUND(AVERAGE($E$7:G15),2),"") ->  | P15: =_xlfn.IFS(Q15<>1,"",SUM($Q$7:Q15)=1,1,SUM($Q$7:Q15)<>1,"") ->  | S15: =_xlfn.IFS(E15=$X$5,E15,F15=$X$5,F15,G15=$X$5,G15,$A$7=1,"") ->  | U15: =_xlfn.IFS(W15=$X$6,W15,X15=$X$6,X15,Y15=$X$6,Y15,$A$7=1,"") ->  | W15: =_xlfn.IFS(AND(Q15=1,COUNT($E$7:G15)>hcpng),E15+D15,$A$7=1," ") ->  | X15: =_xlfn.IFS(AND(Q15=1,COUNT($E$7:G15)>hcpng),F15+D15,$A$7=1," ") ->  | Y15: =_xlfn.IFS(AND(Q15=1,COUNT($E$7:G15)>hcpng),G15+D15,$A$7=1," ") ->  | Z15: 0 | AA15: =_xlfn.IFS(COUNTIFS(H15,"#",H14,"#"),A14,COUNTIFS(H15,2,H14,"#"),A14,$A$7=1,"") -> 
A16: 10 | B16: ='UTL1'!B16 -> 2022-11-09 | C16: =_xlfn.IFS(Q16<>1,"",AND($B$4>=1,COUNT($E$7:G16)<=bkng),$B$4,P16=1,TRUNC(AVERAGE(E16:G16),0),COUNT($Q$7:Q16)=2,TRUNC(AVERAGE($E$7:G15),0),COUNT($Q$7:Q16)>=3,TRUNC(AVERAGE($E$7:G15),0)) -> 135 | D16: =_xlfn.IFS(Q16<>1,"",Q16=1,TRUNC((230-C16)*0.9)) -> 85 | E16: 128 | F16: 129 | G16: 150 | H16: =_xlfn.IFS(COUNT(E16:G16)<1,"",AND(E16>C16,F16>C16,G16>C16,COUNT($E$7:G16)>sixng),"#",AND(E16>C15,F16>C15,G16>C15,COUNT($E$7:G16)>sixng,COUNTIF(H15,"#")=1),"2",$A$7=1,"") ->  | I16: 407 | J16: 135 | K16: =_xlfn.IFS(Q16<>1,"",Q16=1,I16+(3*D16)) -> 662 | L16: =_xlfn.IFS(Q16<>1,"",COUNT($E$7:G16)<=hcpng,"",COUNT($E$7:G16)>=hcpng,K16) -> 662 | M16: =_xlfn.IFS(Q16=1,SUM($E$7:G16),Q16<>1,"") -> 3652 | N16: =_xlfn.IFS(Q16=1,COUNT($E$7:G16),Q16<>1,"") -> 27 | O16: =IF(Q16=1,ROUND(AVERAGE($E$7:G16),2),"") -> 135.26 | P16: =_xlfn.IFS(Q16<>1,"",SUM($Q$7:Q16)=1,1,SUM($Q$7:Q16)<>1,"") ->  | Q16: 1 | S16: =_xlfn.IFS(E16=$X$5,E16,F16=$X$5,F16,G16=$X$5,G16,$A$7=1,"") ->  | U16: =_xlfn.IFS(W16=$X$6,W16,X16=$X$6,X16,Y16=$X$6,Y16,$A$7=1,"") ->  | W16: =_xlfn.IFS(AND(Q16=1,COUNT($E$7:G16)>hcpng),E16+D16,$A$7=1," ") -> 213 | X16: =_xlfn.IFS(AND(Q16=1,COUNT($E$7:G16)>hcpng),F16+D16,$A$7=1," ") -> 214 | Y16: =_xlfn.IFS(AND(Q16=1,COUNT($E$7:G16)>hcpng),G16+D16,$A$7=1," ") -> 235 | Z16: 10 | AA16: =_xlfn.IFS(COUNTIFS(H16,"#",H15,"#"),A15,COUNTIFS(H16,2,H15,"#"),A15,$A$7=1,"") -> 
A17: 11 | B17: ='UTL1'!B17 -> 2022-11-16 | C17: =_xlfn.IFS(Q17<>1,"",AND($B$4>=1,COUNT($E$7:G17)<=bkng),$B$4,P17=1,TRUNC(AVERAGE(E17:G17),0),COUNT($Q$7:Q17)=2,TRUNC(AVERAGE($E$7:G16),0),COUNT($Q$7:Q17)>=3,TRUNC(AVERAGE($E$7:G16),0)) -> 135 | D17: =_xlfn.IFS(Q17<>1,"",Q17=1,TRUNC((230-C17)*0.9)) -> 85 | E17: 112 | F17: 127 | G17: 174 | H17: =_xlfn.IFS(COUNT(E17:G17)<1,"",AND(E17>C17,F17>C17,G17>C17,COUNT($E$7:G17)>sixng),"#",AND(E17>C16,F17>C16,G17>C16,COUNT($E$7:G17)>sixng,COUNTIF(H16,"#")=1),"2",$A$7=1,"") ->  | I17: 413 | J17: 137 | K17: =_xlfn.IFS(Q17<>1,"",Q17=1,I17+(3*D17)) -> 668 | L17: =_xlfn.IFS(Q17<>1,"",COUNT($E$7:G17)<=hcpng,"",COUNT($E$7:G17)>=hcpng,K17) -> 668 | M17: =_xlfn.IFS(Q17=1,SUM($E$7:G17),Q17<>1,"") -> 4065 | N17: =_xlfn.IFS(Q17=1,COUNT($E$7:G17),Q17<>1,"") -> 30 | O17: =IF(Q17=1,ROUND(AVERAGE($E$7:G17),2),"") -> 135.5 | P17: =_xlfn.IFS(Q17<>1,"",SUM($Q$7:Q17)=1,1,SUM($Q$7:Q17)<>1,"") ->  | Q17: 1 | S17: =_xlfn.IFS(E17=$X$5,E17,F17=$X$5,F17,G17=$X$5,G17,$A$7=1,"") ->  | U17: =_xlfn.IFS(W17=$X$6,W17,X17=$X$6,X17,Y17=$X$6,Y17,$A$7=1,"") ->  | W17: =_xlfn.IFS(AND(Q17=1,COUNT($E$7:G17)>hcpng),E17+D17,$A$7=1," ") -> 197 | X17: =_xlfn.IFS(AND(Q17=1,COUNT($E$7:G17)>hcpng),F17+D17,$A$7=1," ") -> 212 | Y17: =_xlfn.IFS(AND(Q17=1,COUNT($E$7:G17)>hcpng),G17+D17,$A$7=1," ") -> 259 | Z17: 11 | AA17: =_xlfn.IFS(COUNTIFS(H17,"#",H16,"#"),A16,COUNTIFS(H17,2,H16,"#"),A16,$A$7=1,"") -> 
A18: 12 | B18: ='UTL1'!B18 -> 2022-11-30 | C18: =_xlfn.IFS(Q18<>1,"",AND($B$4>=1,COUNT($E$7:G18)<=bkng),$B$4,P18=1,TRUNC(AVERAGE(E18:G18),0),COUNT($Q$7:Q18)=2,TRUNC(AVERAGE($E$7:G17),0),COUNT($Q$7:Q18)>=3,TRUNC(AVERAGE($E$7:G17),0)) -> 135 | D18: =_xlfn.IFS(Q18<>1,"",Q18=1,TRUNC((230-C18)*0.9)) -> 85 | E18: 125 | F18: 176 | G18: 183 | H18: =_xlfn.IFS(COUNT(E18:G18)<1,"",AND(E18>C18,F18>C18,G18>C18,COUNT($E$7:G18)>sixng),"#",AND(E18>C17,F18>C17,G18>C17,COUNT($E$7:G18)>sixng,COUNTIF(H17,"#")=1),"2",$A$7=1,"") ->  | I18: 484 | J18: 161 | K18: =_xlfn.IFS(Q18<>1,"",Q18=1,I18+(3*D18)) -> 739 | L18: =_xlfn.IFS(Q18<>1,"",COUNT($E$7:G18)<=hcpng,"",COUNT($E$7:G18)>=hcpng,K18) -> 739 | M18: =_xlfn.IFS(Q18=1,SUM($E$7:G18),Q18<>1,"") -> 4549 | N18: =_xlfn.IFS(Q18=1,COUNT($E$7:G18),Q18<>1,"") -> 33 | O18: =IF(Q18=1,ROUND(AVERAGE($E$7:G18),2),"") -> 137.85 | P18: =_xlfn.IFS(Q18<>1,"",SUM($Q$7:Q18)=1,1,SUM($Q$7:Q18)<>1,"") ->  | Q18: 1 | S18: =_xlfn.IFS(E18=$X$5,E18,F18=$X$5,F18,G18=$X$5,G18,$A$7=1,"") ->  | T18: 739 | U18: =_xlfn.IFS(W18=$X$6,W18,X18=$X$6,X18,Y18=$X$6,Y18,$A$7=1,"") ->  | W18: =_xlfn.IFS(AND(Q18=1,COUNT($E$7:G18)>hcpng),E18+D18,$A$7=1," ") -> 210 | X18: =_xlfn.IFS(AND(Q18=1,COUNT($E$7:G18)>hcpng),F18+D18,$A$7=1," ") -> 261 | Y18: =_xlfn.IFS(AND(Q18=1,COUNT($E$7:G18)>hcpng),G18+D18,$A$7=1," ") -> 268 | Z18: 12 | AA18: =_xlfn.IFS(COUNTIFS(H18,"#",H17,"#"),A17,COUNTIFS(H18,2,H17,"#"),A17,$A$7=1,"") -> 
A19: 13 | B19: ='UTL1'!B19 -> 2022-12-07 | C19: =_xlfn.IFS(Q19<>1,"",AND($B$4>=1,COUNT($E$7:G19)<=bkng),$B$4,P19=1,TRUNC(AVERAGE(E19:G19),0),COUNT($Q$7:Q19)=2,TRUNC(AVERAGE($E$7:G18),0),COUNT($Q$7:Q19)>=3,TRUNC(AVERAGE($E$7:G18),0)) -> 137 | D19: =_xlfn.IFS(Q19<>1,"",Q19=1,TRUNC((230-C19)*0.9)) -> 83 | E19: 132 | F19: 107 | G19: 162 | H19: =_xlfn.IFS(COUNT(E19:G19)<1,"",AND(E19>C19,F19>C19,G19>C19,COUNT($E$7:G19)>sixng),"#",AND(E19>C18,F19>C18,G19>C18,COUNT($E$7:G19)>sixng,COUNTIF(H18,"#")=1),"2",$A$7=1,"") ->  | I19: 401 | J19: 133 | K19: =_xlfn.IFS(Q19<>1,"",Q19=1,I19+(3*D19)) -> 650 | L19: =_xlfn.IFS(Q19<>1,"",COUNT($E$7:G19)<=hcpng,"",COUNT($E$7:G19)>=hcpng,K19) -> 650 | M19: =_xlfn.IFS(Q19=1,SUM($E$7:G19),Q19<>1,"") -> 4950 | N19: =_xlfn.IFS(Q19=1,COUNT($E$7:G19),Q19<>1,"") -> 36 | O19: =IF(Q19=1,ROUND(AVERAGE($E$7:G19),2),"") -> 137.5 | P19: =_xlfn.IFS(Q19<>1,"",SUM($Q$7:Q19)=1,1,SUM($Q$7:Q19)<>1,"") ->  | Q19: 1 | S19: =_xlfn.IFS(E19=$X$5,E19,F19=$X$5,F19,G19=$X$5,G19,$A$7=1,"") ->  | U19: =_xlfn.IFS(W19=$X$6,W19,X19=$X$6,X19,Y19=$X$6,Y19,$A$7=1,"") ->  | W19: =_xlfn.IFS(AND(Q19=1,COUNT($E$7:G19)>hcpng),E19+D19,$A$7=1," ") -> 215 | X19: =_xlfn.IFS(AND(Q19=1,COUNT($E$7:G19)>hcpng),F19+D19,$A$7=1," ") -> 190 | Y19: =_xlfn.IFS(AND(Q19=1,COUNT($E$7:G19)>hcpng),G19+D19,$A$7=1," ") -> 245 | Z19: 13 | AA19: =_xlfn.IFS(COUNTIFS(H19,"#",H18,"#"),A18,COUNTIFS(H19,2,H18,"#"),A18,$A$7=1,"") -> 
A20: 14 | B20: ='UTL1'!B20 -> 2022-12-14 | C20: =_xlfn.IFS(Q20<>1,"",AND($B$4>=1,COUNT($E$7:G20)<=bkng),$B$4,P20=1,TRUNC(AVERAGE(E20:G20),0),COUNT($Q$7:Q20)=2,TRUNC(AVERAGE($E$7:G19),0),COUNT($Q$7:Q20)>=3,TRUNC(AVERAGE($E$7:G19),0)) -> 137 | D20: =_xlfn.IFS(Q20<>1,"",Q20=1,TRUNC((230-C20)*0.9)) -> 83 | E20: 154 | F20: 136 | G20: 155 | H20: =_xlfn.IFS(COUNT(E20:G20)<1,"",AND(E20>C20,F20>C20,G20>C20,COUNT($E$7:G20)>sixng),"#",AND(E20>C19,F20>C19,G20>C19,COUNT($E$7:G20)>sixng,COUNTIF(H19,"#")=1),"2",$A$7=1,"") ->  | I20: 445 | J20: 148 | K20: =_xlfn.IFS(Q20<>1,"",Q20=1,I20+(3*D20)) -> 694 | L20: =_xlfn.IFS(Q20<>1,"",COUNT($E$7:G20)<=hcpng,"",COUNT($E$7:G20)>=hcpng,K20) -> 694 | M20: =_xlfn.IFS(Q20=1,SUM($E$7:G20),Q20<>1,"") -> 5395 | N20: =_xlfn.IFS(Q20=1,COUNT($E$7:G20),Q20<>1,"") -> 39 | O20: =IF(Q20=1,ROUND(AVERAGE($E$7:G20),2),"") -> 138.33 | P20: =_xlfn.IFS(Q20<>1,"",SUM($Q$7:Q20)=1,1,SUM($Q$7:Q20)<>1,"") ->  | Q20: 1 | S20: =_xlfn.IFS(E20=$X$5,E20,F20=$X$5,F20,G20=$X$5,G20,$A$7=1,"") ->  | U20: =_xlfn.IFS(W20=$X$6,W20,X20=$X$6,X20,Y20=$X$6,Y20,$A$7=1,"") ->  | W20: =_xlfn.IFS(AND(Q20=1,COUNT($E$7:G20)>hcpng),E20+D20,$A$7=1," ") -> 237 | X20: =_xlfn.IFS(AND(Q20=1,COUNT($E$7:G20)>hcpng),F20+D20,$A$7=1," ") -> 219 | Y20: =_xlfn.IFS(AND(Q20=1,COUNT($E$7:G20)>hcpng),G20+D20,$A$7=1," ") -> 238 | Z20: 14 | AA20: =_xlfn.IFS(COUNTIFS(H20,"#",H19,"#"),A19,COUNTIFS(H20,2,H19,"#"),A19,$A$7=1,"") -> 
A21: 15 | B21: ='UTL1'!B21 -> 2022-12-21 | C21: =_xlfn.IFS(Q21<>1,"",AND($B$4>=1,COUNT($E$7:G21)<=bkng),$B$4,P21=1,TRUNC(AVERAGE(E21:G21),0),COUNT($Q$7:Q21)=2,TRUNC(AVERAGE($E$7:G20),0),COUNT($Q$7:Q21)>=3,TRUNC(AVERAGE($E$7:G20),0)) -> 138 | D21: =_xlfn.IFS(Q21<>1,"",Q21=1,TRUNC((230-C21)*0.9)) -> 82 | E21: 203 | F21: 113 | G21: 166 | H21: =_xlfn.IFS(COUNT(E21:G21)<1,"",AND(E21>C21,F21>C21,G21>C21,COUNT($E$7:G21)>sixng),"#",AND(E21>C20,F21>C20,G21>C20,COUNT($E$7:G21)>sixng,COUNTIF(H20,"#")=1),"2",$A$7=1,"") ->  | I21: 482 | J21: 160 | K21: =_xlfn.IFS(Q21<>1,"",Q21=1,I21+(3*D21)) -> 728 | L21: =_xlfn.IFS(Q21<>1,"",COUNT($E$7:G21)<=hcpng,"",COUNT($E$7:G21)>=hcpng,K21) -> 728 | M21: =_xlfn.IFS(Q21=1,SUM($E$7:G21),Q21<>1,"") -> 5877 | N21: =_xlfn.IFS(Q21=1,COUNT($E$7:G21),Q21<>1,"") -> 42 | O21: =IF(Q21=1,ROUND(AVERAGE($E$7:G21),2),"") -> 139.93 | P21: =_xlfn.IFS(Q21<>1,"",SUM($Q$7:Q21)=1,1,SUM($Q$7:Q21)<>1,"") ->  | Q21: 1 | S21: =_xlfn.IFS(E21=$X$5,E21,F21=$X$5,F21,G21=$X$5,G21,$A$7=1,"") ->  | U21: =_xlfn.IFS(W21=$X$6,W21,X21=$X$6,X21,Y21=$X$6,Y21,$A$7=1,"") ->  | W21: =_xlfn.IFS(AND(Q21=1,COUNT($E$7:G21)>hcpng),E21+D21,$A$7=1," ") -> 285 | X21: =_xlfn.IFS(AND(Q21=1,COUNT($E$7:G21)>hcpng),F21+D21,$A$7=1," ") -> 195 | Y21: =_xlfn.IFS(AND(Q21=1,COUNT($E$7:G21)>hcpng),G21+D21,$A$7=1," ") -> 248 | Z21: 15 | AA21: =_xlfn.IFS(COUNTIFS(H21,"#",H20,"#"),A20,COUNTIFS(H21,2,H20,"#"),A20,$A$7=1,"") -> 
A22: 16 | B22: ='UTL1'!B22 -> 2023-01-04 | C22: =_xlfn.IFS(Q22<>1,"",AND($B$4>=1,COUNT($E$7:G22)<=bkng),$B$4,P22=1,TRUNC(AVERAGE(E22:G22),0),COUNT($Q$7:Q22)=2,TRUNC(AVERAGE($E$7:G21),0),COUNT($Q$7:Q22)>=3,TRUNC(AVERAGE($E$7:G21),0)) -> 139 | D22: =_xlfn.IFS(Q22<>1,"",Q22=1,TRUNC((230-C22)*0.9)) -> 81 | E22: 146 | F22: 167 | G22: 136 | H22: =_xlfn.IFS(COUNT(E22:G22)<1,"",AND(E22>C22,F22>C22,G22>C22,COUNT($E$7:G22)>sixng),"#",AND(E22>C21,F22>C21,G22>C21,COUNT($E$7:G22)>sixng,COUNTIF(H21,"#")=1),"2",$A$7=1,"") ->  | I22: 449 | J22: 149 | K22: =_xlfn.IFS(Q22<>1,"",Q22=1,I22+(3*D22)) -> 692 | L22: =_xlfn.IFS(Q22<>1,"",COUNT($E$7:G22)<=hcpng,"",COUNT($E$7:G22)>=hcpng,K22) -> 692 | M22: =_xlfn.IFS(Q22=1,SUM($E$7:G22),Q22<>1,"") -> 6326 | N22: =_xlfn.IFS(Q22=1,COUNT($E$7:G22),Q22<>1,"") -> 45 | O22: =IF(Q22=1,ROUND(AVERAGE($E$7:G22),2),"") -> 140.58 | P22: =_xlfn.IFS(Q22<>1,"",SUM($Q$7:Q22)=1,1,SUM($Q$7:Q22)<>1,"") ->  | Q22: 1 | S22: =_xlfn.IFS(E22=$X$5,E22,F22=$X$5,F22,G22=$X$5,G22,$A$7=1,"") ->  | U22: =_xlfn.IFS(W22=$X$6,W22,X22=$X$6,X22,Y22=$X$6,Y22,$A$7=1,"") ->  | W22: =_xlfn.IFS(AND(Q22=1,COUNT($E$7:G22)>hcpng),E22+D22,$A$7=1," ") -> 227 | X22: =_xlfn.IFS(AND(Q22=1,COUNT($E$7:G22)>hcpng),F22+D22,$A$7=1," ") -> 248 | Y22: =_xlfn.IFS(AND(Q22=1,COUNT($E$7:G22)>hcpng),G22+D22,$A$7=1," ") -> 217 | Z22: 16 | AA22: =_xlfn.IFS(COUNTIFS(H22,"#",H21,"#"),A21,COUNTIFS(H22,2,H21,"#"),A21,$A$7=1,"") -> 
A23: 17 | B23: ='UTL1'!B23 -> 2023-01-11 | C23: =_xlfn.IFS(Q23<>1,"",AND($B$4>=1,COUNT($E$7:G23)<=bkng),$B$4,P23=1,TRUNC(AVERAGE(E23:G23),0),COUNT($Q$7:Q23)=2,TRUNC(AVERAGE($E$7:G22),0),COUNT($Q$7:Q23)>=3,TRUNC(AVERAGE($E$7:G22),0)) -> 140 | D23: =_xlfn.IFS(Q23<>1,"",Q23=1,TRUNC((230-C23)*0.9)) -> 81 | E23: 134 | F23: 140 | G23: 134 | H23: =_xlfn.IFS(COUNT(E23:G23)<1,"",AND(E23>C23,F23>C23,G23>C23,COUNT($E$7:G23)>sixng),"#",AND(E23>C22,F23>C22,G23>C22,COUNT($E$7:G23)>sixng,COUNTIF(H22,"#")=1),"2",$A$7=1,"") ->  | I23: 408 | J23: 136 | K23: =_xlfn.IFS(Q23<>1,"",Q23=1,I23+(3*D23)) -> 651 | L23: =_xlfn.IFS(Q23<>1,"",COUNT($E$7:G23)<=hcpng,"",COUNT($E$7:G23)>=hcpng,K23) -> 651 | M23: =_xlfn.IFS(Q23=1,SUM($E$7:G23),Q23<>1,"") -> 6734 | N23: =_xlfn.IFS(Q23=1,COUNT($E$7:G23),Q23<>1,"") -> 48 | O23: =IF(Q23=1,ROUND(AVERAGE($E$7:G23),2),"") -> 140.29 | P23: =_xlfn.IFS(Q23<>1,"",SUM($Q$7:Q23)=1,1,SUM($Q$7:Q23)<>1,"") ->  | Q23: 1 | S23: =_xlfn.IFS(E23=$X$5,E23,F23=$X$5,F23,G23=$X$5,G23,$A$7=1,"") ->  | U23: =_xlfn.IFS(W23=$X$6,W23,X23=$X$6,X23,Y23=$X$6,Y23,$A$7=1,"") ->  | W23: =_xlfn.IFS(AND(Q23=1,COUNT($E$7:G23)>hcpng),E23+D23,$A$7=1," ") -> 215 | X23: =_xlfn.IFS(AND(Q23=1,COUNT($E$7:G23)>hcpng),F23+D23,$A$7=1," ") -> 221 | Y23: =_xlfn.IFS(AND(Q23=1,COUNT($E$7:G23)>hcpng),G23+D23,$A$7=1," ") -> 215 | Z23: 17 | AA23: =_xlfn.IFS(COUNTIFS(H23,"#",H22,"#"),A22,COUNTIFS(H23,2,H22,"#"),A22,$A$7=1,"") -> 
A24: 18 | B24: ='UTL1'!B24 -> 2023-01-18 | C24: =_xlfn.IFS(Q24<>1,"",AND($B$4>=1,COUNT($E$7:G24)<=bkng),$B$4,P24=1,TRUNC(AVERAGE(E24:G24),0),COUNT($Q$7:Q24)=2,TRUNC(AVERAGE($E$7:G23),0),COUNT($Q$7:Q24)>=3,TRUNC(AVERAGE($E$7:G23),0)) ->  | D24: =_xlfn.IFS(Q24<>1,"",Q24=1,TRUNC((230-C24)*0.9)) ->  | H24: =_xlfn.IFS(COUNT(E24:G24)<1,"",AND(E24>C24,F24>C24,G24>C24,COUNT($E$7:G24)>sixng),"#",AND(E24>C23,F24>C23,G24>C23,COUNT($E$7:G24)>sixng,COUNTIF(H23,"#")=1),"2",$A$7=1,"") ->  | K24: =_xlfn.IFS(Q24<>1,"",Q24=1,I24+(3*D24)) ->  | L24: =_xlfn.IFS(Q24<>1,"",COUNT($E$7:G24)<=hcpng,"",COUNT($E$7:G24)>=hcpng,K24) ->  | M24: =_xlfn.IFS(Q24=1,SUM($E$7:G24),Q24<>1,"") ->  | N24: =_xlfn.IFS(Q24=1,COUNT($E$7:G24),Q24<>1,"") ->  | O24: =IF(Q24=1,ROUND(AVERAGE($E$7:G24),2),"") ->  | P24: =_xlfn.IFS(Q24<>1,"",SUM($Q$7:Q24)=1,1,SUM($Q$7:Q24)<>1,"") ->  | S24: =_xlfn.IFS(E24=$X$5,E24,F24=$X$5,F24,G24=$X$5,G24,$A$7=1,"") ->  | U24: =_xlfn.IFS(W24=$X$6,W24,X24=$X$6,X24,Y24=$X$6,Y24,$A$7=1,"") ->  | W24: =_xlfn.IFS(AND(Q24=1,COUNT($E$7:G24)>hcpng),E24+D24,$A$7=1," ") ->  | X24: =_xlfn.IFS(AND(Q24=1,COUNT($E$7:G24)>hcpng),F24+D24,$A$7=1," ") ->  | Y24: =_xlfn.IFS(AND(Q24=1,COUNT($E$7:G24)>hcpng),G24+D24,$A$7=1," ") ->  | Z24: 0 | AA24: =_xlfn.IFS(COUNTIFS(H24,"#",H23,"#"),A23,COUNTIFS(H24,2,H23,"#"),A23,$A$7=1,"") -> 
A25: 19 | B25: ='UTL1'!B25 -> 2023-01-25 | C25: =_xlfn.IFS(Q25<>1,"",AND($B$4>=1,COUNT($E$7:G25)<=bkng),$B$4,P25=1,TRUNC(AVERAGE(E25:G25),0),COUNT($Q$7:Q25)=2,TRUNC(AVERAGE($E$7:G24),0),COUNT($Q$7:Q25)>=3,TRUNC(AVERAGE($E$7:G24),0)) -> 140 | D25: =_xlfn.IFS(Q25<>1,"",Q25=1,TRUNC((230-C25)*0.9)) -> 81 | E25: 126 | F25: 135 | G25: 153 | H25: =_xlfn.IFS(COUNT(E25:G25)<1,"",AND(E25>C25,F25>C25,G25>C25,COUNT($E$7:G25)>sixng),"#",AND(E25>C24,F25>C24,G25>C24,COUNT($E$7:G25)>sixng,COUNTIF(H24,"#")=1),"2",$A$7=1,"") ->  | I25: 414 | J25: 138 | K25: =_xlfn.IFS(Q25<>1,"",Q25=1,I25+(3*D25)) -> 657 | L25: =_xlfn.IFS(Q25<>1,"",COUNT($E$7:G25)<=hcpng,"",COUNT($E$7:G25)>=hcpng,K25) -> 657 | M25: =_xlfn.IFS(Q25=1,SUM($E$7:G25),Q25<>1,"") -> 7148 | N25: =_xlfn.IFS(Q25=1,COUNT($E$7:G25),Q25<>1,"") -> 51 | O25: =IF(Q25=1,ROUND(AVERAGE($E$7:G25),2),"") -> 140.16 | P25: =_xlfn.IFS(Q25<>1,"",SUM($Q$7:Q25)=1,1,SUM($Q$7:Q25)<>1,"") ->  | Q25: 1 | S25: =_xlfn.IFS(E25=$X$5,E25,F25=$X$5,F25,G25=$X$5,G25,$A$7=1,"") ->  | U25: =_xlfn.IFS(W25=$X$6,W25,X25=$X$6,X25,Y25=$X$6,Y25,$A$7=1,"") ->  | W25: =_xlfn.IFS(AND(Q25=1,COUNT($E$7:G25)>hcpng),E25+D25,$A$7=1," ") -> 207 | X25: =_xlfn.IFS(AND(Q25=1,COUNT($E$7:G25)>hcpng),F25+D25,$A$7=1," ") -> 216 | Y25: =_xlfn.IFS(AND(Q25=1,COUNT($E$7:G25)>hcpng),G25+D25,$A$7=1," ") -> 234 | Z25: 19 | AA25: =_xlfn.IFS(COUNTIFS(H25,"#",H24,"#"),A24,COUNTIFS(H25,2,H24,"#"),A24,$A$7=1,"") -> 
A26: 20 | B26: ='UTL1'!B26 -> 2023-02-01 | C26: =_xlfn.IFS(Q26<>1,"",AND($B$4>=1,COUNT($E$7:G26)<=bkng),$B$4,P26=1,TRUNC(AVERAGE(E26:G26),0),COUNT($Q$7:Q26)=2,TRUNC(AVERAGE($E$7:G25),0),COUNT($Q$7:Q26)>=3,TRUNC(AVERAGE($E$7:G25),0)) -> 140 | D26: =_xlfn.IFS(Q26<>1,"",Q26=1,TRUNC((230-C26)*0.9)) -> 81 | E26: 147 | F26: 166 | G26: 135 | H26: =_xlfn.IFS(COUNT(E26:G26)<1,"",AND(E26>C26,F26>C26,G26>C26,COUNT($E$7:G26)>sixng),"#",AND(E26>C25,F26>C25,G26>C25,COUNT($E$7:G26)>sixng,COUNTIF(H25,"#")=1),"2",$A$7=1,"") ->  | I26: 448 | J26: 149 | K26: =_xlfn.IFS(Q26<>1,"",Q26=1,I26+(3*D26)) -> 691 | L26: =_xlfn.IFS(Q26<>1,"",COUNT($E$7:G26)<=hcpng,"",COUNT($E$7:G26)>=hcpng,K26) -> 691 | M26: =_xlfn.IFS(Q26=1,SUM($E$7:G26),Q26<>1,"") -> 7596 | N26: =_xlfn.IFS(Q26=1,COUNT($E$7:G26),Q26<>1,"") -> 54 | O26: =IF(Q26=1,ROUND(AVERAGE($E$7:G26),2),"") -> 140.67 | P26: =_xlfn.IFS(Q26<>1,"",SUM($Q$7:Q26)=1,1,SUM($Q$7:Q26)<>1,"") ->  | Q26: 1 | S26: =_xlfn.IFS(E26=$X$5,E26,F26=$X$5,F26,G26=$X$5,G26,$A$7=1,"") ->  | U26: =_xlfn.IFS(W26=$X$6,W26,X26=$X$6,X26,Y26=$X$6,Y26,$A$7=1,"") ->  | W26: =_xlfn.IFS(AND(Q26=1,COUNT($E$7:G26)>hcpng),E26+D26,$A$7=1," ") -> 228 | X26: =_xlfn.IFS(AND(Q26=1,COUNT($E$7:G26)>hcpng),F26+D26,$A$7=1," ") -> 247 | Y26: =_xlfn.IFS(AND(Q26=1,COUNT($E$7:G26)>hcpng),G26+D26,$A$7=1," ") -> 216 | Z26: 20 | AA26: =_xlfn.IFS(COUNTIFS(H26,"#",H25,"#"),A25,COUNTIFS(H26,2,H25,"#"),A25,$A$7=1,"") -> 
A27: 21 | B27: ='UTL1'!B27 -> 2023-02-08 | C27: =_xlfn.IFS(Q27<>1,"",AND($B$4>=1,COUNT($E$7:G27)<=bkng),$B$4,P27=1,TRUNC(AVERAGE(E27:G27),0),COUNT($Q$7:Q27)=2,TRUNC(AVERAGE($E$7:G26),0),COUNT($Q$7:Q27)>=3,TRUNC(AVERAGE($E$7:G26),0)) -> 140 | D27: =_xlfn.IFS(Q27<>1,"",Q27=1,TRUNC((230-C27)*0.9)) -> 81 | E27: 164 | F27: 130 | G27: 139 | H27: =_xlfn.IFS(COUNT(E27:G27)<1,"",AND(E27>C27,F27>C27,G27>C27,COUNT($E$7:G27)>sixng),"#",AND(E27>C26,F27>C26,G27>C26,COUNT($E$7:G27)>sixng,COUNTIF(H26,"#")=1),"2",$A$7=1,"") ->  | I27: 433 | J27: 144 | K27: =_xlfn.IFS(Q27<>1,"",Q27=1,I27+(3*D27)) -> 676 | L27: =_xlfn.IFS(Q27<>1,"",COUNT($E$7:G27)<=hcpng,"",COUNT($E$7:G27)>=hcpng,K27) -> 676 | M27: =_xlfn.IFS(Q27=1,SUM($E$7:G27),Q27<>1,"") -> 8029 | N27: =_xlfn.IFS(Q27=1,COUNT($E$7:G27),Q27<>1,"") -> 57 | O27: =IF(Q27=1,ROUND(AVERAGE($E$7:G27),2),"") -> 140.86 | P27: =_xlfn.IFS(Q27<>1,"",SUM($Q$7:Q27)=1,1,SUM($Q$7:Q27)<>1,"") ->  | Q27: 1 | S27: =_xlfn.IFS(E27=$X$5,E27,F27=$X$5,F27,G27=$X$5,G27,$A$7=1,"") ->  | U27: =_xlfn.IFS(W27=$X$6,W27,X27=$X$6,X27,Y27=$X$6,Y27,$A$7=1,"") ->  | W27: =_xlfn.IFS(AND(Q27=1,COUNT($E$7:G27)>hcpng),E27+D27,$A$7=1," ") -> 245 | X27: =_xlfn.IFS(AND(Q27=1,COUNT($E$7:G27)>hcpng),F27+D27,$A$7=1," ") -> 211 | Y27: =_xlfn.IFS(AND(Q27=1,COUNT($E$7:G27)>hcpng),G27+D27,$A$7=1," ") -> 220 | Z27: 21 | AA27: =_xlfn.IFS(COUNTIFS(H27,"#",H26,"#"),A26,COUNTIFS(H27,2,H26,"#"),A26,$A$7=1,"") -> 
A28: 22 | B28: ='UTL1'!B28 -> 2023-02-15 | C28: =_xlfn.IFS(Q28<>1,"",AND($B$4>=1,COUNT($E$7:G28)<=bkng),$B$4,P28=1,TRUNC(AVERAGE(E28:G28),0),COUNT($Q$7:Q28)=2,TRUNC(AVERAGE($E$7:G27),0),COUNT($Q$7:Q28)>=3,TRUNC(AVERAGE($E$7:G27),0)) ->  | D28: =_xlfn.IFS(Q28<>1,"",Q28=1,TRUNC((230-C28)*0.9)) ->  | H28: =_xlfn.IFS(COUNT(E28:G28)<1,"",AND(E28>C28,F28>C28,G28>C28,COUNT($E$7:G28)>sixng),"#",AND(E28>C27,F28>C27,G28>C27,COUNT($E$7:G28)>sixng,COUNTIF(H27,"#")=1),"2",$A$7=1,"") ->  | K28: =_xlfn.IFS(Q28<>1,"",Q28=1,I28+(3*D28)) ->  | L28: =_xlfn.IFS(Q28<>1,"",COUNT($E$7:G28)<=hcpng,"",COUNT($E$7:G28)>=hcpng,K28) ->  | M28: =_xlfn.IFS(Q28=1,SUM($E$7:G28),Q28<>1,"") ->  | N28: =_xlfn.IFS(Q28=1,COUNT($E$7:G28),Q28<>1,"") ->  | O28: =IF(Q28=1,ROUND(AVERAGE($E$7:G28),2),"") ->  | P28: =_xlfn.IFS(Q28<>1,"",SUM($Q$7:Q28)=1,1,SUM($Q$7:Q28)<>1,"") ->  | S28: =_xlfn.IFS(E28=$X$5,E28,F28=$X$5,F28,G28=$X$5,G28,$A$7=1,"") ->  | U28: =_xlfn.IFS(W28=$X$6,W28,X28=$X$6,X28,Y28=$X$6,Y28,$A$7=1,"") ->  | W28: =_xlfn.IFS(AND(Q28=1,COUNT($E$7:G28)>hcpng),E28+D28,$A$7=1," ") ->  | X28: =_xlfn.IFS(AND(Q28=1,COUNT($E$7:G28)>hcpng),F28+D28,$A$7=1," ") ->  | Y28: =_xlfn.IFS(AND(Q28=1,COUNT($E$7:G28)>hcpng),G28+D28,$A$7=1," ") ->  | Z28: 0 | AA28: =_xlfn.IFS(COUNTIFS(H28,"#",H27,"#"),A27,COUNTIFS(H28,2,H27,"#"),A27,$A$7=1,"") -> 
A29: 23 | B29: ='UTL1'!B29 -> 2023-02-22 | C29: =_xlfn.IFS(Q29<>1,"",AND($B$4>=1,COUNT($E$7:G29)<=bkng),$B$4,P29=1,TRUNC(AVERAGE(E29:G29),0),COUNT($Q$7:Q29)=2,TRUNC(AVERAGE($E$7:G28),0),COUNT($Q$7:Q29)>=3,TRUNC(AVERAGE($E$7:G28),0)) -> 140 | D29: =_xlfn.IFS(Q29<>1,"",Q29=1,TRUNC((230-C29)*0.9)) -> 81 | E29: 145 | F29: 185 | G29: 153 | H29: =_xlfn.IFS(COUNT(E29:G29)<1,"",AND(E29>C29,F29>C29,G29>C29,COUNT($E$7:G29)>sixng),"#",AND(E29>C28,F29>C28,G29>C28,COUNT($E$7:G29)>sixng,COUNTIF(H28,"#")=1),"2",$A$7=1,"") -> # | I29: 483 | J29: 161 | K29: =_xlfn.IFS(Q29<>1,"",Q29=1,I29+(3*D29)) -> 726 | L29: =_xlfn.IFS(Q29<>1,"",COUNT($E$7:G29)<=hcpng,"",COUNT($E$7:G29)>=hcpng,K29) -> 726 | M29: =_xlfn.IFS(Q29=1,SUM($E$7:G29),Q29<>1,"") -> 8512 | N29: =_xlfn.IFS(Q29=1,COUNT($E$7:G29),Q29<>1,"") -> 60 | O29: =IF(Q29=1,ROUND(AVERAGE($E$7:G29),2),"") -> 141.87 | P29: =_xlfn.IFS(Q29<>1,"",SUM($Q$7:Q29)=1,1,SUM($Q$7:Q29)<>1,"") ->  | Q29: 1 | S29: =_xlfn.IFS(E29=$X$5,E29,F29=$X$5,F29,G29=$X$5,G29,$A$7=1,"") ->  | U29: =_xlfn.IFS(W29=$X$6,W29,X29=$X$6,X29,Y29=$X$6,Y29,$A$7=1,"") ->  | W29: =_xlfn.IFS(AND(Q29=1,COUNT($E$7:G29)>hcpng),E29+D29,$A$7=1," ") -> 226 | X29: =_xlfn.IFS(AND(Q29=1,COUNT($E$7:G29)>hcpng),F29+D29,$A$7=1," ") -> 266 | Y29: =_xlfn.IFS(AND(Q29=1,COUNT($E$7:G29)>hcpng),G29+D29,$A$7=1," ") -> 234 | Z29: 23 | AA29: =_xlfn.IFS(COUNTIFS(H29,"#",H28,"#"),A28,COUNTIFS(H29,2,H28,"#"),A28,$A$7=1,"") -> 
A30: 24 | B30: ='UTL1'!B30 -> 2023-03-01 | C30: =_xlfn.IFS(Q30<>1,"",AND($B$4>=1,COUNT($E$7:G30)<=bkng),$B$4,P30=1,TRUNC(AVERAGE(E30:G30),0),COUNT($Q$7:Q30)=2,TRUNC(AVERAGE($E$7:G29),0),COUNT($Q$7:Q30)>=3,TRUNC(AVERAGE($E$7:G29),0)) -> 141 | D30: =_xlfn.IFS(Q30<>1,"",Q30=1,TRUNC((230-C30)*0.9)) -> 80 | E30: 209 | F30: 143 | G30: 145 | H30: =_xlfn.IFS(COUNT(E30:G30)<1,"",AND(E30>C30,F30>C30,G30>C30,COUNT($E$7:G30)>sixng),"#",AND(E30>C29,F30>C29,G30>C29,COUNT($E$7:G30)>sixng,COUNTIF(H29,"#")=1),"2",$A$7=1,"") -> # | I30: 497 | J30: 165 | K30: =_xlfn.IFS(Q30<>1,"",Q30=1,I30+(3*D30)) -> 737 | L30: =_xlfn.IFS(Q30<>1,"",COUNT($E$7:G30)<=hcpng,"",COUNT($E$7:G30)>=hcpng,K30) -> 737 | M30: =_xlfn.IFS(Q30=1,SUM($E$7:G30),Q30<>1,"") -> 9009 | N30: =_xlfn.IFS(Q30=1,COUNT($E$7:G30),Q30<>1,"") -> 63 | O30: =IF(Q30=1,ROUND(AVERAGE($E$7:G30),2),"") -> 143 | P30: =_xlfn.IFS(Q30<>1,"",SUM($Q$7:Q30)=1,1,SUM($Q$7:Q30)<>1,"") ->  | Q30: 1 | R30: 497 | S30: =_xlfn.IFS(E30=$X$5,E30,F30=$X$5,F30,G30=$X$5,G30,$A$7=1,"") -> 209 | U30: =_xlfn.IFS(W30=$X$6,W30,X30=$X$6,X30,Y30=$X$6,Y30,$A$7=1,"") -> 289 | W30: =_xlfn.IFS(AND(Q30=1,COUNT($E$7:G30)>hcpng),E30+D30,$A$7=1," ") -> 289 | X30: =_xlfn.IFS(AND(Q30=1,COUNT($E$7:G30)>hcpng),F30+D30,$A$7=1," ") -> 223 | Y30: =_xlfn.IFS(AND(Q30=1,COUNT($E$7:G30)>hcpng),G30+D30,$A$7=1," ") -> 225 | Z30: 24 | AA30: =_xlfn.IFS(COUNTIFS(H30,"#",H29,"#"),A29,COUNTIFS(H30,2,H29,"#"),A29,$A$7=1,"") -> 23
A31: 25 | B31: ='UTL1'!B31 -> 2023-03-08 | C31: =_xlfn.IFS(Q31<>1,"",AND($B$4>=1,COUNT($E$7:G31)<=bkng),$B$4,P31=1,TRUNC(AVERAGE(E31:G31),0),COUNT($Q$7:Q31)=2,TRUNC(AVERAGE($E$7:G30),0),COUNT($Q$7:Q31)>=3,TRUNC(AVERAGE($E$7:G30),0)) -> 143 | D31: =_xlfn.IFS(Q31<>1,"",Q31=1,TRUNC((230-C31)*0.9)) -> 78 | E31: 158 | F31: 150 | G31: 127 | H31: =_xlfn.IFS(COUNT(E31:G31)<1,"",AND(E31>C31,F31>C31,G31>C31,COUNT($E$7:G31)>sixng),"#",AND(E31>C30,F31>C30,G31>C30,COUNT($E$7:G31)>sixng,COUNTIF(H30,"#")=1),"2",$A$7=1,"") ->  | I31: 435 | J31: 145 | K31: =_xlfn.IFS(Q31<>1,"",Q31=1,I31+(3*D31)) -> 669 | L31: =_xlfn.IFS(Q31<>1,"",COUNT($E$7:G31)<=hcpng,"",COUNT($E$7:G31)>=hcpng,K31) -> 669 | M31: =_xlfn.IFS(Q31=1,SUM($E$7:G31),Q31<>1,"") -> 9444 | N31: =_xlfn.IFS(Q31=1,COUNT($E$7:G31),Q31<>1,"") -> 66 | O31: =IF(Q31=1,ROUND(AVERAGE($E$7:G31),2),"") -> 143.09 | P31: =_xlfn.IFS(Q31<>1,"",SUM($Q$7:Q31)=1,1,SUM($Q$7:Q31)<>1,"") ->  | Q31: 1 | S31: =_xlfn.IFS(E31=$X$5,E31,F31=$X$5,F31,G31=$X$5,G31,$A$7=1,"") ->  | U31: =_xlfn.IFS(W31=$X$6,W31,X31=$X$6,X31,Y31=$X$6,Y31,$A$7=1,"") ->  | W31: =_xlfn.IFS(AND(Q31=1,COUNT($E$7:G31)>hcpng),E31+D31,$A$7=1," ") -> 236 | X31: =_xlfn.IFS(AND(Q31=1,COUNT($E$7:G31)>hcpng),F31+D31,$A$7=1," ") -> 228 | Y31: =_xlfn.IFS(AND(Q31=1,COUNT($E$7:G31)>hcpng),G31+D31,$A$7=1," ") -> 205 | Z31: 25 | AA31: =_xlfn.IFS(COUNTIFS(H31,"#",H30,"#"),A30,COUNTIFS(H31,2,H30,"#"),A30,$A$7=1,"") -> 
A32: 26 | B32: ='UTL1'!B32 -> 2023-03-15 | C32: =_xlfn.IFS(Q32<>1,"",AND($B$4>=1,COUNT($E$7:G32)<=bkng),$B$4,P32=1,TRUNC(AVERAGE(E32:G32),0),COUNT($Q$7:Q32)=2,TRUNC(AVERAGE($E$7:G31),0),COUNT($Q$7:Q32)>=3,TRUNC(AVERAGE($E$7:G31),0)) -> 143 | D32: =_xlfn.IFS(Q32<>1,"",Q32=1,TRUNC((230-C32)*0.9)) -> 78 | E32: 142 | F32: 127 | G32: 138 | H32: =_xlfn.IFS(COUNT(E32:G32)<1,"",AND(E32>C32,F32>C32,G32>C32,COUNT($E$7:G32)>sixng),"#",AND(E32>C31,F32>C31,G32>C31,COUNT($E$7:G32)>sixng,COUNTIF(H31,"#")=1),"2",$A$7=1,"") ->  | I32: 407 | J32: 135 | K32: =_xlfn.IFS(Q32<>1,"",Q32=1,I32+(3*D32)) -> 641 | L32: =_xlfn.IFS(Q32<>1,"",COUNT($E$7:G32)<=hcpng,"",COUNT($E$7:G32)>=hcpng,K32) -> 641 | M32: =_xlfn.IFS(Q32=1,SUM($E$7:G32),Q32<>1,"") -> 9851 | N32: =_xlfn.IFS(Q32=1,COUNT($E$7:G32),Q32<>1,"") -> 69 | O32: =IF(Q32=1,ROUND(AVERAGE($E$7:G32),2),"") -> 142.77 | P32: =_xlfn.IFS(Q32<>1,"",SUM($Q$7:Q32)=1,1,SUM($Q$7:Q32)<>1,"") ->  | Q32: 1 | S32: =_xlfn.IFS(E32=$X$5,E32,F32=$X$5,F32,G32=$X$5,G32,$A$7=1,"") ->  | U32: =_xlfn.IFS(W32=$X$6,W32,X32=$X$6,X32,Y32=$X$6,Y32,$A$7=1,"") ->  | W32: =_xlfn.IFS(AND(Q32=1,COUNT($E$7:G32)>hcpng),E32+D32,$A$7=1," ") -> 220 | X32: =_xlfn.IFS(AND(Q32=1,COUNT($E$7:G32)>hcpng),F32+D32,$A$7=1," ") -> 205 | Y32: =_xlfn.IFS(AND(Q32=1,COUNT($E$7:G32)>hcpng),G32+D32,$A$7=1," ") -> 216 | Z32: 26 | AA32: =_xlfn.IFS(COUNTIFS(H32,"#",H31,"#"),A31,COUNTIFS(H32,2,H31,"#"),A31,$A$7=1,"") -> 
A33: 27 | B33: ='UTL1'!B33 -> 2023-03-22 | C33: =_xlfn.IFS(Q33<>1,"",AND($B$4>=1,COUNT($E$7:G33)<=bkng),$B$4,P33=1,TRUNC(AVERAGE(E33:G33),0),COUNT($Q$7:Q33)=2,TRUNC(AVERAGE($E$7:G32),0),COUNT($Q$7:Q33)>=3,TRUNC(AVERAGE($E$7:G32),0)) -> 142 | D33: =_xlfn.IFS(Q33<>1,"",Q33=1,TRUNC((230-C33)*0.9)) -> 79 | E33: 179 | F33: 176 | G33: 112 | H33: =_xlfn.IFS(COUNT(E33:G33)<1,"",AND(E33>C33,F33>C33,G33>C33,COUNT($E$7:G33)>sixng),"#",AND(E33>C32,F33>C32,G33>C32,COUNT($E$7:G33)>sixng,COUNTIF(H32,"#")=1),"2",$A$7=1,"") ->  | I33: 467 | J33: 155 | K33: =_xlfn.IFS(Q33<>1,"",Q33=1,I33+(3*D33)) -> 704 | L33: =_xlfn.IFS(Q33<>1,"",COUNT($E$7:G33)<=hcpng,"",COUNT($E$7:G33)>=hcpng,K33) -> 704 | M33: =_xlfn.IFS(Q33=1,SUM($E$7:G33),Q33<>1,"") -> 10318 | N33: =_xlfn.IFS(Q33=1,COUNT($E$7:G33),Q33<>1,"") -> 72 | O33: =IF(Q33=1,ROUND(AVERAGE($E$7:G33),2),"") -> 143.31 | P33: =_xlfn.IFS(Q33<>1,"",SUM($Q$7:Q33)=1,1,SUM($Q$7:Q33)<>1,"") ->  | Q33: 1 | S33: =_xlfn.IFS(E33=$X$5,E33,F33=$X$5,F33,G33=$X$5,G33,$A$7=1,"") ->  | U33: =_xlfn.IFS(W33=$X$6,W33,X33=$X$6,X33,Y33=$X$6,Y33,$A$7=1,"") ->  | W33: =_xlfn.IFS(AND(Q33=1,COUNT($E$7:G33)>hcpng),E33+D33,$A$7=1," ") -> 258 | X33: =_xlfn.IFS(AND(Q33=1,COUNT($E$7:G33)>hcpng),F33+D33,$A$7=1," ") -> 255 | Y33: =_xlfn.IFS(AND(Q33=1,COUNT($E$7:G33)>hcpng),G33+D33,$A$7=1," ") -> 191 | Z33: 27 | AA33: =_xlfn.IFS(COUNTIFS(H33,"#",H32,"#"),A32,COUNTIFS(H33,2,H32,"#"),A32,$A$7=1,"") -> 
A34: 28 | B34: ='UTL1'!B34 -> 2023-03-29 | C34: =_xlfn.IFS(Q34<>1,"",AND($B$4>=1,COUNT($E$7:G34)<=bkng),$B$4,P34=1,TRUNC(AVERAGE(E34:G34),0),COUNT($Q$7:Q34)=2,TRUNC(AVERAGE($E$7:G33),0),COUNT($Q$7:Q34)>=3,TRUNC(AVERAGE($E$7:G33),0)) -> 143 | D34: =_xlfn.IFS(Q34<>1,"",Q34=1,TRUNC((230-C34)*0.9)) -> 78 | E34: 110 | F34: 142 | G34: 165 | H34: =_xlfn.IFS(COUNT(E34:G34)<1,"",AND(E34>C34,F34>C34,G34>C34,COUNT($E$7:G34)>sixng),"#",AND(E34>C33,F34>C33,G34>C33,COUNT($E$7:G34)>sixng,COUNTIF(H33,"#")=1),"2",$A$7=1,"") ->  | I34: 417 | J34: 139 | K34: =_xlfn.IFS(Q34<>1,"",Q34=1,I34+(3*D34)) -> 651 | L34: =_xlfn.IFS(Q34<>1,"",COUNT($E$7:G34)<=hcpng,"",COUNT($E$7:G34)>=hcpng,K34) -> 651 | M34: =_xlfn.IFS(Q34=1,SUM($E$7:G34),Q34<>1,"") -> 10735 | N34: =_xlfn.IFS(Q34=1,COUNT($E$7:G34),Q34<>1,"") -> 75 | O34: =IF(Q34=1,ROUND(AVERAGE($E$7:G34),2),"") -> 143.13 | P34: =_xlfn.IFS(Q34<>1,"",SUM($Q$7:Q34)=1,1,SUM($Q$7:Q34)<>1,"") ->  | Q34: 1 | S34: =_xlfn.IFS(E34=$X$5,E34,F34=$X$5,F34,G34=$X$5,G34,$A$7=1,"") ->  | U34: =_xlfn.IFS(W34=$X$6,W34,X34=$X$6,X34,Y34=$X$6,Y34,$A$7=1,"") ->  | W34: =_xlfn.IFS(AND(Q34=1,COUNT($E$7:G34)>hcpng),E34+D34,$A$7=1," ") -> 188 | X34: =_xlfn.IFS(AND(Q34=1,COUNT($E$7:G34)>hcpng),F34+D34,$A$7=1," ") -> 220 | Y34: =_xlfn.IFS(AND(Q34=1,COUNT($E$7:G34)>hcpng),G34+D34,$A$7=1," ") -> 243 | Z34: 28 | AA34: =_xlfn.IFS(COUNTIFS(H34,"#",H33,"#"),A33,COUNTIFS(H34,2,H33,"#"),A33,$A$7=1,"") -> 
A35: 29 | B35: ='UTL1'!B35 -> 2023-04-05 | C35: =_xlfn.IFS(Q35<>1,"",AND($B$4>=1,COUNT($E$7:G35)<=bkng),$B$4,P35=1,TRUNC(AVERAGE(E35:G35),0),COUNT($Q$7:Q35)=2,TRUNC(AVERAGE($E$7:G34),0),COUNT($Q$7:Q35)>=3,TRUNC(AVERAGE($E$7:G34),0)) -> 143 | D35: =_xlfn.IFS(Q35<>1,"",Q35=1,TRUNC((230-C35)*0.9)) -> 78 | E35: 140 | F35: 177 | G35: 129 | H35: =_xlfn.IFS(COUNT(E35:G35)<1,"",AND(E35>C35,F35>C35,G35>C35,COUNT($E$7:G35)>sixng),"#",AND(E35>C34,F35>C34,G35>C34,COUNT($E$7:G35)>sixng,COUNTIF(H34,"#")=1),"2",$A$7=1,"") ->  | I35: 446 | J35: 148 | K35: =_xlfn.IFS(Q35<>1,"",Q35=1,I35+(3*D35)) -> 680 | L35: =_xlfn.IFS(Q35<>1,"",COUNT($E$7:G35)<=hcpng,"",COUNT($E$7:G35)>=hcpng,K35) -> 680 | M35: =_xlfn.IFS(Q35=1,SUM($E$7:G35),Q35<>1,"") -> 11181 | N35: =_xlfn.IFS(Q35=1,COUNT($E$7:G35),Q35<>1,"") -> 78 | O35: =IF(Q35=1,ROUND(AVERAGE($E$7:G35),2),"") -> 143.35 | P35: =_xlfn.IFS(Q35<>1,"",SUM($Q$7:Q35)=1,1,SUM($Q$7:Q35)<>1,"") ->  | Q35: 1 | S35: =_xlfn.IFS(E35=$X$5,E35,F35=$X$5,F35,G35=$X$5,G35,$A$7=1,"") ->  | U35: =_xlfn.IFS(W35=$X$6,W35,X35=$X$6,X35,Y35=$X$6,Y35,$A$7=1,"") ->  | W35: =_xlfn.IFS(AND(Q35=1,COUNT($E$7:G35)>hcpng),E35+D35,$A$7=1," ") -> 218 | X35: =_xlfn.IFS(AND(Q35=1,COUNT($E$7:G35)>hcpng),F35+D35,$A$7=1," ") -> 255 | Y35: =_xlfn.IFS(AND(Q35=1,COUNT($E$7:G35)>hcpng),G35+D35,$A$7=1," ") -> 207 | Z35: 29 | AA35: =_xlfn.IFS(COUNTIFS(H35,"#",H34,"#"),A34,COUNTIFS(H35,2,H34,"#"),A34,$A$7=1,"") -> 
A36: 30 | B36: ='UTL1'!B36 -> 2023-04-12 | C36: =_xlfn.IFS(Q36<>1,"",AND($B$4>=1,COUNT($E$7:G36)<=bkng),$B$4,P36=1,TRUNC(AVERAGE(E36:G36),0),COUNT($Q$7:Q36)=2,TRUNC(AVERAGE($E$7:G35),0),COUNT($Q$7:Q36)>=3,TRUNC(AVERAGE($E$7:G35),0)) -> 143 | D36: =_xlfn.IFS(Q36<>1,"",Q36=1,TRUNC((230-C36)*0.9)) -> 78 | E36: 137 | F36: 118 | G36: 135 | H36: =_xlfn.IFS(COUNT(E36:G36)<1,"",AND(E36>C36,F36>C36,G36>C36,COUNT($E$7:G36)>sixng),"#",AND(E36>C35,F36>C35,G36>C35,COUNT($E$7:G36)>sixng,COUNTIF(H35,"#")=1),"2",$A$7=1,"") ->  | I36: 390 | J36: 130 | K36: =_xlfn.IFS(Q36<>1,"",Q36=1,I36+(3*D36)) -> 624 | L36: =_xlfn.IFS(Q36<>1,"",COUNT($E$7:G36)<=hcpng,"",COUNT($E$7:G36)>=hcpng,K36) -> 624 | M36: =_xlfn.IFS(Q36=1,SUM($E$7:G36),Q36<>1,"") -> 11571 | N36: =_xlfn.IFS(Q36=1,COUNT($E$7:G36),Q36<>1,"") -> 81 | O36: =IF(Q36=1,ROUND(AVERAGE($E$7:G36),2),"") -> 142.85 | P36: =_xlfn.IFS(Q36<>1,"",SUM($Q$7:Q36)=1,1,SUM($Q$7:Q36)<>1,"") ->  | Q36: 1 | S36: =_xlfn.IFS(E36=$X$5,E36,F36=$X$5,F36,G36=$X$5,G36,$A$7=1,"") ->  | U36: =_xlfn.IFS(W36=$X$6,W36,X36=$X$6,X36,Y36=$X$6,Y36,$A$7=1,"") ->  | W36: =_xlfn.IFS(AND(Q36=1,COUNT($E$7:G36)>hcpng),E36+D36,$A$7=1," ") -> 215 | X36: =_xlfn.IFS(AND(Q36=1,COUNT($E$7:G36)>hcpng),F36+D36,$A$7=1," ") -> 196 | Y36: =_xlfn.IFS(AND(Q36=1,COUNT($E$7:G36)>hcpng),G36+D36,$A$7=1," ") -> 213 | Z36: 30 | AA36: =_xlfn.IFS(COUNTIFS(H36,"#",H35,"#"),A35,COUNTIFS(H36,2,H35,"#"),A35,$A$7=1,"") -> 
E37: =IF(COUNT(E7:E36)>=1,ROUND(SUM(E7:E36)/COUNT(E7:E36),2),"") -> 142.63 | F37: =IF(COUNT(F7:F36)>=1,ROUND(SUM(F7:F36)/COUNT(F7:F36),2),"") -> 139.74 | G37: =IF(COUNT(G7:G36)>=1,ROUND(SUM(G7:G36)/COUNT(G7:G36),2),"") -> 146.19

Sheet GregG
A1: =IF('UTL1'!A2="V",'UTL1'!B2,"") ->  | H1: ='UTL1'!H1 -> Wednesday Fun Fours 2022/2023 season
A2: wk# | B2: =MAX(Z7:Z36) -> 30 | O2: 6 Over week: | S2: =IF(MIN(AA7:AA36)<1,"",MIN(AA7:AA36)) -> 
A3: Name: | B3: Greg Gonzales | G3: Perfect Attendance: | J3: =_xlfn.IFS(MAX('UTL1'!D7:D36)>B2,"NO",SUM(Q7:Q36)=B2,"YES",SUM(Q7:Q36)<>B2,"NO") -> NO | K3: =_xlfn.IFS(MAX('UTL1'!D7:D36)>B2,"",AND(SUM(Q7:Q36)<30,SUM(Q7:Q36)=B2),"So Far",SUM(Q7:Q36)=30,"Good",SUM(Q7:Q36)<>B2,"") -> 
A4: Bk Avg: | W4: Hi.series> | X4: =MAX(I7:I36) -> 651
C5: bk or | D5: old | I5: wky | J5: wky | K5: Hcp | L5: hcp | O5: new | P5: start | R5: high | S5: high | T5: high hcp | U5: high hcp | W5: hi.game> | X5: =MAX(E7:G36) -> 265
A6: wk no. | C6: old avg | D6: hdcp | E6: -1- | F6: -2- | G6: -3- | I6: total | J6: avg | K6: total | L6: t2 hc | M6: Pins | N6: Gms | O6: avg | P6: week | Q6: startB | R6: series | S6: game | T6: series | U6: game | W6: h.hcp.g> | X6: =MAX(W7:Y36) -> 299 | Z6: wk#
A7: 1 | B7: ='UTL1'!B7 -> 2022-09-07 | C7: =_xlfn.IFS(Q7<>1,"",AND($B$4>=1,COUNT($E$7:G7)<=bkng),$B$4,P7=1,TRUNC(AVERAGE(E7:G7),0),COUNT($Q$7:Q7)=2,TRUNC(AVERAGE($E6:G$7),0),COUNT($Q$7:Q7)>=3,TRUNC(AVERAGE($E6:G$7),0)) -> 215 | D7: =_xlfn.IFS(Q7<>1,"",Q7=1,TRUNC((230-C7)*0.9)) -> 13 | E7: 208 | F7: 232 | G7: 207 | I7: =IF(Q7=1,SUM(E7:G7),"") -> 647 | J7: =IF(Q7=1,TRUNC(AVERAGE(E7:G7),0),"") -> 215 | K7: =_xlfn.IFS(Q7<>1,"",Q7=1,I7+(3*D7)) -> 686 | L7: =_xlfn.IFS(Q7<>1,"",COUNT($E$7:G7)<=hcpng,"",COUNT($E$7:G7)>=hcpng,K7) ->  | M7: =_xlfn.IFS(Q7=1,SUM($E$7:G7),Q7<>1,"") -> 647 | N7: =_xlfn.IFS(Q7=1,COUNT($E$7:G7),Q7<>1,"") -> 3 | O7: =IF(Q7=1,ROUND(AVERAGE($E$7:G7),2),"") -> 215.67 | P7: =_xlfn.IFS(Q7<>1,"",SUM($Q$7:Q7)=1,1,SUM($Q$7:Q7)<>1,"") -> 1 | Q7: =IF(MAX(E7:G7)<1,"",1) -> 1 | R7: =IF(I7=$X$4,I7,"") ->  | S7: =_xlfn.IFS(E7=$X$5,E7,F7=$X$5,F7,G7=$X$5,G7,$A$7=1,"") ->  | T7: =IF(L7=MAX($L$7:$L$36),L7,"") ->  | U7: =_xlfn.IFS(W7=$X$6,W7,X7=$X$6,X7,Y7=$X$6,Y7,$A$7=1,"") ->  | W7: =_xlfn.IFS(AND(Q7=1,COUNT($E$7:G7)>hcpng),E7+D7,$A$7=1," ") ->  | X7: =_xlfn.IFS(AND(Q7=1,COUNT($E$7:G7)>hcpng),F7+D7,$A$7=1," ") ->  | Y7: =_xlfn.IFS(AND(Q7=1,COUNT($E$7:G7)>hcpng),G7+D7,$A$7=1," ") ->  | Z7: =IF(Q7=1,A7,0) -> 1 | AA7: =_xlfn.IFS(COUNTIFS(H7,"#",H6,"#"),A6,COUNTIFS(H7,2,H6,"#"),A6,$A$7=1,"") -> 
A8: 2 | B8: ='UTL1'!B8 -> 2022-09-14 | C8: =_xlfn.IFS(Q8<>1,"",AND($B$4>=1,COUNT($E$7:G8)<=bkng),$B$4,P8=1,TRUNC(AVERAGE(E8:G8),0),COUNT($Q$7:Q8)=2,TRUNC(AVERAGE($E7:G$7),0),COUNT($Q$7:Q8)>=3,TRUNC(AVERAGE($E7:G$7),0)) -> 215 | D8: =_xlfn.IFS(Q8<>1,"",Q8=1,TRUNC((230-C8)*0.9)) -> 13 | E8: 189 | F8: 214 | G8: 201 | H8: =_xlfn.IFS(COUNT(E8:G8)<1,"",AND(E8>C8,F8>C8,G8>C8,COUNT($E$7:G8)>sixng),"#",AND(E8>C7,F8>C7,G8>C7,COUNT($E$7:G8)>sixng,COUNTIF(H7,"#")=1),"2",$A$7=1,"") ->  | I8: =IF(Q8=1,SUM(E8:G8),"") -> 604 | J8: =IF(Q8=1,TRUNC(AVERAGE(E8:G8),0),"") -> 201 | K8: =_xlfn.IFS(Q8<>1,"",Q8=1,I8+(3*D8)) -> 643 | L8: =_xlfn.IFS(Q8<>1,"",COUNT($E$7:G8)<=hcpng,"",COUNT($E$7:G8)>=hcpng,K8) ->  | M8: =_xlfn.IFS(Q8=1,SUM($E$7:G8),Q8<>1,"") -> 1251 | N8: =_xlfn.IFS(Q8=1,COUNT($E$7:G8),Q8<>1,"") -> 6 | O8: =IF(Q8=1,ROUND(AVERAGE($E$7:G8),2),"") -> 208.5 | P8: =_xlfn.IFS(Q8<>1,"",SUM($Q$7:Q8)=1,1,SUM($Q$7:Q8)<>1,"") ->  | Q8: =IF(MAX(E8:G8)<1,"",1) -> 1 | R8: =IF(I8=$X$4,I8,"") ->  | S8: =_xlfn.IFS(E8=$X$5,E8,F8=$X$5,F8,G8=$X$5,G8,$A$7=1,"") ->  | T8: =IF(L8=MAX($L$7:$L$36),L8,"") ->  | U8: =_xlfn.IFS(W8=$X$6,W8,X8=$X$6,X8,Y8=$X$6,Y8,$A$7=1,"") ->  | W8: =_xlfn.IFS(AND(Q8=1,COUNT($E$7:G8)>hcpng),E8+D8,$A$7=1," ") ->  | X8: =_xlfn.IFS(AND(Q8=1,COUNT($E$7:G8)>hcpng),F8+D8,$A$7=1," ") ->  | Y8: =_xlfn.IFS(AND(Q8=1,COUNT($E$7:G8)>hcpng),G8+D8,$A$7=1," ") ->  | Z8: =IF(Q8=1,A8,0) -> 2 | AA8: =_xlfn.IFS(COUNTIFS(H8,"#",H7,"#"),A7,COUNTIFS(H8,2,H7,"#"),A7,$A$7=1,"") -> 
A9: 3 | B9: ='UTL1'!B9 -> 2022-09-21 | C9: =_xlfn.IFS(Q9<>1,"",AND($B$4>=1,COUNT($E$7:G9)<=bkng),$B$4,P9=1,TRUNC(AVERAGE(E9:G9),0),COUNT($Q$7:Q9)=2,TRUNC(AVERAGE($E$7:G8),0),COUNT($Q$7:Q9)>=3,TRUNC(AVERAGE($E$7:G8),0)) ->  | D9: =_xlfn.IFS(Q9<>1,"",Q9=1,TRUNC((230-C9)*0.9)) ->  | H9: =_xlfn.IFS(COUNT(E9:G9)<1,"",AND(E9>C9,F9>C9,G9>C9,COUNT($E$7:G9)>sixng),"#",AND(E9>C8,F9>C8,G9>C8,COUNT($E$7:G9)>sixng,COUNTIF(H8,"#")=1),"2",$A$7=1,"") ->  | K9: =_xlfn.IFS(Q9<>1,"",Q9=1,I9+(3*D9)) ->  | L9: =_xlfn.IFS(Q9<>1,"",COUNT($E$7:G9)<=hcpng,"",COUNT($E$7:G9)>=hcpng,K9) ->  | M9: =_xlfn.IFS(Q9=1,SUM($E$7:G9),Q9<>1,"") ->  | N9: =_xlfn.IFS(Q9=1,COUNT($E$7:G9),Q9<>1,"") ->  | O9: =IF(Q9=1,ROUND(AVERAGE($E$7:G9),2),"") ->  | P9: =_xlfn.IFS(Q9<>1,"",SUM($Q$7:Q9)=1,1,SUM($Q$7:Q9)<>1,"") ->  | S9: =_xlfn.IFS(E9=$X$5,E9,F9=$X$5,F9,G9=$X$5,G9,$A$7=1,"") ->  | U9: =_xlfn.IFS(W9=$X$6,W9,X9=$X$6,X9,Y9=$X$6,Y9,$A$7=1,"") ->  | W9: =_xlfn.IFS(AND(Q9=1,COUNT($E$7:G9)>hcpng),E9+D9,$A$7=1," ") ->  | X9: =_xlfn.IFS(AND(Q9=1,COUNT($E$7:G9)>hcpng),F9+D9,$A$7=1," ") ->  | Y9: =_xlfn.IFS(AND(Q9=1,COUNT($E$7:G9)>hcpng),G9+D9,$A$7=1," ") ->  | Z9: 0 | AA9: =_xlfn.IFS(COUNTIFS(H9,"#",H8,"#"),A8,COUNTIFS(H9,2,H8,"#"),A8,$A$7=1,"") -> 
A10: 4 | B10: ='UTL1'!B10 -> 2022-09-28 | C10: =_xlfn.IFS(Q10<>1,"",AND($B$4>=1,COUNT($E$7:G10)<=bkng),$B$4,P10=1,TRUNC(AVERAGE(E10:G10),0),COUNT($Q$7:Q10)=2,TRUNC(AVERAGE($E$7:G9),0),COUNT($Q$7:Q10)>=3,TRUNC(AVERAGE($E$7:G9),0)) -> 208 | D10: =_xlfn.IFS(Q10<>1,"",Q10=1,TRUNC((230-C10)*0.9)) -> 19 | E10: 179 | F10: 199 | G10: 244 | H10: =_xlfn.IFS(COUNT(E10:G10)<1,"",AND(E10>C10,F10>C10,G10>C10,COUNT($E$7:G10)>sixng),"#",AND(E10>C9,F10>C9,G10>C9,COUNT($E$7:G10)>sixng,COUNTIF(H9,"#")=1),"2",$A$7=1,"") ->  | I10: 622 | J10: 207 | K10: =_xlfn.IFS(Q10<>1,"",Q10=1,I10+(3*D10)) -> 679 | L10: =_xlfn.IFS(Q10<>1,"",COUNT($E$7:G10)<=hcpng,"",COUNT($E$7:G10)>=hcpng,K10) ->  | M10: =_xlfn.IFS(Q10=1,SUM($E$7:G10),Q10<>1,"") -> 1873 | N10: =_xlfn.IFS(Q10=1,COUNT($E$7:G10),Q10<>1,"") -> 9 | O10: =IF(Q10=1,ROUND(AVERAGE($E$7:G10),2),"") -> 208.11 | P10: =_xlfn.IFS(Q10<>1,"",SUM($Q$7:Q10)=1,1,SUM($Q$7:Q10)<>1,"") ->  | Q10: 1 | S10: =_xlfn.IFS(E10=$X$5,E10,F10=$X$5,F10,G10=$X$5,G10,$A$7=1,"") ->  | U10: =_xlfn.IFS(W10=$X$6,W10,X10=$X$6,X10,Y10=$X$6,Y10,$A$7=1,"") ->  | W10: =_xlfn.IFS(AND(Q10=1,COUNT($E$7:G10)>hcpng),E10+D10,$A$7=1," ") ->  | X10: =_xlfn.IFS(AND(Q10=1,COUNT($E$7:G10)>hcpng),F10+D10,$A$7=1," ") ->  | Y10: =_xlfn.IFS(AND(Q10=1,COUNT($E$7:G10)>hcpng),G10+D10,$A$7=1," ") ->  | Z10: 4 | AA10: =_xlfn.IFS(COUNTIFS(H10,"#",H9,"#"),A9,COUNTIFS(H10,2,H9,"#"),A9,$A$7=1,"") -> 
A11: 5 | B11: ='UTL1'!B11 -> 2022-10-05 | C11: =_xlfn.IFS(Q11<>1,"",AND($B$4>=1,COUNT($E$7:G11)<=bkng),$B$4,P11=1,TRUNC(AVERAGE(E11:G11),0),COUNT($Q$7:Q11)=2,TRUNC(AVERAGE($E$7:G10),0),COUNT($Q$7:Q11)>=3,TRUNC(AVERAGE($E$7:G10),0)) -> 208 | D11: =_xlfn.IFS(Q11<>1,"",Q11=1,TRUNC((230-C11)*0.9)) -> 19 | E11: 212 | F11: 181 | G11: 184 | H11: =_xlfn.IFS(COUNT(E11:G11)<1,"",AND(E11>C11,F11>C11,G11>C11,COUNT($E$7:G11)>sixng),"#",AND(E11>C10,F11>C10,G11>C10,COUNT($E$7:G11)>sixng,COUNTIF(H10,"#")=1),"2",$A$7=1,"") ->  | I11: 577 | J11: 192 | K11: =_xlfn.IFS(Q11<>1,"",Q11=1,I11+(3*D11)) -> 634 | L11: =_xlfn.IFS(Q11<>1,"",COUNT($E$7:G11)<=hcpng,"",COUNT($E$7:G11)>=hcpng,K11) ->  | M11: =_xlfn.IFS(Q11=1,SUM($E$7:G11),Q11<>1,"") -> 2450 | N11: =_xlfn.IFS(Q11=1,COUNT($E$7:G11),Q11<>1,"") -> 12 | O11: =IF(Q11=1,ROUND(AVERAGE($E$7:G11),2),"") -> 204.17 | P11: =_xlfn.IFS(Q11<>1,"",SUM($Q$7:Q11)=1,1,SUM($Q$7:Q11)<>1,"") ->  | Q11: 1 | S11: =_xlfn.IFS(E11=$X$5,E11,F11=$X$5,F11,G11=$X$5,G11,$A$7=1,"") ->  | U11: =_xlfn.IFS(W11=$X$6,W11,X11=$X$6,X11,Y11=$X$6,Y11,$A$7=1,"") ->  | W11: =_xlfn.IFS(AND(Q11=1,COUNT($E$7:G11)>hcpng),E11+D11,$A$7=1," ") ->  | X11: =_xlfn.IFS(AND(Q11=1,COUNT($E$7:G11)>hcpng),F11+D11,$A$7=1," ") ->  | Y11: =_xlfn.IFS(AND(Q11=1,COUNT($E$7:G11)>hcpng),G11+D11,$A$7=1," ") ->  | Z11: 5 | AA11: =_xlfn.IFS(COUNTIFS(H11,"#",H10,"#"),A10,COUNTIFS(H11,2,H10,"#"),A10,$A$7=1,"") -> 
A12: 6 | B12: ='UTL1'!B12 -> 2022-10-12 | C12: =_xlfn.IFS(Q12<>1,"",AND($B$4>=1,COUNT($E$7:G12)<=bkng),$B$4,P12=1,TRUNC(AVERAGE(E12:G12),0),COUNT($Q$7:Q12)=2,TRUNC(AVERAGE($E$7:G11),0),COUNT($Q$7:Q12)>=3,TRUNC(AVERAGE($E$7:G11),0)) -> 204 | D12: =_xlfn.IFS(Q12<>1,"",Q12=1,TRUNC((230-C12)*0.9)) -> 23 | E12: 220 | F12: 199 | G12: 184 | H12: =_xlfn.IFS(COUNT(E12:G12)<1,"",AND(E12>C12,F12>C12,G12>C12,COUNT($E$7:G12)>sixng),"#",AND(E12>C11,F12>C11,G12>C11,COUNT($E$7:G12)>sixng,COUNTIF(H11,"#")=1),"2",$A$7=1,"") ->  | I12: 603 | J12: 201 | K12: =_xlfn.IFS(Q12<>1,"",Q12=1,I12+(3*D12)) -> 672 | L12: =_xlfn.IFS(Q12<>1,"",COUNT($E$7:G12)<=hcpng,"",COUNT($E$7:G12)>=hcpng,K12) -> 672 | M12: =_xlfn.IFS(Q12=1,SUM($E$7:G12),Q12<>1,"") -> 3053 | N12: =_xlfn.IFS(Q12=1,COUNT($E$7:G12),Q12<>1,"") -> 15 | O12: =IF(Q12=1,ROUND(AVERAGE($E$7:G12),2),"") -> 203.53 | P12: =_xlfn.IFS(Q12<>1,"",SUM($Q$7:Q12)=1,1,SUM($Q$7:Q12)<>1,"") ->  | Q12: 1 | S12: =_xlfn.IFS(E12=$X$5,E12,F12=$X$5,F12,G12=$X$5,G12,$A$7=1,"") ->  | U12: =_xlfn.IFS(W12=$X$6,W12,X12=$X$6,X12,Y12=$X$6,Y12,$A$7=1,"") ->  | W12: =_xlfn.IFS(AND(Q12=1,COUNT($E$7:G12)>hcpng),E12+D12,$A$7=1," ") -> 243 | X12: =_xlfn.IFS(AND(Q12=1,COUNT($E$7:G12)>hcpng),F12+D12,$A$7=1," ") -> 222 | Y12: =_xlfn.IFS(AND(Q12=1,COUNT($E$7:G12)>hcpng),G12+D12,$A$7=1," ") -> 207 | Z12: 6 | AA12: =_xlfn.IFS(COUNTIFS(H12,"#",H11,"#"),A11,COUNTIFS(H12,2,H11,"#"),A11,$A$7=1,"") -> 
A13: 7 | B13: ='UTL1'!B13 -> 2022-10-19 | C13: =_xlfn.IFS(Q13<>1,"",AND($B$4>=1,COUNT($E$7:G13)<=bkng),$B$4,P13=1,TRUNC(AVERAGE(E13:G13),0),COUNT($Q$7:Q13)=2,TRUNC(AVERAGE($E$7:G12),0),COUNT($Q$7:Q13)>=3,TRUNC(AVERAGE($E$7:G12),0)) -> 203 | D13: =_xlfn.IFS(Q13<>1,"",Q13=1,TRUNC((230-C13)*0.9)) -> 24 | E13: 199 | F13: 189 | G13: 186 | H13: =_xlfn.IFS(COUNT(E13:G13)<1,"",AND(E13>C13,F13>C13,G13>C13,COUNT($E$7:G13)>sixng),"#",AND(E13>C12,F13>C12,G13>C12,COUNT($E$7:G13)>sixng,COUNTIF(H12,"#")=1),"2",$A$7=1,"") ->  | I13: 574 | J13: 191 | K13: =_xlfn.IFS(Q13<>1,"",Q13=1,I13+(3*D13)) -> 646 | L13: =_xlfn.IFS(Q13<>1,"",COUNT($E$7:G13)<=hcpng,"",COUNT($E$7:G13)>=hcpng,K13) -> 646 | M13: =_xlfn.IFS(Q13=1,SUM($E$7:G13),Q13<>1,"") -> 3627 | N13: =_xlfn.IFS(Q13=1,COUNT($E$7:G13),Q13<>1,"") -> 18 | O13: =IF(Q13=1,ROUND(AVERAGE($E$7:G13),2),"") -> 201.5 | P13: =_xlfn.IFS(Q13<>1,"",SUM($Q$7:Q13)=1,1,SUM($Q$7:Q13)<>1,"") ->  | Q13: 1 | S13: =_xlfn.IFS(E13=$X$5,E13,F13=$X$5,F13,G13=$X$5,G13,$A$7=1,"") ->  | U13: =_xlfn.IFS(W13=$X$6,W13,X13=$X$6,X13,Y13=$X$6,Y13,$A$7=1,"") ->  | W13: =_xlfn.IFS(AND(Q13=1,COUNT($E$7:G13)>hcpng),E13+D13,$A$7=1," ") -> 223 | X13: =_xlfn.IFS(AND(Q13=1,COUNT($E$7:G13)>hcpng),F13+D13,$A$7=1," ") -> 213 | Y13: =_xlfn.IFS(AND(Q13=1,COUNT($E$7:G13)>hcpng),G13+D13,$A$7=1," ") -> 210 | Z13: 7 | AA13: =_xlfn.IFS(COUNTIFS(H13,"#",H12,"#"),A12,COUNTIFS(H13,2,H12,"#"),A12,$A$7=1,"") -> 
A14: 8 | B14: ='UTL1'!B14 -> 2022-10-26 | C14: =_xlfn.IFS(Q14<>1,"",AND($B$4>=1,COUNT($E$7:G14)<=bkng),$B$4,P14=1,TRUNC(AVERAGE(E14:G14),0),COUNT($Q$7:Q14)=2,TRUNC(AVERAGE($E$7:G13),0),COUNT($Q$7:Q14)>=3,TRUNC(AVERAGE($E$7:G13),0)) ->  | D14: =_xlfn.IFS(Q14<>1,"",Q14=1,TRUNC((230-C14)*0.9)) ->  | H14: =_xlfn.IFS(COUNT(E14:G14)<1,"",AND(E14>C14,F14>C14,G14>C14,COUNT($E$7:G14)>sixng),"#",AND(E14>C13,F14>C13,G14>C13,COUNT($E$7:G14)>sixng,COUNTIF(H13,"#")=1),"2",$A$7=1,"") ->  | K14: =_xlfn.IFS(Q14<>1,"",Q14=1,I14+(3*D14)) ->  | L14: =_xlfn.IFS(Q14<>1,"",COUNT($E$7:G14)<=hcpng,"",COUNT($E$7:G14)>=hcpng,K14) ->  | M14: =_xlfn.IFS(Q14=1,SUM($E$7:G14),Q14<>1,"") ->  | N14: =_xlfn.IFS(Q14=1,COUNT($E$7:G14),Q14<>1,"") ->  | O14: =IF(Q14=1,ROUND(AVERAGE($E$7:G14),2),"") ->  | P14: =_xlfn.IFS(Q14<>1,"",SUM($Q$7:Q14)=1,1,SUM($Q$7:Q14)<>1,"") ->  | S14: =_xlfn.IFS(E14=$X$5,E14,F14=$X$5,F14,G14=$X$5,G14,$A$7=1,"") ->  | U14: =_xlfn.IFS(W14=$X$6,W14,X14=$X$6,X14,Y14=$X$6,Y14,$A$7=1,"") ->  | W14: =_xlfn.IFS(AND(Q14=1,COUNT($E$7:G14)>hcpng),E14+D14,$A$7=1," ") ->  | X14: =_xlfn.IFS(AND(Q14=1,COUNT($E$7:G14)>hcpng),F14+D14,$A$7=1," ") ->  | Y14: =_xlfn.IFS(AND(Q14=1,COUNT($E$7:G14)>hcpng),G14+D14,$A$7=1," ") ->  | Z14: 0 | AA14: =_xlfn.IFS(COUNTIFS(H14,"#",H13,"#"),A13,COUNTIFS(H14,2,H13,"#"),A13,$A$7=1,"") -> 
A15: 9 | B15: ='UTL1'!B15 -> 2022-11-02 | C15: =_xlfn.IFS(Q15<>1,"",AND($B$4>=1,COUNT($E$7:G15)<=bkng),$B$4,P15=1,TRUNC(AVERAGE(E15:G15),0),COUNT($Q$7:Q15)=2,TRUNC(AVERAGE($E$7:G14),0),COUNT($Q$7:Q15)>=3,TRUNC(AVERAGE($E$7:G14),0)) -> 201 | D15: =_xlfn.IFS(Q15<>1,"",Q15=1,TRUNC((230-C15)*0.9)) -> 26 | E15: 188 | F15: 172 | G15: 165 | H15: =_xlfn.IFS(COUNT(E15:G15)<1,"",AND(E15>C15,F15>C15,G15>C15,COUNT($E$7:G15)>sixng),"#",AND(E15>C14,F15>C14,G15>C14,COUNT($E$7:G15)>sixng,COUNTIF(H14,"#")=1),"2",$A$7=1,"") ->  | I15: 525 | J15: 175 | K15: =_xlfn.IFS(Q15<>1,"",Q15=1,I15+(3*D15)) -> 603 | L15: =_xlfn.IFS(Q15<>1,"",COUNT($E$7:G15)<=hcpng,"",COUNT($E$7:G15)>=hcpng,K15) -> 603 | M15: =_xlfn.IFS(Q15=1,SUM($E$7:G15),Q15<>1,"") -> 4152 | N15: =_xlfn.IFS(Q15=1,COUNT($E$7:G15),Q15<>1,"") -> 21 | O15: =IF(Q15=1,ROUND(AVERAGE($E$7:G15),2),"") -> 197.71 | P15: =_xlfn.IFS(Q15<>1,"",SUM($Q$7:Q15)=1,1,SUM($Q$7:Q15)<>1,"") ->  | Q15: 1 | S15: =_xlfn.IFS(E15=$X$5,E15,F15=$X$5,F15,G15=$X$5,G15,$A$7=1,"") ->  | U15: =_xlfn.IFS(W15=$X$6,W15,X15=$X$6,X15,Y15=$X$6,Y15,$A$7=1,"") ->  | W15: =_xlfn.IFS(AND(Q15=1,COUNT($E$7:G15)>hcpng),E15+D15,$A$7=1," ") -> 214 | X15: =_xlfn.IFS(AND(Q15=1,COUNT($E$7:G15)>hcpng),F15+D15,$A$7=1," ") -> 198 | Y15: =_xlfn.IFS(AND(Q15=1,COUNT($E$7:G15)>hcpng),G15+D15,$A$7=1," ") -> 191 | Z15: 9 | AA15: =_xlfn.IFS(COUNTIFS(H15,"#",H14,"#"),A14,COUNTIFS(H15,2,H14,"#"),A14,$A$7=1,"") -> 
A16: 10 | B16: ='UTL1'!B16 -> 2022-11-09 | C16: =_xlfn.IFS(Q16<>1,"",AND($B$4>=1,COUNT($E$7:G16)<=bkng),$B$4,P16=1,TRUNC(AVERAGE(E16:G16),0),COUNT($Q$7:Q16)=2,TRUNC(AVERAGE($E$7:G15),0),COUNT($Q$7:Q16)>=3,TRUNC(AVERAGE($E$7:G15),0)) -> 197 | D16: =_xlfn.IFS(Q16<>1,"",Q16=1,TRUNC((230-C16)*0.9)) -> 29 | E16: 257 | F16: 159 | G16: 235 | H16: =_xlfn.IFS(COUNT(E16:G16)<1,"",AND(E16>C16,F16>C16,G16>C16,COUNT($E$7:G16)>sixng),"#",AND(E16>C15,F16>C15,G16>C15,COUNT($E$7:G16)>sixng,COUNTIF(H15,"#")=1),"2",$A$7=1,"") ->  | I16: 651 | J16: 217 | K16: =_xlfn.IFS(Q16<>1,"",Q16=1,I16+(3*D16)) -> 738 | L16: =_xlfn.IFS(Q16<>1,"",COUNT($E$7:G16)<=hcpng,"",COUNT($E$7:G16)>=hcpng,K16) -> 738 | M16: =_xlfn.IFS(Q16=1,SUM($E$7:G16),Q16<>1,"") -> 4803 | N16: =_xlfn.IFS(Q16=1,COUNT($E$7:G16),Q16<>1,"") -> 24 | O16: =IF(Q16=1,ROUND(AVERAGE($E$7:G16),2),"") -> 200.13 | P16: =_xlfn.IFS(Q16<>1,"",SUM($Q$7:Q16)=1,1,SUM($Q$7:Q16)<>1,"") ->  | Q16: 1 | R16: 651 | S16: =_xlfn.IFS(E16=$X$5,E16,F16=$X$5,F16,G16=$X$5,G16,$A$7=1,"") ->  | T16: 738 | U16: =_xlfn.IFS(W16=$X$6,W16,X16=$X$6,X16,Y16=$X$6,Y16,$A$7=1,"") ->  | W16: =_xlfn.IFS(AND(Q16=1,COUNT($E$7:G16)>hcpng),E16+D16,$A$7=1," ") -> 286 | X16: =_xlfn.IFS(AND(Q16=1,COUNT($E$7:G16)>hcpng),F16+D16,$A$7=1," ") -> 188 | Y16: =_xlfn.IFS(AND(Q16=1,COUNT($E$7:G16)>hcpng),G16+D16,$A$7=1," ") -> 264 | Z16: 10 | AA16: =_xlfn.IFS(COUNTIFS(H16,"#",H15,"#"),A15,COUNTIFS(H16,2,H15,"#"),A15,$A$7=1,"") -> 
A17: 11 | B17: ='UTL1'!B17 -> 2022-11-16 | C17: =_xlfn.IFS(Q17<>1,"",AND($B$4>=1,COUNT($E$7:G17)<=bkng),$B$4,P17=1,TRUNC(AVERAGE(E17:G17),0),COUNT($Q$7:Q17)=2,TRUNC(AVERAGE($E$7:G16),0),COUNT($Q$7:Q17)>=3,TRUNC(AVERAGE($E$7:G16),0)) -> 200 | D17: =_xlfn.IFS(Q17<>1,"",Q17=1,TRUNC((230-C17)*0.9)) -> 27 | E17: 166 | F17: 191 | G17: 231 | H17: =_xlfn.IFS(COUNT(E17:G17)<1,"",AND(E17>C17,F17>C17,G17>C17,COUNT($E$7:G17)>sixng),"#",AND(E17>C16,F17>C16,G17>C16,COUNT($E$7:G17)>sixng,COUNTIF(H16,"#")=1),"2",$A$7=1,"") ->  | I17: 588 | J17: 196 | K17: =_xlfn.IFS(Q17<>1,"",Q17=1,I17+(3*D17)) -> 669 | L17: =_xlfn.IFS(Q17<>1,"",COUNT($E$7:G17)<=hcpng,"",COUNT($E$7:G17)>=hcpng,K17) -> 669 | M17: =_xlfn.IFS(Q17=1,SUM($E$7:G17),Q17<>1,"") -> 5391 | N17: =_xlfn.IFS(Q17=1,COUNT($E$7:G17),Q17<>1,"") -> 27 | O17: =IF(Q17=1,ROUND(AVERAGE($E$7:G17),2),"") -> 199.67 | P17: =_xlfn.IFS(Q17<>1,"",SUM($Q$7:Q17)=1,1,SUM($Q$7:Q17)<>1,"") ->  | Q17: 1 | S17: =_xlfn.IFS(E17=$X$5,E17,F17=$X$5,F17,G17=$X$5,G17,$A$7=1,"") ->  | U17: =_xlfn.IFS(W17=$X$6,W17,X17=$X$6,X17,Y17=$X$6,Y17,$A$7=1,"") ->  | W17: =_xlfn.IFS(AND(Q17=1,COUNT($E$7:G17)>hcpng),E17+D17,$A$7=1," ") -> 193 | X17: =_xlfn.IFS(AND(Q17=1,COUNT($E$7:G17)>hcpng),F17+D17,$A$7=1," ") -> 218 | Y17: =_xlfn.IFS(AND(Q17=1,COUNT($E$7:G17)>hcpng),G17+D17,$A$7=1," ") -> 258 | Z17: 11 | AA17: =_xlfn.IFS(COUNTIFS(H17,"#",H16,"#"),A16,COUNTIFS(H17,2,H16,"#"),A16,$A$7=1,"") -> 
A18: 12 | B18: ='UTL1'!B18 -> 2022-11-30 | C18: =_xlfn.IFS(Q18<>1,"",AND($B$4>=1,COUNT($E$7:G18)<=bkng),$B$4,P18=1,TRUNC(AVERAGE(E18:G18),0),COUNT($Q$7:Q18)=2,TRUNC(AVERAGE($E$7:G17),0),COUNT($Q$7:Q18)>=3,TRUNC(AVERAGE($E$7:G17),0)) ->  | D18: =_xlfn.IFS(Q18<>1,"",Q18=1,TRUNC((230-C18)*0.9)) ->  | H18: =_xlfn.IFS(COUNT(E18:G18)<1,"",AND(E18>C18,F18>C18,G18>C18,COUNT($E$7:G18)>sixng),"#",AND(E18>C17,F18>C17,G18>C17,COUNT($E$7:G18)>sixng,COUNTIF(H17,"#")=1),"2",$A$7=1,"") ->  | K18: =_xlfn.IFS(Q18<>1,"",Q18=1,I18+(3*D18)) ->  | L18: =_xlfn.IFS(Q18<>1,"",COUNT($E$7:G18)<=hcpng,"",COUNT($E$7:G18)>=hcpng,K18) ->  | M18: =_xlfn.IFS(Q18=1,SUM($E$7:G18),Q18<>1,"") ->  | N18: =_xlfn.IFS(Q18=1,COUNT($E$7:G18),Q18<>1,"") ->  | O18: =IF(Q18=1,ROUND(AVERAGE($E$7:G18),2),"") ->  | P18: =_xlfn.IFS(Q18<>1,"",SUM($Q$7:Q18)=1,1,SUM($Q$7:Q18)<>1,"") ->  | S18: =_xlfn.IFS(E18=$X$5,E18,F18=$X$5,F18,G18=$X$5,G18,$A$7=1,"") ->  | U18: =_xlfn.IFS(W18=$X$6,W18,X18=$X$6,X18,Y18=$X$6,Y18,$A$7=1,"") ->  | W18: =_xlfn.IFS(AND(Q18=1,COUNT($E$7:G18)>hcpng),E18+D18,$A$7=1," ") ->  | X18: =_xlfn.IFS(AND(Q18=1,COUNT($E$7:G18)>hcpng),F18+D18,$A$7=1," ") ->  | Y18: =_xlfn.IFS(AND(Q18=1,COUNT($E$7:G18)>hcpng),G18+D18,$A$7=1," ") ->  | Z18: 0 | AA18: =_xlfn.IFS(COUNTIFS(H18,"#",H17,"#"),A17,COUNTIFS(H18,2,H17,"#"),A17,$A$7=1,"") -> 
A19: 13 | B19: ='UTL1'!B19 -> 2022-12-07 | C19: =_xlfn.IFS(Q19<>1,"",AND($B$4>=1,COUNT($E$7:G19)<=bkng),$B$4,P19=1,TRUNC(AVERAGE(E19:G19),0),COUNT($Q$7:Q19)=2,TRUNC(AVERAGE($E$7:G18),0),COUNT($Q$7:Q19)>=3,TRUNC(AVERAGE($E$7:G18),0)) -> 199 | D19: =_xlfn.IFS(Q19<>1,"",Q19=1,TRUNC((230-C19)*0.9)) -> 27 | E19: 162 | F19: 211 | G19: 180 | H19: =_xlfn.IFS(COUNT(E19:G19)<1,"",AND(E19>C19,F19>C19,G19>C19,COUNT($E$7:G19)>sixng),"#",AND(E19>C18,F19>C18,G19>C18,COUNT($E$7:G19)>sixng,COUNTIF(H18,"#")=1),"2",$A$7=1,"") ->  | I19: 553 | J19: 184 | K19: =_xlfn.IFS(Q19<>1,"",Q19=1,I19+(3*D19)) -> 634 | L19: =_xlfn.IFS(Q19<>1,"",COUNT($E$7:G19)<=hcpng,"",COUNT($E$7:G19)>=hcpng,K19) -> 634 | M19: =_xlfn.IFS(Q19=1,SUM($E$7:G19),Q19<>1,"") -> 5944 | N19: =_xlfn.IFS(Q19=1,COUNT($E$7:G19),Q19<>1,"") -> 30 | O19: =IF(Q19=1,ROUND(AVERAGE($E$7:G19),2),"") -> 198.13 | P19: =_xlfn.IFS(Q19<>1,"",SUM($Q$7:Q19)=1,1,SUM($Q$7:Q19)<>1,"") ->  | Q19: 1 | S19: =_xlfn.IFS(E19=$X$5,E19,F19=$X$5,F19,G19=$X$5,G19,$A$7=1,"") ->  | U19: =_xlfn.IFS(W19=$X$6,W19,X19=$X$6,X19,Y19=$X$6,Y19,$A$7=1,"") ->  | W19: =_xlfn.IFS(AND(Q19=1,COUNT($E$7:G19)>hcpng),E19+D19,$A$7=1," ") -> 189 | X19: =_xlfn.IFS(AND(Q19=1,COUNT($E$7:G19)>hcpng),F19+D19,$A$7=1," ") -> 238 | Y19: =_xlfn.IFS(AND(Q19=1,COUNT($E$7:G19)>hcpng),G19+D19,$A$7=1," ") -> 207 | Z19: 13 | AA19: =_xlfn.IFS(COUNTIFS(H19,"#",H18,"#"),A18,COUNTIFS(H19,2,H18,"#"),A18,$A$7=1,"") -> 
A20: 14 | B20: ='UTL1'!B20 -> 2022-12-14 | C20: =_xlfn.IFS(Q20<>1,"",AND($B$4>=1,COUNT($E$7:G20)<=bkng),$B$4,P20=1,TRUNC(AVERAGE(E20:G20),0),COUNT($Q$7:Q20)=2,TRUNC(AVERAGE($E$7:G19),0),COUNT($Q$7:Q20)>=3,TRUNC(AVERAGE($E$7:G19),0)) -> 198 | D20: =_xlfn.IFS(Q20<>1,"",Q20=1,TRUNC((230-C20)*0.9)) -> 28 | E20: 151 | F20: 143 | G20: 184 | H20: =_xlfn.IFS(COUNT(E20:G20)<1,"",AND(E20>C20,F20>C20,G20>C20,COUNT($E$7:G20)>sixng),"#",AND(E20>C19,F20>C19,G20>C19,COUNT($E$7:G20)>sixng,COUNTIF(H19,"#")=1),"2",$A$7=1,"") ->  | I20: 478 | J20: 159 | K20: =_xlfn.IFS(Q20<>1,"",Q20=1,I20+(3*D20)) -> 562 | L20: =_xlfn.IFS(Q20<>1,"",COUNT($E$7:G20)<=hcpng,"",COUNT($E$7:G20)>=hcpng,K20) -> 562 | M20: =_xlfn.IFS(Q20=1,SUM($E$7:G20),Q20<>1,"") -> 6422 | N20: =_xlfn.IFS(Q20=1,COUNT($E$7:G20),Q20<>1,"") -> 33 | O20: =IF(Q20=1,ROUND(AVERAGE($E$7:G20),2),"") -> 194.61 | P20: =_xlfn.IFS(Q20<>1,"",SUM($Q$7:Q20)=1,1,SUM($Q$7:Q20)<>1,"") ->  | Q20: 1 | S20: =_xlfn.IFS(E20=$X$5,E20,F20=$X$5,F20,G20=$X$5,G20,$A$7=1,"") ->  | U20: =_xlfn.IFS(W20=$X$6,W20,X20=$X$6,X20,Y20=$X$6,Y20,$A$7=1,"") ->  | W20: =_xlfn.IFS(AND(Q20=1,COUNT($E$7:G20)>hcpng),E20+D20,$A$7=1," ") -> 179 | X20: =_xlfn.IFS(AND(Q20=1,COUNT($E$7:G20)>hcpng),F20+D20,$A$7=1," ") -> 171 | Y20: =_xlfn.IFS(AND(Q20=1,COUNT($E$7:G20)>hcpng),G20+D20,$A$7=1," ") -> 212 | Z20: 14 | AA20: =_xlfn.IFS(COUNTIFS(H20,"#",H19,"#"),A19,COUNTIFS(H20,2,H19,"#"),A19,$A$7=1,"") -> 
A21: 15 | B21: ='UTL1'!B21 -> 2022-12-21 | C21: =_xlfn.IFS(Q21<>1,"",AND($B$4>=1,COUNT($E$7:G21)<=bkng),$B$4,P21=1,TRUNC(AVERAGE(E21:G21),0),COUNT($Q$7:Q21)=2,TRUNC(AVERAGE($E$7:G20),0),COUNT($Q$7:Q21)>=3,TRUNC(AVERAGE($E$7:G20),0)) -> 194 | D21: =_xlfn.IFS(Q21<>1,"",Q21=1,TRUNC((230-C21)*0.9)) -> 32 | E21: 172 | F21: 226 | G21: 192 | H21: =_xlfn.IFS(COUNT(E21:G21)<1,"",AND(E21>C21,F21>C21,G21>C21,COUNT($E$7:G21)>sixng),"#",AND(E21>C20,F21>C20,G21>C20,COUNT($E$7:G21)>sixng,COUNTIF(H20,"#")=1),"2",$A$7=1,"") ->  | I21: 590 | J21: 196 | K21: =_xlfn.IFS(Q21<>1,"",Q21=1,I21+(3*D21)) -> 686 | L21: =_xlfn.IFS(Q21<>1,"",COUNT($E$7:G21)<=hcpng,"",COUNT($E$7:G21)>=hcpng,K21) -> 686 | M21: =_xlfn.IFS(Q21=1,SUM($E$7:G21),Q21<>1,"") -> 7012 | N21: =_xlfn.IFS(Q21=1,COUNT($E$7:G21),Q21<>1,"") -> 36 | O21: =IF(Q21=1,ROUND(AVERAGE($E$7:G21),2),"") -> 194.78 | P21: =_xlfn.IFS(Q21<>1,"",SUM($Q$7:Q21)=1,1,SUM($Q$7:Q21)<>1,"") ->  | Q21: 1 | S21: =_xlfn.IFS(E21=$X$5,E21,F21=$X$5,F21,G21=$X$5,G21,$A$7=1,"") ->  | U21: =_xlfn.IFS(W21=$X$6,W21,X21=$X$6,X21,Y21=$X$6,Y21,$A$7=1,"") ->  | W21: =_xlfn.IFS(AND(Q21=1,COUNT($E$7:G21)>hcpng),E21+D21,$A$7=1," ") -> 204 | X21: =_xlfn.IFS(AND(Q21=1,COUNT($E$7:G21)>hcpng),F21+D21,$A$7=1," ") -> 258 | Y21: =_xlfn.IFS(AND(Q21=1,COUNT($E$7:G21)>hcpng),G21+D21,$A$7=1," ") -> 224 | Z21: 15 | AA21: =_xlfn.IFS(COUNTIFS(H21,"#",H20,"#"),A20,COUNTIFS(H21,2,H20,"#"),A20,$A$7=1,"") -> 
A22: 16 | B22: ='UTL1'!B22 -> 2023-01-04 | C22: =_xlfn.IFS(Q22<>1,"",AND($B$4>=1,COUNT($E$7:G22)<=bkng),$B$4,P22=1,TRUNC(AVERAGE(E22:G22),0),COUNT($Q$7:Q22)=2,TRUNC(AVERAGE($E$7:G21),0),COUNT($Q$7:Q22)>=3,TRUNC(AVERAGE($E$7:G21),0)) -> 194 | D22: =_xlfn.IFS(Q22<>1,"",Q22=1,TRUNC((230-C22)*0.9)) -> 32 | E22: 172 | F22: 194 | G22: 144 | H22: =_xlfn.IFS(COUNT(E22:G22)<1,"",AND(E22>C22,F22>C22,G22>C22,COUNT($E$7:G22)>sixng),"#",AND(E22>C21,F22>C21,G22>C21,COUNT($E$7:G22)>sixng,COUNTIF(H21,"#")=1),"2",$A$7=1,"") ->  | I22: 510 | J22: 170 | K22: =_xlfn.IFS(Q22<>1,"",Q22=1,I22+(3*D22)) -> 606 | L22: =_xlfn.IFS(Q22<>1,"",COUNT($E$7:G22)<=hcpng,"",COUNT($E$7:G22)>=hcpng,K22) -> 606 | M22: =_xlfn.IFS(Q22=1,SUM($E$7:G22),Q22<>1,"") -> 7522 | N22: =_xlfn.IFS(Q22=1,COUNT($E$7:G22),Q22<>1,"") -> 39 | O22: =IF(Q22=1,ROUND(AVERAGE($E$7:G22),2),"") -> 192.87 | P22: =_xlfn.IFS(Q22<>1,"",SUM($Q$7:Q22)=1,1,SUM($Q$7:Q22)<>1,"") ->  | Q22: 1 | S22: =_xlfn.IFS(E22=$X$5,E22,F22=$X$5,F22,G22=$X$5,G22,$A$7=1,"") ->  | U22: =_xlfn.IFS(W22=$X$6,W22,X22=$X$6,X22,Y22=$X$6,Y22,$A$7=1,"") ->  | W22: =_xlfn.IFS(AND(Q22=1,COUNT($E$7:G22)>hcpng),E22+D22,$A$7=1," ") -> 204 | X22: =_xlfn.IFS(AND(Q22=1,COUNT($E$7:G22)>hcpng),F22+D22,$A$7=1," ") -> 226 | Y22: =_xlfn.IFS(AND(Q22=1,COUNT($E$7:G22)>hcpng),G22+D22,$A$7=1," ") -> 176 | Z22: 16 | AA22: =_xlfn.IFS(COUNTIFS(H22,"#",H21,"#"),A21,COUNTIFS(H22,2,H21,"#"),A21,$A$7=1,"") -> 
A23: 17 | B23: ='UTL1'!B23 -> 2023-01-11 | C23: =_xlfn.IFS(Q23<>1,"",AND($B$4>=1,COUNT($E$7:G23)<=bkng),$B$4,P23=1,TRUNC(AVERAGE(E23:G23),0),COUNT($Q$7:Q23)=2,TRUNC(AVERAGE($E$7:G22),0),COUNT($Q$7:Q23)>=3,TRUNC(AVERAGE($E$7:G22),0)) -> 192 | D23: =_xlfn.IFS(Q23<>1,"",Q23=1,TRUNC((230-C23)*0.9)) -> 34 | E23: 162 | F23: 265 | G23: 194 | H23: =_xlfn.IFS(COUNT(E23:G23)<1,"",AND(E23>C23,F23>C23,G23>C23,COUNT($E$7:G23)>sixng),"#",AND(E23>C22,F23>C22,G23>C22,COUNT($E$7:G23)>sixng,COUNTIF(H22,"#")=1),"2",$A$7=1,"") ->  | I23: 621 | J23: 207 | K23: =_xlfn.IFS(Q23<>1,"",Q23=1,I23+(3*D23)) -> 723 | L23: =_xlfn.IFS(Q23<>1,"",COUNT($E$7:G23)<=hcpng,"",COUNT($E$7:G23)>=hcpng,K23) -> 723 | M23: =_xlfn.IFS(Q23=1,SUM($E$7:G23),Q23<>1,"") -> 8143 | N23: =_xlfn.IFS(Q23=1,COUNT($E$7:G23),Q23<>1,"") -> 42 | O23: =IF(Q23=1,ROUND(AVERAGE($E$7:G23),2),"") -> 193.88 | P23: =_xlfn.IFS(Q23<>1,"",SUM($Q$7:Q23)=1,1,SUM($Q$7:Q23)<>1,"") ->  | Q23: 1 | S23: =_xlfn.IFS(E23=$X$5,E23,F23=$X$5,F23,G23=$X$5,G23,$A$7=1,"") -> 265 | U23: =_xlfn.IFS(W23=$X$6,W23,X23=$X$6,X23,Y23=$X$6,Y23,$A$7=1,"") -> 299 | W23: =_xlfn.IFS(AND(Q23=1,COUNT($E$7:G23)>hcpng),E23+D23,$A$7=1," ") -> 196 | X23: =_xlfn.IFS(AND(Q23=1,COUNT($E$7:G23)>hcpng),F23+D23,$A$7=1," ") -> 299 | Y23: =_xlfn.IFS(AND(Q23=1,COUNT($E$7:G23)>hcpng),G23+D23,$A$7=1," ") -> 228 | Z23: 17 | AA23: =_xlfn.IFS(COUNTIFS(H23,"#",H22,"#"),A22,COUNTIFS(H23,2,H22,"#"),A22,$A$7=1,"") -> 
A24: 18 | B24: ='UTL1'!B24 -> 2023-01-18 | C24: =_xlfn.IFS(Q24<>1,"",AND($B$4>=1,COUNT($E$7:G24)<=bkng),$B$4,P24=1,TRUNC(AVERAGE(E24:G24),0),COUNT($Q$7:Q24)=2,TRUNC(AVERAGE($E$7:G23),0),COUNT($Q$7:Q24)>=3,TRUNC(AVERAGE($E$7:G23),0)) ->  | D24: =_xlfn.IFS(Q24<>1,"",Q24=1,TRUNC((230-C24)*0.9)) ->  | H24: =_xlfn.IFS(COUNT(E24:G24)<1,"",AND(E24>C24,F24>C24,G24>C24,COUNT($E$7:G24)>sixng),"#",AND(E24>C23,F24>C23,G24>C23,COUNT($E$7:G24)>sixng,COUNTIF(H23,"#")=1),"2",$A$7=1,"") ->  | K24: =_xlfn.IFS(Q24<>1,"",Q24=1,I24+(3*D24)) ->  | L24: =_xlfn.IFS(Q24<>1,"",COUNT($E$7:G24)<=hcpng,"",COUNT($E$7:G24)>=hcpng,K24) ->  | M24: =_xlfn.IFS(Q24=1,SUM($E$7:G24),Q24<>1,"") ->  | N24: =_xlfn.IFS(Q24=1,COUNT($E$7:G24),Q24<>1,"") ->  | O24: =IF(Q24=1,ROUND(AVERAGE($E$7:G24),2),"") ->  | P24: =_xlfn.IFS(Q24<>1,"",SUM($Q$7:Q24)=1,1,SUM($Q$7:Q24)<>1,"") ->  | S24: =_xlfn.IFS(E24=$X$5,E24,F24=$X$5,F24,G24=$X$5,G24,$A$7=1,"") ->  | U24: =_xlfn.IFS(W24=$X$6,W24,X24=$X$6,X24,Y24=$X$6,Y24,$A$7=1,"") ->  | W24: =_xlfn.IFS(AND(Q24=1,COUNT($E$7:G24)>hcpng),E24+D24,$A$7=1," ") ->  | X24: =_xlfn.IFS(AND(Q24=1,COUNT($E$7:G24)>hcpng),F24+D24,$A$7=1," ") ->  | Y24: =_xlfn.IFS(AND(Q24=1,COUNT($E$7:G24)>hcpng),G24+D24,$A$7=1," ") ->  | Z24: 0 | AA24: =_xlfn.IFS(COUNTIFS(H24,"#",H23,"#"),A23,COUNTIFS(H24,2,H23,"#"),A23,$A$7=1,"") -> 
A25: 19 | B25: ='UTL1'!B25 -> 2023-01-25 | C25: =_xlfn.IFS(Q25<>1,"",AND($B$4>=1,COUNT($E$7:G25)<=bkng),$B$4,P25=1,TRUNC(AVERAGE(E25:G25),0),COUNT($Q$7:Q25)=2,TRUNC(AVERAGE($E$7:G24),0),COUNT($Q$7:Q25)>=3,TRUNC(AVERAGE($E$7:G24),0)) -> 193 | D25: =_xlfn.IFS(Q25<>1,"",Q25=1,TRUNC((230-C25)*0.9)) -> 33 | E25: 199 | F25: 192 | G25: 190 | H25: =_xlfn.IFS(COUNT(E25:G25)<1,"",AND(E25>C25,F25>C25,G25>C25,COUNT($E$7:G25)>sixng),"#",AND(E25>C24,F25>C24,G25>C24,COUNT($E$7:G25)>sixng,COUNTIF(H24,"#")=1),"2",$A$7=1,"") ->  | I25: 581 | J25: 193 | K25: =_xlfn.IFS(Q25<>1,"",Q25=1,I25+(3*D25)) -> 680 | L25: =_xlfn.IFS(Q25<>1,"",COUNT($E$7:G25)<=hcpng,"",COUNT($E$7:G25)>=hcpng,K25) -> 680 | M25: =_xlfn.IFS(Q25=1,SUM($E$7:G25),Q25<>1,"") -> 8724 | N25: =_xlfn.IFS(Q25=1,COUNT($E$7:G25),Q25<>1,"") -> 45 | O25: =IF(Q25=1,ROUND(AVERAGE($E$7:G25),2),"") -> 193.87 | P25: =_xlfn.IFS(Q25<>1,"",SUM($Q$7:Q25)=1,1,SUM($Q$7:Q25)<>1,"") ->  | Q25: 1 | S25: =_xlfn.IFS(E25=$X$5,E25,F25=$X$5,F25,G25=$X$5,G25,$A$7=1,"") ->  | U25: =_xlfn.IFS(W25=$X$6,W25,X25=$X$6,X25,Y25=$X$6,Y25,$A$7=1,"") ->  | W25: =_xlfn.IFS(AND(Q25=1,COUNT($E$7:G25)>hcpng),E25+D25,$A$7=1," ") -> 232 | X25: =_xlfn.IFS(AND(Q25=1,COUNT($E$7:G25)>hcpng),F25+D25,$A$7=1," ") -> 225 | Y25: =_xlfn.IFS(AND(Q25=1,COUNT($E$7:G25)>hcpng),G25+D25,$A$7=1," ") -> 223 | Z25: 19 | AA25: =_xlfn.IFS(COUNTIFS(H25,"#",H24,"#"),A24,COUNTIFS(H25,2,H24,"#"),A24,$A$7=1,"") -> 
A26: 20 | B26: ='UTL1'!B26 -> 2023-02-01 | C26: =_xlfn.IFS(Q26<>1,"",AND($B$4>=1,COUNT($E$7:G26)<=bkng),$B$4,P26=1,TRUNC(AVERAGE(E26:G26),0),COUNT($Q$7:Q26)=2,TRUNC(AVERAGE($E$7:G25),0),COUNT($Q$7:Q26)>=3,TRUNC(AVERAGE($E$7:G25),0)) -> 193 | D26: =_xlfn.IFS(Q26<>1,"",Q26=1,TRUNC((230-C26)*0.9)) -> 33 | E26: 177 | F26: 206 | G26: 191 | H26: =_xlfn.IFS(COUNT(E26:G26)<1,"",AND(E26>C26,F26>C26,G26>C26,COUNT($E$7:G26)>sixng),"#",AND(E26>C25,F26>C25,G26>C25,COUNT($E$7:G26)>sixng,COUNTIF(H25,"#")=1),"2",$A$7=1,"") ->  | I26: 574 | J26: 191 | K26: =_xlfn.IFS(Q26<>1,"",Q26=1,I26+(3*D26)) -> 673 | L26: =_xlfn.IFS(Q26<>1,"",COUNT($E$7:G26)<=hcpng,"",COUNT($E$7:G26)>=hcpng,K26) -> 673 | M26: =_xlfn.IFS(Q26=1,SUM($E$7:G26),Q26<>1,"") -> 9298 | N26: =_xlfn.IFS(Q26=1,COUNT($E$7:G26),Q26<>1,"") -> 48 | O26: =IF(Q26=1,ROUND(AVERAGE($E$7:G26),2),"") -> 193.71 | P26: =_xlfn.IFS(Q26<>1,"",SUM($Q$7:Q26)=1,1,SUM($Q$7:Q26)<>1,"") ->  | Q26: 1 | S26: =_xlfn.IFS(E26=$X$5,E26,F26=$X$5,F26,G26=$X$5,G26,$A$7=1,"") ->  | U26: =_xlfn.IFS(W26=$X$6,W26,X26=$X$6,X26,Y26=$X$6,Y26,$A$7=1,"") ->  | W26: =_xlfn.IFS(AND(Q26=1,COUNT($E$7:G26)>hcpng),E26+D26,$A$7=1," ") -> 210 | X26: =_xlfn.IFS(AND(Q26=1,COUNT($E$7:G26)>hcpng),F26+D26,$A$7=1," ") -> 239 | Y26: =_xlfn.IFS(AND(Q26=1,COUNT($E$7:G26)>hcpng),G26+D26,$A$7=1," ") -> 224 | Z26: 20 | AA26: =_xlfn.IFS(COUNTIFS(H26,"#",H25,"#"),A25,COUNTIFS(H26,2,H25,"#"),A25,$A$7=1,"") -> 
A27: 21 | B27: ='UTL1'!B27 -> 2023-02-08 | C27: =_xlfn.IFS(Q27<>1,"",AND($B$4>=1,COUNT($E$7:G27)<=bkng),$B$4,P27=1,TRUNC(AVERAGE(E27:G27),0),COUNT($Q$7:Q27)=2,TRUNC(AVERAGE($E$7:G26),0),COUNT($Q$7:Q27)>=3,TRUNC(AVERAGE($E$7:G26),0)) ->  | D27: =_xlfn.IFS(Q27<>1,"",Q27=1,TRUNC((230-C27)*0.9)) ->  | H27: =_xlfn.IFS(COUNT(E27:G27)<1,"",AND(E27>C27,F27>C27,G27>C27,COUNT($E$7:G27)>sixng),"#",AND(E27>C26,F27>C26,G27>C26,COUNT($E$7:G27)>sixng,COUNTIF(H26,"#")=1),"2",$A$7=1,"") ->  | K27: =_xlfn.IFS(Q27<>1,"",Q27=1,I27+(3*D27)) ->  | L27: =_xlfn.IFS(Q27<>1,"",COUNT($E$7:G27)<=hcpng,"",COUNT($E$7:G27)>=hcpng,K27) ->  | M27: =_xlfn.IFS(Q27=1,SUM($E$7:G27),Q27<>1,"") ->  | N27: =_xlfn.IFS(Q27=1,COUNT($E$7:G27),Q27<>1,"") ->  | O27: =IF(Q27=1,ROUND(AVERAGE($E$7:G27),2),"") ->  | P27: =_xlfn.IFS(Q27<>1,"",SUM($Q$7:Q27)=1,1,SUM($Q$7:Q27)<>1,"") ->  | S27: =_xlfn.IFS(E27=$X$5,E27,F27=$X$5,F27,G27=$X$5,G27,$A$7=1,"") ->  | U27: =_xlfn.IFS(W27=$X$6,W27,X27=$X$6,X27,Y27=$X$6,Y27,$A$7=1,"") ->  | W27: =_xlfn.IFS(AND(Q27=1,COUNT($E$7:G27)>hcpng),E27+D27,$A$7=1," ") ->  | X27: =_xlfn.IFS(AND(Q27=1,COUNT($E$7:G27)>hcpng),F27+D27,$A$7=1," ") ->  | Y27: =_xlfn.IFS(AND(Q27=1,COUNT($E$7:G27)>hcpng),G27+D27,$A$7=1," ") ->  | Z27: 0 | AA27: =_xlfn.IFS(COUNTIFS(H27,"#",H26,"#"),A26,COUNTIFS(H27,2,H26,"#"),A26,$A$7=1,"") -> 
A28: 22 | B28: ='UTL1'!B28 -> 2023-02-15 | C28: =_xlfn.IFS(Q28<>1,"",AND($B$4>=1,COUNT($E$7:G28)<=bkng),$B$4,P28=1,TRUNC(AVERAGE(E28:G28),0),COUNT($Q$7:Q28)=2,TRUNC(AVERAGE($E$7:G27),0),COUNT($Q$7:Q28)>=3,TRUNC(AVERAGE($E$7:G27),0)) -> 193 | D28: =_xlfn.IFS(Q28<>1,"",Q28=1,TRUNC((230-C28)*0.9)) -> 33 | E28: 236 | F28: 156 | G28: 221 | H28: =_xlfn.IFS(COUNT(E28:G28)<1,"",AND(E28>C28,F28>C28,G28>C28,COUNT($E$7:G28)>sixng),"#",AND(E28>C27,F28>C27,G28>C27,COUNT($E$7:G28)>sixng,COUNTIF(H27,"#")=1),"2",$A$7=1,"") ->  | I28: 613 | J28: 204 | K28: =_xlfn.IFS(Q28<>1,"",Q28=1,I28+(3*D28)) -> 712 | L28: =_xlfn.IFS(Q28<>1,"",COUNT($E$7:G28)<=hcpng,"",COUNT($E$7:G28)>=hcpng,K28) -> 712 | M28: =_xlfn.IFS(Q28=1,SUM($E$7:G28),Q28<>1,"") -> 9911 | N28: =_xlfn.IFS(Q28=1,COUNT($E$7:G28),Q28<>1,"") -> 51 | O28: =IF(Q28=1,ROUND(AVERAGE($E$7:G28),2),"") -> 194.33 | P28: =_xlfn.IFS(Q28<>1,"",SUM($Q$7:Q28)=1,1,SUM($Q$7:Q28)<>1,"") ->  | Q28: 1 | S28: =_xlfn.IFS(E28=$X$5,E28,F28=$X$5,F28,G28=$X$5,G28,$A$7=1,"") ->  | U28: =_xlfn.IFS(W28=$X$6,W28,X28=$X$6,X28,Y28=$X$6,Y28,$A$7=1,"") ->  | W28: =_xlfn.IFS(AND(Q28=1,COUNT($E$7:G28)>hcpng),E28+D28,$A$7=1," ") -> 269 | X28: =_xlfn.IFS(AND(Q28=1,COUNT($E$7:G28)>hcpng),F28+D28,$A$7=1," ") -> 189 | Y28: =_xlfn.IFS(AND(Q28=1,COUNT($E$7:G28)>hcpng),G28+D28,$A$7=1," ") -> 254 | Z28: 22 | AA28: =_xlfn.IFS(COUNTIFS(H28,"#",H27,"#"),A27,COUNTIFS(H28,2,H27,"#"),A27,$A$7=1,"") -> 
A29: 23 | B29: ='UTL1'!B29 -> 2023-02-22 | C29: =_xlfn.IFS(Q29<>1,"",AND($B$4>=1,COUNT($E$7:G29)<=bkng),$B$4,P29=1,TRUNC(AVERAGE(E29:G29),0),COUNT($Q$7:Q29)=2,TRUNC(AVERAGE($E$7:G28),0),COUNT($Q$7:Q29)>=3,TRUNC(AVERAGE($E$7:G28),0)) -> 194 | D29: =_xlfn.IFS(Q29<>1,"",Q29=1,TRUNC((230-C29)*0.9)) -> 32 | E29: 201 | F29: 139 | G29: 153 | H29: =_xlfn.IFS(COUNT(E29:G29)<1,"",AND(E29>C29,F29>C29,G29>C29,COUNT($E$7:G29)>sixng),"#",AND(E29>C28,F29>C28,G29>C28,COUNT($E$7:G29)>sixng,COUNTIF(H28,"#")=1),"2",$A$7=1,"") ->  | I29: 493 | J29: 164 | K29: =_xlfn.IFS(Q29<>1,"",Q29=1,I29+(3*D29)) -> 589 | L29: =_xlfn.IFS(Q29<>1,"",COUNT($E$7:G29)<=hcpng,"",COUNT($E$7:G29)>=hcpng,K29) -> 589 | M29: =_xlfn.IFS(Q29=1,SUM($E$7:G29),Q29<>1,"") -> 10404 | N29: =_xlfn.IFS(Q29=1,COUNT($E$7:G29),Q29<>1,"") -> 54 | O29: =IF(Q29=1,ROUND(AVERAGE($E$7:G29),2),"") -> 192.67 | P29: =_xlfn.IFS(Q29<>1,"",SUM($Q$7:Q29)=1,1,SUM($Q$7:Q29)<>1,"") ->  | Q29: 1 | S29: =_xlfn.IFS(E29=$X$5,E29,F29=$X$5,F29,G29=$X$5,G29,$A$7=1,"") ->  | U29: =_xlfn.IFS(W29=$X$6,W29,X29=$X$6,X29,Y29=$X$6,Y29,$A$7=1,"") ->  | W29: =_xlfn.IFS(AND(Q29=1,COUNT($E$7:G29)>hcpng),E29+D29,$A$7=1," ") -> 233 | X29: =_xlfn.IFS(AND(Q29=1,COUNT($E$7:G29)>hcpng),F29+D29,$A$7=1," ") -> 171 | Y29: =_xlfn.IFS(AND(Q29=1,COUNT($E$7:G29)>hcpng),G29+D29,$A$7=1," ") -> 185 | Z29: 23 | AA29: =_xlfn.IFS(COUNTIFS(H29,"#",H28,"#"),A28,COUNTIFS(H29,2,H28,"#"),A28,$A$7=1,"") -> 
A30: 24 | B30: ='UTL1'!B30 -> 2023-03-01 | C30: =_xlfn.IFS(Q30<>1,"",AND($B$4>=1,COUNT($E$7:G30)<=bkng),$B$4,P30=1,TRUNC(AVERAGE(E30:G30),0),COUNT($Q$7:Q30)=2,TRUNC(AVERAGE($E$7:G29),0),COUNT($Q$7:Q30)>=3,TRUNC(AVERAGE($E$7:G29),0)) ->  | D30: =_xlfn.IFS(Q30<>1,"",Q30=1,TRUNC((230-C30)*0.9)) ->  | H30: =_xlfn.IFS(COUNT(E30:G30)<1,"",AND(E30>C30,F30>C30,G30>C30,COUNT($E$7:G30)>sixng),"#",AND(E30>C29,F30>C29,G30>C29,COUNT($E$7:G30)>sixng,COUNTIF(H29,"#")=1),"2",$A$7=1,"") ->  | K30: =_xlfn.IFS(Q30<>1,"",Q30=1,I30+(3*D30)) ->  | L30: =_xlfn.IFS(Q30<>1,"",COUNT($E$7:G30)<=hcpng,"",COUNT($E$7:G30)>=hcpng,K30) ->  | M30: =_xlfn.IFS(Q30=1,SUM($E$7:G30),Q30<>1,"") ->  | N30: =_xlfn.IFS(Q30=1,COUNT($E$7:G30),Q30<>1,"") ->  | O30: =IF(Q30=1,ROUND(AVERAGE($E$7:G30),2),"") ->  | P30: =_xlfn.IFS(Q30<>1,"",SUM($Q$7:Q30)=1,1,SUM($Q$7:Q30)<>1,"") ->  | S30: =_xlfn.IFS(E30=$X$5,E30,F30=$X$5,F30,G30=$X$5,G30,$A$7=1,"") ->  | U30: =_xlfn.IFS(W30=$X$6,W30,X30=$X$6,X30,Y30=$X$6,Y30,$A$7=1,"") ->  | W30: =_xlfn.IFS(AND(Q30=1,COUNT($E$7:G30)>hcpng),E30+D30,$A$7=1," ") ->  | X30: =_xlfn.IFS(AND(Q30=1,COUNT($E$7:G30)>hcpng),F30+D30,$A$7=1," ") ->  | Y30: =_xlfn.IFS(AND(Q30=1,COUNT($E$7:G30)>hcpng),G30+D30,$A$7=1," ") ->  | Z30: 0 | AA30: =_xlfn.IFS(COUNTIFS(H30,"#",H29,"#"),A29,COUNTIFS(H30,2,H29,"#"),A29,$A$7=1,"") -> 
A31: 25 | B31: ='UTL1'!B31 -> 2023-03-08 | C31: =_xlfn.IFS(Q31<>1,"",AND($B$4>=1,COUNT($E$7:G31)<=bkng),$B$4,P31=1,TRUNC(AVERAGE(E31:G31),0),COUNT($Q$7:Q31)=2,TRUNC(AVERAGE($E$7:G30),0),COUNT($Q$7:Q31)>=3,TRUNC(AVERAGE($E$7:G30),0)) -> 192 | D31: =_xlfn.IFS(Q31<>1,"",Q31=1,TRUNC((230-C31)*0.9)) -> 34 | E31: 212 | F31: 203 | G31: 146 | H31: =_xlfn.IFS(COUNT(E31:G31)<1,"",AND(E31>C31,F31>C31,G31>C31,COUNT($E$7:G31)>sixng),"#",AND(E31>C30,F31>C30,G31>C30,COUNT($E$7:G31)>sixng,COUNTIF(H30,"#")=1),"2",$A$7=1,"") ->  | I31: 561 | J31: 187 | K31: =_xlfn.IFS(Q31<>1,"",Q31=1,I31+(3*D31)) -> 663 | L31: =_xlfn.IFS(Q31<>1,"",COUNT($E$7:G31)<=hcpng,"",COUNT($E$7:G31)>=hcpng,K31) -> 663 | M31: =_xlfn.IFS(Q31=1,SUM($E$7:G31),Q31<>1,"") -> 10965 | N31: =_xlfn.IFS(Q31=1,COUNT($E$7:G31),Q31<>1,"") -> 57 | O31: =IF(Q31=1,ROUND(AVERAGE($E$7:G31),2),"") -> 192.37 | P31: =_xlfn.IFS(Q31<>1,"",SUM($Q$7:Q31)=1,1,SUM($Q$7:Q31)<>1,"") ->  | Q31: 1 | S31: =_xlfn.IFS(E31=$X$5,E31,F31=$X$5,F31,G31=$X$5,G31,$A$7=1,"") ->  | U31: =_xlfn.IFS(W31=$X$6,W31,X31=$X$6,X31,Y31=$X$6,Y31,$A$7=1,"") ->  | W31: =_xlfn.IFS(AND(Q31=1,COUNT($E$7:G31)>hcpng),E31+D31,$A$7=1," ") -> 246 | X31: =_xlfn.IFS(AND(Q31=1,COUNT($E$7:G31)>hcpng),F31+D31,$A$7=1," ") -> 237 | Y31: =_xlfn.IFS(AND(Q31=1,COUNT($E$7:G31)>hcpng),G31+D31,$A$7=1," ") -> 180 | Z31: 25 | AA31: =_xlfn.IFS(COUNTIFS(H31,"#",H30,"#"),A30,COUNTIFS(H31,2,H30,"#"),A30,$A$7=1,"") -> 
A32: 26 | B32: ='UTL1'!B32 -> 2023-03-15 | C32: =_xlfn.IFS(Q32<>1,"",AND($B$4>=1,COUNT($E$7:G32)<=bkng),$B$4,P32=1,TRUNC(AVERAGE(E32:G32),0),COUNT($Q$7:Q32)=2,TRUNC(AVERAGE($E$7:G31),0),COUNT($Q$7:Q32)>=3,TRUNC(AVERAGE($E$7:G31),0)) -> 192 | D32: =_xlfn.IFS(Q32<>1,"",Q32=1,TRUNC((230-C32)*0.9)) -> 34 | E32: 175 | F32: 149 | G32: 170 | H32: =_xlfn.IFS(COUNT(E32:G32)<1,"",AND(E32>C32,F32>C32,G32>C32,COUNT($E$7:G32)>sixng),"#",AND(E32>C31,F32>C31,G32>C31,COUNT($E$7:G32)>sixng,COUNTIF(H31,"#")=1),"2",$A$7=1,"") ->  | I32: 494 | J32: 164 | K32: =_xlfn.IFS(Q32<>1,"",Q32=1,I32+(3*D32)) -> 596 | L32: =_xlfn.IFS(Q32<>1,"",COUNT($E$7:G32)<=hcpng,"",COUNT($E$7:G32)>=hcpng,K32) -> 596 | M32: =_xlfn.IFS(Q32=1,SUM($E$7:G32),Q32<>1,"") -> 11459 | N32: =_xlfn.IFS(Q32=1,COUNT($E$7:G32),Q32<>1,"") -> 60 | O32: =IF(Q32=1,ROUND(AVERAGE($E$7:G32),2),"") -> 190.98 | P32: =_xlfn.IFS(Q32<>1,"",SUM($Q$7:Q32)=1,1,SUM($Q$7:Q32)<>1,"") ->  | Q32: 1 | S32: =_xlfn.IFS(E32=$X$5,E32,F32=$X$5,F32,G32=$X$5,G32,$A$7=1,"") ->  | U32: =_xlfn.IFS(W32=$X$6,W32,X32=$X$6,X32,Y32=$X$6,Y32,$A$7=1,"") ->  | W32: =_xlfn.IFS(AND(Q32=1,COUNT($E$7:G32)>hcpng),E32+D32,$A$7=1," ") -> 209 | X32: =_xlfn.IFS(AND(Q32=1,COUNT($E$7:G32)>hcpng),F32+D32,$A$7=1," ") -> 183 | Y32: =_xlfn.IFS(AND(Q32=1,COUNT($E$7:G32)>hcpng),G32+D32,$A$7=1," ") -> 204 | Z32: 26 | AA32: =_xlfn.IFS(COUNTIFS(H32,"#",H31,"#"),A31,COUNTIFS(H32,2,H31,"#"),A31,$A$7=1,"") -> 
A33: 27 | B33: ='UTL1'!B33 -> 2023-03-22 | C33: =_xlfn.IFS(Q33<>1,"",AND($B$4>=1,COUNT($E$7:G33)<=bkng),$B$4,P33=1,TRUNC(AVERAGE(E33:G33),0),COUNT($Q$7:Q33)=2,TRUNC(AVERAGE($E$7:G32),0),COUNT($Q$7:Q33)>=3,TRUNC(AVERAGE($E$7:G32),0)) ->  | D33: =_xlfn.IFS(Q33<>1,"",Q33=1,TRUNC((230-C33)*0.9)) ->  | H33: =_xlfn.IFS(COUNT(E33:G33)<1,"",AND(E33>C33,F33>C33,G33>C33,COUNT($E$7:G33)>sixng),"#",AND(E33>C32,F33>C32,G33>C32,COUNT($E$7:G33)>sixng,COUNTIF(H32,"#")=1),"2",$A$7=1,"") ->  | K33: =_xlfn.IFS(Q33<>1,"",Q33=1,I33+(3*D33)) ->  | L33: =_xlfn.IFS(Q33<>1,"",COUNT($E$7:G33)<=hcpng,"",COUNT($E$7:G33)>=hcpng,K33) ->  | M33: =_xlfn.IFS(Q33=1,SUM($E$7:G33),Q33<>1,"") ->  | N33: =_xlfn.IFS(Q33=1,COUNT($E$7:G33),Q33<>1,"") ->  | O33: =IF(Q33=1,ROUND(AVERAGE($E$7:G33),2),"") ->  | P33: =_xlfn.IFS(Q33<>1,"",SUM($Q$7:Q33)=1,1,SUM($Q$7:Q33)<>1,"") ->  | S33: =_xlfn.IFS(E33=$X$5,E33,F33=$X$5,F33,G33=$X$5,G33,$A$7=1,"") ->  | U33: =_xlfn.IFS(W33=$X$6,W33,X33=$X$6,X33,Y33=$X$6,Y33,$A$7=1,"") ->  | W33: =_xlfn.IFS(AND(Q33=1,COUNT($E$7:G33)>hcpng),E33+D33,$A$7=1," ") ->  | X33: =_xlfn.IFS(AND(Q33=1,COUNT($E$7:G33)>hcpng),F33+D33,$A$7=1," ") ->  | Y33: =_xlfn.IFS(AND(Q33=1,COUNT($E$7:G33)>hcpng),G33+D33,$A$7=1," ") ->  | Z33: 0 | AA33: =_xlfn.IFS(COUNTIFS(H33,"#",H32,"#"),A32,COUNTIFS(H33,2,H32,"#"),A32,$A$7=1,"") -> 
A34: 28 | B34: ='UTL1'!B34 -> 2023-03-29 | C34: =_xlfn.IFS(Q34<>1,"",AND($B$4>=1,COUNT($E$7:G34)<=bkng),$B$4,P34=1,TRUNC(AVERAGE(E34:G34),0),COUNT($Q$7:Q34)=2,TRUNC(AVERAGE($E$7:G33),0),COUNT($Q$7:Q34)>=3,TRUNC(AVERAGE($E$7:G33),0)) -> 190 | D34: =_xlfn.IFS(Q34<>1,"",Q34=1,TRUNC((230-C34)*0.9)) -> 36 | E34: 192 | F34: 177 | G34: 147 | H34: =_xlfn.IFS(COUNT(E34:G34)<1,"",AND(E34>C34,F34>C34,G34>C34,COUNT($E$7:G34)>sixng),"#",AND(E34>C33,F34>C33,G34>C33,COUNT($E$7:G34)>sixng,COUNTIF(H33,"#")=1),"2",$A$7=1,"") ->  | I34: 516 | J34: 172 | K34: =_xlfn.IFS(Q34<>1,"",Q34=1,I34+(3*D34)) -> 624 | L34: =_xlfn.IFS(Q34<>1,"",COUNT($E$7:G34)<=hcpng,"",COUNT($E$7:G34)>=hcpng,K34) -> 624 | M34: =_xlfn.IFS(Q34=1,SUM($E$7:G34),Q34<>1,"") -> 11975 | N34: =_xlfn.IFS(Q34=1,COUNT($E$7:G34),Q34<>1,"") -> 63 | O34: =IF(Q34=1,ROUND(AVERAGE($E$7:G34),2),"") -> 190.08 | P34: =_xlfn.IFS(Q34<>1,"",SUM($Q$7:Q34)=1,1,SUM($Q$7:Q34)<>1,"") ->  | Q34: 1 | S34: =_xlfn.IFS(E34=$X$5,E34,F34=$X$5,F34,G34=$X$5,G34,$A$7=1,"") ->  | U34: =_xlfn.IFS(W34=$X$6,W34,X34=$X$6,X34,Y34=$X$6,Y34,$A$7=1,"") ->  | W34: =_xlfn.IFS(AND(Q34=1,COUNT($E$7:G34)>hcpng),E34+D34,$A$7=1," ") -> 228 | X34: =_xlfn.IFS(AND(Q34=1,COUNT($E$7:G34)>hcpng),F34+D34,$A$7=1," ") -> 213 | Y34: =_xlfn.IFS(AND(Q34=1,COUNT($E$7:G34)>hcpng),G34+D34,$A$7=1," ") -> 183 | Z34: 28 | AA34: =_xlfn.IFS(COUNTIFS(H34,"#",H33,"#"),A33,COUNTIFS(H34,2,H33,"#"),A33,$A$7=1,"") -> 
A35: 29 | B35: ='UTL1'!B35 -> 2023-04-05 | C35: =_xlfn.IFS(Q35<>1,"",AND($B$4>=1,COUNT($E$7:G35)<=bkng),$B$4,P35=1,TRUNC(AVERAGE(E35:G35),0),COUNT($Q$7:Q35)=2,TRUNC(AVERAGE($E$7:G34),0),COUNT($Q$7:Q35)>=3,TRUNC(AVERAGE($E$7:G34),0)) -> 190 | D35: =_xlfn.IFS(Q35<>1,"",Q35=1,TRUNC((230-C35)*0.9)) -> 36 | E35: 179 | F35: 168 | G35: 169 | H35: =_xlfn.IFS(COUNT(E35:G35)<1,"",AND(E35>C35,F35>C35,G35>C35,COUNT($E$7:G35)>sixng),"#",AND(E35>C34,F35>C34,G35>C34,COUNT($E$7:G35)>sixng,COUNTIF(H34,"#")=1),"2",$A$7=1,"") ->  | I35: 516 | J35: 172 | K35: =_xlfn.IFS(Q35<>1,"",Q35=1,I35+(3*D35)) -> 624 | L35: =_xlfn.IFS(Q35<>1,"",COUNT($E$7:G35)<=hcpng,"",COUNT($E$7:G35)>=hcpng,K35) -> 624 | M35: =_xlfn.IFS(Q35=1,SUM($E$7:G35),Q35<>1,"") -> 12491 | N35: =_xlfn.IFS(Q35=1,COUNT($E$7:G35),Q35<>1,"") -> 66 | O35: =IF(Q35=1,ROUND(AVERAGE($E$7:G35),2),"") -> 189.26 | P35: =_xlfn.IFS(Q35<>1,"",SUM($Q$7:Q35)=1,1,SUM($Q$7:Q35)<>1,"") ->  | Q35: 1 | S35: =_xlfn.IFS(E35=$X$5,E35,F35=$X$5,F35,G35=$X$5,G35,$A$7=1,"") ->  | U35: =_xlfn.IFS(W35=$X$6,W35,X35=$X$6,X35,Y35=$X$6,Y35,$A$7=1,"") ->  | W35: =_xlfn.IFS(AND(Q35=1,COUNT($E$7:G35)>hcpng),E35+D35,$A$7=1," ") -> 215 | X35: =_xlfn.IFS(AND(Q35=1,COUNT($E$7:G35)>hcpng),F35+D35,$A$7=1," ") -> 204 | Y35: =_xlfn.IFS(AND(Q35=1,COUNT($E$7:G35)>hcpng),G35+D35,$A$7=1," ") -> 205 | Z35: 29 | AA35: =_xlfn.IFS(COUNTIFS(H35,"#",H34,"#"),A34,COUNTIFS(H35,2,H34,"#"),A34,$A$7=1,"") -> 
A36: 30 | B36: ='UTL1'!B36 -> 2023-04-12 | C36: =_xlfn.IFS(Q36<>1,"",AND($B$4>=1,COUNT($E$7:G36)<=bkng),$B$4,P36=1,TRUNC(AVERAGE(E36:G36),0),COUNT($Q$7:Q36)=2,TRUNC(AVERAGE($E$7:G35),0),COUNT($Q$7:Q36)>=3,TRUNC(AVERAGE($E$7:G35),0)) -> 189 | D36: =_xlfn.IFS(Q36<>1,"",Q36=1,TRUNC((230-C36)*0.9)) -> 36 | E36: 234 | F36: 181 | G36: 175 | H36: =_xlfn.IFS(COUNT(E36:G36)<1,"",AND(E36>C36,F36>C36,G36>C36,COUNT($E$7:G36)>sixng),"#",AND(E36>C35,F36>C35,G36>C35,COUNT($E$7:G36)>sixng,COUNTIF(H35,"#")=1),"2",$A$7=1,"") ->  | I36: 590 | J36: 196 | K36: =_xlfn.IFS(Q36<>1,"",Q36=1,I36+(3*D36)) -> 698 | L36: =_xlfn.IFS(Q36<>1,"",COUNT($E$7:G36)<=hcpng,"",COUNT($E$7:G36)>=hcpng,K36) -> 698 | M36: =_xlfn.IFS(Q36=1,SUM($E$7:G36),Q36<>1,"") -> 13081 | N36: =_xlfn.IFS(Q36=1,COUNT($E$7:G36),Q36<>1,"") -> 69 | O36: =IF(Q36=1,ROUND(AVERAGE($E$7:G36),2),"") -> 189.58 | P36: =_xlfn.IFS(Q36<>1,"",SUM($Q$7:Q36)=1,1,SUM($Q$7:Q36)<>1,"") ->  | Q36: 1 | S36: =_xlfn.IFS(E36=$X$5,E36,F36=$X$5,F36,G36=$X$5,G36,$A$7=1,"") ->  | U36: =_xlfn.IFS(W36=$X$6,W36,X36=$X$6,X36,Y36=$X$6,Y36,$A$7=1,"") ->  | W36: =_xlfn.IFS(AND(Q36=1,COUNT($E$7:G36)>hcpng),E36+D36,$A$7=1," ") -> 270 | X36: =_xlfn.IFS(AND(Q36=1,COUNT($E$7:G36)>hcpng),F36+D36,$A$7=1," ") -> 217 | Y36: =_xlfn.IFS(AND(Q36=1,COUNT($E$7:G36)>hcpng),G36+D36,$A$7=1," ") -> 211 | Z36: 30 | AA36: =_xlfn.IFS(COUNTIFS(H36,"#",H35,"#"),A35,COUNTIFS(H36,2,H35,"#"),A35,$A$7=1,"") -> 
E37: =IF(COUNT(E7:E36)>=1,ROUND(SUM(E7:E36)/COUNT(E7:E36),2),"") -> 193.13 | F37: =IF(COUNT(F7:F36)>=1,ROUND(SUM(F7:F36)/COUNT(F7:F36),2),"") -> 188.96 | G37: =IF(COUNT(G7:G36)>=1,ROUND(SUM(G7:G36)/COUNT(G7:G36),2),"") -> 186.65

Sheet SGray
A1: =IF('UTL1'!A2="V",'UTL1'!B2,"") ->  | H1: ='UTL1'!H1 -> Wednesday Fun Fours 2022/2023 season
A2: wk# | B2: =MAX(Z7:Z36) -> 30 | O2: 6 Over week: | S2: =IF(MIN(AA7:AA36)<1,"",MIN(AA7:AA36)) -> 
A3: Name: | B3: Sterling Gray | G3: Perfect Attendance: | J3: =_xlfn.IFS(MAX('UTL1'!D7:D36)>B2,"NO",SUM(Q7:Q36)=B2,"YES",SUM(Q7:Q36)<>B2,"NO") -> NO | K3: =_xlfn.IFS(MAX('UTL1'!D7:D36)>B2,"",AND(SUM(Q7:Q36)<30,SUM(Q7:Q36)=B2),"So Far",SUM(Q7:Q36)=30,"Good",SUM(Q7:Q36)<>B2,"") -> 
A4: Bk Avg: | W4: Hi.series> | X4: =MAX(I7:I36) -> 536
C5: bk or | D5: old | I5: wky | J5: wky | K5: Hcp | L5: hcp | O5: new | P5: start | R5: high | S5: high | T5: high hcp | U5: high hcp | W5: hi.game> | X5: =MAX(E7:G36) -> 222
A6: wk no. | C6: old avg | D6: hdcp | E6: -1- | F6: -2- | G6: -3- | I6: total | J6: avg | K6: total | L6: t2 hc | M6: Pins | N6: Gms | O6: avg | P6: week | Q6: startB | R6: series | S6: game | T6: series | U6: game | W6: h.hcp.g> | X6: =MAX(W7:Y36) -> 302 | Z6: wk#
A7: 1 | B7: ='UTL1'!B7 -> 2022-09-07 | C7: =_xlfn.IFS(Q7<>1,"",AND($B$4>=1,COUNT($E$7:G7)<=bkng),$B$4,P7=1,TRUNC(AVERAGE(E7:G7),0),COUNT($Q$7:Q7)=2,TRUNC(AVERAGE($E6:G$7),0),COUNT($Q$7:Q7)>=3,TRUNC(AVERAGE($E6:G$7),0)) -> 117 | D7: =_xlfn.IFS(Q7<>1,"",Q7=1,TRUNC((230-C7)*0.9)) -> 101 | E7: 173 | F7: 80 | G7: 99 | I7: =IF(Q7=1,SUM(E7:G7),"") -> 352 | J7: =IF(Q7=1,TRUNC(AVERAGE(E7:G7),0),"") -> 117 | K7: =_xlfn.IFS(Q7<>1,"",Q7=1,I7+(3*D7)) -> 655 | L7: =_xlfn.IFS(Q7<>1,"",COUNT($E$7:G7)<=hcpng,"",COUNT($E$7:G7)>=hcpng,K7) ->  | M7: =_xlfn.IFS(Q7=1,SUM($E$7:G7),Q7<>1,"") -> 352 | N7: =_xlfn.IFS(Q7=1,COUNT($E$7:G7),Q7<>1,"") -> 3 | O7: =IF(Q7=1,ROUND(AVERAGE($E$7:G7),2),"") -> 117.33 | P7: =_xlfn.IFS(Q7<>1,"",SUM($Q$7:Q7)=1,1,SUM($Q$7:Q7)<>1,"") -> 1 | Q7: =IF(MAX(E7:G7)<1,"",1) -> 1 | R7: =IF(I7=$X$4,I7,"") ->  | S7: =_xlfn.IFS(E7=$X$5,E7,F7=$X$5,F7,G7=$X$5,G7,$A$7=1,"") ->  | T7: =IF(L7=MAX($L$7:$L$36),L7,"") ->  | U7: =_xlfn.IFS(W7=$X$6,W7,X7=$X$6,X7,Y7=$X$6,Y7,$A$7=1,"") ->  | W7: =_xlfn.IFS(AND(Q7=1,COUNT($E$7:G7)>hcpng),E7+D7,$A$7=1," ") ->  | X7: =_xlfn.IFS(AND(Q7=1,COUNT($E$7:G7)>hcpng),F7+D7,$A$7=1," ") ->  | Y7: =_xlfn.IFS(AND(Q7=1,COUNT($E$7:G7)>hcpng),G7+D7,$A$7=1," ") ->  | Z7: =IF(Q7=1,A7,0) -> 1 | AA7: =_xlfn.IFS(COUNTIFS(H7,"#",H6,"#"),A6,COUNTIFS(H7,2,H6,"#"),A6,$A$7=1,"") -> 
A8: 2 | B8: ='UTL1'!B8 -> 2022-09-14 | C8: =_xlfn.IFS(Q8<>1,"",AND($B$4>=1,COUNT($E$7:G8)<=bkng),$B$4,P8=1,TRUNC(AVERAGE(E8:G8),0),COUNT($Q$7:Q8)=2,TRUNC(AVERAGE($E7:G$7),0),COUNT($Q$7:Q8)>=3,TRUNC(AVERAGE($E7:G$7),0)) -> 117 | D8: =_xlfn.IFS(Q8<>1,"",Q8=1,TRUNC((230-C8)*0.9)) -> 101 | E8: 158 | F8: 140 | G8: 138 | H8: =_xlfn.IFS(COUNT(E8:G8)<1,"",AND(E8>C8,F8>C8,G8>C8,COUNT($E$7:G8)>sixng),"#",AND(E8>C7,F8>C7,G8>C7,COUNT($E$7:G8)>sixng,COUNTIF(H7,"#")=1),"2",$A$7=1,"") ->  | I8: =IF(Q8=1,SUM(E8:G8),"") -> 436 | J8: =IF(Q8=1,TRUNC(AVERAGE(E8:G8),0),"") -> 145 | K8: =_xlfn.IFS(Q8<>1,"",Q8=1,I8+(3*D8)) -> 739 | L8: =_xlfn.IFS(Q8<>1,"",COUNT($E$7:G8)<=hcpng,"",COUNT($E$7:G8)>=hcpng,K8) ->  | M8: =_xlfn.IFS(Q8=1,SUM($E$7:G8),Q8<>1,"") -> 788 | N8: =_xlfn.IFS(Q8=1,COUNT($E$7:G8),Q8<>1,"") -> 6 | O8: =IF(Q8=1,ROUND(AVERAGE($E$7:G8),2),"") -> 131.33 | P8: =_xlfn.IFS(Q8<>1,"",SUM($Q$7:Q8)=1,1,SUM($Q$7:Q8)<>1,"") ->  | Q8: =IF(MAX(E8:G8)<1,"",1) -> 1 | R8: =IF(I8=$X$4,I8,"") ->  | S8: =_xlfn.IFS(E8=$X$5,E8,F8=$X$5,F8,G8=$X$5,G8,$A$7=1,"") ->  | T8: =IF(L8=MAX($L$7:$L$36),L8,"") ->  | U8: =_xlfn.IFS(W8=$X$6,W8,X8=$X$6,X8,Y8=$X$6,Y8,$A$7=1,"") ->  | W8: =_xlfn.IFS(AND(Q8=1,COUNT($E$7:G8)>hcpng),E8+D8,$A$7=1," ") ->  | X8: =_xlfn.IFS(AND(Q8=1,COUNT($E$7:G8)>hcpng),F8+D8,$A$7=1," ") ->  | Y8: =_xlfn.IFS(AND(Q8=1,COUNT($E$7:G8)>hcpng),G8+D8,$A$7=1," ") ->  | Z8: =IF(Q8=1,A8,0) -> 2 | AA8: =_xlfn.IFS(COUNTIFS(H8,"#",H7,"#"),A7,COUNTIFS(H8,2,H7,"#"),A7,$A$7=1,"") -> 
A9: 3 | B9: ='UTL1'!B9 -> 2022-09-21 | C9: =_xlfn.IFS(Q9<>1,"",AND($B$4>=1,COUNT($E$7:G9)<=bkng),$B$4,P9=1,TRUNC(AVERAGE(E9:G9),0),COUNT($Q$7:Q9)=2,TRUNC(AVERAGE($E$7:G8),0),COUNT($Q$7:Q9)>=3,TRUNC(AVERAGE($E$7:G8),0)) -> 131 | D9: =_xlfn.IFS(Q9<>1,"",Q9=1,TRUNC((230-C9)*0.9)) -> 89 | E9: 169 | F9: 151 | G9: 91 | H9: =_xlfn.IFS(COUNT(E9:G9)<1,"",AND(E9>C9,F9>C9,G9>C9,COUNT($E$7:G9)>sixng),"#",AND(E9>C8,F9>C8,G9>C8,COUNT($E$7:G9)>sixng,COUNTIF(H8,"#")=1),"2",$A$7=1,"") ->  | I9: 411 | J9: 137 | K9: =_xlfn.IFS(Q9<>1,"",Q9=1,I9+(3*D9)) -> 678 | L9: =_xlfn.IFS(Q9<>1,"",COUNT($E$7:G9)<=hcpng,"",COUNT($E$7:G9)>=hcpng,K9) ->  | M9: =_xlfn.IFS(Q9=1,SUM($E$7:G9),Q9<>1,"") -> 1199 | N9: =_xlfn.IFS(Q9=1,COUNT($E$7:G9),Q9<>1,"") -> 9 | O9: =IF(Q9=1,ROUND(AVERAGE($E$7:G9),2),"") -> 133.22 | P9: =_xlfn.IFS(Q9<>1,"",SUM($Q$7:Q9)=1,1,SUM($Q$7:Q9)<>1,"") ->  | Q9: 1 | S9: =_xlfn.IFS(E9=$X$5,E9,F9=$X$5,F9,G9=$X$5,G9,$A$7=1,"") ->  | U9: =_xlfn.IFS(W9=$X$6,W9,X9=$X$6,X9,Y9=$X$6,Y9,$A$7=1,"") ->  | W9: =_xlfn.IFS(AND(Q9=1,COUNT($E$7:G9)>hcpng),E9+D9,$A$7=1," ") ->  | X9: =_xlfn.IFS(AND(Q9=1,COUNT($E$7:G9)>hcpng),F9+D9,$A$7=1," ") ->  | Y9: =_xlfn.IFS(AND(Q9=1,COUNT($E$7:G9)>hcpng),G9+D9,$A$7=1," ") ->  | Z9: 3 | AA9: =_xlfn.IFS(COUNTIFS(H9,"#",H8,"#"),A8,COUNTIFS(H9,2,H8,"#"),A8,$A$7=1,"") -> 
A10: 4 | B10: ='UTL1'!B10 -> 2022-09-28 | C10: =_xlfn.IFS(Q10<>1,"",AND($B$4>=1,COUNT($E$7:G10)<=bkng),$B$4,P10=1,TRUNC(AVERAGE(E10:G10),0),COUNT($Q$7:Q10)=2,TRUNC(AVERAGE($E$7:G9),0),COUNT($Q$7:Q10)>=3,TRUNC(AVERAGE($E$7:G9),0)) -> 133 | D10: =_xlfn.IFS(Q10<>1,"",Q10=1,TRUNC((230-C10)*0.9)) -> 87 | E10: 210 | F10: 149 | G10: 163 | H10: =_xlfn.IFS(COUNT(E10:G10)<1,"",AND(E10>C10,F10>C10,G10>C10,COUNT($E$7:G10)>sixng),"#",AND(E10>C9,F10>C9,G10>C9,COUNT($E$7:G10)>sixng,COUNTIF(H9,"#")=1),"2",$A$7=1,"") ->  | I10: 522 | J10: 174 | K10: =_xlfn.IFS(Q10<>1,"",Q10=1,I10+(3*D10)) -> 783 | L10: =_xlfn.IFS(Q10<>1,"",COUNT($E$7:G10)<=hcpng,"",COUNT($E$7:G10)>=hcpng,K10) ->  | M10: =_xlfn.IFS(Q10=1,SUM($E$7:G10),Q10<>1,"") -> 1721 | N10: =_xlfn.IFS(Q10=1,COUNT($E$7:G10),Q10<>1,"") -> 12 | O10: =IF(Q10=1,ROUND(AVERAGE($E$7:G10),2),"") -> 143.42 | P10: =_xlfn.IFS(Q10<>1,"",SUM($Q$7:Q10)=1,1,SUM($Q$7:Q10)<>1,"") ->  | Q10: 1 | S10: =_xlfn.IFS(E10=$X$5,E10,F10=$X$5,F10,G10=$X$5,G10,$A$7=1,"") ->  | U10: =_xlfn.IFS(W10=$X$6,W10,X10=$X$6,X10,Y10=$X$6,Y10,$A$7=1,"") ->  | W10: =_xlfn.IFS(AND(Q10=1,COUNT($E$7:G10)>hcpng),E10+D10,$A$7=1," ") ->  | X10: =_xlfn.IFS(AND(Q10=1,COUNT($E$7:G10)>hcpng),F10+D10,$A$7=1," ") ->  | Y10: =_xlfn.IFS(AND(Q10=1,COUNT($E$7:G10)>hcpng),G10+D10,$A$7=1," ") ->  | Z10: 4 | AA10: =_xlfn.IFS(COUNTIFS(H10,"#",H9,"#"),A9,COUNTIFS(H10,2,H9,"#"),A9,$A$7=1,"") -> 
A11: 5 | B11: ='UTL1'!B11 -> 2022-10-05 | C11: =_xlfn.IFS(Q11<>1,"",AND($B$4>=1,COUNT($E$7:G11)<=bkng),$B$4,P11=1,TRUNC(AVERAGE(E11:G11),0),COUNT($Q$7:Q11)=2,TRUNC(AVERAGE($E$7:G10),0),COUNT($Q$7:Q11)>=3,TRUNC(AVERAGE($E$7:G10),0)) -> 143 | D11: =_xlfn.IFS(Q11<>1,"",Q11=1,TRUNC((230-C11)*0.9)) -> 78 | E11: 122 | F11: 118 | G11: 109 | H11: =_xlfn.IFS(COUNT(E11:G11)<1,"",AND(E11>C11,F11>C11,G11>C11,COUNT($E$7:G11)>sixng),"#",AND(E11>C10,F11>C10,G11>C10,COUNT($E$7:G11)>sixng,COUNTIF(H10,"#")=1),"2",$A$7=1,"") ->  | I11: 349 | J11: 116 | K11: =_xlfn.IFS(Q11<>1,"",Q11=1,I11+(3*D11)) -> 583 | L11: =_xlfn.IFS(Q11<>1,"",COUNT($E$7:G11)<=hcpng,"",COUNT($E$7:G11)>=hcpng,K11) -> 583 | M11: =_xlfn.IFS(Q11=1,SUM($E$7:G11),Q11<>1,"") -> 2070 | N11: =_xlfn.IFS(Q11=1,COUNT($E$7:G11),Q11<>1,"") -> 15 | O11: =IF(Q11=1,ROUND(AVERAGE($E$7:G11),2),"") -> 138 | P11: =_xlfn.IFS(Q11<>1,"",SUM($Q$7:Q11)=1,1,SUM($Q$7:Q11)<>1,"") ->  | Q11: 1 | S11: =_xlfn.IFS(E11=$X$5,E11,F11=$X$5,F11,G11=$X$5,G11,$A$7=1,"") ->  | U11: =_xlfn.IFS(W11=$X$6,W11,X11=$X$6,X11,Y11=$X$6,Y11,$A$7=1,"") ->  | W11: =_xlfn.IFS(AND(Q11=1,COUNT($E$7:G11)>hcpng),E11+D11,$A$7=1," ") -> 200 | X11: =_xlfn.IFS(AND(Q11=1,COUNT($E$7:G11)>hcpng),F11+D11,$A$7=1," ") -> 196 | Y11: =_xlfn.IFS(AND(Q11=1,COUNT($E$7:G11)>hcpng),G11+D11,$A$7=1," ") -> 187 | Z11: 5 | AA11: =_xlfn.IFS(COUNTIFS(H11,"#",H10,"#"),A10,COUNTIFS(H11,2,H10,"#"),A10,$A$7=1,"") -> 
A12: 6 | B12: ='UTL1'!B12 -> 2022-10-12 | C12: =_xlfn.IFS(Q12<>1,"",AND($B$4>=1,COUNT($E$7:G12)<=bkng),$B$4,P12=1,TRUNC(AVERAGE(E12:G12),0),COUNT($Q$7:Q12)=2,TRUNC(AVERAGE($E$7:G11),0),COUNT($Q$7:Q12)>=3,TRUNC(AVERAGE($E$7:G11),0)) -> 138 | D12: =_xlfn.IFS(Q12<>1,"",Q12=1,TRUNC((230-C12)*0.9)) -> 82 | E12: 159 | F12: 159 | G12: 166 | H12: =_xlfn.IFS(COUNT(E12:G12)<1,"",AND(E12>C12,F12>C12,G12>C12,COUNT($E$7:G12)>sixng),"#",AND(E12>C11,F12>C11,G12>C11,COUNT($E$7:G12)>sixng,COUNTIF(H11,"#")=1),"2",$A$7=1,"") -> # | I12: 484 | J12: 161 | K12: =_xlfn.IFS(Q12<>1,"",Q12=1,I12+(3*D12)) -> 730 | L12: =_xlfn.IFS(Q12<>1,"",COUNT($E$7:G12)<=hcpng,"",COUNT($E$7:G12)>=hcpng,K12) -> 730 | M12: =_xlfn.IFS(Q12=1,SUM($E$7:G12),Q12<>1,"") -> 2554 | N12: =_xlfn.IFS(Q12=1,COUNT($E$7:G12),Q12<>1,"") -> 18 | O12: =IF(Q12=1,ROUND(AVERAGE($E$7:G12),2),"") -> 141.89 | P12: =_xlfn.IFS(Q12<>1,"",SUM($Q$7:Q12)=1,1,SUM($Q$7:Q12)<>1,"") ->  | Q12: 1 | S12: =_xlfn.IFS(E12=$X$5,E12,F12=$X$5,F12,G12=$X$5,G12,$A$7=1,"") ->  | U12: =_xlfn.IFS(W12=$X$6,W12,X12=$X$6,X12,Y12=$X$6,Y12,$A$7=1,"") ->  | W12: =_xlfn.IFS(AND(Q12=1,COUNT($E$7:G12)>hcpng),E12+D12,$A$7=1," ") -> 241 | X12: =_xlfn.IFS(AND(Q12=1,COUNT($E$7:G12)>hcpng),F12+D12,$A$7=1," ") -> 241 | Y12: =_xlfn.IFS(AND(Q12=1,COUNT($E$7:G12)>hcpng),G12+D12,$A$7=1," ") -> 248 | Z12: 6 | AA12: =_xlfn.IFS(COUNTIFS(H12,"#",H11,"#"),A11,COUNTIFS(H12,2,H11,"#"),A11,$A$7=1,"") -> 
A13: 7 | B13: ='UTL1'!B13 -> 2022-10-19 | C13: =_xlfn.IFS(Q13<>1,"",AND($B$4>=1,COUNT($E$7:G13)<=bkng),$B$4,P13=1,TRUNC(AVERAGE(E13:G13),0),COUNT($Q$7:Q13)=2,TRUNC(AVERAGE($E$7:G12),0),COUNT($Q$7:Q13)>=3,TRUNC(AVERAGE($E$7:G12),0)) -> 141 | D13: =_xlfn.IFS(Q13<>1,"",Q13=1,TRUNC((230-C13)*0.9)) -> 80 | E13: 149 | F13: 189 | G13: 121 | H13: =_xlfn.IFS(COUNT(E13:G13)<1,"",AND(E13>C13,F13>C13,G13>C13,COUNT($E$7:G13)>sixng),"#",AND(E13>C12,F13>C12,G13>C12,COUNT($E$7:G13)>sixng,COUNTIF(H12,"#")=1),"2",$A$7=1,"") ->  | I13: 459 | J13: 153 | K13: =_xlfn.IFS(Q13<>1,"",Q13=1,I13+(3*D13)) -> 699 | L13: =_xlfn.IFS(Q13<>1,"",COUNT($E$7:G13)<=hcpng,"",COUNT($E$7:G13)>=hcpng,K13) -> 699 | M13: =_xlfn.IFS(Q13=1,SUM($E$7:G13),Q13<>1,"") -> 3013 | N13: =_xlfn.IFS(Q13=1,COUNT($E$7:G13),Q13<>1,"") -> 21 | O13: =IF(Q13=1,ROUND(AVERAGE($E$7:G13),2),"") -> 143.48 | P13: =_xlfn.IFS(Q13<>1,"",SUM($Q$7:Q13)=1,1,SUM($Q$7:Q13)<>1,"") ->  | Q13: 1 | S13: =_xlfn.IFS(E13=$X$5,E13,F13=$X$5,F13,G13=$X$5,G13,$A$7=1,"") ->  | U13: =_xlfn.IFS(W13=$X$6,W13,X13=$X$6,X13,Y13=$X$6,Y13,$A$7=1,"") ->  | W13: =_xlfn.IFS(AND(Q13=1,COUNT($E$7:G13)>hcpng),E13+D13,$A$7=1," ") -> 229 | X13: =_xlfn.IFS(AND(Q13=1,COUNT($E$7:G13)>hcpng),F13+D13,$A$7=1," ") -> 269 | Y13: =_xlfn.IFS(AND(Q13=1,COUNT($E$7:G13)>hcpng),G13+D13,$A$7=1," ") -> 201 | Z13: 7 | AA13: =_xlfn.IFS(COUNTIFS(H13,"#",H12,"#"),A12,COUNTIFS(H13,2,H12,"#"),A12,$A$7=1,"") -> 
A14: 8 | B14: ='UTL1'!B14 -> 2022-10-26 | C14: =_xlfn.IFS(Q14<>1,"",AND($B$4>=1,COUNT($E$7:G14)<=bkng),$B$4,P14=1,TRUNC(AVERAGE(E14:G14),0),COUNT($Q$7:Q14)=2,TRUNC(AVERAGE($E$7:G13),0),COUNT($Q$7:Q14)>=3,TRUNC(AVERAGE($E$7:G13),0)) -> 143 | D14: =_xlfn.IFS(Q14<>1,"",Q14=1,TRUNC((230-C14)*0.9)) -> 78 | E14: 189 | F14: 172 | G14: 133 | H14: =_xlfn.IFS(COUNT(E14:G14)<1,"",AND(E14>C14,F14>C14,G14>C14,COUNT($E$7:G14)>sixng),"#",AND(E14>C13,F14>C13,G14>C13,COUNT($E$7:G14)>sixng,COUNTIF(H13,"#")=1),"2",$A$7=1,"") ->  | I14: 494 | J14: 164 | K14: =_xlfn.IFS(Q14<>1,"",Q14=1,I14+(3*D14)) -> 728 | L14: =_xlfn.IFS(Q14<>1,"",COUNT($E$7:G14)<=hcpng,"",COUNT($E$7:G14)>=hcpng,K14) -> 728 | M14: =_xlfn.IFS(Q14=1,SUM($E$7:G14),Q14<>1,"") -> 3507 | N14: =_xlfn.IFS(Q14=1,COUNT($E$7:G14),Q14<>1,"") -> 24 | O14: =IF(Q14=1,ROUND(AVERAGE($E$7:G14),2),"") -> 146.13 | P14: =_xlfn.IFS(Q14<>1,"",SUM($Q$7:Q14)=1,1,SUM($Q$7:Q14)<>1,"") ->  | Q14: 1 | S14: =_xlfn.IFS(E14=$X$5,E14,F14=$X$5,F14,G14=$X$5,G14,$A$7=1,"") ->  | U14: =_xlfn.IFS(W14=$X$6,W14,X14=$X$6,X14,Y14=$X$6,Y14,$A$7=1,"") ->  | W14: =_xlfn.IFS(AND(Q14=1,COUNT($E$7:G14)>hcpng),E14+D14,$A$7=1," ") -> 267 | X14: =_xlfn.IFS(AND(Q14=1,COUNT($E$7:G14)>hcpng),F14+D14,$A$7=1," ") -> 250 | Y14: =_xlfn.IFS(AND(Q14=1,COUNT($E$7:G14)>hcpng),G14+D14,$A$7=1," ") -> 211 | Z14: 8 | AA14: =_xlfn.IFS(COUNTIFS(H14,"#",H13,"#"),A13,COUNTIFS(H14,2,H13,"#"),A13,$A$7=1,"") -> 
A15: 9 | B15: ='UTL1'!B15 -> 2022-11-02 | C15: =_xlfn.IFS(Q15<>1,"",AND($B$4>=1,COUNT($E$7:G15)<=bkng),$B$4,P15=1,TRUNC(AVERAGE(E15:G15),0),COUNT($Q$7:Q15)=2,TRUNC(AVERAGE($E$7:G14),0),COUNT($Q$7:Q15)>=3,TRUNC(AVERAGE($E$7:G14),0)) -> 146 | D15: =_xlfn.IFS(Q15<>1,"",Q15=1,TRUNC((230-C15)*0.9)) -> 75 | E15: 108 | F15: 128 | G15: 115 | H15: =_xlfn.IFS(COUNT(E15:G15)<1,"",AND(E15>C15,F15>C15,G15>C15,COUNT($E$7:G15)>sixng),"#",AND(E15>C14,F15>C14,G15>C14,COUNT($E$7:G15)>sixng,COUNTIF(H14,"#")=1),"2",$A$7=1,"") ->  | I15: 351 | J15: 117 | K15: =_xlfn.IFS(Q15<>1,"",Q15=1,I15+(3*D15)) -> 576 | L15: =_xlfn.IFS(Q15<>1,"",COUNT($E$7:G15)<=hcpng,"",COUNT($E$7:G15)>=hcpng,K15) -> 576 | M15: =_xlfn.IFS(Q15=1,SUM($E$7:G15),Q15<>1,"") -> 3858 | N15: =_xlfn.IFS(Q15=1,COUNT($E$7:G15),Q15<>1,"") -> 27 | O15: =IF(Q15=1,ROUND(AVERAGE($E$7:G15),2),"") -> 142.89 | P15: =_xlfn.IFS(Q15<>1,"",SUM($Q$7:Q15)=1,1,SUM($Q$7:Q15)<>1,"") ->  | Q15: 1 | S15: =_xlfn.IFS(E15=$X$5,E15,F15=$X$5,F15,G15=$X$5,G15,$A$7=1,"") ->  | U15: =_xlfn.IFS(W15=$X$6,W15,X15=$X$6,X15,Y15=$X$6,Y15,$A$7=1,"") ->  | W15: =_xlfn.IFS(AND(Q15=1,COUNT($E$7:G15)>hcpng),E15+D15,$A$7=1," ") -> 183 | X15: =_xlfn.IFS(AND(Q15=1,COUNT($E$7:G15)>hcpng),F15+D15,$A$7=1," ") -> 203 | Y15: =_xlfn.IFS(AND(Q15=1,COUNT($E$7:G15)>hcpng),G15+D15,$A$7=1," ") -> 190 | Z15: 9 | AA15: =_xlfn.IFS(COUNTIFS(H15,"#",H14,"#"),A14,COUNTIFS(H15,2,H14,"#"),A14,$A$7=1,"") -> 
A16: 10 | B16: ='UTL1'!B16 -> 2022-11-09 | C16: =_xlfn.IFS(Q16<>1,"",AND($B$4>=1,COUNT($E$7:G16)<=bkng),$B$4,P16=1,TRUNC(AVERAGE(E16:G16),0),COUNT($Q$7:Q16)=2,TRUNC(AVERAGE($E$7:G15),0),COUNT($Q$7:Q16)>=3,TRUNC(AVERAGE($E$7:G15),0)) -> 142 | D16: =_xlfn.IFS(Q16<>1,"",Q16=1,TRUNC((230-C16)*0.9)) -> 79 | E16: 144 | F16: 103 | G16: 107 | H16: =_xlfn.IFS(COUNT(E16:G16)<1,"",AND(E16>C16,F16>C16,G16>C16,COUNT($E$7:G16)>sixng),"#",AND(E16>C15,F16>C15,G16>C15,COUNT($E$7:G16)>sixng,COUNTIF(H15,"#")=1),"2",$A$7=1,"") ->  | I16: 354 | J16: 118 | K16: =_xlfn.IFS(Q16<>1,"",Q16=1,I16+(3*D16)) -> 591 | L16: =_xlfn.IFS(Q16<>1,"",COUNT($E$7:G16)<=hcpng,"",COUNT($E$7:G16)>=hcpng,K16) -> 591 | M16: =_xlfn.IFS(Q16=1,SUM($E$7:G16),Q16<>1,"") -> 4212 | N16: =_xlfn.IFS(Q16=1,COUNT($E$7:G16),Q16<>1,"") -> 30 | O16: =IF(Q16=1,ROUND(AVERAGE($E$7:G16),2),"") -> 140.4 | P16: =_xlfn.IFS(Q16<>1,"",SUM($Q$7:Q16)=1,1,SUM($Q$7:Q16)<>1,"") ->  | Q16: 1 | S16: =_xlfn.IFS(E16=$X$5,E16,F16=$X$5,F16,G16=$X$5,G16,$A$7=1,"") ->  | U16: =_xlfn.IFS(W16=$X$6,W16,X16=$X$6,X16,Y16=$X$6,Y16,$A$7=1,"") ->  | W16: =_xlfn.IFS(AND(Q16=1,COUNT($E$7:G16)>hcpng),E16+D16,$A$7=1," ") -> 223 | X16: =_xlfn.IFS(AND(Q16=1,COUNT($E$7:G16)>hcpng),F16+D16,$A$7=1," ") -> 182 | Y16: =_xlfn.IFS(AND(Q16=1,COUNT($E$7:G16)>hcpng),G16+D16,$A$7=1," ") -> 186 | Z16: 10 | AA16: =_xlfn.IFS(COUNTIFS(H16,"#",H15,"#"),A15,COUNTIFS(H16,2,H15,"#"),A15,$A$7=1,"") -> 
A17: 11 | B17: ='UTL1'!B17 -> 2022-11-16 | C17: =_xlfn.IFS(Q17<>1,"",AND($B$4>=1,COUNT($E$7:G17)<=bkng),$B$4,P17=1,TRUNC(AVERAGE(E17:G17),0),COUNT($Q$7:Q17)=2,TRUNC(AVERAGE($E$7:G16),0),COUNT($Q$7:Q17)>=3,TRUNC(AVERAGE($E$7:G16),0)) -> 140 | D17: =_xlfn.IFS(Q17<>1,"",Q17=1,TRUNC((230-C17)*0.9)) -> 81 | E17: 154 | F17: 128 | G17: 142 | H17: =_xlfn.IFS(COUNT(E17:G17)<1,"",AND(E17>C17,F17>C17,G17>C17,COUNT($E$7:G17)>sixng),"#",AND(E17>C16,F17>C16,G17>C16,COUNT($E$7:G17)>sixng,COUNTIF(H16,"#")=1),"2",$A$7=1,"") ->  | I17: 424 | J17: 141 | K17: =_xlfn.IFS(Q17<>1,"",Q17=1,I17+(3*D17)) -> 667 | L17: =_xlfn.IFS(Q17<>1,"",COUNT($E$7:G17)<=hcpng,"",COUNT($E$7:G17)>=hcpng,K17) -> 667 | M17: =_xlfn.IFS(Q17=1,SUM($E$7:G17),Q17<>1,"") -> 4636 | N17: =_xlfn.IFS(Q17=1,COUNT($E$7:G17),Q17<>1,"") -> 33 | O17: =IF(Q17=1,ROUND(AVERAGE($E$7:G17),2),"") -> 140.48 | P17: =_xlfn.IFS(Q17<>1,"",SUM($Q$7:Q17)=1,1,SUM($Q$7:Q17)<>1,"") ->  | Q17: 1 | S17: =_xlfn.IFS(E17=$X$5,E17,F17=$X$5,F17,G17=$X$5,G17,$A$7=1,"") ->  | U17: =_xlfn.IFS(W17=$X$6,W17,X17=$X$6,X17,Y17=$X$6,Y17,$A$7=1,"") ->  | W17: =_xlfn.IFS(AND(Q17=1,COUNT($E$7:G17)>hcpng),E17+D17,$A$7=1," ") -> 235 | X17: =_xlfn.IFS(AND(Q17=1,COUNT($E$7:G17)>hcpng),F17+D17,$A$7=1," ") -> 209 | Y17: =_xlfn.IFS(AND(Q17=1,COUNT($E$7:G17)>hcpng),G17+D17,$A$7=1," ") -> 223 | Z17: 11 | AA17: =_xlfn.IFS(COUNTIFS(H17,"#",H16,"#"),A16,COUNTIFS(H17,2,H16,"#"),A16,$A$7=1,"") -> 
A18: 12 | B18: ='UTL1'!B18 -> 2022-11-30 | C18: =_xlfn.IFS(Q18<>1,"",AND($B$4>=1,COUNT($E$7:G18)<=bkng),$B$4,P18=1,TRUNC(AVERAGE(E18:G18),0),COUNT($Q$7:Q18)=2,TRUNC(AVERAGE($E$7:G17),0),COUNT($Q$7:Q18)>=3,TRUNC(AVERAGE($E$7:G17),0)) -> 140 | D18: =_xlfn.IFS(Q18<>1,"",Q18=1,TRUNC((230-C18)*0.9)) -> 81 | E18: 165 | F18: 121 | G18: 155 | H18: =_xlfn.IFS(COUNT(E18:G18)<1,"",AND(E18>C18,F18>C18,G18>C18,COUNT($E$7:G18)>sixng),"#",AND(E18>C17,F18>C17,G18>C17,COUNT($E$7:G18)>sixng,COUNTIF(H17,"#")=1),"2",$A$7=1,"") ->  | I18: 441 | J18: 147 | K18: =_xlfn.IFS(Q18<>1,"",Q18=1,I18+(3*D18)) -> 684 | L18: =_xlfn.IFS(Q18<>1,"",COUNT($E$7:G18)<=hcpng,"",COUNT($E$7:G18)>=hcpng,K18) -> 684 | M18: =_xlfn.IFS(Q18=1,SUM($E$7:G18),Q18<>1,"") -> 5077 | N18: =_xlfn.IFS(Q18=1,COUNT($E$7:G18),Q18<>1,"") -> 36 | O18: =IF(Q18=1,ROUND(AVERAGE($E$7:G18),2),"") -> 141.03 | P18: =_xlfn.IFS(Q18<>1,"",SUM($Q$7:Q18)=1,1,SUM($Q$7:Q18)<>1,"") ->  | Q18: 1 | S18: =_xlfn.IFS(E18=$X$5,E18,F18=$X$5,F18,G18=$X$5,G18,$A$7=1,"") ->  | U18: =_xlfn.IFS(W18=$X$6,W18,X18=$X$6,X18,Y18=$X$6,Y18,$A$7=1,"") ->  | W18: =_xlfn.IFS(AND(Q18=1,COUNT($E$7:G18)>hcpng),E18+D18,$A$7=1," ") -> 246 | X18: =_xlfn.IFS(AND(Q18=1,COUNT($E$7:G18)>hcpng),F18+D18,$A$7=1," ") -> 202 | Y18: =_xlfn.IFS(AND(Q18=1,COUNT($E$7:G18)>hcpng),G18+D18,$A$7=1," ") -> 236 | Z18: 12 | AA18: =_xlfn.IFS(COUNTIFS(H18,"#",H17,"#"),A17,COUNTIFS(H18,2,H17,"#"),A17,$A$7=1,"") -> 
A19: 13 | B19: ='UTL1'!B19 -> 2022-12-07 | C19: =_xlfn.IFS(Q19<>1,"",AND($B$4>=1,COUNT($E$7:G19)<=bkng),$B$4,P19=1,TRUNC(AVERAGE(E19:G19),0),COUNT($Q$7:Q19)=2,TRUNC(AVERAGE($E$7:G18),0),COUNT($Q$7:Q19)>=3,TRUNC(AVERAGE($E$7:G18),0)) -> 141 | D19: =_xlfn.IFS(Q19<>1,"",Q19=1,TRUNC((230-C19)*0.9)) -> 80 | E19: 155 | F19: 125 | G19: 222 | H19: =_xlfn.IFS(COUNT(E19:G19)<1,"",AND(E19>C19,F19>C19,G19>C19,COUNT($E$7:G19)>sixng),"#",AND(E19>C18,F19>C18,G19>C18,COUNT($E$7:G19)>sixng,COUNTIF(H18,"#")=1),"2",$A$7=1,"") ->  | I19: 502 | J19: 167 | K19: =_xlfn.IFS(Q19<>1,"",Q19=1,I19+(3*D19)) -> 742 | L19: =_xlfn.IFS(Q19<>1,"",COUNT($E$7:G19)<=hcpng,"",COUNT($E$7:G19)>=hcpng,K19) -> 742 | M19: =_xlfn.IFS(Q19=1,SUM($E$7:G19),Q19<>1,"") -> 5579 | N19: =_xlfn.IFS(Q19=1,COUNT($E$7:G19),Q19<>1,"") -> 39 | O19: =IF(Q19=1,ROUND(AVERAGE($E$7:G19),2),"") -> 143.05 | P19: =_xlfn.IFS(Q19<>1,"",SUM($Q$7:Q19)=1,1,SUM($Q$7:Q19)<>1,"") ->  | Q19: 1 | S19: =_xlfn.IFS(E19=$X$5,E19,F19=$X$5,F19,G19=$X$5,G19,$A$7=1,"") -> 222 | U19: =_xlfn.IFS(W19=$X$6,W19,X19=$X$6,X19,Y19=$X$6,Y19,$A$7=1,"") -> 302 | W19: =_xlfn.IFS(AND(Q19=1,COUNT($E$7:G19)>hcpng),E19+D19,$A$7=1," ") -> 235 | X19: =_xlfn.IFS(AND(Q19=1,COUNT($E$7:G19)>hcpng),F19+D19,$A$7=1," ") -> 205 | Y19: =_xlfn.IFS(AND(Q19=1,COUNT($E$7:G19)>hcpng),G19+D19,$A$7=1," ") -> 302 | Z19: 13 | AA19: =_xlfn.IFS(COUNTIFS(H19,"#",H18,"#"),A18,COUNTIFS(H19,2,H18,"#"),A18,$A$7=1,"") -> 
A20: 14 | B20: ='UTL1'!B20 -> 2022-12-14 | C20: =_xlfn.IFS(Q20<>1,"",AND($B$4>=1,COUNT($E$7:G20)<=bkng),$B$4,P20=1,TRUNC(AVERAGE(E20:G20),0),COUNT($Q$7:Q20)=2,TRUNC(AVERAGE($E$7:G19),0),COUNT($Q$7:Q20)>=3,TRUNC(AVERAGE($E$7:G19),0)) -> 143 | D20: =_xlfn.IFS(Q20<>1,"",Q20=1,TRUNC((230-C20)*0.9)) -> 78 | E20: 113 | F20: 114 | G20: 181 | H20: =_xlfn.IFS(COUNT(E20:G20)<1,"",AND(E20>C20,F20>C20,G20>C20,COUNT($E$7:G20)>sixng),"#",AND(E20>C19,F20>C19,G20>C19,COUNT($E$7:G20)>sixng,COUNTIF(H19,"#")=1),"2",$A$7=1,"") ->  | I20: 408 | J20: 136 | K20: =_xlfn.IFS(Q20<>1,"",Q20=1,I20+(3*D20)) -> 642 | L20: =_xlfn.IFS(Q20<>1,"",COUNT($E$7:G20)<=hcpng,"",COUNT($E$7:G20)>=hcpng,K20) -> 642 | M20: =_xlfn.IFS(Q20=1,SUM($E$7:G20),Q20<>1,"") -> 5987 | N20: =_xlfn.IFS(Q20=1,COUNT($E$7:G20),Q20<>1,"") -> 42 | O20: =IF(Q20=1,ROUND(AVERAGE($E$7:G20),2),"") -> 142.55 | P20: =_xlfn.IFS(Q20<>1,"",SUM($Q$7:Q20)=1,1,SUM($Q$7:Q20)<>1,"") ->  | Q20: 1 | S20: =_xlfn.IFS(E20=$X$5,E20,F20=$X$5,F20,G20=$X$5,G20,$A$7=1,"") ->  | U20: =_xlfn.IFS(W20=$X$6,W20,X20=$X$6,X20,Y20=$X$6,Y20,$A$7=1,"") ->  | W20: =_xlfn.IFS(AND(Q20=1,COUNT($E$7:G20)>hcpng),E20+D20,$A$7=1," ") -> 191 | X20: =_xlfn.IFS(AND(Q20=1,COUNT($E$7:G20)>hcpng),F20+D20,$A$7=1," ") -> 192 | Y20: =_xlfn.IFS(AND(Q20=1,COUNT($E$7:G20)>hcpng),G20+D20,$A$7=1," ") -> 259 | Z20: 14 | AA20: =_xlfn.IFS(COUNTIFS(H20,"#",H19,"#"),A19,COUNTIFS(H20,2,H19,"#"),A19,$A$7=1,"") -> 
A21: 15 | B21: ='UTL1'!B21 -> 2022-12-21 | C21: =_xlfn.IFS(Q21<>1,"",AND($B$4>=1,COUNT($E$7:G21)<=bkng),$B$4,P21=1,TRUNC(AVERAGE(E21:G21),0),COUNT($Q$7:Q21)=2,TRUNC(AVERAGE($E$7:G20),0),COUNT($Q$7:Q21)>=3,TRUNC(AVERAGE($E$7:G20),0)) ->  | D21: =_xlfn.IFS(Q21<>1,"",Q21=1,TRUNC((230-C21)*0.9)) ->  | H21: =_xlfn.IFS(COUNT(E21:G21)<1,"",AND(E21>C21,F21>C21,G21>C21,COUNT($E$7:G21)>sixng),"#",AND(E21>C20,F21>C20,G21>C20,COUNT($E$7:G21)>sixng,COUNTIF(H20,"#")=1),"2",$A$7=1,"") ->  | K21: =_xlfn.IFS(Q21<>1,"",Q21=1,I21+(3*D21)) ->  | L21: =_xlfn.IFS(Q21<>1,"",COUNT($E$7:G21)<=hcpng,"",COUNT($E$7:G21)>=hcpng,K21) ->  | M21: =_xlfn.IFS(Q21=1,SUM($E$7:G21),Q21<>1,"") ->  | N21: =_xlfn.IFS(Q21=1,COUNT($E$7:G21),Q21<>1,"") ->  | O21: =IF(Q21=1,ROUND(AVERAGE($E$7:G21),2),"") ->  | P21: =_xlfn.IFS(Q21<>1,"",SUM($Q$7:Q21)=1,1,SUM($Q$7:Q21)<>1,"") ->  | S21: =_xlfn.IFS(E21=$X$5,E21,F21=$X$5,F21,G21=$X$5,G21,$A$7=1,"") ->  | U21: =_xlfn.IFS(W21=$X$6,W21,X21=$X$6,X21,Y21=$X$6,Y21,$A$7=1,"") ->  | W21: =_xlfn.IFS(AND(Q21=1,COUNT($E$7:G21)>hcpng),E21+D21,$A$7=1," ") ->  | X21: =_xlfn.IFS(AND(Q21=1,COUNT($E$7:G21)>hcpng),F21+D21,$A$7=1," ") ->  | Y21: =_xlfn.IFS(AND(Q21=1,COUNT($E$7:G21)>hcpng),G21+D21,$A$7=1," ") ->  | Z21: 0 | AA21: =_xlfn.IFS(COUNTIFS(H21,"#",H20,"#"),A20,COUNTIFS(H21,2,H20,"#"),A20,$A$7=1,"") -> 
A22: 16 | B22: ='UTL1'!B22 -> 2023-01-04 | C22: =_xlfn.IFS(Q22<>1,"",AND($B$4>=1,COUNT($E$7:G22)<=bkng),$B$4,P22=1,TRUNC(AVERAGE(E22:G22),0),COUNT($Q$7:Q22)=2,TRUNC(AVERAGE($E$7:G21),0),COUNT($Q$7:Q22)>=3,TRUNC(AVERAGE($E$7:G21),0)) -> 142 | D22: =_xlfn.IFS(Q22<>1,"",Q22=1,TRUNC((230-C22)*0.9)) -> 79 | E22: 136 | F22: 121 | G22: 118 | H22: =_xlfn.IFS(COUNT(E22:G22)<1,"",AND(E22>C22,F22>C22,G22>C22,COUNT($E$7:G22)>sixng),"#",AND(E22>C21,F22>C21,G22>C21,COUNT($E$7:G22)>sixng,COUNTIF(H21,"#")=1),"2",$A$7=1,"") ->  | I22: 375 | J22: 125 | K22: =_xlfn.IFS(Q22<>1,"",Q22=1,I22+(3*D22)) -> 612 | L22: =_xlfn.IFS(Q22<>1,"",COUNT($E$7:G22)<=hcpng,"",COUNT($E$7:G22)>=hcpng,K22) -> 612 | M22: =_xlfn.IFS(Q22=1,SUM($E$7:G22),Q22<>1,"") -> 6362 | N22: =_xlfn.IFS(Q22=1,COUNT($E$7:G22),Q22<>1,"") -> 45 | O22: =IF(Q22=1,ROUND(AVERAGE($E$7:G22),2),"") -> 141.38 | P22: =_xlfn.IFS(Q22<>1,"",SUM($Q$7:Q22)=1,1,SUM($Q$7:Q22)<>1,"") ->  | Q22: 1 | S22: =_xlfn.IFS(E22=$X$5,E22,F22=$X$5,F22,G22=$X$5,G22,$A$7=1,"") ->  | U22: =_xlfn.IFS(W22=$X$6,W22,X22=$X$6,X22,Y22=$X$6,Y22,$A$7=1,"") ->  | W22: =_xlfn.IFS(AND(Q22=1,COUNT($E$7:G22)>hcpng),E22+D22,$A$7=1," ") -> 215 | X22: =_xlfn.IFS(AND(Q22=1,COUNT($E$7:G22)>hcpng),F22+D22,$A$7=1," ") -> 200 | Y22: =_xlfn.IFS(AND(Q22=1,COUNT($E$7:G22)>hcpng),G22+D22,$A$7=1," ") -> 197 | Z22: 16 | AA22: =_xlfn.IFS(COUNTIFS(H22,"#",H21,"#"),A21,COUNTIFS(H22,2,H21,"#"),A21,$A$7=1,"") -> 
A23: 17 | B23: ='UTL1'!B23 -> 2023-01-11 | C23: =_xlfn.IFS(Q23<>1,"",AND($B$4>=1,COUNT($E$7:G23)<=bkng),$B$4,P23=1,TRUNC(AVERAGE(E23:G23),0),COUNT($Q$7:Q23)=2,TRUNC(AVERAGE($E$7:G22),0),COUNT($Q$7:Q23)>=3,TRUNC(AVERAGE($E$7:G22),0)) -> 141 | D23: =_xlfn.IFS(Q23<>1,"",Q23=1,TRUNC((230-C23)*0.9)) -> 80 | E23: 163 | F23: 130 | G23: 188 | H23: =_xlfn.IFS(COUNT(E23:G23)<1,"",AND(E23>C23,F23>C23,G23>C23,COUNT($E$7:G23)>sixng),"#",AND(E23>C22,F23>C22,G23>C22,COUNT($E$7:G23)>sixng,COUNTIF(H22,"#")=1),"2",$A$7=1,"") ->  | I23: 481 | J23: 160 | K23: =_xlfn.IFS(Q23<>1,"",Q23=1,I23+(3*D23)) -> 721 | L23: =_xlfn.IFS(Q23<>1,"",COUNT($E$7:G23)<=hcpng,"",COUNT($E$7:G23)>=hcpng,K23) -> 721 | M23: =_xlfn.IFS(Q23=1,SUM($E$7:G23),Q23<>1,"") -> 6843 | N23: =_xlfn.IFS(Q23=1,COUNT($E$7:G23),Q23<>1,"") -> 48 | O23: =IF(Q23=1,ROUND(AVERAGE($E$7:G23),2),"") -> 142.56 | P23: =_xlfn.IFS(Q23<>1,"",SUM($Q$7:Q23)=1,1,SUM($Q$7:Q23)<>1,"") ->  | Q23: 1 | S23: =_xlfn.IFS(E23=$X$5,E23,F23=$X$5,F23,G23=$X$5,G23,$A$7=1,"") ->  | U23: =_xlfn.IFS(W23=$X$6,W23,X23=$X$6,X23,Y23=$X$6,Y23,$A$7=1,"") ->  | W23: =_xlfn.IFS(AND(Q23=1,COUNT($E$7:G23)>hcpng),E23+D23,$A$7=1," ") -> 243 | X23: =_xlfn.IFS(AND(Q23=1,COUNT($E$7:G23)>hcpng),F23+D23,$A$7=1," ") -> 210 | Y23: =_xlfn.IFS(AND(Q23=1,COUNT($E$7:G23)>hcpng),G23+D23,$A$7=1," ") -> 268 | Z23: 17 | AA23: =_xlfn.IFS(COUNTIFS(H23,"#",H22,"#"),A22,COUNTIFS(H23,2,H22,"#"),A22,$A$7=1,"") -> 
A24: 18 | B24: ='UTL1'!B24 -> 2023-01-18 | C24: =_xlfn.IFS(Q24<>1,"",AND($B$4>=1,COUNT($E$7:G24)<=bkng),$B$4,P24=1,TRUNC(AVERAGE(E24:G24),0),COUNT($Q$7:Q24)=2,TRUNC(AVERAGE($E$7:G23),0),COUNT($Q$7:Q24)>=3,TRUNC(AVERAGE($E$7:G23),0)) -> 142 | D24: =_xlfn.IFS(Q24<>1,"",Q24=1,TRUNC((230-C24)*0.9)) -> 79 | E24: 167 | F24: 126 | G24: 158 | H24: =_xlfn.IFS(COUNT(E24:G24)<1,"",AND(E24>C24,F24>C24,G24>C24,COUNT($E$7:G24)>sixng),"#",AND(E24>C23,F24>C23,G24>C23,COUNT($E$7:G24)>sixng,COUNTIF(H23,"#")=1),"2",$A$7=1,"") ->  | I24: 451 | J24: 150 | K24: =_xlfn.IFS(Q24<>1,"",Q24=1,I24+(3*D24)) -> 688 | L24: =_xlfn.IFS(Q24<>1,"",COUNT($E$7:G24)<=hcpng,"",COUNT($E$7:G24)>=hcpng,K24) -> 688 | M24: =_xlfn.IFS(Q24=1,SUM($E$7:G24),Q24<>1,"") -> 7294 | N24: =_xlfn.IFS(Q24=1,COUNT($E$7:G24),Q24<>1,"") -> 51 | O24: =IF(Q24=1,ROUND(AVERAGE($E$7:G24),2),"") -> 143.02 | P24: =_xlfn.IFS(Q24<>1,"",SUM($Q$7:Q24)=1,1,SUM($Q$7:Q24)<>1,"") ->  | Q24: 1 | S24: =_xlfn.IFS(E24=$X$5,E24,F24=$X$5,F24,G24=$X$5,G24,$A$7=1,"") ->  | U24: =_xlfn.IFS(W24=$X$6,W24,X24=$X$6,X24,Y24=$X$6,Y24,$A$7=1,"") ->  | W24: =_xlfn.IFS(AND(Q24=1,COUNT($E$7:G24)>hcpng),E24+D24,$A$7=1," ") -> 246 | X24: =_xlfn.IFS(AND(Q24=1,COUNT($E$7:G24)>hcpng),F24+D24,$A$7=1," ") -> 205 | Y24: =_xlfn.IFS(AND(Q24=1,COUNT($E$7:G24)>hcpng),G24+D24,$A$7=1," ") -> 237 | Z24: 18 | AA24: =_xlfn.IFS(COUNTIFS(H24,"#",H23,"#"),A23,COUNTIFS(H24,2,H23,"#"),A23,$A$7=1,"") -> 
A25: 19 | B25: ='UTL1'!B25 -> 2023-01-25 | C25: =_xlfn.IFS(Q25<>1,"",AND($B$4>=1,COUNT($E$7:G25)<=bkng),$B$4,P25=1,TRUNC(AVERAGE(E25:G25),0),COUNT($Q$7:Q25)=2,TRUNC(AVERAGE($E$7:G24),0),COUNT($Q$7:Q25)>=3,TRUNC(AVERAGE($E$7:G24),0)) -> 143 | D25: =_xlfn.IFS(Q25<>1,"",Q25=1,TRUNC((230-C25)*0.9)) -> 78 | E25: 109 | F25: 172 | G25: 155 | H25: =_xlfn.IFS(COUNT(E25:G25)<1,"",AND(E25>C25,F25>C25,G25>C25,COUNT($E$7:G25)>sixng),"#",AND(E25>C24,F25>C24,G25>C24,COUNT($E$7:G25)>sixng,COUNTIF(H24,"#")=1),"2",$A$7=1,"") ->  | I25: 436 | J25: 145 | K25: =_xlfn.IFS(Q25<>1,"",Q25=1,I25+(3*D25)) -> 670 | L25: =_xlfn.IFS(Q25<>1,"",COUNT($E$7:G25)<=hcpng,"",COUNT($E$7:G25)>=hcpng,K25) -> 670 | M25: =_xlfn.IFS(Q25=1,SUM($E$7:G25),Q25<>1,"") -> 7730 | N25: =_xlfn.IFS(Q25=1,COUNT($E$7:G25),Q25<>1,"") -> 54 | O25: =IF(Q25=1,ROUND(AVERAGE($E$7:G25),2),"") -> 143.15 | P25: =_xlfn.IFS(Q25<>1,"",SUM($Q$7:Q25)=1,1,SUM($Q$7:Q25)<>1,"") ->  | Q25: 1 | S25: =_xlfn.IFS(E25=$X$5,E25,F25=$X$5,F25,G25=$X$5,G25,$A$7=1,"") ->  | U25: =_xlfn.IFS(W25=$X$6,W25,X25=$X$6,X25,Y25=$X$6,Y25,$A$7=1,"") ->  | W25: =_xlfn.IFS(AND(Q25=1,COUNT($E$7:G25)>hcpng),E25+D25,$A$7=1," ") -> 187 | X25: =_xlfn.IFS(AND(Q25=1,COUNT($E$7:G25)>hcpng),F25+D25,$A$7=1," ") -> 250 | Y25: =_xlfn.IFS(AND(Q25=1,COUNT($E$7:G25)>hcpng),G25+D25,$A$7=1," ") -> 233 | Z25: 19 | AA25: =_xlfn.IFS(COUNTIFS(H25,"#",H24,"#"),A24,COUNTIFS(H25,2,H24,"#"),A24,$A$7=1,"") -> 
A26: 20 | B26: ='UTL1'!B26 -> 2023-02-01 | C26: =_xlfn.IFS(Q26<>1,"",AND($B$4>=1,COUNT($E$7:G26)<=bkng),$B$4,P26=1,TRUNC(AVERAGE(E26:G26),0),COUNT($Q$7:Q26)=2,TRUNC(AVERAGE($E$7:G25),0),COUNT($Q$7:Q26)>=3,TRUNC(AVERAGE($E$7:G25),0)) -> 143 | D26: =_xlfn.IFS(Q26<>1,"",Q26=1,TRUNC((230-C26)*0.9)) -> 78 | E26: 153 | F26: 109 | G26: 110 | H26: =_xlfn.IFS(COUNT(E26:G26)<1,"",AND(E26>C26,F26>C26,G26>C26,COUNT($E$7:G26)>sixng),"#",AND(E26>C25,F26>C25,G26>C25,COUNT($E$7:G26)>sixng,COUNTIF(H25,"#")=1),"2",$A$7=1,"") ->  | I26: 372 | J26: 124 | K26: =_xlfn.IFS(Q26<>1,"",Q26=1,I26+(3*D26)) -> 606 | L26: =_xlfn.IFS(Q26<>1,"",COUNT($E$7:G26)<=hcpng,"",COUNT($E$7:G26)>=hcpng,K26) -> 606 | M26: =_xlfn.IFS(Q26=1,SUM($E$7:G26),Q26<>1,"") -> 8102 | N26: =_xlfn.IFS(Q26=1,COUNT($E$7:G26),Q26<>1,"") -> 57 | O26: =IF(Q26=1,ROUND(AVERAGE($E$7:G26),2),"") -> 142.14 | P26: =_xlfn.IFS(Q26<>1,"",SUM($Q$7:Q26)=1,1,SUM($Q$7:Q26)<>1,"") ->  | Q26: 1 | S26: =_xlfn.IFS(E26=$X$5,E26,F26=$X$5,F26,G26=$X$5,G26,$A$7=1,"") ->  | U26: =_xlfn.IFS(W26=$X$6,W26,X26=$X$6,X26,Y26=$X$6,Y26,$A$7=1,"") ->  | W26: =_xlfn.IFS(AND(Q26=1,COUNT($E$7:G26)>hcpng),E26+D26,$A$7=1," ") -> 231 | X26: =_xlfn.IFS(AND(Q26=1,COUNT($E$7:G26)>hcpng),F26+D26,$A$7=1," ") -> 187 | Y26: =_xlfn.IFS(AND(Q26=1,COUNT($E$7:G26)>hcpng),G26+D26,$A$7=1," ") -> 188 | Z26: 20 | AA26: =_xlfn.IFS(COUNTIFS(H26,"#",H25,"#"),A25,COUNTIFS(H26,2,H25,"#"),A25,$A$7=1,"") -> 
A27: 21 | B27: ='UTL1'!B27 -> 2023-02-08 | C27: =_xlfn.IFS(Q27<>1,"",AND($B$4>=1,COUNT($E$7:G27)<=bkng),$B$4,P27=1,TRUNC(AVERAGE(E27:G27),0),COUNT($Q$7:Q27)=2,TRUNC(AVERAGE($E$7:G26),0),COUNT($Q$7:Q27)>=3,TRUNC(AVERAGE($E$7:G26),0)) -> 142 | D27: =_xlfn.IFS(Q27<>1,"",Q27=1,TRUNC((230-C27)*0.9)) -> 79 | E27: 127 | F27: 127 | G27: 158 | H27: =_xlfn.IFS(COUNT(E27:G27)<1,"",AND(E27>C27,F27>C27,G27>C27,COUNT($E$7:G27)>sixng),"#",AND(E27>C26,F27>C26,G27>C26,COUNT($E$7:G27)>sixng,COUNTIF(H26,"#")=1),"2",$A$7=1,"") ->  | I27: 412 | J27: 137 | K27: =_xlfn.IFS(Q27<>1,"",Q27=1,I27+(3*D27)) -> 649 | L27: =_xlfn.IFS(Q27<>1,"",COUNT($E$7:G27)<=hcpng,"",COUNT($E$7:G27)>=hcpng,K27) -> 649 | M27: =_xlfn.IFS(Q27=1,SUM($E$7:G27),Q27<>1,"") -> 8514 | N27: =_xlfn.IFS(Q27=1,COUNT($E$7:G27),Q27<>1,"") -> 60 | O27: =IF(Q27=1,ROUND(AVERAGE($E$7:G27),2),"") -> 141.9 | P27: =_xlfn.IFS(Q27<>1,"",SUM($Q$7:Q27)=1,1,SUM($Q$7:Q27)<>1,"") ->  | Q27: 1 | S27: =_xlfn.IFS(E27=$X$5,E27,F27=$X$5,F27,G27=$X$5,G27,$A$7=1,"") ->  | U27: =_xlfn.IFS(W27=$X$6,W27,X27=$X$6,X27,Y27=$X$6,Y27,$A$7=1,"") ->  | W27: =_xlfn.IFS(AND(Q27=1,COUNT($E$7:G27)>hcpng),E27+D27,$A$7=1," ") -> 206 | X27: =_xlfn.IFS(AND(Q27=1,COUNT($E$7:G27)>hcpng),F27+D27,$A$7=1," ") -> 206 | Y27: =_xlfn.IFS(AND(Q27=1,COUNT($E$7:G27)>hcpng),G27+D27,$A$7=1," ") -> 237 | Z27: 21 | AA27: =_xlfn.IFS(COUNTIFS(H27,"#",H26,"#"),A26,COUNTIFS(H27,2,H26,"#"),A26,$A$7=1,"") -> 
A28: 22 | B28: ='UTL1'!B28 -> 2023-02-15 | C28: =_xlfn.IFS(Q28<>1,"",AND($B$4>=1,COUNT($E$7:G28)<=bkng),$B$4,P28=1,TRUNC(AVERAGE(E28:G28),0),COUNT($Q$7:Q28)=2,TRUNC(AVERAGE($E$7:G27),0),COUNT($Q$7:Q28)>=3,TRUNC(AVERAGE($E$7:G27),0)) -> 141 | D28: =_xlfn.IFS(Q28<>1,"",Q28=1,TRUNC((230-C28)*0.9)) -> 80 | E28: 148 | F28: 128 | G28: 167 | H28: =_xlfn.IFS(COUNT(E28:G28)<1,"",AND(E28>C28,F28>C28,G28>C28,COUNT($E$7:G28)>sixng),"#",AND(E28>C27,F28>C27,G28>C27,COUNT($E$7:G28)>sixng,COUNTIF(H27,"#")=1),"2",$A$7=1,"") ->  | I28: 443 | J28: 147 | K28: =_xlfn.IFS(Q28<>1,"",Q28=1,I28+(3*D28)) -> 683 | L28: =_xlfn.IFS(Q28<>1,"",COUNT($E$7:G28)<=hcpng,"",COUNT($E$7:G28)>=hcpng,K28) -> 683 | M28: =_xlfn.IFS(Q28=1,SUM($E$7:G28),Q28<>1,"") -> 8957 | N28: =_xlfn.IFS(Q28=1,COUNT($E$7:G28),Q28<>1,"") -> 63 | O28: =IF(Q28=1,ROUND(AVERAGE($E$7:G28),2),"") -> 142.17 | P28: =_xlfn.IFS(Q28<>1,"",SUM($Q$7:Q28)=1,1,SUM($Q$7:Q28)<>1,"") ->  | Q28: 1 | S28: =_xlfn.IFS(E28=$X$5,E28,F28=$X$5,F28,G28=$X$5,G28,$A$7=1,"") ->  | U28: =_xlfn.IFS(W28=$X$6,W28,X28=$X$6,X28,Y28=$X$6,Y28,$A$7=1,"") ->  | W28: =_xlfn.IFS(AND(Q28=1,COUNT($E$7:G28)>hcpng),E28+D28,$A$7=1," ") -> 228 | X28: =_xlfn.IFS(AND(Q28=1,COUNT($E$7:G28)>hcpng),F28+D28,$A$7=1," ") -> 208 | Y28: =_xlfn.IFS(AND(Q28=1,COUNT($E$7:G28)>hcpng),G28+D28,$A$7=1," ") -> 247 | Z28: 22 | AA28: =_xlfn.IFS(COUNTIFS(H28,"#",H27,"#"),A27,COUNTIFS(H28,2,H27,"#"),A27,$A$7=1,"") -> 
A29: 23 | B29: ='UTL1'!B29 -> 2023-02-22 | C29: =_xlfn.IFS(Q29<>1,"",AND($B$4>=1,COUNT($E$7:G29)<=bkng),$B$4,P29=1,TRUNC(AVERAGE(E29:G29),0),COUNT($Q$7:Q29)=2,TRUNC(AVERAGE($E$7:G28),0),COUNT($Q$7:Q29)>=3,TRUNC(AVERAGE($E$7:G28),0)) -> 142 | D29: =_xlfn.IFS(Q29<>1,"",Q29=1,TRUNC((230-C29)*0.9)) -> 79 | E29: 114 | F29: 171 | G29: 128 | H29: =_xlfn.IFS(COUNT(E29:G29)<1,"",AND(E29>C29,F29>C29,G29>C29,COUNT($E$7:G29)>sixng),"#",AND(E29>C28,F29>C28,G29>C28,COUNT($E$7:G29)>sixng,COUNTIF(H28,"#")=1),"2",$A$7=1,"") ->  | I29: 413 | J29: 137 | K29: =_xlfn.IFS(Q29<>1,"",Q29=1,I29+(3*D29)) -> 650 | L29: =_xlfn.IFS(Q29<>1,"",COUNT($E$7:G29)<=hcpng,"",COUNT($E$7:G29)>=hcpng,K29) -> 650 | M29: =_xlfn.IFS(Q29=1,SUM($E$7:G29),Q29<>1,"") -> 9370 | N29: =_xlfn.IFS(Q29=1,COUNT($E$7:G29),Q29<>1,"") -> 66 | O29: =IF(Q29=1,ROUND(AVERAGE($E$7:G29),2),"") -> 141.97 | P29: =_xlfn.IFS(Q29<>1,"",SUM($Q$7:Q29)=1,1,SUM($Q$7:Q29)<>1,"") ->  | Q29: 1 | S29: =_xlfn.IFS(E29=$X$5,E29,F29=$X$5,F29,G29=$X$5,G29,$A$7=1,"") ->  | U29: =_xlfn.IFS(W29=$X$6,W29,X29=$X$6,X29,Y29=$X$6,Y29,$A$7=1,"") ->  | W29: =_xlfn.IFS(AND(Q29=1,COUNT($E$7:G29)>hcpng),E29+D29,$A$7=1," ") -> 193 | X29: =_xlfn.IFS(AND(Q29=1,COUNT($E$7:G29)>hcpng),F29+D29,$A$7=1," ") -> 250 | Y29: =_xlfn.IFS(AND(Q29=1,COUNT($E$7:G29)>hcpng),G29+D29,$A$7=1," ") -> 207 | Z29: 23 | AA29: =_xlfn.IFS(COUNTIFS(H29,"#",H28,"#"),A28,COUNTIFS(H29,2,H28,"#"),A28,$A$7=1,"") -> 
A30: 24 | B30: ='UTL1'!B30 -> 2023-03-01 | C30: =_xlfn.IFS(Q30<>1,"",AND($B$4>=1,COUNT($E$7:G30)<=bkng),$B$4,P30=1,TRUNC(AVERAGE(E30:G30),0),COUNT($Q$7:Q30)=2,TRUNC(AVERAGE($E$7:G29),0),COUNT($Q$7:Q30)>=3,TRUNC(AVERAGE($E$7:G29),0)) -> 141 | D30: =_xlfn.IFS(Q30<>1,"",Q30=1,TRUNC((230-C30)*0.9)) -> 80 | E30: 125 | F30: 177 | G30: 139 | H30: =_xlfn.IFS(COUNT(E30:G30)<1,"",AND(E30>C30,F30>C30,G30>C30,COUNT($E$7:G30)>sixng),"#",AND(E30>C29,F30>C29,G30>C29,COUNT($E$7:G30)>sixng,COUNTIF(H29,"#")=1),"2",$A$7=1,"") ->  | I30: 441 | J30: 147 | K30: =_xlfn.IFS(Q30<>1,"",Q30=1,I30+(3*D30)) -> 681 | L30: =_xlfn.IFS(Q30<>1,"",COUNT($E$7:G30)<=hcpng,"",COUNT($E$7:G30)>=hcpng,K30) -> 681 | M30: =_xlfn.IFS(Q30=1,SUM($E$7:G30),Q30<>1,"") -> 9811 | N30: =_xlfn.IFS(Q30=1,COUNT($E$7:G30),Q30<>1,"") -> 69 | O30: =IF(Q30=1,ROUND(AVERAGE($E$7:G30),2),"") -> 142.19 | P30: =_xlfn.IFS(Q30<>1,"",SUM($Q$7:Q30)=1,1,SUM($Q$7:Q30)<>1,"") ->  | Q30: 1 | S30: =_xlfn.IFS(E30=$X$5,E30,F30=$X$5,F30,G30=$X$5,G30,$A$7=1,"") ->  | U30: =_xlfn.IFS(W30=$X$6,W30,X30=$X$6,X30,Y30=$X$6,Y30,$A$7=1,"") ->  | W30: =_xlfn.IFS(AND(Q30=1,COUNT($E$7:G30)>hcpng),E30+D30,$A$7=1," ") -> 205 | X30: =_xlfn.IFS(AND(Q30=1,COUNT($E$7:G30)>hcpng),F30+D30,$A$7=1," ") -> 257 | Y30: =_xlfn.IFS(AND(Q30=1,COUNT($E$7:G30)>hcpng),G30+D30,$A$7=1," ") -> 219 | Z30: 24 | AA30: =_xlfn.IFS(COUNTIFS(H30,"#",H29,"#"),A29,COUNTIFS(H30,2,H29,"#"),A29,$A$7=1,"") -> 
A31: 25 | B31: ='UTL1'!B31 -> 2023-03-08 | C31: =_xlfn.IFS(Q31<>1,"",AND($B$4>=1,COUNT($E$7:G31)<=bkng),$B$4,P31=1,TRUNC(AVERAGE(E31:G31),0),COUNT($Q$7:Q31)=2,TRUNC(AVERAGE($E$7:G30),0),COUNT($Q$7:Q31)>=3,TRUNC(AVERAGE($E$7:G30),0)) -> 142 | D31: =_xlfn.IFS(Q31<>1,"",Q31=1,TRUNC((230-C31)*0.9)) -> 79 | E31: 171 | F31: 84 | G31: 166 | H31: =_xlfn.IFS(COUNT(E31:G31)<1,"",AND(E31>C31,F31>C31,G31>C31,COUNT($E$7:G31)>sixng),"#",AND(E31>C30,F31>C30,G31>C30,COUNT($E$7:G31)>sixng,COUNTIF(H30,"#")=1),"2",$A$7=1,"") ->  | I31: 421 | J31: 140 | K31: =_xlfn.IFS(Q31<>1,"",Q31=1,I31+(3*D31)) -> 658 | L31: =_xlfn.IFS(Q31<>1,"",COUNT($E$7:G31)<=hcpng,"",COUNT($E$7:G31)>=hcpng,K31) -> 658 | M31: =_xlfn.IFS(Q31=1,SUM($E$7:G31),Q31<>1,"") -> 10232 | N31: =_xlfn.IFS(Q31=1,COUNT($E$7:G31),Q31<>1,"") -> 72 | O31: =IF(Q31=1,ROUND(AVERAGE($E$7:G31),2),"") -> 142.11 | P31: =_xlfn.IFS(Q31<>1,"",SUM($Q$7:Q31)=1,1,SUM($Q$7:Q31)<>1,"") ->  | Q31: 1 | S31: =_xlfn.IFS(E31=$X$5,E31,F31=$X$5,F31,G31=$X$5,G31,$A$7=1,"") ->  | U31: =_xlfn.IFS(W31=$X$6,W31,X31=$X$6,X31,Y31=$X$6,Y31,$A$7=1,"") ->  | W31: =_xlfn.IFS(AND(Q31=1,COUNT($E$7:G31)>hcpng),E31+D31,$A$7=1," ") -> 250 | X31: =_xlfn.IFS(AND(Q31=1,COUNT($E$7:G31)>hcpng),F31+D31,$A$7=1," ") -> 163 | Y31: =_xlfn.IFS(AND(Q31=1,COUNT($E$7:G31)>hcpng),G31+D31,$A$7=1," ") -> 245 | Z31: 25 | AA31: =_xlfn.IFS(COUNTIFS(H31,"#",H30,"#"),A30,COUNTIFS(H31,2,H30,"#"),A30,$A$7=1,"") -> 
A32: 26 | B32: ='UTL1'!B32 -> 2023-03-15 | C32: =_xlfn.IFS(Q32<>1,"",AND($B$4>=1,COUNT($E$7:G32)<=bkng),$B$4,P32=1,TRUNC(AVERAGE(E32:G32),0),COUNT($Q$7:Q32)=2,TRUNC(AVERAGE($E$7:G31),0),COUNT($Q$7:Q32)>=3,TRUNC(AVERAGE($E$7:G31),0)) -> 142 | D32: =_xlfn.IFS(Q32<>1,"",Q32=1,TRUNC((230-C32)*0.9)) -> 79 | E32: 111 | F32: 128 | G32: 127 | H32: =_xlfn.IFS(COUNT(E32:G32)<1,"",AND(E32>C32,F32>C32,G32>C32,COUNT($E$7:G32)>sixng),"#",AND(E32>C31,F32>C31,G32>C31,COUNT($E$7:G32)>sixng,COUNTIF(H31,"#")=1),"2",$A$7=1,"") ->  | I32: 366 | J32: 122 | K32: =_xlfn.IFS(Q32<>1,"",Q32=1,I32+(3*D32)) -> 603 | L32: =_xlfn.IFS(Q32<>1,"",COUNT($E$7:G32)<=hcpng,"",COUNT($E$7:G32)>=hcpng,K32) -> 603 | M32: =_xlfn.IFS(Q32=1,SUM($E$7:G32),Q32<>1,"") -> 10598 | N32: =_xlfn.IFS(Q32=1,COUNT($E$7:G32),Q32<>1,"") -> 75 | O32: =IF(Q32=1,ROUND(AVERAGE($E$7:G32),2),"") -> 141.31 | P32: =_xlfn.IFS(Q32<>1,"",SUM($Q$7:Q32)=1,1,SUM($Q$7:Q32)<>1,"") ->  | Q32: 1 | S32: =_xlfn.IFS(E32=$X$5,E32,F32=$X$5,F32,G32=$X$5,G32,$A$7=1,"") ->  | U32: =_xlfn.IFS(W32=$X$6,W32,X32=$X$6,X32,Y32=$X$6,Y32,$A$7=1,"") ->  | W32: =_xlfn.IFS(AND(Q32=1,COUNT($E$7:G32)>hcpng),E32+D32,$A$7=1," ") -> 190 | X32: =_xlfn.IFS(AND(Q32=1,COUNT($E$7:G32)>hcpng),F32+D32,$A$7=1," ") -> 207 | Y32: =_xlfn.IFS(AND(Q32=1,COUNT($E$7:G32)>hcpng),G32+D32,$A$7=1," ") -> 206 | Z32: 26 | AA32: =_xlfn.IFS(COUNTIFS(H32,"#",H31,"#"),A31,COUNTIFS(H32,2,H31,"#"),A31,$A$7=1,"") -> 
A33: 27 | B33: ='UTL1'!B33 -> 2023-03-22 | C33: =_xlfn.IFS(Q33<>1,"",AND($B$4>=1,COUNT($E$7:G33)<=bkng),$B$4,P33=1,TRUNC(AVERAGE(E33:G33),0),COUNT($Q$7:Q33)=2,TRUNC(AVERAGE($E$7:G32),0),COUNT($Q$7:Q33)>=3,TRUNC(AVERAGE($E$7:G32),0)) -> 141 | D33: =_xlfn.IFS(Q33<>1,"",Q33=1,TRUNC((230-C33)*0.9)) -> 80 | E33: 116 | F33: 114 | G33: 87 | H33: =_xlfn.IFS(COUNT(E33:G33)<1,"",AND(E33>C33,F33>C33,G33>C33,COUNT($E$7:G33)>sixng),"#",AND(E33>C32,F33>C32,G33>C32,COUNT($E$7:G33)>sixng,COUNTIF(H32,"#")=1),"2",$A$7=1,"") ->  | I33: 317 | J33: 105 | K33: =_xlfn.IFS(Q33<>1,"",Q33=1,I33+(3*D33)) -> 557 | L33: =_xlfn.IFS(Q33<>1,"",COUNT($E$7:G33)<=hcpng,"",COUNT($E$7:G33)>=hcpng,K33) -> 557 | M33: =_xlfn.IFS(Q33=1,SUM($E$7:G33),Q33<>1,"") -> 10915 | N33: =_xlfn.IFS(Q33=1,COUNT($E$7:G33),Q33<>1,"") -> 78 | O33: =IF(Q33=1,ROUND(AVERAGE($E$7:G33),2),"") -> 139.94 | P33: =_xlfn.IFS(Q33<>1,"",SUM($Q$7:Q33)=1,1,SUM($Q$7:Q33)<>1,"") ->  | Q33: 1 | S33: =_xlfn.IFS(E33=$X$5,E33,F33=$X$5,F33,G33=$X$5,G33,$A$7=1,"") ->  | U33: =_xlfn.IFS(W33=$X$6,W33,X33=$X$6,X33,Y33=$X$6,Y33,$A$7=1,"") ->  | W33: =_xlfn.IFS(AND(Q33=1,COUNT($E$7:G33)>hcpng),E33+D33,$A$7=1," ") -> 196 | X33: =_xlfn.IFS(AND(Q33=1,COUNT($E$7:G33)>hcpng),F33+D33,$A$7=1," ") -> 194 | Y33: =_xlfn.IFS(AND(Q33=1,COUNT($E$7:G33)>hcpng),G33+D33,$A$7=1," ") -> 167 | Z33: 27 | AA33: =_xlfn.IFS(COUNTIFS(H33,"#",H32,"#"),A32,COUNTIFS(H33,2,H32,"#"),A32,$A$7=1,"") -> 
A34: 28 | B34: ='UTL1'!B34 -> 2023-03-29 | C34: =_xlfn.IFS(Q34<>1,"",AND($B$4>=1,COUNT($E$7:G34)<=bkng),$B$4,P34=1,TRUNC(AVERAGE(E34:G34),0),COUNT($Q$7:Q34)=2,TRUNC(AVERAGE($E$7:G33),0),COUNT($Q$7:Q34)>=3,TRUNC(AVERAGE($E$7:G33),0)) -> 139 | D34: =_xlfn.IFS(Q34<>1,"",Q34=1,TRUNC((230-C34)*0.9)) -> 81 | E34: 147 | F34: 113 | G34: 125 | H34: =_xlfn.IFS(COUNT(E34:G34)<1,"",AND(E34>C34,F34>C34,G34>C34,COUNT($E$7:G34)>sixng),"#",AND(E34>C33,F34>C33,G34>C33,COUNT($E$7:G34)>sixng,COUNTIF(H33,"#")=1),"2",$A$7=1,"") ->  | I34: 385 | J34: 128 | K34: =_xlfn.IFS(Q34<>1,"",Q34=1,I34+(3*D34)) -> 628 | L34: =_xlfn.IFS(Q34<>1,"",COUNT($E$7:G34)<=hcpng,"",COUNT($E$7:G34)>=hcpng,K34) -> 628 | M34: =_xlfn.IFS(Q34=1,SUM($E$7:G34),Q34<>1,"") -> 11300 | N34: =_xlfn.IFS(Q34=1,COUNT($E$7:G34),Q34<>1,"") -> 81 | O34: =IF(Q34=1,ROUND(AVERAGE($E$7:G34),2),"") -> 139.51 | P34: =_xlfn.IFS(Q34<>1,"",SUM($Q$7:Q34)=1,1,SUM($Q$7:Q34)<>1,"") ->  | Q34: 1 | S34: =_xlfn.IFS(E34=$X$5,E34,F34=$X$5,F34,G34=$X$5,G34,$A$7=1,"") ->  | U34: =_xlfn.IFS(W34=$X$6,W34,X34=$X$6,X34,Y34=$X$6,Y34,$A$7=1,"") ->  | W34: =_xlfn.IFS(AND(Q34=1,COUNT($E$7:G34)>hcpng),E34+D34,$A$7=1," ") -> 228 | X34: =_xlfn.IFS(AND(Q34=1,COUNT($E$7:G34)>hcpng),F34+D34,$A$7=1," ") -> 194 | Y34: =_xlfn.IFS(AND(Q34=1,COUNT($E$7:G34)>hcpng),G34+D34,$A$7=1," ") -> 206 | Z34: 28 | AA34: =_xlfn.IFS(COUNTIFS(H34,"#",H33,"#"),A33,COUNTIFS(H34,2,H33,"#"),A33,$A$7=1,"") -> 
A35: 29 | B35: ='UTL1'!B35 -> 2023-04-05 | C35: =_xlfn.IFS(Q35<>1,"",AND($B$4>=1,COUNT($E$7:G35)<=bkng),$B$4,P35=1,TRUNC(AVERAGE(E35:G35),0),COUNT($Q$7:Q35)=2,TRUNC(AVERAGE($E$7:G34),0),COUNT($Q$7:Q35)>=3,TRUNC(AVERAGE($E$7:G34),0)) -> 139 | D35: =_xlfn.IFS(Q35<>1,"",Q35=1,TRUNC((230-C35)*0.9)) -> 81 | E35: 135 | F35: 137 | G35: 109 | H35: =_xlfn.IFS(COUNT(E35:G35)<1,"",AND(E35>C35,F35>C35,G35>C35,COUNT($E$7:G35)>sixng),"#",AND(E35>C34,F35>C34,G35>C34,COUNT($E$7:G35)>sixng,COUNTIF(H34,"#")=1),"2",$A$7=1,"") ->  | I35: 381 | J35: 127 | K35: =_xlfn.IFS(Q35<>1,"",Q35=1,I35+(3*D35)) -> 624 | L35: =_xlfn.IFS(Q35<>1,"",COUNT($E$7:G35)<=hcpng,"",COUNT($E$7:G35)>=hcpng,K35) -> 624 | M35: =_xlfn.IFS(Q35=1,SUM($E$7:G35),Q35<>1,"") -> 11681 | N35: =_xlfn.IFS(Q35=1,COUNT($E$7:G35),Q35<>1,"") -> 84 | O35: =IF(Q35=1,ROUND(AVERAGE($E$7:G35),2),"") -> 139.06 | P35: =_xlfn.IFS(Q35<>1,"",SUM($Q$7:Q35)=1,1,SUM($Q$7:Q35)<>1,"") ->  | Q35: 1 | S35: =_xlfn.IFS(E35=$X$5,E35,F35=$X$5,F35,G35=$X$5,G35,$A$7=1,"") ->  | U35: =_xlfn.IFS(W35=$X$6,W35,X35=$X$6,X35,Y35=$X$6,Y35,$A$7=1,"") ->  | W35: =_xlfn.IFS(AND(Q35=1,COUNT($E$7:G35)>hcpng),E35+D35,$A$7=1," ") -> 216 | X35: =_xlfn.IFS(AND(Q35=1,COUNT($E$7:G35)>hcpng),F35+D35,$A$7=1," ") -> 218 | Y35: =_xlfn.IFS(AND(Q35=1,COUNT($E$7:G35)>hcpng),G35+D35,$A$7=1," ") -> 190 | Z35: 29 | AA35: =_xlfn.IFS(COUNTIFS(H35,"#",H34,"#"),A34,COUNTIFS(H35,2,H34,"#"),A34,$A$7=1,"") -> 
A36: 30 | B36: ='UTL1'!B36 -> 2023-04-12 | C36: =_xlfn.IFS(Q36<>1,"",AND($B$4>=1,COUNT($E$7:G36)<=bkng),$B$4,P36=1,TRUNC(AVERAGE(E36:G36),0),COUNT($Q$7:Q36)=2,TRUNC(AVERAGE($E$7:G35),0),COUNT($Q$7:Q36)>=3,TRUNC(AVERAGE($E$7:G35),0)) -> 139 | D36: =_xlfn.IFS(Q36<>1,"",Q36=1,TRUNC((230-C36)*0.9)) -> 81 | E36: 157 | F36: 199 | G36: 180 | H36: =_xlfn.IFS(COUNT(E36:G36)<1,"",AND(E36>C36,F36>C36,G36>C36,COUNT($E$7:G36)>sixng),"#",AND(E36>C35,F36>C35,G36>C35,COUNT($E$7:G36)>sixng,COUNTIF(H35,"#")=1),"2",$A$7=1,"") -> # | I36: 536 | J36: 178 | K36: =_xlfn.IFS(Q36<>1,"",Q36=1,I36+(3*D36)) -> 779 | L36: =_xlfn.IFS(Q36<>1,"",COUNT($E$7:G36)<=hcpng,"",COUNT($E$7:G36)>=hcpng,K36) -> 779 | M36: =_xlfn.IFS(Q36=1,SUM($E$7:G36),Q36<>1,"") -> 12217 | N36: =_xlfn.IFS(Q36=1,COUNT($E$7:G36),Q36<>1,"") -> 87 | O36: =IF(Q36=1,ROUND(AVERAGE($E$7:G36),2),"") -> 140.43 | P36: =_xlfn.IFS(Q36<>1,"",SUM($Q$7:Q36)=1,1,SUM($Q$7:Q36)<>1,"") ->  | Q36: 1 | R36: 536 | S36: =_xlfn.IFS(E36=$X$5,E36,F36=$X$5,F36,G36=$X$5,G36,$A$7=1,"") ->  | T36: 779 | U36: =_xlfn.IFS(W36=$X$6,W36,X36=$X$6,X36,Y36=$X$6,Y36,$A$7=1,"") ->  | W36: =_xlfn.IFS(AND(Q36=1,COUNT($E$7:G36)>hcpng),E36+D36,$A$7=1," ") -> 238 | X36: =_xlfn.IFS(AND(Q36=1,COUNT($E$7:G36)>hcpng),F36+D36,$A$7=1," ") -> 280 | Y36: =_xlfn.IFS(AND(Q36=1,COUNT($E$7:G36)>hcpng),G36+D36,$A$7=1," ") -> 261 | Z36: 30 | AA36: =_xlfn.IFS(COUNTIFS(H36,"#",H35,"#"),A35,COUNTIFS(H36,2,H35,"#"),A35,$A$7=1,"") -> 
E37: =IF(COUNT(E7:E36)>=1,ROUND(SUM(E7:E36)/COUNT(E7:E36),2),"") -> 146.45 | F37: =IF(COUNT(F7:F36)>=1,ROUND(SUM(F7:F36)/COUNT(F7:F36),2),"") -> 134.93 | G37: =IF(COUNT(G7:G36)>=1,ROUND(SUM(G7:G36)/COUNT(G7:G36),2),"") -> 139.9

Sheet AFarnsworth
A1: =IF('UTL1'!A2="V",'UTL1'!B2,"") ->  | H1: ='UTL1'!H1 -> Wednesday Fun Fours 2022/2023 season
A2: wk# | B2: =MAX(Z7:Z36) -> 30 | O2: 6 Over week: | S2: =IF(MIN(AA7:AA36)<1,"",MIN(AA7:AA36)) -> 
A3: Name: | B3: Anthony Farnsworth | G3: Perfect Attendance: | J3: =_xlfn.IFS(SUM(Q7:Q36)=B2,"YES",SUM(Q7:Q36)<>B2,"NO") -> YES | K3: =_xlfn.IFS(AND(SUM(Q7:Q36)<30,SUM(Q7:Q36)=B2),"So Far",SUM(Q7:Q36)=30,"Good",SUM(Q7:Q36)<>B2,"") -> Good
A4: Bk Avg: | B4: 148 | W4: Hi.series> | X4: =MAX(I7:I36) -> 588
C5: bk or | D5: old | I5: wky | J5: wky | K5: Hcp | L5: hcp | O5: new | P5: start | R5: high | S5: high | T5: high hcp | U5: high hcp | W5: hi.game> | X5: =MAX(E7:G36) -> 238
A6: wk no. | C6: old avg | D6: hdcp | E6: -1- | F6: -2- | G6: -3- | I6: total | J6: avg | K6: total | L6: t2 hc | M6: Pins | N6: Gms | O6: avg | P6: week | Q6: startB | R6: series | S6: game | T6: series | U6: game | W6: h.hcp.g> | X6: =MAX(W7:Y36) -> 308 | Z6: wk#
A7: 1 | B7: ='UTL1'!B7 -> 2022-09-07 | C7: =_xlfn.IFS(Q7<>1,"",AND($B$4>=1,COUNT($E$7:G7)<=bkng),$B$4,P7=1,TRUNC(AVERAGE(E7:G7),0),COUNT($Q$7:Q7)=2,TRUNC(AVERAGE($E6:G$7),0),COUNT($Q$7:Q7)>=3,TRUNC(AVERAGE($E6:G$7),0)) -> 148 | D7: =_xlfn.IFS(Q7<>1,"",Q7=1,TRUNC((230-C7)*0.9)) -> 73 | E7: 122 | F7: 170 | G7: 157 | I7: =IF(Q7=1,SUM(E7:G7),"") -> 449 | J7: =IF(Q7=1,TRUNC(AVERAGE(E7:G7),0),"") -> 149 | K7: =_xlfn.IFS(Q7<>1,"",Q7=1,I7+(3*D7)) -> 668 | L7: =_xlfn.IFS(Q7<>1,"",COUNT($E$7:G7)<=hcpng,"",COUNT($E$7:G7)>=hcpng,K7) ->  | M7: =_xlfn.IFS(Q7=1,SUM($E$7:G7),Q7<>1,"") -> 449 | N7: =_xlfn.IFS(Q7=1,COUNT($E$7:G7),Q7<>1,"") -> 3 | O7: =IF(Q7=1,ROUND(AVERAGE($E$7:G7),2),"") -> 149.67 | P7: =_xlfn.IFS(Q7<>1,"",SUM($Q$7:Q7)=1,1,SUM($Q$7:Q7)<>1,"") -> 1 | Q7: =IF(MAX(E7:G7)<1,"",1) -> 1 | R7: =IF(I7=$X$4,I7,"") ->  | S7: =_xlfn.IFS(E7=$X$5,E7,F7=$X$5,F7,G7=$X$5,G7,$A$7=1,"") ->  | T7: =IF(L7=MAX($L$7:$L$36),L7,"") ->  | U7: =_xlfn.IFS(W7=$X$6,W7,X7=$X$6,X7,Y7=$X$6,Y7,$A$7=1,"") ->  | W7: =_xlfn.IFS(AND(Q7=1,COUNT($E$7:G7)>hcpng),E7+D7,$A$7=1," ") ->  | X7: =_xlfn.IFS(AND(Q7=1,COUNT($E$7:G7)>hcpng),F7+D7,$A$7=1," ") ->  | Y7: =_xlfn.IFS(AND(Q7=1,COUNT($E$7:G7)>hcpng),G7+D7,$A$7=1," ") ->  | Z7: =IF(Q7=1,A7,0) -> 1 | AA7: =_xlfn.IFS(COUNTIFS(H7,"#",H6,"#"),A6,COUNTIFS(H7,2,H6,"#"),A6,$A$7=1,"") -> 
A8: 2 | B8: ='UTL1'!B8 -> 2022-09-14 | C8: =_xlfn.IFS(Q8<>1,"",AND($B$4>=1,COUNT($E$7:G8)<=bkng),$B$4,P8=1,TRUNC(AVERAGE(E8:G8),0),COUNT($Q$7:Q8)=2,TRUNC(AVERAGE($E7:G$7),0),COUNT($Q$7:Q8)>=3,TRUNC(AVERAGE($E7:G$7),0)) -> 148 | D8: =_xlfn.IFS(Q8<>1,"",Q8=1,TRUNC((230-C8)*0.9)) -> 73 | E8: 153 | F8: 191 | G8: 163 | H8: =_xlfn.IFS(COUNT(E8:G8)<1,"",AND(E8>C8,F8>C8,G8>C8,COUNT($E$7:G8)>sixng),"#",AND(E8>C7,F8>C7,G8>C7,COUNT($E$7:G8)>sixng,COUNTIF(H7,"#")=1),"2",$A$7=1,"") ->  | I8: =IF(Q8=1,SUM(E8:G8),"") -> 507 | J8: =IF(Q8=1,TRUNC(AVERAGE(E8:G8),0),"") -> 169 | K8: =_xlfn.IFS(Q8<>1,"",Q8=1,I8+(3*D8)) -> 726 | L8: =_xlfn.IFS(Q8<>1,"",COUNT($E$7:G8)<=hcpng,"",COUNT($E$7:G8)>=hcpng,K8) ->  | M8: =_xlfn.IFS(Q8=1,SUM($E$7:G8),Q8<>1,"") -> 956 | N8: =_xlfn.IFS(Q8=1,COUNT($E$7:G8),Q8<>1,"") -> 6 | O8: =IF(Q8=1,ROUND(AVERAGE($E$7:G8),2),"") -> 159.33 | P8: =_xlfn.IFS(Q8<>1,"",SUM($Q$7:Q8)=1,1,SUM($Q$7:Q8)<>1,"") ->  | Q8: =IF(MAX(E8:G8)<1,"",1) -> 1 | R8: =IF(I8=$X$4,I8,"") ->  | S8: =_xlfn.IFS(E8=$X$5,E8,F8=$X$5,F8,G8=$X$5,G8,$A$7=1,"") ->  | T8: =IF(L8=MAX($L$7:$L$36),L8,"") ->  | U8: =_xlfn.IFS(W8=$X$6,W8,X8=$X$6,X8,Y8=$X$6,Y8,$A$7=1,"") ->  | W8: =_xlfn.IFS(AND(Q8=1,COUNT($E$7:G8)>hcpng),E8+D8,$A$7=1," ") ->  | X8: =_xlfn.IFS(AND(Q8=1,COUNT($E$7:G8)>hcpng),F8+D8,$A$7=1," ") ->  | Y8: =_xlfn.IFS(AND(Q8=1,COUNT($E$7:G8)>hcpng),G8+D8,$A$7=1," ") ->  | Z8: =IF(Q8=1,A8,0) -> 2 | AA8: =_xlfn.IFS(COUNTIFS(H8,"#",H7,"#"),A7,COUNTIFS(H8,2,H7,"#"),A7,$A$7=1,"") -> 
A9: 3 | B9: ='UTL1'!B9 -> 2022-09-21 | C9: =_xlfn.IFS(Q9<>1,"",AND($B$4>=1,COUNT($E$7:G9)<=bkng),$B$4,P9=1,TRUNC(AVERAGE(E9:G9),0),COUNT($Q$7:Q9)=2,TRUNC(AVERAGE($E$7:G8),0),COUNT($Q$7:Q9)>=3,TRUNC(AVERAGE($E$7:G8),0)) -> 148 | D9: =_xlfn.IFS(Q9<>1,"",Q9=1,TRUNC((230-C9)*0.9)) -> 73 | E9: 131 | F9: 144 | G9: 131 | H9: =_xlfn.IFS(COUNT(E9:G9)<1,"",AND(E9>C9,F9>C9,G9>C9,COUNT($E$7:G9)>sixng),"#",AND(E9>C8,F9>C8,G9>C8,COUNT($E$7:G9)>sixng,COUNTIF(H8,"#")=1),"2",$A$7=1,"") ->  | I9: 406 | J9: 135 | K9: =_xlfn.IFS(Q9<>1,"",Q9=1,I9+(3*D9)) -> 625 | L9: =_xlfn.IFS(Q9<>1,"",COUNT($E$7:G9)<=hcpng,"",COUNT($E$7:G9)>=hcpng,K9) ->  | M9: =_xlfn.IFS(Q9=1,SUM($E$7:G9),Q9<>1,"") -> 1362 | N9: =_xlfn.IFS(Q9=1,COUNT($E$7:G9),Q9<>1,"") -> 9 | O9: =IF(Q9=1,ROUND(AVERAGE($E$7:G9),2),"") -> 151.33 | P9: =_xlfn.IFS(Q9<>1,"",SUM($Q$7:Q9)=1,1,SUM($Q$7:Q9)<>1,"") ->  | Q9: 1 | S9: =_xlfn.IFS(E9=$X$5,E9,F9=$X$5,F9,G9=$X$5,G9,$A$7=1,"") ->  | U9: =_xlfn.IFS(W9=$X$6,W9,X9=$X$6,X9,Y9=$X$6,Y9,$A$7=1,"") ->  | W9: =_xlfn.IFS(AND(Q9=1,COUNT($E$7:G9)>hcpng),E9+D9,$A$7=1," ") ->  | X9: =_xlfn.IFS(AND(Q9=1,COUNT($E$7:G9)>hcpng),F9+D9,$A$7=1," ") ->  | Y9: =_xlfn.IFS(AND(Q9=1,COUNT($E$7:G9)>hcpng),G9+D9,$A$7=1," ") ->  | Z9: 3 | AA9: =_xlfn.IFS(COUNTIFS(H9,"#",H8,"#"),A8,COUNTIFS(H9,2,H8,"#"),A8,$A$7=1,"") -> 
A10: 4 | B10: ='UTL1'!B10 -> 2022-09-28 | C10: =_xlfn.IFS(Q10<>1,"",AND($B$4>=1,COUNT($E$7:G10)<=bkng),$B$4,P10=1,TRUNC(AVERAGE(E10:G10),0),COUNT($Q$7:Q10)=2,TRUNC(AVERAGE($E$7:G9),0),COUNT($Q$7:Q10)>=3,TRUNC(AVERAGE($E$7:G9),0)) -> 151 | D10: =_xlfn.IFS(Q10<>1,"",Q10=1,TRUNC((230-C10)*0.9)) -> 71 | E10: 130 | F10: 115 | G10: 136 | H10: =_xlfn.IFS(COUNT(E10:G10)<1,"",AND(E10>C10,F10>C10,G10>C10,COUNT($E$7:G10)>sixng),"#",AND(E10>C9,F10>C9,G10>C9,COUNT($E$7:G10)>sixng,COUNTIF(H9,"#")=1),"2",$A$7=1,"") ->  | I10: 381 | J10: 127 | K10: =_xlfn.IFS(Q10<>1,"",Q10=1,I10+(3*D10)) -> 594 | L10: =_xlfn.IFS(Q10<>1,"",COUNT($E$7:G10)<=hcpng,"",COUNT($E$7:G10)>=hcpng,K10) ->  | M10: =_xlfn.IFS(Q10=1,SUM($E$7:G10),Q10<>1,"") -> 1743 | N10: =_xlfn.IFS(Q10=1,COUNT($E$7:G10),Q10<>1,"") -> 12 | O10: =IF(Q10=1,ROUND(AVERAGE($E$7:G10),2),"") -> 145.25 | P10: =_xlfn.IFS(Q10<>1,"",SUM($Q$7:Q10)=1,1,SUM($Q$7:Q10)<>1,"") ->  | Q10: 1 | S10: =_xlfn.IFS(E10=$X$5,E10,F10=$X$5,F10,G10=$X$5,G10,$A$7=1,"") ->  | U10: =_xlfn.IFS(W10=$X$6,W10,X10=$X$6,X10,Y10=$X$6,Y10,$A$7=1,"") ->  | W10: =_xlfn.IFS(AND(Q10=1,COUNT($E$7:G10)>hcpng),E10+D10,$A$7=1," ") ->  | X10: =_xlfn.IFS(AND(Q10=1,COUNT($E$7:G10)>hcpng),F10+D10,$A$7=1," ") ->  | Y10: =_xlfn.IFS(AND(Q10=1,COUNT($E$7:G10)>hcpng),G10+D10,$A$7=1," ") ->  | Z10: 4 | AA10: =_xlfn.IFS(COUNTIFS(H10,"#",H9,"#"),A9,COUNTIFS(H10,2,H9,"#"),A9,$A$7=1,"") -> 
A11: 5 | B11: ='UTL1'!B11 -> 2022-10-05 | C11: =_xlfn.IFS(Q11<>1,"",AND($B$4>=1,COUNT($E$7:G11)<=bkng),$B$4,P11=1,TRUNC(AVERAGE(E11:G11),0),COUNT($Q$7:Q11)=2,TRUNC(AVERAGE($E$7:G10),0),COUNT($Q$7:Q11)>=3,TRUNC(AVERAGE($E$7:G10),0)) -> 145 | D11: =_xlfn.IFS(Q11<>1,"",Q11=1,TRUNC((230-C11)*0.9)) -> 76 | E11: 172 | F11: 124 | G11: 148 | H11: =_xlfn.IFS(COUNT(E11:G11)<1,"",AND(E11>C11,F11>C11,G11>C11,COUNT($E$7:G11)>sixng),"#",AND(E11>C10,F11>C10,G11>C10,COUNT($E$7:G11)>sixng,COUNTIF(H10,"#")=1),"2",$A$7=1,"") ->  | I11: 444 | J11: 148 | K11: =_xlfn.IFS(Q11<>1,"",Q11=1,I11+(3*D11)) -> 672 | L11: =_xlfn.IFS(Q11<>1,"",COUNT($E$7:G11)<=hcpng,"",COUNT($E$7:G11)>=hcpng,K11) -> 672 | M11: =_xlfn.IFS(Q11=1,SUM($E$7:G11),Q11<>1,"") -> 2187 | N11: =_xlfn.IFS(Q11=1,COUNT($E$7:G11),Q11<>1,"") -> 15 | O11: =IF(Q11=1,ROUND(AVERAGE($E$7:G11),2),"") -> 145.8 | P11: =_xlfn.IFS(Q11<>1,"",SUM($Q$7:Q11)=1,1,SUM($Q$7:Q11)<>1,"") ->  | Q11: 1 | S11: =_xlfn.IFS(E11=$X$5,E11,F11=$X$5,F11,G11=$X$5,G11,$A$7=1,"") ->  | U11: =_xlfn.IFS(W11=$X$6,W11,X11=$X$6,X11,Y11=$X$6,Y11,$A$7=1,"") ->  | W11: =_xlfn.IFS(AND(Q11=1,COUNT($E$7:G11)>hcpng),E11+D11,$A$7=1," ") -> 248 | X11: =_xlfn.IFS(AND(Q11=1,COUNT($E$7:G11)>hcpng),F11+D11,$A$7=1," ") -> 200 | Y11: =_xlfn.IFS(AND(Q11=1,COUNT($E$7:G11)>hcpng),G11+D11,$A$7=1," ") -> 224 | Z11: 5 | AA11: =_xlfn.IFS(COUNTIFS(H11,"#",H10,"#"),A10,COUNTIFS(H11,2,H10,"#"),A10,$A$7=1,"") -> 
A12: 6 | B12: ='UTL1'!B12 -> 2022-10-12 | C12: =_xlfn.IFS(Q12<>1,"",AND($B$4>=1,COUNT($E$7:G12)<=bkng),$B$4,P12=1,TRUNC(AVERAGE(E12:G12),0),COUNT($Q$7:Q12)=2,TRUNC(AVERAGE($E$7:G11),0),COUNT($Q$7:Q12)>=3,TRUNC(AVERAGE($E$7:G11),0)) -> 145 | D12: =_xlfn.IFS(Q12<>1,"",Q12=1,TRUNC((230-C12)*0.9)) -> 76 | E12: 91 | F12: 129 | G12: 135 | H12: =_xlfn.IFS(COUNT(E12:G12)<1,"",AND(E12>C12,F12>C12,G12>C12,COUNT($E$7:G12)>sixng),"#",AND(E12>C11,F12>C11,G12>C11,COUNT($E$7:G12)>sixng,COUNTIF(H11,"#")=1),"2",$A$7=1,"") ->  | I12: 355 | J12: 118 | K12: =_xlfn.IFS(Q12<>1,"",Q12=1,I12+(3*D12)) -> 583 | L12: =_xlfn.IFS(Q12<>1,"",COUNT($E$7:G12)<=hcpng,"",COUNT($E$7:G12)>=hcpng,K12) -> 583 | M12: =_xlfn.IFS(Q12=1,SUM($E$7:G12),Q12<>1,"") -> 2542 | N12: =_xlfn.IFS(Q12=1,COUNT($E$7:G12),Q12<>1,"") -> 18 | O12: =IF(Q12=1,ROUND(AVERAGE($E$7:G12),2),"") -> 141.22 | P12: =_xlfn.IFS(Q12<>1,"",SUM($Q$7:Q12)=1,1,SUM($Q$7:Q12)<>1,"") ->  | Q12: 1 | S12: =_xlfn.IFS(E12=$X$5,E12,F12=$X$5,F12,G12=$X$5,G12,$A$7=1,"") ->  | U12: =_xlfn.IFS(W12=$X$6,W12,X12=$X$6,X12,Y12=$X$6,Y12,$A$7=1,"") ->  | W12: =_xlfn.IFS(AND(Q12=1,COUNT($E$7:G12)>hcpng),E12+D12,$A$7=1," ") -> 167 | X12: =_xlfn.IFS(AND(Q12=1,COUNT($E$7:G12)>hcpng),F12+D12,$A$7=1," ") -> 205 | Y12: =_xlfn.IFS(AND(Q12=1,COUNT($E$7:G12)>hcpng),G12+D12,$A$7=1," ") -> 211 | Z12: 6 | AA12: =_xlfn.IFS(COUNTIFS(H12,"#",H11,"#"),A11,COUNTIFS(H12,2,H11,"#"),A11,$A$7=1,"") -> 
A13: 7 | B13: ='UTL1'!B13 -> 2022-10-19 | C13: =_xlfn.IFS(Q13<>1,"",AND($B$4>=1,COUNT($E$7:G13)<=bkng),$B$4,P13=1,TRUNC(AVERAGE(E13:G13),0),COUNT($Q$7:Q13)=2,TRUNC(AVERAGE($E$7:G12),0),COUNT($Q$7:Q13)>=3,TRUNC(AVERAGE($E$7:G12),0)) -> 141 | D13: =_xlfn.IFS(Q13<>1,"",Q13=1,TRUNC((230-C13)*0.9)) -> 80 | E13: 189 | F13: 127 | G13: 155 | H13: =_xlfn.IFS(COUNT(E13:G13)<1,"",AND(E13>C13,F13>C13,G13>C13,COUNT($E$7:G13)>sixng),"#",AND(E13>C12,F13>C12,G13>C12,COUNT($E$7:G13)>sixng,COUNTIF(H12,"#")=1),"2",$A$7=1,"") ->  | I13: 471 | J13: 157 | K13: =_xlfn.IFS(Q13<>1,"",Q13=1,I13+(3*D13)) -> 711 | L13: =_xlfn.IFS(Q13<>1,"",COUNT($E$7:G13)<=hcpng,"",COUNT($E$7:G13)>=hcpng,K13) -> 711 | M13: =_xlfn.IFS(Q13=1,SUM($E$7:G13),Q13<>1,"") -> 3013 | N13: =_xlfn.IFS(Q13=1,COUNT($E$7:G13),Q13<>1,"") -> 21 | O13: =IF(Q13=1,ROUND(AVERAGE($E$7:G13),2),"") -> 143.48 | P13: =_xlfn.IFS(Q13<>1,"",SUM($Q$7:Q13)=1,1,SUM($Q$7:Q13)<>1,"") ->  | Q13: 1 | S13: =_xlfn.IFS(E13=$X$5,E13,F13=$X$5,F13,G13=$X$5,G13,$A$7=1,"") ->  | U13: =_xlfn.IFS(W13=$X$6,W13,X13=$X$6,X13,Y13=$X$6,Y13,$A$7=1,"") ->  | W13: =_xlfn.IFS(AND(Q13=1,COUNT($E$7:G13)>hcpng),E13+D13,$A$7=1," ") -> 269 | X13: =_xlfn.IFS(AND(Q13=1,COUNT($E$7:G13)>hcpng),F13+D13,$A$7=1," ") -> 207 | Y13: =_xlfn.IFS(AND(Q13=1,COUNT($E$7:G13)>hcpng),G13+D13,$A$7=1," ") -> 235 | Z13: 7 | AA13: =_xlfn.IFS(COUNTIFS(H13,"#",H12,"#"),A12,COUNTIFS(H13,2,H12,"#"),A12,$A$7=1,"") -> 
A14: 8 | B14: ='UTL1'!B14 -> 2022-10-26 | C14: =_xlfn.IFS(Q14<>1,"",AND($B$4>=1,COUNT($E$7:G14)<=bkng),$B$4,P14=1,TRUNC(AVERAGE(E14:G14),0),COUNT($Q$7:Q14)=2,TRUNC(AVERAGE($E$7:G13),0),COUNT($Q$7:Q14)>=3,TRUNC(AVERAGE($E$7:G13),0)) -> 143 | D14: =_xlfn.IFS(Q14<>1,"",Q14=1,TRUNC((230-C14)*0.9)) -> 78 | E14: 118 | F14: 188 | G14: 128 | H14: =_xlfn.IFS(COUNT(E14:G14)<1,"",AND(E14>C14,F14>C14,G14>C14,COUNT($E$7:G14)>sixng),"#",AND(E14>C13,F14>C13,G14>C13,COUNT($E$7:G14)>sixng,COUNTIF(H13,"#")=1),"2",$A$7=1,"") ->  | I14: 434 | J14: 144 | K14: =_xlfn.IFS(Q14<>1,"",Q14=1,I14+(3*D14)) -> 668 | L14: =_xlfn.IFS(Q14<>1,"",COUNT($E$7:G14)<=hcpng,"",COUNT($E$7:G14)>=hcpng,K14) -> 668 | M14: =_xlfn.IFS(Q14=1,SUM($E$7:G14),Q14<>1,"") -> 3447 | N14: =_xlfn.IFS(Q14=1,COUNT($E$7:G14),Q14<>1,"") -> 24 | O14: =IF(Q14=1,ROUND(AVERAGE($E$7:G14),2),"") -> 143.63 | P14: =_xlfn.IFS(Q14<>1,"",SUM($Q$7:Q14)=1,1,SUM($Q$7:Q14)<>1,"") ->  | Q14: 1 | S14: =_xlfn.IFS(E14=$X$5,E14,F14=$X$5,F14,G14=$X$5,G14,$A$7=1,"") ->  | U14: =_xlfn.IFS(W14=$X$6,W14,X14=$X$6,X14,Y14=$X$6,Y14,$A$7=1,"") ->  | W14: =_xlfn.IFS(AND(Q14=1,COUNT($E$7:G14)>hcpng),E14+D14,$A$7=1," ") -> 196 | X14: =_xlfn.IFS(AND(Q14=1,COUNT($E$7:G14)>hcpng),F14+D14,$A$7=1," ") -> 266 | Y14: =_xlfn.IFS(AND(Q14=1,COUNT($E$7:G14)>hcpng),G14+D14,$A$7=1," ") -> 206 | Z14: 8 | AA14: =_xlfn.IFS(COUNTIFS(H14,"#",H13,"#"),A13,COUNTIFS(H14,2,H13,"#"),A13,$A$7=1,"") -> 
A15: 9 | B15: ='UTL1'!B15 -> 2022-11-02 | C15: =_xlfn.IFS(Q15<>1,"",AND($B$4>=1,COUNT($E$7:G15)<=bkng),$B$4,P15=1,TRUNC(AVERAGE(E15:G15),0),COUNT($Q$7:Q15)=2,TRUNC(AVERAGE($E$7:G14),0),COUNT($Q$7:Q15)>=3,TRUNC(AVERAGE($E$7:G14),0)) -> 143 | D15: =_xlfn.IFS(Q15<>1,"",Q15=1,TRUNC((230-C15)*0.9)) -> 78 | E15: 152 | F15: 161 | G15: 131 | H15: =_xlfn.IFS(COUNT(E15:G15)<1,"",AND(E15>C15,F15>C15,G15>C15,COUNT($E$7:G15)>sixng),"#",AND(E15>C14,F15>C14,G15>C14,COUNT($E$7:G15)>sixng,COUNTIF(H14,"#")=1),"2",$A$7=1,"") ->  | I15: 444 | J15: 148 | K15: =_xlfn.IFS(Q15<>1,"",Q15=1,I15+(3*D15)) -> 678 | L15: =_xlfn.IFS(Q15<>1,"",COUNT($E$7:G15)<=hcpng,"",COUNT($E$7:G15)>=hcpng,K15) -> 678 | M15: =_xlfn.IFS(Q15=1,SUM($E$7:G15),Q15<>1,"") -> 3891 | N15: =_xlfn.IFS(Q15=1,COUNT($E$7:G15),Q15<>1,"") -> 27 | O15: =IF(Q15=1,ROUND(AVERAGE($E$7:G15),2),"") -> 144.11 | P15: =_xlfn.IFS(Q15<>1,"",SUM($Q$7:Q15)=1,1,SUM($Q$7:Q15)<>1,"") ->  | Q15: 1 | S15: =_xlfn.IFS(E15=$X$5,E15,F15=$X$5,F15,G15=$X$5,G15,$A$7=1,"") ->  | U15: =_xlfn.IFS(W15=$X$6,W15,X15=$X$6,X15,Y15=$X$6,Y15,$A$7=1,"") ->  | W15: =_xlfn.IFS(AND(Q15=1,COUNT($E$7:G15)>hcpng),E15+D15,$A$7=1," ") -> 230 | X15: =_xlfn.IFS(AND(Q15=1,COUNT($E$7:G15)>hcpng),F15+D15,$A$7=1," ") -> 239 | Y15: =_xlfn.IFS(AND(Q15=1,COUNT($E$7:G15)>hcpng),G15+D15,$A$7=1," ") -> 209 | Z15: 9 | AA15: =_xlfn.IFS(COUNTIFS(H15,"#",H14,"#"),A14,COUNTIFS(H15,2,H14,"#"),A14,$A$7=1,"") -> 
A16: 10 | B16: ='UTL1'!B16 -> 2022-11-09 | C16: =_xlfn.IFS(Q16<>1,"",AND($B$4>=1,COUNT($E$7:G16)<=bkng),$B$4,P16=1,TRUNC(AVERAGE(E16:G16),0),COUNT($Q$7:Q16)=2,TRUNC(AVERAGE($E$7:G15),0),COUNT($Q$7:Q16)>=3,TRUNC(AVERAGE($E$7:G15),0)) -> 144 | D16: =_xlfn.IFS(Q16<>1,"",Q16=1,TRUNC((230-C16)*0.9)) -> 77 | E16: 169 | F16: 161 | G16: 161 | H16: =_xlfn.IFS(COUNT(E16:G16)<1,"",AND(E16>C16,F16>C16,G16>C16,COUNT($E$7:G16)>sixng),"#",AND(E16>C15,F16>C15,G16>C15,COUNT($E$7:G16)>sixng,COUNTIF(H15,"#")=1),"2",$A$7=1,"") -> # | I16: 491 | J16: 163 | K16: =_xlfn.IFS(Q16<>1,"",Q16=1,I16+(3*D16)) -> 722 | L16: =_xlfn.IFS(Q16<>1,"",COUNT($E$7:G16)<=hcpng,"",COUNT($E$7:G16)>=hcpng,K16) -> 722 | M16: =_xlfn.IFS(Q16=1,SUM($E$7:G16),Q16<>1,"") -> 4382 | N16: =_xlfn.IFS(Q16=1,COUNT($E$7:G16),Q16<>1,"") -> 30 | O16: =IF(Q16=1,ROUND(AVERAGE($E$7:G16),2),"") -> 146.07 | P16: =_xlfn.IFS(Q16<>1,"",SUM($Q$7:Q16)=1,1,SUM($Q$7:Q16)<>1,"") ->  | Q16: 1 | S16: =_xlfn.IFS(E16=$X$5,E16,F16=$X$5,F16,G16=$X$5,G16,$A$7=1,"") ->  | U16: =_xlfn.IFS(W16=$X$6,W16,X16=$X$6,X16,Y16=$X$6,Y16,$A$7=1,"") ->  | W16: =_xlfn.IFS(AND(Q16=1,COUNT($E$7:G16)>hcpng),E16+D16,$A$7=1," ") -> 246 | X16: =_xlfn.IFS(AND(Q16=1,COUNT($E$7:G16)>hcpng),F16+D16,$A$7=1," ") -> 238 | Y16: =_xlfn.IFS(AND(Q16=1,COUNT($E$7:G16)>hcpng),G16+D16,$A$7=1," ") -> 238 | Z16: 10 | AA16: =_xlfn.IFS(COUNTIFS(H16,"#",H15,"#"),A15,COUNTIFS(H16,2,H15,"#"),A15,$A$7=1,"") -> 
A17: 11 | B17: ='UTL1'!B17 -> 2022-11-16 | C17: =_xlfn.IFS(Q17<>1,"",AND($B$4>=1,COUNT($E$7:G17)<=bkng),$B$4,P17=1,TRUNC(AVERAGE(E17:G17),0),COUNT($Q$7:Q17)=2,TRUNC(AVERAGE($E$7:G16),0),COUNT($Q$7:Q17)>=3,TRUNC(AVERAGE($E$7:G16),0)) -> 146 | D17: =_xlfn.IFS(Q17<>1,"",Q17=1,TRUNC((230-C17)*0.9)) -> 75 | E17: 151 | F17: 176 | G17: 117 | H17: =_xlfn.IFS(COUNT(E17:G17)<1,"",AND(E17>C17,F17>C17,G17>C17,COUNT($E$7:G17)>sixng),"#",AND(E17>C16,F17>C16,G17>C16,COUNT($E$7:G17)>sixng,COUNTIF(H16,"#")=1),"2",$A$7=1,"") ->  | I17: 444 | J17: 148 | K17: =_xlfn.IFS(Q17<>1,"",Q17=1,I17+(3*D17)) -> 669 | L17: =_xlfn.IFS(Q17<>1,"",COUNT($E$7:G17)<=hcpng,"",COUNT($E$7:G17)>=hcpng,K17) -> 669 | M17: =_xlfn.IFS(Q17=1,SUM($E$7:G17),Q17<>1,"") -> 4826 | N17: =_xlfn.IFS(Q17=1,COUNT($E$7:G17),Q17<>1,"") -> 33 | O17: =IF(Q17=1,ROUND(AVERAGE($E$7:G17),2),"") -> 146.24 | P17: =_xlfn.IFS(Q17<>1,"",SUM($Q$7:Q17)=1,1,SUM($Q$7:Q17)<>1,"") ->  | Q17: 1 | S17: =_xlfn.IFS(E17=$X$5,E17,F17=$X$5,F17,G17=$X$5,G17,$A$7=1,"") ->  | U17: =_xlfn.IFS(W17=$X$6,W17,X17=$X$6,X17,Y17=$X$6,Y17,$A$7=1,"") ->  | W17: =_xlfn.IFS(AND(Q17=1,COUNT($E$7:G17)>hcpng),E17+D17,$A$7=1," ") -> 226 | X17: =_xlfn.IFS(AND(Q17=1,COUNT($E$7:G17)>hcpng),F17+D17,$A$7=1," ") -> 251 | Y17: =_xlfn.IFS(AND(Q17=1,COUNT($E$7:G17)>hcpng),G17+D17,$A$7=1," ") -> 192 | Z17: 11 | AA17: =_xlfn.IFS(COUNTIFS(H17,"#",H16,"#"),A16,COUNTIFS(H17,2,H16,"#"),A16,$A$7=1,"") -> 
A18: 12 | B18: ='UTL1'!B18 -> 2022-11-30 | C18: =_xlfn.IFS(Q18<>1,"",AND($B$4>=1,COUNT($E$7:G18)<=bkng),$B$4,P18=1,TRUNC(AVERAGE(E18:G18),0),COUNT($Q$7:Q18)=2,TRUNC(AVERAGE($E$7:G17),0),COUNT($Q$7:Q18)>=3,TRUNC(AVERAGE($E$7:G17),0)) -> 146 | D18: =_xlfn.IFS(Q18<>1,"",Q18=1,TRUNC((230-C18)*0.9)) -> 75 | E18: 169 | F18: 176 | G18: 169 | H18: =_xlfn.IFS(COUNT(E18:G18)<1,"",AND(E18>C18,F18>C18,G18>C18,COUNT($E$7:G18)>sixng),"#",AND(E18>C17,F18>C17,G18>C17,COUNT($E$7:G18)>sixng,COUNTIF(H17,"#")=1),"2",$A$7=1,"") -> # | I18: 514 | J18: 171 | K18: =_xlfn.IFS(Q18<>1,"",Q18=1,I18+(3*D18)) -> 739 | L18: =_xlfn.IFS(Q18<>1,"",COUNT($E$7:G18)<=hcpng,"",COUNT($E$7:G18)>=hcpng,K18) -> 739 | M18: =_xlfn.IFS(Q18=1,SUM($E$7:G18),Q18<>1,"") -> 5340 | N18: =_xlfn.IFS(Q18=1,COUNT($E$7:G18),Q18<>1,"") -> 36 | O18: =IF(Q18=1,ROUND(AVERAGE($E$7:G18),2),"") -> 148.33 | P18: =_xlfn.IFS(Q18<>1,"",SUM($Q$7:Q18)=1,1,SUM($Q$7:Q18)<>1,"") ->  | Q18: 1 | S18: =_xlfn.IFS(E18=$X$5,E18,F18=$X$5,F18,G18=$X$5,G18,$A$7=1,"") ->  | U18: =_xlfn.IFS(W18=$X$6,W18,X18=$X$6,X18,Y18=$X$6,Y18,$A$7=1,"") ->  | W18: =_xlfn.IFS(AND(Q18=1,COUNT($E$7:G18)>hcpng),E18+D18,$A$7=1," ") -> 244 | X18: =_xlfn.IFS(AND(Q18=1,COUNT($E$7:G18)>hcpng),F18+D18,$A$7=1," ") -> 251 | Y18: =_xlfn.IFS(AND(Q18=1,COUNT($E$7:G18)>hcpng),G18+D18,$A$7=1," ") -> 244 | Z18: 12 | AA18: =_xlfn.IFS(COUNTIFS(H18,"#",H17,"#"),A17,COUNTIFS(H18,2,H17,"#"),A17,$A$7=1,"") -> 
A19: 13 | B19: ='UTL1'!B19 -> 2022-12-07 | C19: =_xlfn.IFS(Q19<>1,"",AND($B$4>=1,COUNT($E$7:G19)<=bkng),$B$4,P19=1,TRUNC(AVERAGE(E19:G19),0),COUNT($Q$7:Q19)=2,TRUNC(AVERAGE($E$7:G18),0),COUNT($Q$7:Q19)>=3,TRUNC(AVERAGE($E$7:G18),0)) -> 148 | D19: =_xlfn.IFS(Q19<>1,"",Q19=1,TRUNC((230-C19)*0.9)) -> 73 | E19: 129 | F19: 191 | G19: 158 | H19: =_xlfn.IFS(COUNT(E19:G19)<1,"",AND(E19>C19,F19>C19,G19>C19,COUNT($E$7:G19)>sixng),"#",AND(E19>C18,F19>C18,G19>C18,COUNT($E$7:G19)>sixng,COUNTIF(H18,"#")=1),"2",$A$7=1,"") ->  | I19: 478 | J19: 159 | K19: =_xlfn.IFS(Q19<>1,"",Q19=1,I19+(3*D19)) -> 697 | L19: =_xlfn.IFS(Q19<>1,"",COUNT($E$7:G19)<=hcpng,"",COUNT($E$7:G19)>=hcpng,K19) -> 697 | M19: =_xlfn.IFS(Q19=1,SUM($E$7:G19),Q19<>1,"") -> 5818 | N19: =_xlfn.IFS(Q19=1,COUNT($E$7:G19),Q19<>1,"") -> 39 | O19: =IF(Q19=1,ROUND(AVERAGE($E$7:G19),2),"") -> 149.18 | P19: =_xlfn.IFS(Q19<>1,"",SUM($Q$7:Q19)=1,1,SUM($Q$7:Q19)<>1,"") ->  | Q19: 1 | S19: =_xlfn.IFS(E19=$X$5,E19,F19=$X$5,F19,G19=$X$5,G19,$A$7=1,"") ->  | U19: =_xlfn.IFS(W19=$X$6,W19,X19=$X$6,X19,Y19=$X$6,Y19,$A$7=1,"") ->  | W19: =_xlfn.IFS(AND(Q19=1,COUNT($E$7:G19)>hcpng),E19+D19,$A$7=1," ") -> 202 | X19: =_xlfn.IFS(AND(Q19=1,COUNT($E$7:G19)>hcpng),F19+D19,$A$7=1," ") -> 264 | Y19: =_xlfn.IFS(AND(Q19=1,COUNT($E$7:G19)>hcpng),G19+D19,$A$7=1," ") -> 231 | Z19: 13 | AA19: =_xlfn.IFS(COUNTIFS(H19,"#",H18,"#"),A18,COUNTIFS(H19,2,H18,"#"),A18,$A$7=1,"") -> 
A20: 14 | B20: ='UTL1'!B20 -> 2022-12-14 | C20: =_xlfn.IFS(Q20<>1,"",AND($B$4>=1,COUNT($E$7:G20)<=bkng),$B$4,P20=1,TRUNC(AVERAGE(E20:G20),0),COUNT($Q$7:Q20)=2,TRUNC(AVERAGE($E$7:G19),0),COUNT($Q$7:Q20)>=3,TRUNC(AVERAGE($E$7:G19),0)) -> 149 | D20: =_xlfn.IFS(Q20<>1,"",Q20=1,TRUNC((230-C20)*0.9)) -> 72 | E20: 171 | F20: 130 | G20: 204 | H20: =_xlfn.IFS(COUNT(E20:G20)<1,"",AND(E20>C20,F20>C20,G20>C20,COUNT($E$7:G20)>sixng),"#",AND(E20>C19,F20>C19,G20>C19,COUNT($E$7:G20)>sixng,COUNTIF(H19,"#")=1),"2",$A$7=1,"") ->  | I20: 505 | J20: 168 | K20: =_xlfn.IFS(Q20<>1,"",Q20=1,I20+(3*D20)) -> 721 | L20: =_xlfn.IFS(Q20<>1,"",COUNT($E$7:G20)<=hcpng,"",COUNT($E$7:G20)>=hcpng,K20) -> 721 | M20: =_xlfn.IFS(Q20=1,SUM($E$7:G20),Q20<>1,"") -> 6323 | N20: =_xlfn.IFS(Q20=1,COUNT($E$7:G20),Q20<>1,"") -> 42 | O20: =IF(Q20=1,ROUND(AVERAGE($E$7:G20),2),"") -> 150.55 | P20: =_xlfn.IFS(Q20<>1,"",SUM($Q$7:Q20)=1,1,SUM($Q$7:Q20)<>1,"") ->  | Q20: 1 | S20: =_xlfn.IFS(E20=$X$5,E20,F20=$X$5,F20,G20=$X$5,G20,$A$7=1,"") ->  | U20: =_xlfn.IFS(W20=$X$6,W20,X20=$X$6,X20,Y20=$X$6,Y20,$A$7=1,"") ->  | W20: =_xlfn.IFS(AND(Q20=1,COUNT($E$7:G20)>hcpng),E20+D20,$A$7=1," ") -> 243 | X20: =_xlfn.IFS(AND(Q20=1,COUNT($E$7:G20)>hcpng),F20+D20,$A$7=1," ") -> 202 | Y20: =_xlfn.IFS(AND(Q20=1,COUNT($E$7:G20)>hcpng),G20+D20,$A$7=1," ") -> 276 | Z20: 14 | AA20: =_xlfn.IFS(COUNTIFS(H20,"#",H19,"#"),A19,COUNTIFS(H20,2,H19,"#"),A19,$A$7=1,"") -> 
A21: 15 | B21: ='UTL1'!B21 -> 2022-12-21 | C21: =_xlfn.IFS(Q21<>1,"",AND($B$4>=1,COUNT($E$7:G21)<=bkng),$B$4,P21=1,TRUNC(AVERAGE(E21:G21),0),COUNT($Q$7:Q21)=2,TRUNC(AVERAGE($E$7:G20),0),COUNT($Q$7:Q21)>=3,TRUNC(AVERAGE($E$7:G20),0)) -> 150 | D21: =_xlfn.IFS(Q21<>1,"",Q21=1,TRUNC((230-C21)*0.9)) -> 72 | E21: 136 | F21: 147 | G21: 192 | H21: =_xlfn.IFS(COUNT(E21:G21)<1,"",AND(E21>C21,F21>C21,G21>C21,COUNT($E$7:G21)>sixng),"#",AND(E21>C20,F21>C20,G21>C20,COUNT($E$7:G21)>sixng,COUNTIF(H20,"#")=1),"2",$A$7=1,"") ->  | I21: 475 | J21: 158 | K21: =_xlfn.IFS(Q21<>1,"",Q21=1,I21+(3*D21)) -> 691 | L21: =_xlfn.IFS(Q21<>1,"",COUNT($E$7:G21)<=hcpng,"",COUNT($E$7:G21)>=hcpng,K21) -> 691 | M21: =_xlfn.IFS(Q21=1,SUM($E$7:G21),Q21<>1,"") -> 6798 | N21: =_xlfn.IFS(Q21=1,COUNT($E$7:G21),Q21<>1,"") -> 45 | O21: =IF(Q21=1,ROUND(AVERAGE($E$7:G21),2),"") -> 151.07 | P21: =_xlfn.IFS(Q21<>1,"",SUM($Q$7:Q21)=1,1,SUM($Q$7:Q21)<>1,"") ->  | Q21: 1 | S21: =_xlfn.IFS(E21=$X$5,E21,F21=$X$5,F21,G21=$X$5,G21,$A$7=1,"") ->  | U21: =_xlfn.IFS(W21=$X$6,W21,X21=$X$6,X21,Y21=$X$6,Y21,$A$7=1,"") ->  | W21: =_xlfn.IFS(AND(Q21=1,COUNT($E$7:G21)>hcpng),E21+D21,$A$7=1," ") -> 208 | X21: =_xlfn.IFS(AND(Q21=1,COUNT($E$7:G21)>hcpng),F21+D21,$A$7=1," ") -> 219 | Y21: =_xlfn.IFS(AND(Q21=1,COUNT($E$7:G21)>hcpng),G21+D21,$A$7=1," ") -> 264 | Z21: 15 | AA21: =_xlfn.IFS(COUNTIFS(H21,"#",H20,"#"),A20,COUNTIFS(H21,2,H20,"#"),A20,$A$7=1,"") -> 
A22: 16 | B22: ='UTL1'!B22 -> 2023-01-04 | C22: =_xlfn.IFS(Q22<>1,"",AND($B$4>=1,COUNT($E$7:G22)<=bkng),$B$4,P22=1,TRUNC(AVERAGE(E22:G22),0),COUNT($Q$7:Q22)=2,TRUNC(AVERAGE($E$7:G21),0),COUNT($Q$7:Q22)>=3,TRUNC(AVERAGE($E$7:G21),0)) -> 151 | D22: =_xlfn.IFS(Q22<>1,"",Q22=1,TRUNC((230-C22)*0.9)) -> 71 | E22: 185 | F22: 192 | G22: 200 | H22: =_xlfn.IFS(COUNT(E22:G22)<1,"",AND(E22>C22,F22>C22,G22>C22,COUNT($E$7:G22)>sixng),"#",AND(E22>C21,F22>C21,G22>C21,COUNT($E$7:G22)>sixng,COUNTIF(H21,"#")=1),"2",$A$7=1,"") -> # | I22: 577 | J22: 192 | K22: =_xlfn.IFS(Q22<>1,"",Q22=1,I22+(3*D22)) -> 790 | L22: =_xlfn.IFS(Q22<>1,"",COUNT($E$7:G22)<=hcpng,"",COUNT($E$7:G22)>=hcpng,K22) -> 790 | M22: =_xlfn.IFS(Q22=1,SUM($E$7:G22),Q22<>1,"") -> 7375 | N22: =_xlfn.IFS(Q22=1,COUNT($E$7:G22),Q22<>1,"") -> 48 | O22: =IF(Q22=1,ROUND(AVERAGE($E$7:G22),2),"") -> 153.65 | P22: =_xlfn.IFS(Q22<>1,"",SUM($Q$7:Q22)=1,1,SUM($Q$7:Q22)<>1,"") ->  | Q22: 1 | S22: =_xlfn.IFS(E22=$X$5,E22,F22=$X$5,F22,G22=$X$5,G22,$A$7=1,"") ->  | U22: =_xlfn.IFS(W22=$X$6,W22,X22=$X$6,X22,Y22=$X$6,Y22,$A$7=1,"") ->  | W22: =_xlfn.IFS(AND(Q22=1,COUNT($E$7:G22)>hcpng),E22+D22,$A$7=1," ") -> 256 | X22: =_xlfn.IFS(AND(Q22=1,COUNT($E$7:G22)>hcpng),F22+D22,$A$7=1," ") -> 263 | Y22: =_xlfn.IFS(AND(Q22=1,COUNT($E$7:G22)>hcpng),G22+D22,$A$7=1," ") -> 271 | Z22: 16 | AA22: =_xlfn.IFS(COUNTIFS(H22,"#",H21,"#"),A21,COUNTIFS(H22,2,H21,"#"),A21,$A$7=1,"") -> 
A23: 17 | B23: ='UTL1'!B23 -> 2023-01-11 | C23: =_xlfn.IFS(Q23<>1,"",AND($B$4>=1,COUNT($E$7:G23)<=bkng),$B$4,P23=1,TRUNC(AVERAGE(E23:G23),0),COUNT($Q$7:Q23)=2,TRUNC(AVERAGE($E$7:G22),0),COUNT($Q$7:Q23)>=3,TRUNC(AVERAGE($E$7:G22),0)) -> 153 | D23: =_xlfn.IFS(Q23<>1,"",Q23=1,TRUNC((230-C23)*0.9)) -> 69 | E23: 159 | F23: 142 | G23: 137 | H23: =_xlfn.IFS(COUNT(E23:G23)<1,"",AND(E23>C23,F23>C23,G23>C23,COUNT($E$7:G23)>sixng),"#",AND(E23>C22,F23>C22,G23>C22,COUNT($E$7:G23)>sixng,COUNTIF(H22,"#")=1),"2",$A$7=1,"") ->  | I23: 438 | J23: 146 | K23: =_xlfn.IFS(Q23<>1,"",Q23=1,I23+(3*D23)) -> 645 | L23: =_xlfn.IFS(Q23<>1,"",COUNT($E$7:G23)<=hcpng,"",COUNT($E$7:G23)>=hcpng,K23) -> 645 | M23: =_xlfn.IFS(Q23=1,SUM($E$7:G23),Q23<>1,"") -> 7813 | N23: =_xlfn.IFS(Q23=1,COUNT($E$7:G23),Q23<>1,"") -> 51 | O23: =IF(Q23=1,ROUND(AVERAGE($E$7:G23),2),"") -> 153.2 | P23: =_xlfn.IFS(Q23<>1,"",SUM($Q$7:Q23)=1,1,SUM($Q$7:Q23)<>1,"") ->  | Q23: 1 | S23: =_xlfn.IFS(E23=$X$5,E23,F23=$X$5,F23,G23=$X$5,G23,$A$7=1,"") ->  | U23: =_xlfn.IFS(W23=$X$6,W23,X23=$X$6,X23,Y23=$X$6,Y23,$A$7=1,"") ->  | W23: =_xlfn.IFS(AND(Q23=1,COUNT($E$7:G23)>hcpng),E23+D23,$A$7=1," ") -> 228 | X23: =_xlfn.IFS(AND(Q23=1,COUNT($E$7:G23)>hcpng),F23+D23,$A$7=1," ") -> 211 | Y23: =_xlfn.IFS(AND(Q23=1,COUNT($E$7:G23)>hcpng),G23+D23,$A$7=1," ") -> 206 | Z23: 17 | AA23: =_xlfn.IFS(COUNTIFS(H23,"#",H22,"#"),A22,COUNTIFS(H23,2,H22,"#"),A22,$A$7=1,"") -> 
A24: 18 | B24: ='UTL1'!B24 -> 2023-01-18 | C24: =_xlfn.IFS(Q24<>1,"",AND($B$4>=1,COUNT($E$7:G24)<=bkng),$B$4,P24=1,TRUNC(AVERAGE(E24:G24),0),COUNT($Q$7:Q24)=2,TRUNC(AVERAGE($E$7:G23),0),COUNT($Q$7:Q24)>=3,TRUNC(AVERAGE($E$7:G23),0)) -> 153 | D24: =_xlfn.IFS(Q24<>1,"",Q24=1,TRUNC((230-C24)*0.9)) -> 69 | E24: 150 | F24: 149 | G24: 153 | H24: =_xlfn.IFS(COUNT(E24:G24)<1,"",AND(E24>C24,F24>C24,G24>C24,COUNT($E$7:G24)>sixng),"#",AND(E24>C23,F24>C23,G24>C23,COUNT($E$7:G24)>sixng,COUNTIF(H23,"#")=1),"2",$A$7=1,"") ->  | I24: 452 | J24: 150 | K24: =_xlfn.IFS(Q24<>1,"",Q24=1,I24+(3*D24)) -> 659 | L24: =_xlfn.IFS(Q24<>1,"",COUNT($E$7:G24)<=hcpng,"",COUNT($E$7:G24)>=hcpng,K24) -> 659 | M24: =_xlfn.IFS(Q24=1,SUM($E$7:G24),Q24<>1,"") -> 8265 | N24: =_xlfn.IFS(Q24=1,COUNT($E$7:G24),Q24<>1,"") -> 54 | O24: =IF(Q24=1,ROUND(AVERAGE($E$7:G24),2),"") -> 153.06 | P24: =_xlfn.IFS(Q24<>1,"",SUM($Q$7:Q24)=1,1,SUM($Q$7:Q24)<>1,"") ->  | Q24: 1 | S24: =_xlfn.IFS(E24=$X$5,E24,F24=$X$5,F24,G24=$X$5,G24,$A$7=1,"") ->  | U24: =_xlfn.IFS(W24=$X$6,W24,X24=$X$6,X24,Y24=$X$6,Y24,$A$7=1,"") ->  | W24: =_xlfn.IFS(AND(Q24=1,COUNT($E$7:G24)>hcpng),E24+D24,$A$7=1," ") -> 219 | X24: =_xlfn.IFS(AND(Q24=1,COUNT($E$7:G24)>hcpng),F24+D24,$A$7=1," ") -> 218 | Y24: =_xlfn.IFS(AND(Q24=1,COUNT($E$7:G24)>hcpng),G24+D24,$A$7=1," ") -> 222 | Z24: 18 | AA24: =_xlfn.IFS(COUNTIFS(H24,"#",H23,"#"),A23,COUNTIFS(H24,2,H23,"#"),A23,$A$7=1,"") -> 
A25: 19 | B25: ='UTL1'!B25 -> 2023-01-25 | C25: =_xlfn.IFS(Q25<>1,"",AND($B$4>=1,COUNT($E$7:G25)<=bkng),$B$4,P25=1,TRUNC(AVERAGE(E25:G25),0),COUNT($Q$7:Q25)=2,TRUNC(AVERAGE($E$7:G24),0),COUNT($Q$7:Q25)>=3,TRUNC(AVERAGE($E$7:G24),0)) -> 153 | D25: =_xlfn.IFS(Q25<>1,"",Q25=1,TRUNC((230-C25)*0.9)) -> 69 | E25: 170 | F25: 180 | G25: 127 | H25: =_xlfn.IFS(COUNT(E25:G25)<1,"",AND(E25>C25,F25>C25,G25>C25,COUNT($E$7:G25)>sixng),"#",AND(E25>C24,F25>C24,G25>C24,COUNT($E$7:G25)>sixng,COUNTIF(H24,"#")=1),"2",$A$7=1,"") ->  | I25: 477 | J25: 159 | K25: =_xlfn.IFS(Q25<>1,"",Q25=1,I25+(3*D25)) -> 684 | L25: =_xlfn.IFS(Q25<>1,"",COUNT($E$7:G25)<=hcpng,"",COUNT($E$7:G25)>=hcpng,K25) -> 684 | M25: =_xlfn.IFS(Q25=1,SUM($E$7:G25),Q25<>1,"") -> 8742 | N25: =_xlfn.IFS(Q25=1,COUNT($E$7:G25),Q25<>1,"") -> 57 | O25: =IF(Q25=1,ROUND(AVERAGE($E$7:G25),2),"") -> 153.37 | P25: =_xlfn.IFS(Q25<>1,"",SUM($Q$7:Q25)=1,1,SUM($Q$7:Q25)<>1,"") ->  | Q25: 1 | S25: =_xlfn.IFS(E25=$X$5,E25,F25=$X$5,F25,G25=$X$5,G25,$A$7=1,"") ->  | U25: =_xlfn.IFS(W25=$X$6,W25,X25=$X$6,X25,Y25=$X$6,Y25,$A$7=1,"") ->  | W25: =_xlfn.IFS(AND(Q25=1,COUNT($E$7:G25)>hcpng),E25+D25,$A$7=1," ") -> 239 | X25: =_xlfn.IFS(AND(Q25=1,COUNT($E$7:G25)>hcpng),F25+D25,$A$7=1," ") -> 249 | Y25: =_xlfn.IFS(AND(Q25=1,COUNT($E$7:G25)>hcpng),G25+D25,$A$7=1," ") -> 196 | Z25: 19 | AA25: =_xlfn.IFS(COUNTIFS(H25,"#",H24,"#"),A24,COUNTIFS(H25,2,H24,"#"),A24,$A$7=1,"") -> 
A26: 20 | B26: ='UTL1'!B26 -> 2023-02-01 | C26: =_xlfn.IFS(Q26<>1,"",AND($B$4>=1,COUNT($E$7:G26)<=bkng),$B$4,P26=1,TRUNC(AVERAGE(E26:G26),0),COUNT($Q$7:Q26)=2,TRUNC(AVERAGE($E$7:G25),0),COUNT($Q$7:Q26)>=3,TRUNC(AVERAGE($E$7:G25),0)) -> 153 | D26: =_xlfn.IFS(Q26<>1,"",Q26=1,TRUNC((230-C26)*0.9)) -> 69 | E26: 112 | F26: 134 | G26: 140 | H26: =_xlfn.IFS(COUNT(E26:G26)<1,"",AND(E26>C26,F26>C26,G26>C26,COUNT($E$7:G26)>sixng),"#",AND(E26>C25,F26>C25,G26>C25,COUNT($E$7:G26)>sixng,COUNTIF(H25,"#")=1),"2",$A$7=1,"") ->  | I26: 386 | J26: 128 | K26: =_xlfn.IFS(Q26<>1,"",Q26=1,I26+(3*D26)) -> 593 | L26: =_xlfn.IFS(Q26<>1,"",COUNT($E$7:G26)<=hcpng,"",COUNT($E$7:G26)>=hcpng,K26) -> 593 | M26: =_xlfn.IFS(Q26=1,SUM($E$7:G26),Q26<>1,"") -> 9128 | N26: =_xlfn.IFS(Q26=1,COUNT($E$7:G26),Q26<>1,"") -> 60 | O26: =IF(Q26=1,ROUND(AVERAGE($E$7:G26),2),"") -> 152.13 | P26: =_xlfn.IFS(Q26<>1,"",SUM($Q$7:Q26)=1,1,SUM($Q$7:Q26)<>1,"") ->  | Q26: 1 | S26: =_xlfn.IFS(E26=$X$5,E26,F26=$X$5,F26,G26=$X$5,G26,$A$7=1,"") ->  | U26: =_xlfn.IFS(W26=$X$6,W26,X26=$X$6,X26,Y26=$X$6,Y26,$A$7=1,"") ->  | W26: =_xlfn.IFS(AND(Q26=1,COUNT($E$7:G26)>hcpng),E26+D26,$A$7=1," ") -> 181 | X26: =_xlfn.IFS(AND(Q26=1,COUNT($E$7:G26)>hcpng),F26+D26,$A$7=1," ") -> 203 | Y26: =_xlfn.IFS(AND(Q26=1,COUNT($E$7:G26)>hcpng),G26+D26,$A$7=1," ") -> 209 | Z26: 20 | AA26: =_xlfn.IFS(COUNTIFS(H26,"#",H25,"#"),A25,COUNTIFS(H26,2,H25,"#"),A25,$A$7=1,"") -> 
A27: 21 | B27: ='UTL1'!B27 -> 2023-02-08 | C27: =_xlfn.IFS(Q27<>1,"",AND($B$4>=1,COUNT($E$7:G27)<=bkng),$B$4,P27=1,TRUNC(AVERAGE(E27:G27),0),COUNT($Q$7:Q27)=2,TRUNC(AVERAGE($E$7:G26),0),COUNT($Q$7:Q27)>=3,TRUNC(AVERAGE($E$7:G26),0)) -> 152 | D27: =_xlfn.IFS(Q27<>1,"",Q27=1,TRUNC((230-C27)*0.9)) -> 70 | E27: 238 | F27: 170 | G27: 180 | H27: =_xlfn.IFS(COUNT(E27:G27)<1,"",AND(E27>C27,F27>C27,G27>C27,COUNT($E$7:G27)>sixng),"#",AND(E27>C26,F27>C26,G27>C26,COUNT($E$7:G27)>sixng,COUNTIF(H26,"#")=1),"2",$A$7=1,"") -> # | I27: 588 | J27: 196 | K27: =_xlfn.IFS(Q27<>1,"",Q27=1,I27+(3*D27)) -> 798 | L27: =_xlfn.IFS(Q27<>1,"",COUNT($E$7:G27)<=hcpng,"",COUNT($E$7:G27)>=hcpng,K27) -> 798 | M27: =_xlfn.IFS(Q27=1,SUM($E$7:G27),Q27<>1,"") -> 9716 | N27: =_xlfn.IFS(Q27=1,COUNT($E$7:G27),Q27<>1,"") -> 63 | O27: =IF(Q27=1,ROUND(AVERAGE($E$7:G27),2),"") -> 154.22 | P27: =_xlfn.IFS(Q27<>1,"",SUM($Q$7:Q27)=1,1,SUM($Q$7:Q27)<>1,"") ->  | Q27: 1 | R27: 588 | S27: =_xlfn.IFS(E27=$X$5,E27,F27=$X$5,F27,G27=$X$5,G27,$A$7=1,"") -> 238 | T27: 798 | U27: =_xlfn.IFS(W27=$X$6,W27,X27=$X$6,X27,Y27=$X$6,Y27,$A$7=1,"") -> 308 | W27: =_xlfn.IFS(AND(Q27=1,COUNT($E$7:G27)>hcpng),E27+D27,$A$7=1," ") -> 308 | X27: =_xlfn.IFS(AND(Q27=1,COUNT($E$7:G27)>hcpng),F27+D27,$A$7=1," ") -> 240 | Y27: =_xlfn.IFS(AND(Q27=1,COUNT($E$7:G27)>hcpng),G27+D27,$A$7=1," ") -> 250 | Z27: 21 | AA27: =_xlfn.IFS(COUNTIFS(H27,"#",H26,"#"),A26,COUNTIFS(H27,2,H26,"#"),A26,$A$7=1,"") -> 
A28: 22 | B28: ='UTL1'!B28 -> 2023-02-15 | C28: =_xlfn.IFS(Q28<>1,"",AND($B$4>=1,COUNT($E$7:G28)<=bkng),$B$4,P28=1,TRUNC(AVERAGE(E28:G28),0),COUNT($Q$7:Q28)=2,TRUNC(AVERAGE($E$7:G27),0),COUNT($Q$7:Q28)>=3,TRUNC(AVERAGE($E$7:G27),0)) -> 154 | D28: =_xlfn.IFS(Q28<>1,"",Q28=1,TRUNC((230-C28)*0.9)) -> 68 | E28: 128 | F28: 208 | G28: 220 | H28: =_xlfn.IFS(COUNT(E28:G28)<1,"",AND(E28>C28,F28>C28,G28>C28,COUNT($E$7:G28)>sixng),"#",AND(E28>C27,F28>C27,G28>C27,COUNT($E$7:G28)>sixng,COUNTIF(H27,"#")=1),"2",$A$7=1,"") ->  | I28: 556 | J28: 185 | K28: =_xlfn.IFS(Q28<>1,"",Q28=1,I28+(3*D28)) -> 760 | L28: =_xlfn.IFS(Q28<>1,"",COUNT($E$7:G28)<=hcpng,"",COUNT($E$7:G28)>=hcpng,K28) -> 760 | M28: =_xlfn.IFS(Q28=1,SUM($E$7:G28),Q28<>1,"") -> 10272 | N28: =_xlfn.IFS(Q28=1,COUNT($E$7:G28),Q28<>1,"") -> 66 | O28: =IF(Q28=1,ROUND(AVERAGE($E$7:G28),2),"") -> 155.64 | P28: =_xlfn.IFS(Q28<>1,"",SUM($Q$7:Q28)=1,1,SUM($Q$7:Q28)<>1,"") ->  | Q28: 1 | S28: =_xlfn.IFS(E28=$X$5,E28,F28=$X$5,F28,G28=$X$5,G28,$A$7=1,"") ->  | U28: =_xlfn.IFS(W28=$X$6,W28,X28=$X$6,X28,Y28=$X$6,Y28,$A$7=1,"") ->  | W28: =_xlfn.IFS(AND(Q28=1,COUNT($E$7:G28)>hcpng),E28+D28,$A$7=1," ") -> 196 | X28: =_xlfn.IFS(AND(Q28=1,COUNT($E$7:G28)>hcpng),F28+D28,$A$7=1," ") -> 276 | Y28: =_xlfn.IFS(AND(Q28=1,COUNT($E$7:G28)>hcpng),G28+D28,$A$7=1," ") -> 288 | Z28: 22 | AA28: =_xlfn.IFS(COUNTIFS(H28,"#",H27,"#"),A27,COUNTIFS(H28,2,H27,"#"),A27,$A$7=1,"") -> 
